Workbook

Sheet Dropdown
A1: 24 Hours | B1: 24 Hours | G1: Domain | I1: Category | K1: Sub-Category | M1: Classification
A2: 48 Hours | B2: 48 Hours | G2: English | H2: Arabic | I2: English | J2: Arabic | K2: English | L2: Arabic | M2: English | N2: Arabic
A3: 72 Hours | B3: 72 Hours | G3: Clinical complaints | H3: الشكاوى السريرية | I3: 1. Quality | J3: 1.الجودة | K3: 1.1. Examination | L3: 1.1.الفحص الطبي | M3: 1.1.1. Examination not performed | N3: 1.1.1. لم يتم إجراء الفحص
A4: More than 72 Hours | B4: More than 72 Hours | G4: Relationship complaints | H4: الشكاوى المتعلقة بالعلاقات | I4: 2. Safety | J4: 2.السلامة | K4: 1.2.Patient journey | L4: 1.2.رحلة المريض | M4: 1.1.2. Inadequate/incomplete assessment | N4: 1.1.2. تقييم غير كافٍ/غير مكتمل
A5: Escalated( مصعدة) | B5: Escalated( مصعدة) | G5: Management complaints | H5: الشكاوى الإدارية | I5: 3. Institutional issues | J5: 3.القضايا المؤسسية | K5: 1.3.Quality of Care | L5: 1.3.جودة الرعاية | M5: 1.1.3. Not having enough knowledge regarding the patient condition | N5: 1.1.3. عدم توفر معلومات كافية عن حالة المريض
I6: 4. Accessibility | J6: 4.الوصول | K6: 1.4.Treatment | L6: 1.4.العلاج | M6: 1.1.4. Lab tests not performed | N6: 1.1.4.لم يتم إجراء الفحوصات المخبرية
I7: 5. Communication | J7: 5.التواصل | K7: 1.5.Diagnosis | L7: 1.5.التشخيص | M7: 1.1.5. Diagnostic Imaging not performed | N7: 1.1.5.لم يتم إجراء التصوير التشخيصي
A8: Satisfied | B8: Satisfied | I8: 6. Humanness / Caring | J8: 6.الإنسانية \ الرعاية | K8: 2.1.Medication & Vaccination | L8: 2.1. الأدوية والتطعيمات | M8: 1.1.6.Loss of a patient sample | N8: 1.1.6.فقدان عينة من المريض
A9: Neutral | B9: Neutral | K9: 2.2.Safety Incidents | L9: 2.2. حوادث السلامة | M9: 1.2.1.Miscoordination | N9: 1.2.1.سوء التنسيق
A10: Dissatisfied | B10: Dissatisfied | K10: 2.3.Skills and Conduct | L10: 2.3.المهارات والسلوك | M10: 1.2.2.Patient flow issues | N10: 1.2.2.مشاكل في تدفق المرضى
K11: 3.1.Administrative Policies and Procedures | L11: 3.1.السياسات والإجراءات الإدارية | M11: 1.2.3.Lack of follow up | N11: 1.2.3.عدم المتابعة
K12: 3.2.Environment | L12: 3.2.البيئة | M12: 1.3.1.Substandard clinical/nursing care | N12: 1.3.1.رعاية سريرية/تمريضية دون المستوى المطلوب
K13: 3.3.Safety & Security | L13: 3.3.السلامة والأمن | M13: 1.3.2.No Frequent rounding on patient | N13: 1.3.2.عدم وجود جولات متكررة على المريض
K14: 3.4.Finance and Billing | L14: 3.4..الشؤون المالية والفواتير | M14: 1.3.3.Rough treatment | N14: 1.3.3. معاملة قاسية
K15: 3.5.Staffing | L15: 3.5.التوظيف ( توفير الكادر) | M15: 1.3.4.Insensitive to patient needs | N15: عدم مراعاة احتياجات المريض1.3.4
A16: Hospital | B16: Hospital | K16: 3.6.Resources | L16: 3.6.االموارد | M16: 1.3.5.Rushed, not time to see patients | N16: 1.3.5.التسرع وعدم وجود وقت لرؤية المرضى
A17: Patient | K17: 3.7.Medical records | L17: 3.7.السجلات الطبية | M17: 1.3.6.No assistance from staff in feeding a patient | N17: 1.3.6 عدم مساعدة الموظفين في إطعام المريض
K18: 4.1.Access | L18: 4.1.الوصول | M18: 1.4.1.Treatment plan issues | N18: 1.4.1. مشاكل في خطة العلاج
K19: 4.2.Patient Disposition ( final plan) | L19: 4.2. مصير المريض \ الخطة النهائية او القرار الطبي النهائي للحالة | M19: 1.4.2 Treatment plan not followed | N19: 1.4.2.عدم اتباع خطة العلاج
K20: 4.3.Delays | L20: 4.3.التأخيرات | M20: 1.4.3.Ineffective treatment | N20: 1.4.3. علاج غير فعال
A21: Domain | B21: Clinical complaints | K21: 4.4.Referrals | L21: 4.4.التحويل | M21: 1.4.4.Inadequate pain management | N21: 1.4.4. إدارة غير كافية للألم
A22: Clinical complaints | B22: الشكاوى السريرية | K22: 5.1.Patient-staff communication | L22: 5.1.التواصل بين المريض والموظفين | M22: 1.4.5.Patient Discharged before completing treatment | N22: 1.4.5. خروج المريض قبل إكمال العلاج
A23: Relationship complaints | B23: الشكاوى المتعلقة بالعلاقات | K23: 5.2.Incorrect Information | L23: 5.2.معلومات خاطئة | M23: 1.5.1.Errors in diagnosis | N23: 1.5.1. أخطاء في التشخيص
A24: Management complaints | B24: الشكاوى الإدارية | K24: 6.1.Emotional Support | L24: 6.1.االدعم العاطفي | M24: 1.5.2.Errors in lab results | N24: 1.5.2.أخطاء في نتائج المختبر
K25: 6.2.Assault and Harassment | L25: 6.2.الاعتداء والتحرش | M25: 1.5.3.Errors in diagnostic imaging | N25: 1.5.3. أخطاء في التصوير التشخيصي
K26: 6.3.Confidentiality | L26: 6.3.السرية | M26: 1.5.4.Errors in Pre-marriage lab test | N26: 1.5.4.أخطاء في فحص ما قبل الزواج
A27: Category | K27: 6.4.Consent | L27: 6.4.نموذج موافقه | M27: 2.1.1.Prescribing errors | N27: 2.1.1. أخطاء في وصف الأدوية
A28: 1. Quality | B28: 1.الجودة | M28: 2.1.2.Dispensing errors | N28: 2.1.2. أخطاء في صرف الأدوية
A29: 2. Safety | B29: 2.السلامة | M29: 2.1.3.No medication prescribed | N29: 2.1.3. عدم وصف أي دواء
A30: 3. Institutional issues | B30: 3.القضايا المؤسسية | M30: 2.1.4 Insufficient medication prescribed | N30: 2.1.4 وصف كمية غير كافية من الدواء
A31: 4. Accessibility | B31: 4.الوصول | M31: 2.1.5.Dispensing medication without prescription | N31: 2.1.5 صرف دواء بدون وصفة طبية
A32: 5. Communication | B32: 5.التواصل | M32: 2.1.6.Prescription of expired medication | N32: 2.1.6.وصف دواء منتهي الصلاحية
A33: 6. Humanness / Caring | B33: 6.الإنسانية \ الرعاية | M33: 2.1.7.Prescribing medication without medical examination | N33: 2.1.7 صرف دواء بدون وصفة طبية
M34: 2.1.8.Medication shortages | N34: 2.1.8. نقص في الأدوية
M35: 2.1.9.Refusal to dispense medications | N35: 2.1.9.رفض صرف الأدوية
M36: 2.1.10.Vaccination shortages | N36: 2.1.10. نقص اللقاحات
M37: 2.1.11.Vaccinations timing | N37: 2.1.11. أخطاء في توقيت اللقاحات
M38: 2.1.12.Refusal to vaccinate | N38: 2.1.12. رفض التطعيم
M39: 2.2.1.Equipment failure/malfunction | N39: 2.2.1. عطل/خلل في المعدات
M40: 2.2.2.Medical device failure | N40: 2.2.2. عطل في جهاز طبي
M41: 2.2.3.No patient ID band | N41: 2.2.3. عدم وجود سوار تعريف للمريض
M42: 2.2.4.Wrong treatment | N42: 2.2.4. علاج خاطئ
M43: 2.2.5.Complications resulting from treatment | N43: 2.2.5. مضاعفات ناتجة عن العلاج
M44: 2.2.6.Dietary errors/ Incompatible Diet with the patient's condition | N44: 2.2.6.أخطاء غذائية / نظام غذائي غير متوافق مع حالة المريض
M45: 2.2.7.Patient Fall | N45: 2.2.7. سقوط المريض
M46: 2.2.8.Hospital acquired infection | N46: 2.2.8. عدوى مكتسبة من المستشفى
M47: 2.2.9.Exposure to infected persons/areasا | N47: 2.2.9. التعرض لأشخاص/مناطق مصابة
M48: 2.2.10.Labor and delivery related issues | N48: 2.2.10 مشاكل متعلقة بالولادة
M49: 2.2.11.Wrong surgery | N49: 2.2.11. جراحة خاطئة
M50: 2.2.12.Wrong site surgery | N50: 2.2.12. جراحة في موقع خاطئ
M51: 2.2.13.Surgical complications | N51: 2.2.13. مضاعفات جراحية
M52: 2.2.14.Retained instrument or sponge | N52: 2.2.14. بقاء أداة أو إسفنجة داخل الجسم
M53: 2.2.15.Cancellation of surgery | N53: 2.2.15. إلغاء الجراحة
M54: 2.2.16.Unexpected loss of limb or function | N54: 2.2.16 فقدان غير متوقع لأحد الأطراف أو وظيفتها
M55: 2.2.17.Damaging an organ | N55: 2.2.17. تلف عضو
M56: 2.2.18.Patient death | N56: 2.2.18.وفاة المريض
M57: 2.3.1.Practice without a clinical license | N57: 2.3.1. ممارسة المهنة بدون ترخيص سريري
M58: 2.3.2.Expiration of healthcare provider license | N58: 2.3.2. انتهاء صلاحية ترخيص مقدم الرعاية الصحية
M59: 2.3.3.Inappropriate attendance | N59: 2.3.3. حضور غير مناسب
M60: 2.3.4.Poor hand-hygiene | N60: 2.3.4. سوء نظافة اليدين
M61: 2.3.5.Improper practice of infection control recommendation | N61: 2.3.5. ممارسة غير سليمة لتوصيات مكافحة العدوى
M62: 3.1.1.Paperwork delays | N62: 3.1.1.تأخير في إنجاز الأوراق
M63: 3.1.2.Duty manager not available | N63: 3.1.2. عدم توفر مدير المناوبة
M64: 3.1.3.Facility guidelines compliance | N64: 3.1.3. الامتثال لإرشادات المنشأة
M65: 3.1.4.Required Service not obtained | N65: 3.1.4. عدم الحصول على الخدمة المطلوبة
M66: 3.1.5.Information boards not available | N66: 3.1.5.I عدم توفر لوحات المعلومات
M67: 3.1.6.Prices list not available | N67: 3.1.6. عدم توفر قائمة الأسعار
M68: 3.1.7.Non-compliance with visiting hours policy | N68: 3.1.7. عدم الالتزام بمواعيد الزيارة سياسة غير كافية
M69: 3.1.8.Inadequate reception service | N69: 3.1.8. خدمة استقبال غير كافية
M70: 3.1.9.Inadequate call center service | N70: 3.1.9. خدمة مركز اتصال غير كافية
M71: 3.2.1.Poor environment | N71: 3.2.1. بيئة سيئة
M72: 3.2.2.Poor cleanliness/sanitizing | N72: 3.2.2.نظافة/تعقيم سيئة
M73: 3.2.3.Poor accommodation | N73: 3.2.3. إقامة سيئة
M74: 3.2.4.Poor Food service | N74: 3.2.4. خدمة طعام سيئة
M75: 3.2.5.Noisy Environment | N75: 3.2.5. بيئة صاخبة
M76: 3.2.6.Poor geographical location | N76: 3.2.6. موقع جغرافي سيئ
M77: 3.2.7.Inadequate waiting rooms | N77: 3.2.7. غرف انتظار غير كافية
M78: 3.2.8.Building is not accessible for people with special needs | N78: 3.2.8. المبنى غير مُهيأ لذوي الاحتياجات الخاصة
M79: 3.2.9.Failure of Elevators | N79: 3.2.9.تعطل المصاعد
M80: 3.2.10.Elevators not available | N80: 3.2.10. المصاعد غير متوفرة
M81: 3.2.11.Heating, Ventilation, Air condition (HVAC) Failure | N81: 3.2.11. عطل في التدفئة والتهوية وتكييف الهواء
M82: 3.2.12.Disruption of power supply | N82: 3.2.12. انقطاع التيار الكهربائي
M83: 3.2.13.Water supply issues | N83: 3.2.13. مشاكل في إمدادات المياه
M84: 3.2.14.Water leaks | N84: 3.2.14. تسربات مياه
M85: 3.2.15.Overflow of sewage | N85: 3.2.15. فيضان مياه الصرف الصحي
M86: 3.3.1.No security staff in the building | N86: 3.3.1. ا يوجد أفراد أمن في المبنى
M87: 3.3.2.Poor security response | N87: 3.3.2. استجابة أمنية ضعيفة
M88: 3.3.3.Blocked access to fire fighting equipment | N88: 3.3.3. صعوبة الوصول إلى معدات مكافحة الحرائق
M89: 3.3.4.Fire and safety hazards | N89: 3.3.4. مخاطر الحريق والسلامة
M90: 3.3.5.Exposed electric wiring | N90: 3.3.5. أسلاك كهربائية مكشوفة
M91: 3.3.6.Blocked access to emergency doors | N91: 3.3.6. صعوبة الوصول إلى أبواب الطوارئ
M92: 3.3.7.Smoking policy violation | N92: 3.3.7.مخالفة سياسة التدخين
M93: 3.3.8.Theft and lost | N93: 3.3.8. سرقة وفقدان
M94: 3.3.9.Lack of parking slots | N94: 3.3.9.نقص في مواقف السيارات
M95: 3.3.10.Drop off and pick up points issues | N95: 3.3.10. مشاكل في نقاط التسليم والاستلام
M96: 3.4.1.Pay a fee to open a file | N96: 3.4.1. دفع رسوم لفتح ملف
M97: 3.4.2.Miscalculation | N97: 3.4.2 خطأ في الحساب
M98: 3.4.3.Calculate Additional amount | N98: 3.4.3. حساب مبلغ إضافي
M99: 3.4.4.Reimbursements issues | N99: 3.4.4.مشاكل في التعويضات
M100: 3.4.5.Pricing variations | N100: 3.4.5. اختلافات في الأسعار
M101: 3.4.6.Unnecessary health services | N101: 3.4.6. خدمات صحية غير ضرورية
M102: 3.5.1.Insufficient staffing | N102: 3.5.1. نقص في عدد الموظفين
M103: 3.5.2.Specialty not available | N103: 3.5.2. عدم توفر الخدمات المتخصصة
M104: 3.5.3.Disability specialized staff not available | N104: 3.5.3. عدم توفر موظفين متخصصين في شؤون ذوي الإعاقة متاح
M105: 3.5.4.Staff not wearing badges/ID | N105: 3.5.4. الموظفون لا يرتدون شارات/بطاقات هوية
M106: 3.5.5.Dress code violation | N106: 3.5.5. مخالفة قواعد اللباس
M107: 3.6.1.Medical supply shortage | N107: 3.6.1. نقص في المستلزمات الطبية
M108: 3.6.2.Equipment shortage | N108: 3.6.2. نقص في المعدات
M109: 3.6.3.Wheelchairs shortage | N109: 3.6.3 نقص في الكراسي المتحركة
M110: 3.6.4.Isolation room shortage | N110: 3.6.4. نقص في غرف العزل
M111: 3.6.5.Unavailable Beds | N111: 3.6.5. أسرّة غير متاحة
M112: 3.6.6.Unavailable Pre-marital test | N112: 3.6.6. فحص ما قبل الزواج غير متاح
M113: 3.6.7.Unavailable ambulance | N113: 3.6.7. سيارة إسعاف غير متاحة
M114: 3.6.8.Translation service not available | N114: 3.6.8. خدمة الترجمة غير متاحة
M115: 3.7.1.Patient file issues | N115: 3.7.1. مشاكل في ملفات المرضى
M116: 3.7.2.Incorrect medical records | N116: 3.7.2.سجلات طبية غير صحيحة
M117: 3.7.3.Medical report issues | N117: 3.7.3. مشاكل في التقارير الطبية
M118: 3.7.4.Birth registry issues | N118: 3.7.4. مشاكل في سجل المواليد
M119: 3.7.5.Death registry issues | N119: 3.7.5. مشاكل في سجل الوفيات
M120: 3.7.6.Lab results issues | N120: 3.7.6. مشاكل في نتائج المختبر
M121: 3.7.7.Sick leave issues | N121: 3.7.7. مشاكل في الإجازات المرضية
M122: 4.1.1.Appointment scheduling refusal | N122: 4.1.1. رفض تحديد المواعيد
M123: 4.1.2.Poor availability and scheduling | N123: 4.1.2. ضعف التوافر والجدولة
M124: 4.1.3.Patient admission refusal | N124: 4.1.3. رفض قبول المرضى
M125: 4.1.4.Appointment delay | N125: 4.1.4. تأخير في المواعيد
M126: 4.1.5.Appointment cancellation | N126: 4.1.5. إلغاء المواعيد
M127: 4.1.6.Scheduling far appointment | N127: 4.1.6. تحديد موعد بعيد
M128: 4.1.7.Scheduling errors | N128: 4.1.7 أخطاء في الجدولة
M129: 4.2.1.Random reception of patients | N129: 4.2.1. استقبال عشوائي للمرضى
M130: 4.2.2.Unnecessary admission | N130: 4.2.2. قبول غير ضروري
M131: 4.2.3.Patient detentionا | N131: 4.2.3. احتجاز المرضى
M132: 4.3.1.Delay in admitting patient | N132: 4.3.1. تأخير في قبول المرضى
M133: 4.3.2.Examination delay in emergency | N133: 4.3.2. تأخير في الفحص في قسم الطوارئ
M134: 4.3.3.Examination delay | N134: 4.3.3. تأخير في الفحص
M135: 4.3.4.Diagnosis delay | N135: 4.3.4. تأخير في التشخيص
M136: 4.3.5.Delayed test result | N136: 4.3.5. تأخير في نتائج الاختبارات
M137: 4.3.6.Treatment delay | N137: 4.3.6 تأخير في العلاج
M138: 4.3.7.Surgical intervention delay | N138: 4.3.7. تأخير في التدخل الجراحي
M139: 4.3.8.Vaccinating delay | N139: 4.3.8. تأخير في التطعيم
M140: 4.3.9.Delay in discharging patient | N140: 4.3.9. تأخير في تخريج المرضى
M141: 4.3.10.Delay of releasing deceased body | N141: 4.3.10. تأخير في تسليم جثمان المتوفى رفض الإحالة
M142: 4.4.1.Patient referral refusal | N142: 4.4.1. رفض إحالة المريض
M143: 4.4.2.Delay in patient transfer | N143: 4.4.2.تأخير في نقل المريض
M144: 5.1.1.Miscommunication with Patient | N144: 5.1.1. سوء التواصل مع المريض
M145: 5.1.2.Poor provider-patient communication | N145: 5.1.2. ضعف التواصل بين مقدم الرعاية والمريض
M146: 5.1.3.Not involving patient in clinical decisions | N146: 5.1.3. عدم إشراك المريض في القرارات السريرية
M147: 5.1.4.Failure to clarify patient case to his family | N147: 5.1.4. عدم توضيح حالة المريض لعائلته
M148: 5.2.1.Deficient Information | N148: 5.2.1. نقص المعلومات
M149: 5.2.2.Communication of wrong information | N149: 5.2.2.نقل معلومات خاطئة
M150: 6.1.1.Inadequate emotional support | N150: 6.1.1. عدم كفاية الدعم النفسي
M151: 6.1.2.Neglect | N151: 6.1.2. إهمال
M152: 6.2.1.Inappropriate/aggressive behavior | N152: 6.2.1. سلوك غير لائق/عدواني
M153: 6.2.2.Provider assaulted patient | N153: 6.2.2. اعتداء مقدم الرعاية على المريض
M154: 6.2.3.Molesting a patientا | N154: 6.2.3 التحرش بالمريض
M155: 6.2.4.Discrimination | N155: 6.2.4. تمييز
M156: 6.2.5.No apology to the patient | N156: 6.2.5.عدم تقديم اعتذار للمريض
M157: 6.3.1.Breach of confidentiality | N157: 6.3.1. انتهاك السرية
M158: 6.3.2.Breach of patient privacy | N158: 6.3.2. انتهاك خصوصية المريض
M159: 6.4.1.Consent not explained | N159: 6.4.1. عدم شرح الموافقة
M160: 6.4.2.No/Invalid consent obtained | N160: 6.4.2. عدم الحصول على موافقة/عدم صحة الموافقة

Sheet January 2023
A1: Week | B1: No. | C1: رقم الشكوى | D1: رقم الملف | E1: جهة الشكوى | F1: الموقع | G1: القسم الرئيس | H1: القسم الفرعي | I1: تاريخ إستلام الشكوى | J1: المدخل | L1: إرسال نموذج الشكوى | N1: Employee | O1: تحرير الشكوى | Q1: تفعيل الشكوى | S1: Employee | T1: تم ارسال الشكوى | V1: Employee | W1: الوقت بين التحرير والارسال | X1: First Reminder Sent | Z1: Employee | AA1: الوقت بين اول ايميل والارسال | AB1: Second Reminder Sent | AD1: Employee | AE1: الوقت بين ثاني ايميل والاول | AF1: Escalated | AH1: Employee | AI1: Reason of Escalation | AJ1: الوقت بين التصعيد والارسال | AK1: Closed | AM1: Employee | AN1: الوقت بين الاغلاق والارسال | AO1: تاريخ الرد | AQ1: الوقت بين الرد والارسال | AR1: Resolved | AT1: Employee | AU1: الوقت بين المعالجة و الارسال | AV1: ID | AW1: اسم الشخص المشتكى عليه - ان وجد | AX1: Domain | AY1: Category | AZ1: Sub-Category | BA1: Classification | BB1: محتوى الشكوى (عربي) | BC1: محتوى الشكوى (English) | BD1: Satisfied/Dissatisfied | BE1: The Rightful Side | BF1: Recommendation/Action plan | BJ1: رقم الشكوى | BK1: رقم الملف | BL1: جهة الشكوى | BM1: الموقع | BN1: القسم الرئيس | BO1: القسم الفرعي | BP1: تاريخ إستلام الشكوى | BQ1: المدخل | BR1: Time line | BU1: رقم الشكوى | BV1: رقم الملف | BW1: جهة الشكوى | BX1: الموقع | BY1: القسم الرئيس | BZ1: القسم الفرعي | CA1: تاريخ إستلام الشكوى | CB1: المدخل | CC1: Time line | CF1: رقم الشكوى | CG1: رقم الملف | CH1: جهة الشكوى | CI1: الموقع | CJ1: القسم الرئيس | CK1: القسم الفرعي | CL1: تاريخ إستلام الشكوى | CM1: المدخل | CN1: Time line | CQ1: رقم الشكوى | CR1: رقم الملف | CS1: جهة الشكوى | CT1: الموقع | CU1: القسم الرئيس | CV1: القسم الفرعي | CW1: تاريخ إستلام الشكوى | CX1: المدخل | CY1: Time line
K2: Time line | L2: Date | M2: Time | O2: Date | P2: Time | Q2: Date | R2: Time | T2: Date | U2: Time | X2: Date | Y2: Time | AB2: Date | AC2: Time | AF2: Date | AG2: Time | AK2: Date | AL2: Time | AO2: Date | AP2: Time | AR2: Date | AS2: Time
A3: 1 | B3: 1 | C3: 742 | D3: 30049056 | E3: مراجع | F3: العيادات الخارجية | G3: الطبي | H3: قسم الأشعة | I3: 2023-01-01T11:49:00 | J3: امال القحطاني | K3: 24 Hours | L3: 2023-01-01 | M3: 11:27:00 | N3: امال القحطاني | O3: 2023-01-01 | P3: 11:49:00 | Q3: 2023-01-08 | R3: 15:53:00 | S3: امال القحطاني | T3: 2023-01-08 | U3: 15:53:00 | W3: =(U3+T3)-(P3+O3) -> 7.169444444 | AA3: =(Y3+X3)-(U3+T3) -> -44934.66181 | AE3: =(AC3+AB3)-(Y3+X3) -> 0 | AJ3: =(AG3+AF3)-(U3+T3) -> -44934.66181 | AK3: 2023-01-08 | AL3: 15:55:00 | AM3: امال القحطاني | AN3: =(AL3+AK3)-(U3+T3) -> 0.001388888886 | AQ3: =(AP3+AO3)-(U3+T3) -> -44934.66181 | AU3: =(AS3+AR3)-(U3+T3) -> -44934.66181 | AW3: DR. MOHAMMED HAMDY | AX3: Management complaints | AY3: 4. Accessibility | AZ3: 4.1.Access | BA3: 4.1.2.Poor availability and scheduling | BB3: انتظرنا لمده ساعه ونص دون ان يتم الامر وعند الاستفسار يتم ابلاغي بان انظر خمص دقائق وتتم المماطله | BC3: we waited for an hour and half without anything beign done, and whenever I asked for an update, I was told to wait five minutes, which kept turing into delays | BE3: Patient | BJ3: 817 | BK3: 30086592 | BL3: مجلس الضمان الصحي | BM3: التنويم | BN3: الطبي | BO3: تنويم الأطفال | BP3: 2023-01-31T11:30:00 | BQ3: امال القحطاني | BR3: 24 Hours | BU3: 745 | BV3: 1259164 | BW3: وزارة الصحة | BX3: التنويم | BY3: الإداري | BZ3: إدارة التنويم | CA3: 2023-01-02T09:54:00 | CB3: امال القحطاني | CC3: 24 Hours | CF3: 742 | CG3: 30049056 | CH3: مراجع | CI3: العيادات الخارجية | CJ3: الطبي | CK3: قسم الأشعة | CL3: 2023-01-01T11:49:00 | CM3: امال القحطاني | CN3: 24 Hours | CQ3: 728 | CR3: 30184855 | CS3: ذوي المراجع | CT3: الطوارئ | CU3: الطبي | CV3: أطباء الطوارئ | CW3: 2023-01-01T21:21:00 | CX3: تهاني عبدالله القرني | CY3: 72 Hours
B4: 2 | C4: 747 | D4: 30204117 | E4: وزارة الصحة | F4: العيادات الخارجية | G4: الإداري | H4: قسم التقارير الطبية | I4: 2023-01-01T18:42:00 | J4: تهاني عبدالله القرني | K4: 48 Hours | L4: 2023-01-01 | M4: 18:42:00 | N4: تهاني عبدالله القرني | O4: 2023-01-01 | P4: 18:42:00 | T4: 2023-01-01 | U4: 18:42:00 | V4: تهاني عبدالله القرني | W4: 0 | AA4: -44927.77917 | AE4: 0 | AJ4: -44927.77917 | AN4: -44927.77917 | AO4: 2023-01-02 | AP4: 18:46:00 | AQ4: 1.002777778 | AR4: 2023-01-02 | AS4: 18:46:00 | AT4: تهاني عبدالله القرني | AU4: 1.002777778 | AX4: Management complaints | AY4: 3. Institutional Issues | AZ4: 3.7.Medical records | BA4: 3.7.7.Sick leave issues | BB4: لم يتم رفع الاجازه المرضيه على منصه صحه | BC4: The sick leave certificate has not been uploaded to the Seha platform. | BE4: Patient | BJ4: 840 | BK4: 30106720 | BL4: مجلس الضمان الصحي | BM4: التنويم | BN4: الإداري | BO4: قسم المالية | BP4: 2023-01-31T13:41:00 | BQ4: تهاني عبدالله القرني | BR4: 24 Hours | BU4: 746 | BV4: 506666964 | BW4: وزارة الصحة | BX4: الطوارئ | BY4: الإداري | BZ4: المدير المناوب | CA4: 2023-01-02T15:20:00 | CB4: تهاني عبدالله القرني | CC4: 48 Hours | CF4: 749 | CG4: 30220295 | CH4: مراجع | CI4: العيادات الخارجية | CJ4: التمريض | CK4: تمريض التخدير | CL4: 2023-01-07T13:00:00 | CM4: امال القحطاني | CN4: 24 Hours | CQ4: 740 | CR4: 1739979 | CS4: ذوي المراجع | CT4: العيادات الخارجية | CU4: الإداري | CV4: قسم الموافقات الطبية | CW4: 2023-01-03T19:42:00 | CX4: امال القحطاني | CY4: More than 72 Hours
B5: 3 | C5: 728 | D5: 30184855 | E5: ذوي المراجع | F5: الطوارئ | G5: الطبي | H5: أطباء الطوارئ | I5: 2023-01-01T21:21:00 | J5: تهاني عبدالله القرني | K5: 72 Hours | L5: 2022-12-28 | M5: 12:50:00 | N5: تهاني عبدالله القرني | O5: 2023-01-01 | P5: 21:21:00 | Q5: 2023-01-01 | R5: 21:14:00 | S5: تهاني عبدالله القرني | T5: 2023-01-01 | U5: 21:22:00 | V5: تهاني عبدالله القرني | W5: 0.0006944444467 | X5: 2023-01-02 | Y5: 19:31:00 | Z5: تهاني عبدالله القرني | AA5: 0.9229166667 | AE5: -44928.81319 | AJ5: -44927.89028 | AN5: -44927.89028 | AO5: 2023-01-02 | AP5: 19:35:00 | AQ5: 0.9256944444 | AR5: 2023-01-04 | AS5: 16:33:00 | AT5: تهاني عبدالله القرني | AU5: 2.799305556 | AV5: 14690 | AW5: DR. ASMA HASSAN ALI | AX5: Management complaints | AY5: 1. Quality | AZ5: 1.5.Diagnosis | BA5: 1.5.1.Errors in diagnosis | BB5: في 26 ديسمبر 2022، ذهبنا إلى قسم الطوارئ حيث فحصت الدكتورة أسماء ابنتي. تم طلب فحص كريات الدم البيضاء النتائج، أُبلغتني أن ابنتنا تعاني من نقص في عدد كريات الدم البيضاء، وأن النتيجة يجب أن تكون أقل من 1500، على الرغم من أنه تم تحديد أن المعدل الطبيعي يجب أن يكون بين 450 و1500.مع ذلك، أدى نقص خبرة الطبيبة في تفسير نتائج الفحوصات إلى تشخيص خاطئ، بالإضافة إلى طريقة إبلاغها لي بتلك النتائج وسبب الانخفاض. ونتيجةً لهذا الانخفاض، يحتاج ابنتي إلى دخول وحدة العناية المركزة وتلقي العلاج، والذي قد يكون الكورتيزون، حيث طلبت الطبيبة منه عدم الحركة نهائياً.خوفًا من عواقب هذا الانخفاض، أبلغتهم. طلبتُ من طبيب متخصص شرح حالة ابنتي. عندما حضر الدكتور طراد، أكد عكس ما قيل لي تمامًا. جاء ليطمئنهم وأخبرهم أن النتيجة كانت ارتفاعًا، لا انخفاضًا، وأن ذلك يعود إلى مقاومة الجسم للفيروس. | BC5: On December 26, 2022, we went to the emergency department where Dr. Asma examined my daughter. A white blood cell count was ordered, and I was informed that our daughter had a low white blood cell count and that the result should be less than 1500, even though it was determined that the normal range should be between 450 and 1500.However, the doctor's lack of experience in interpreting test results led to a misdiagnosis, compounded by the way she informed me of the results and the reason for the drop in my daughter's blood sugar. As a result of this drop, my daughter needs to be admitted to the intensive care unit and receive treatment, which may include cortisone, as the doctor has instructed her to remain completely immobile.Fearing the consequences of this drop, I informed them. I asked a specialist to explain my daughter's condition. When Dr. Tarad arrived, he confirmed the exact opposite of what I had been told. He came to reassure them, telling them that the result was actually an increase, not a decrease, and that this was due to the body's resistance to the virus. | BE5: Patient | BJ5: 841 | BK5: 30236197 | BL5: مجلس الضمان الصحي | BM5: التنويم | BN5: الإداري | BO5: قسم الموافقات الطبية | BP5: 2023-01-31T14:33:00 | BQ5: تهاني عبدالله القرني | BR5: 24 Hours | BU5: 747 | BV5: 30204117 | BW5: وزارة الصحة | BX5: العيادات الخارجية | BY5: الإداري | BZ5: قسم التقارير الطبية | CA5: 2023-01-01T18:42:00 | CB5: تهاني عبدالله القرني | CC5: 48 Hours | CF5: 756 | CG5: 30087788 | CH5: مراجع | CI5: العيادات الخارجية | CJ5: الطبي | CK5: عيادات جراحة الأنف وأذن وحنجرة | CL5: 2023-01-09T16:40:00 | CM5: تهاني عبدالله القرني | CN5: 72 Hours | CQ5: 755 | CR5: 30151793 | CS5: ذوي المراجع | CT5: العيادات الخارجية | CU5: الطبي | CV5: عيادات الصدرية | CW5: 2023-01-04T20:46:00 | CX5: تهاني عبدالله القرني | CY5: 24 Hours
B6: 4 | C6: 745 | D6: 1259164 | E6: وزارة الصحة | F6: التنويم | G6: الإداري | H6: إدارة التنويم | I6: 2023-01-02T09:54:00 | J6: امال القحطاني | K6: 24 Hours | L6: 2023-01-04 | M6: 09:54:00 | N6: امال القحطاني | O6: 2023-01-04 | P6: 09:58:00 | T6: 2023-01-02 | U6: 09:54:00 | V6: امال القحطاني | W6: -2.002777778 | AA6: -44928.4125 | AE6: 0 | AJ6: -44928.4125 | AN6: -44928.4125 | AO6: 2023-01-02 | AP6: 10:36:00 | AQ6: 0.02916666667 | AR6: 2023-01-02 | AS6: 10:36:00 | AT6: امال القحطاني | AU6: 0.02916666667 | AX6: Clinical complaints | AY6: 1. Quality | AZ6: .3.Quality of Care | BA6: 1.3.4.Insensitive to patient needs | BB6: تم حضور الممرضه ليتم إزالة الكانيولا ولكن تم عمل تمديد تنويم من قبل المريضه لذلك لم يتم ازالتها وعند الرفض من قبل شركة التأمين تم طلب الخروج الممرضه ولم يتم الانتظار لحين إزالة الكانيولا | BC6: The nurse was present to remove the cannula, but the patient had requested an extension, so it was removed, but the insurance company refused. The nurse was asked to leave and was not allowed to wait for the cannula to be removed. | BE6: Patient | BJ6: 811 | BK6: 1388026 | BL6: مجلس الضمان الصحي | BM6: التنويم | BN6: الإداري | BO6: إدارة التنويم | BP6: 2023-01-25T11:42:00 | BQ6: امال القحطاني | BR6: 24 Hours | BU6: 754 | BV6: 30221945 | BW6: وزارة الصحة | BX6: التنويم | BY6: الطبي | BZ6: وحدة العناية المركزة | CA6: 2023-01-04T16:58:00 | CB6: تهاني عبدالله القرني | CC6: 24 Hours | CF6: 757 | CG6: 30209757 | CH6: مراجع | CI6: التنويم | CJ6: الخدمات المساندة | CK6: قسم المطبخ | CL6: 2023-01-07T12:02:00 | CM6: امال القحطاني | CN6: 48 Hours | CQ6: 763 | CR6: 30019203 | CS6: ذوي المراجع | CT6: العيادات الخارجية | CU6: الطبي | CV6: قسم الأشعة | CW6: 2023-01-08T17:46:00 | CX6: تهاني عبدالله القرني | CY6: 72 Hours
B7: 5 | C7: 746 | D7: 506666964 | E7: وزارة الصحة | F7: الطوارئ | G7: الإداري | H7: المدير المناوب | I7: 2023-01-02T15:20:00 | J7: تهاني عبدالله القرني | K7: 48 Hours | L7: 2023-01-01 | M7: 15:02:00 | N7: تهاني عبدالله القرني | O7: 2023-01-02 | P7: 15:20:00 | T7: 2023-01-02 | U7: 15:20:00 | V7: تهاني عبدالله القرني | W7: 0 | X7: 2023-01-03 | Y7: 16:21:00 | Z7: تهاني عبدالله القرني | AA7: 1.042361111 | AE7: -44929.68125 | AJ7: -44928.63889 | AN7: -44928.63889 | AO7: 2023-01-03 | AP7: 20:50:00 | AQ7: 1.229166667 | AR7: 2023-01-03 | AS7: 20:50:00 | AT7: تهاني عبدالله القرني | AU7: 1.229166667 | AV7: 17641 | AW7: ABDULHAKIM HAMOUD MOHAMMED ALLAHIM | AX7: Clinical complaints | AY7: 1. Quality | AZ7: .3.Quality of Care | BA7: 1.3.3.Rough treatment | BB7: بتاريخ 29 ديسمبر 2022 تم حضوري الى قسم الطوارئ ،ا ابني يعاني من بداية ازمة ربو ولم يتم استقبالنا من قبل المدير المناوب حيث تم التعامل مي بطريقه غير لائقه وتم ابلاغ موظف الاستقبال من قبل المدير المناوب بعدم استقبال ابني وذلك بسبب مشادتنا بالحديث بعد اخباري بالانتظار لمدة ساعه . | BC7: On December 29, 2022, I went to the emergency department. My son was experiencing the onset of an asthma attack, but we were not seen by the on-duty manager. I was treated inappropriately, and the manager instructed the receptionist not to see my son. This was due to an argument we had after I was told to wait for an hour. | BE7: Patient | BJ7: 812 | BK7: 1833680 | BL7: مجلس الضمان الصحي | BM7: التنويم | BN7: الإداري | BO7: قسم الموافقات الطبية | BP7: 2023-01-25T12:24:00 | BQ7: امال القحطاني | BR7: 72 Hours | BU7: 778 | BV7: 20305472 | BW7: وزارة الصحة | BX7: التنويم | BY7: الطبي | BZ7: قسم الحضانة | CA7: 2023-01-12T18:59:00 | CB7: تهاني عبدالله القرني | CC7: More than 72 Hours | CF7: 766 | CG7: 415279 | CH7: مراجع | CI7: العيادات الخارجية | CJ7: الطبي | CK7: فني تخطيط المخ والأعصاب | CL7: 2023-01-11T18:35:00 | CM7: تهاني عبدالله القرني | CN7: More than 72 Hours | CQ7: 770 | CR7: 30123335 | CS7: ذوي المراجع | CT7: الطوارئ | CU7: الخدمات المساندة | CV7: قسم النظافة | CW7: 2023-01-12T15:00:00 | CX7: امال القحطاني | CY7: 24 Hours
B8: 6 | C8: 740 | D8: 1739979 | E8: ذوي المراجع | F8: العيادات الخارجية | G8: الإداري | H8: قسم الموافقات الطبية | I8: 2023-01-03T19:42:00 | J8: امال القحطاني | K8: More than 72 Hours | L8: 2022-12-31 | M8: 18:03:00 | N8: امال القحطاني | O8: 2023-01-03 | P8: 19:42:00 | Q8: 2023-01-21 | R8: 18:31:00 | S8: امال القحطاني | T8: 2023-01-03 | U8: 19:42:00 | V8: امال القحطاني | W8: 0 | AA8: -44929.82083 | AE8: 0 | AJ8: -44929.82083 | AN8: -44929.82083 | AQ8: -44929.82083 | AR8: 2023-01-25 | AS8: 11:52:00 | AT8: امال القحطاني | AU8: 21.67361111 | AX8: Clinical complaints | AY8: 5. Communication | AZ8: 3.4.Finance and Billing | BA8: 6.4.2.No/Invalid consent obtained | BB8: دخلت إلى المستشفى للولادة الطبيعية، وما إن دخلتُ حتى أخبرتُ طبيبة قسم الطوارئ برغبتي في الحصول على ابره الظهر . قالت إن الوقت مناسبٌ لذلك. انتظرتُ حوالي ثلاث ساعاتٍ بينما كانوا يُجرون الإجراءات اللازمة للحقنة، بما في ذلك الفحوصات وبعض الأمور الأخرى. وصل طبيب التخدير في تمام الساعة الواحدة ظهرًا، وأُبلغنا بضرورة دفع ثمن ابره الظهر. الى ان يتم إرسال الموافقة إلى شركة التأمين، ودُفعت تكلفة الابره. قال الموظف إنه أرسل الطلب إلى شركة التأمين، لكن لم يتم ذلك. سيتم استرداد المبلغ كاملاً عند موافقة شركة التأمين. ثم... بعد ذلك، في تمام الساعة 2:30، قرر الطبيب إجراء عملية قيصرية لأن حالة المريضة كانت خطيرة. بعد خمسة أيام من خروجنا من المستشفى بعد العملية، استفسرنا عن استرداد تكلفة ابره الظهر وبعد المتابعة. تبين أن الموافقة لم تُرسل إلى شركة التأمين. لذلك، قدمنا ​​طلبًا منفصلاً للموافقة على ابره الظهر، بالإضافة إلى الطلب الذي رفضته شركة التأمين. | BC8: I went to the hospital for a natural birth, and as soon as I arrived, I told the emergency room doctor I wanted an epidural. She said it was a good time. I waited for about three hours while they prepared the injection, including tests and other procedures. The anesthesiologist arrived at 1:00 PM, and we were told we had to pay for the epidural.Until the insurance company received approval, the cost of the injection was paid. The employee said he had sent the request to the insurance company, but it hadn't been processed. The full amount would be refunded upon the insurance company's approval. Then...Five days after our discharge from the hospital following the procedure, we inquired about reimbursement for the epidural. Upon follow-up, it was discovered that the approval had not been sent to the insurance company. Therefore, we submitted a separate application for reimbursement of the epidural, in addition to the application that the insurance company had rejected. | BE8: Patient | BJ8: 816 | BK8: 30127955 | BL8: مجلس الضمان الصحي | BM8: الطوارئ | BN8: الطبي | BO8: أطباء الطوارئ | BP8: 2023-01-25T21:02:00 | BQ8: تهاني عبدالله القرني | BR8: 24 Hours | BU8: 887 | BV8: 30246056 | BW8: وزارة الصحة | BX8: التنويم | BY8: الإداري | BZ8: قسم المالية | CA8: 2023-01-19T15:17:00 | CB8: ابرار الشمري | CC8: 24 Hours | CF8: 772 | CG8: 30240674 | CH8: مراجع | CI8: العيادات الخارجية | CJ8: الإداري | CK8: قسم السنترال | CL8: 2023-01-12T21:11:00 | CM8: تهاني عبدالله القرني | CN8: 48 Hours | CQ8: 775 | CR8: 30163534 | CS8: ذوي المراجع | CT8: العيادات الخارجية | CU8: الإداري | CV8: قسم الموافقات الطبية | CW8: 2023-01-16T19:43:00 | CX8: تهاني عبدالله القرني | CY8: 24 Hours
B9: 7 | C9: 754 | D9: 30221945 | E9: وزارة الصحة | F9: التنويم | G9: الطبي | H9: وحدة العناية المركزة | I9: 2023-01-04T16:58:00 | J9: تهاني عبدالله القرني | K9: 24 Hours | L9: 2023-01-04 | M9: 16:58:00 | N9: تهاني عبدالله القرني | O9: 2023-01-04 | P9: 16:58:00 | T9: 2023-01-04 | U9: 16:58:00 | V9: تهاني عبدالله القرني | W9: 0 | AA9: -44930.70694 | AE9: 0 | AJ9: -44930.70694 | AN9: -44930.70694 | AO9: 2023-01-04 | AP9: 17:03:00 | AQ9: 0.003472222226 | AR9: 2023-01-04 | AS9: 17:03:00 | AT9: تهاني عبدالله القرني | AU9: 0.003472222226 | AX9: Relationship complaints | AY9: 5. Communication | AZ9: 1.Patient-staff communication | BA9: .2.Poor provider-patient communication | BB9: رفض علاج الوالد لعدم وجود تخصص الكبد في المستشفى وتم رفض اعطائي تقرير ليتم تحويله الى مستشفى اخر بالاضافة الى تم رفض اعطائي ارقام تواصل للاطباء | BC9: My father was refused treatment because the hospital lacked a liver specialist, and I was refused a referral report to another hospital. Furthermore, I was refused contact information for the doctors. | BE9: Patient | BJ9: 842 | BK9: 30167647 | BL9: مجلس الضمان الصحي | BM9: العيادات الخارجية | BN9: الإداري | BO9: قسم الموافقات الطبية | BP9: 2023-01-31T16:35:00 | BQ9: تهاني عبدالله القرني | BR9: 24 Hours | BU9: 789 | BV9: 30186314 | BW9: وزارة الصحة | BX9: الطوارئ | BY9: التمريض | BZ9: تمريض الطوارئ | CA9: 2023-01-19T19:01:00 | CB9: تهاني عبدالله القرني | CC9: 72 Hours | CF9: 773 | CG9: 30029557 | CH9: مراجع | CI9: التنويم | CJ9: الخدمات المساندة | CK9: قسم المطبخ | CL9: 2023-01-17T20:43:00 | CM9: تهاني عبدالله القرني | CN9: More than 72 Hours | CQ9: 769 | CR9: 30034241 | CS9: ذوي المراجع | CT9: التنويم | CU9: التمريض | CV9: تمريض تنويم الأطفال | CW9: 2023-01-23T11:47:00 | CX9: امال القحطاني | CY9: More than 72 Hours
B10: 8 | C10: 755 | D10: 30151793 | E10: ذوي المراجع | F10: العيادات الخارجية | G10: الطبي | H10: عيادات الصدرية | I10: 2023-01-04T20:46:00 | J10: تهاني عبدالله القرني | K10: 24 Hours | L10: 2023-01-04 | M10: 18:13:00 | N10: تهاني عبدالله القرني | O10: 2023-01-04 | P10: 20:46:00 | Q10: 2023-01-08 | R10: 16:51:00 | S10: تهاني عبدالله القرني | T10: 2023-01-04 | U10: 20:46:00 | V10: تهاني عبدالله القرني | W10: 0 | AA10: -44930.86528 | AE10: 0 | AJ10: -44930.86528 | AK10: 2023-01-08 | AL10: 16:55:00 | AM10: تهاني عبدالله القرني | AN10: 3.839583333 | AQ10: -44930.86528 | AU10: -44930.86528 | AW10: DR. MOHAMMED AHMED | AX10: Relationship complaints | AY10: 5. Communication | AZ10: 3.Delays | BA10: 2.Poor availability and scheduling | BB10: لم يكن هناك سوى حالة واحدة قبلنا، ولم يستغرق الطبيب أكثر من خمس دقائق. عندما سألنا عنه، قالوا إنه يصلي، وبعد الانتظار خمس عشرة دقيقة. اتضح أنه كان بالداخل، ويريد الان الخروج للصلاه. وانتظرنا أكثر من عشرين دقيقة، ولم يأتِ. ثم ذهبت لأشتكي عليه بعد حوالي أربعين دقيقة، وكان لا يزال خارج العيادة. | BC10: There was only one patient before us, and the doctor took no more than five minutes. When we asked about him, they said he was praying, and after waiting fifteen minutes, it turned out he had been inside and now wanted to go out to pray. We waited for more than twenty minutes, and he didn't come. Then, about forty minutes later, I went to complain about him, and he was still outside the clinic. | BE10: Patient | BJ10: 813 | BK10: 30127955 | BL10: مجلس الضمان الصحي | BM10: التنويم | BN10: الطبي | BO10: تنويم النساء والولادة | BP10: 2023-01-17T18:13:00 | BQ10: تهاني عبدالله القرني | BR10: More than 72 hours | BU10: 803 | BV10: 30086592 | BW10: وزارة الصحة | BX10: الطوارئ | BY10: الإداري | BZ10: المدير المناوب | CA10: 2023-01-23T12:21:00 | CB10: امال القحطاني | CC10: 72 Hours | CF10: 758 | CG10: 30057852 | CH10: مراجع | CI10: العيادات الخارجية | CJ10: الطبي | CK10: عيادات الأسنان | CL10: 2023-01-19T13:35:00 | CM10: امال القحطاني | CN10: More than 72 Hours | CQ10: 776 | CR10: 30137857 | CS10: ذوي المراجع | CT10: العيادات الخارجية | CU10: الطبي | CV10: عيادات الأسنان | CW10: 2023-01-26T11:03:00 | CX10: تهاني عبدالله القرني | CY10: More than 72 Hours
B11: 9 | C11: 757 | D11: 30209757 | E11: مراجع | F11: التنويم | G11: الخدمات المساندة | H11: قسم المطبخ | I11: 2023-01-07T12:02:00 | J11: امال القحطاني | K11: 48 Hours | L11: 2023-01-05 | M11: 11:53:00 | N11: امال القحطاني | O11: 2023-01-07 | P11: 12:02:00 | Q11: 2023-01-07 | R11: 12:01:00 | S11: امال القحطاني | T11: 2023-01-07 | U11: 12:01:00 | V11: امال القحطاني | W11: -0.0006944444394 | X11: 2023-01-08 | Y11: 11:50:00 | Z11: امال القحطاني | AA11: 0.9923611111 | AE11: -44934.49306 | AJ11: -44933.50069 | AN11: -44933.50069 | AO11: 2023-01-08 | AP11: 13:16:00 | AQ11: 1.052083333 | AU11: -44933.50069 | AX11: Clinical complaints | AY11: 1. Quality | AZ11: 3.Safety & Security | BA11: 2.4.Poor Food service | BB11: تم تحضير وجبة العشاء يوم الثلاثاء حيث تم تقديم البيتزا ولم يكن الشكل صالح للاكل ولكن تم تناولها وفي اليوم التالي الاربعاء 4/1/2023 في تمام الساعة التاسعه تم تقديم وجبة عشاء ووجد بداخل السلطة حشرة وليست حشرة خضار حيث تم التحدث مع المسوؤله بالقسم وتم حضور مشرفة قسم المطبخ لرؤيه الوجبه ايضا حيث تم انتظار التعاون مع المشكله ولكن لم يكن هناك اي تواصل معي من قبلهم بعد ذلك علما انه تم ارفاق صور ليتم توضيح المشكله | BC11: Lunch was prepared on Tuesday, where pizza was served, and it did not look edible, but it was eaten. The following day, Wednesday, April 1, 2023, at nine o'clock, dinner was served, and I found an insect-infested salad and non-insect vegetables.I spoke with the department head, and the kitchen supervisor also came to see the meal. I expected them to cooperate with me regarding the problem, but there has been no further communication from them. Please note that photos were attached to illustrate the issue. | BE11: Patient | CF11: 765 | CG11: 30220689 | CH11: مراجع | CI11: العيادات الخارجية | CJ11: الطبي | CK11: عيادات الجلدية | CL11: 2023-01-30T18:36:00 | CM11: تهاني عبدالله القرني | CN11: More than 72 Hours | CQ11: 783 | CR11: ALHH.0030059140 | CS11: ذوي المراجع | CT11: العيادات الخارجية | CU11: الطبي | CV11: عيادات الجلدية | CW11: 2023-01-17T13:14:00 | CX11: تهاني عبدالله القرني | CY11: 24 Hours
B12: 10 | C12: 749 | D12: 30220295 | E12: مراجع | F12: العيادات الخارجية | G12: التمريض | H12: تمريض التخدير | I12: 2023-01-07T13:00:00 | J12: امال القحطاني | K12: 24 Hours | L12: 2023-01-03 | M12: 11:28:00 | N12: امال القحطاني | O12: 2023-01-07 | P12: 13:00:00 | Q12: 2023-01-04 | R12: 09:24:00 | S12: امال القحطاني | T12: 2023-01-07 | U12: 13:00:00 | V12: امال القحطاني | W12: 0 | AA12: -44933.54167 | AE12: 0 | AJ12: -44933.54167 | AN12: -44933.54167 | AO12: 2023-01-07 | AP12: 14:35:00 | AQ12: 0.06597222223 | AR12: 2023-01-08 | AS12: 12:11:00 | AT12: امال القحطاني | AU12: 0.9659722222 | AX12: Management complaints | AY12: 6. Humanness / Caring | AZ12: 3.Skills and Conduct | BA12: 1.3.1.Substandard clinical/nursing care | BB12: واجهتُ العديد من المشاكل مع الممرضة. كان سلوكها غير مهني وغير متعاون. رفعت صوتها وتحدثت معي بأسلوب غير لائق وبكلمات غير مفهومة. | BC12: I faced many issues with the nurse. the nurse’s behavior was unprofessional and uncooperative. She raised her voice and talked to me in an inappropriate and talked with incomprehensible words | BE12: Patient | CF12: 781 | CG12: 30247161 | CH12: مراجع | CI12: العيادات الخارجية | CJ12: التمريض | CK12: تمريض العيادات الخارجية | CL12: 2023-01-18T19:40:00 | CM12: تهاني عبدالله القرني | CN12: More than 72 Hours | CQ12: 780 | CR12: 1227843 | CS12: ذوي المراجع | CT12: العيادات الخارجية | CU12: الإداري | CV12: قسم الموافقات الطبية | CW12: 2023-01-16T18:24:00 | CX12: تهاني عبدالله القرني | CY12: 24 Hours
B13: 11 | C13: 763 | D13: 30019203 | E13: ذوي المراجع | F13: العيادات الخارجية | G13: الطبي | H13: قسم الأشعة | I13: 2023-01-08T17:46:00 | J13: تهاني عبدالله القرني | K13: 72 Hours | L13: 2023-01-07 | M13: 18:36:00 | N13: تهاني عبدالله القرني | O13: 2023-01-08 | P13: 17:46:00 | Q13: 2023-01-08 | R13: 17:11:00 | S13: تهاني عبدالله القرني | T13: 2023-01-08 | U13: 17:47:00 | V13: تهاني عبدالله القرني | W13: 0.0006944444467 | AA13: -44934.74097 | AE13: 0 | AJ13: -44934.74097 | AN13: -44934.74097 | AO13: 2023-01-09 | AP13: 03:10:00 | AQ13: 0.3909722222 | AR13: 2023-01-10 | AS13: 20:32:00 | AT13: تهاني عبدالله القرني | AU13: 2.114583333 | AV13: 13782 | AW13: DALIA WAHEED ELYAMANY DEGHEED | AX13: Clinical complaints | AY13: 6. Humanness / Caring | AZ13: .1. Examination | BA13: 2.1.Deficient Information | BB13: تم عمل اشعه صوتيه للثديين بتاريخ 9 نوفمبر 2022 ولم يتم ذكر التفاصيل نتيجه الثدي الايسر حيث تم عمل اشعه اخرى بمستشفى اخر وثبت وجود ورم في الثدي الايسر | BC13: A breast ultrasound was performed on November 9, 2022, but details regarding the left breast were not mentioned. A subsequent ultrasound at another hospital confirmed the presence of a tumor in the left breast. | BE13: Patient | CF13: 784 | CG13: 30163120 | CH13: مراجع | CI13: الطوارئ | CJ13: الإداري | CK13: استقبال الطوارئ | CL13: 2023-01-23T14:49:00 | CM13: تهاني عبدالله القرني | CN13: 24 Hours | CQ13: 798 | CR13: 30181234 | CS13: ذوي المراجع | CT13: التنويم | CU13: التمريض | CV13: تمريض قسم الإفاقة | CW13: 2023-01-22T15:39:00 | CX13: تهاني عبدالله القرني | CY13: 24 Hours
B14: 12 | C14: 756 | D14: 30087788 | E14: مراجع | F14: العيادات الخارجية | G14: الطبي | H14: عيادات جراحة الأنف وأذن وحنجرة | I14: 2023-01-09T16:40:00 | J14: تهاني عبدالله القرني | K14: 72 Hours | L14: 2023-01-04 | M14: 19:57:00 | N14: تهاني عبدالله القرني | O14: 2023-01-09 | P14: 16:40:00 | Q14: 2023-01-08 | R14: 16:52:00 | S14: تهاني عبدالله القرني | T14: 2023-01-08 | U14: 16:52:00 | V14: تهاني عبدالله القرني | W14: -0.9916666667 | AA14: -44934.70278 | AE14: 0 | AJ14: -44934.70278 | AK14: 2023-01-10 | AL14: 20:34:00 | AM14: تهاني عبدالله القرني | AN14: 2.154166667 | AQ14: -44934.70278 | AU14: -44934.70278 | AV14: 11043 | AW14: Dr MOHAMD SAMEER ABD ALRAZAK ALRAHHAL | AX14: Clinical complaints | AY14: 6. Humanness / Caring | AZ14: 1.2.Patient journey | BA14: 3.Examination delay | BB14: حرارتي مرتفعه تصل الى 38درجه انتظرت الدكتور حتى ساعه ونصف ولم ينادي على اسمي بغض النظر عن خروجه لتوصيل مرضى الى اماكن مع العلم كان بامكانه توجيهم او الطلب من الممرضى بفعل ذلك وناهيك عن بروده المكان مما اساء الى حالتي الصحيه اكثر | BC14: My temperature was high, reaching 38 degrees. I waited for the doctor for an hour and a half, and he didn't call my name, despite going out to take patients to other places. He could have directed them or asked the nurses to do so. Not to mention the coldness of the place, which worsened my condition. | BE14: Patient | CF14: 787 | CG14: 1462560 | CH14: مراجع | CI14: التنويم | CJ14: الإداري | CK14: إدارة التنويم | CL14: 2023-01-19T09:56:00 | CM14: امال القحطاني | CN14: 72 Hours | CQ14: 793 | CR14: 20040379 | CS14: ذوي المراجع | CT14: التنويم | CU14: الطبي | CV14: قسم الجهاز الهمضي و الكبد والمناظير | CW14: 2023-01-23T14:45:00 | CX14: تهاني عبدالله القرني | CY14: More than 72 Hours
B15: 13 | C15: 766 | D15: 415279 | E15: مراجع | F15: العيادات الخارجية | G15: الطبي | H15: فني تخطيط المخ والأعصاب | I15: 2023-01-11T18:35:00 | J15: تهاني عبدالله القرني | K15: More than 72 Hours | L15: 2023-01-08 | M15: 17:58:00 | N15: تهاني عبدالله القرني | O15: 2023-01-11 | P15: 18:35:00 | Q15: 2023-01-11 | R15: 17:28:00 | S15: تهاني عبدالله القرني | T15: 2023-01-11 | U15: 18:35:00 | V15: تهاني عبدالله القرني | W15: 0 | AA15: -44937.77431 | AE15: 0 | AJ15: -44937.77431 | AN15: -44937.77431 | AO15: 2023-01-11 | AP15: 21:04:00 | AQ15: 0.1034722222 | AR15: 2023-01-15 | AS15: 17:46:00 | AT15: تهاني عبدالله القرني | AU15: 3.965972222 | AV15: 4877 | AW15: DR. FAWAZ ALHUSSAIN | AX15: Clinical complaints | AY15: 5. Communication | AZ15: 3.Skills and Conduct | BA15: 2.1.Inappropriate/aggressive behavior | BB15: بتاريخ 8 يناير 2022 بعد الانتهاء من عمل الاجراء المطلوب مع طبيبه التخطيط ساجده تواصلت ساجده مع الطبيب فواز الحسين لابلاغنا بالنتيجه حيث تم انتظارنا اكثر من ربع ساعه استاذنت ساجده للذهاب لدوره المياه لحين حضور الطبيب ولكن عند حضوره تم التعامل معي بطريقه غير لائقه وذلك لذهابي لدوره المياه ولما لم اذهب سابقا وابلغ ساجده بانه سيذهب ,ويعود بعد نصف ساعه على الرغم ان حالتي لاتستطيع البقاء في الانتظار لوقت طويل مما ادى الى استيائي الشديد ومغادرتي | BC15: On January 8, 2022, after completing the required procedure with her planning doctor, Sajida, Sajida contacted Dr. Fawaz Al-Hussein to inform us of the result. We waited for more than fifteen minutes. Sajida excused herself to go to the restroom while awaiting the doctor's arrival. However, upon his arrival, I was treated inappropriately for going to the restroom and for not going earlier. He then informed Sajida that he would be going. .He returned after half an hour, even though my condition didn't allow me to wait that long, which led to my extreme frustration and my departure. | BE15: Patient | CF15: 786 | CG15: 30241140 | CH15: مراجع | CI15: العيادات الخارجية | CJ15: الإداري | CK15: قسم المالية | CL15: 2023-01-19T10:16:00 | CM15: امال القحطاني | CN15: More than 72 Hours | CQ15: 808 | CR15: 30245460 | CS15: ذوي المراجع | CT15: التنويم | CU15: الإداري | CV15: إدارة التنويم | CW15: 2023-01-24T12:26:00 | CX15: امال القحطاني | CY15: 24 Hours
B16: 14 | C16: 770 | D16: 30123335 | E16: ذوي المراجع | F16: الطوارئ | G16: الخدمات المساندة | H16: قسم النظافة | I16: 2023-01-12T15:00:00 | J16: امال القحطاني | K16: 24 Hours | L16: 2023-01-11 | M16: 14:47:00 | N16: امال القحطاني | O16: 2023-01-12 | P16: 15:00:00 | Q16: 2023-01-21 | R16: 18:34:00 | S16: امال القحطاني | T16: 2023-01-12 | U16: 15:00:00 | V16: امال القحطاني | W16: 0 | AA16: -44938.625 | AE16: 0 | AJ16: -44938.625 | AK16: 2023-01-21 | AL16: 18:35:00 | AM16: امال القحطاني | AN16: 9.149305556 | AQ16: -44938.625 | AU16: -44938.625 | AX16: Clinical complaints | AY16: 6. Humanness / Caring | AZ16: .3.Quality of Care | BA16: 1.Substandard clinical/nursing care | BB16: اعطاء المريض الاهتمام الذي يستحقه والخدمه المطلوب من كل العاملين والمستشفى ككل كما ينبغي وحسب الاجراءات القانونيه | BC16: Giving the patient the attention they deserve and the required service from all staff and the hospital as a whole, as is proper and in accordance with legal procedures. | BE16: Patient | CF16: 788 | CG16: 30118752 | CH16: مراجع | CI16: العيادات الخارجية | CJ16: الإداري | CK16: استقبال العيادات الخارجية | CL16: 2023-01-19T13:42:00 | CM16: امال القحطاني | CN16: More than 72 Hours | CQ16: 802 | CR16: 30234040 | CS16: ذوي المراجع | CT16: الطوارئ | CU16: الطبي | CV16: أطباء الطوارئ | CW16: 2023-01-24T15:48:00 | CX16: امال القحطاني | CY16: More than 72 Hours
B17: 15 | C17: 778 | D17: 20305472 | E17: وزارة الصحة | F17: التنويم | G17: الطبي | H17: قسم الحضانة | I17: 2023-01-12T18:59:00 | J17: تهاني عبدالله القرني | K17: More than 72 Hours | L17: 2023-01-12 | M17: 6:59: PM | N17: تهاني عبدالله القرني | O17: 2023-01-12 | P17: 18:59:00 | T17: 2023-01-15 | U17: 19:14:00 | V17: تهاني عبدالله القرني | W17: 3.010416667 | X17: 2023-01-15 | Y17: 19:55:00 | Z17: تهاني عبدالله القرني | AA17: 0.02847222222 | AE17: -44941.82986 | AJ17: -44941.80139 | AK17: 2023-01-22 | AL17: 13:25:00 | AM17: امال القحطاني | AN17: 6.757638889 | AQ17: -44941.80139 | AU17: -44941.80139 | AX17: Clinical complaints | AY17: 5. Communication | AZ17: 5.2.Incorrect Information | BA17: 1.2.Neglect | BB17: لقد وضعوا اسمًا خاطئًا على طفلي، أحتاج إلى إجراء فحص مخبري للتأكد مما إذا كان هذا طفلي أم لا. | BC17: THEY PUT A WRONG NAME ON MY BABY, INEED TO DO A LAB REST TO MAKE SURE IF THIS MYBABY OR NOT | BE17: Patient | BJ17: Employee Name | BK17: Number of complaints | BL17: Total Percentage | BM17: 24 Hours | BN17: 48 Hours | BO17: 72 Hours | BP17: More than 72 hours | BQ17: Total | BU17: Employee Name | BV17: Number of complaints | BW17: Total Percentage | BX17: 24 Hours | BY17: 48 Hours | BZ17: 72 Hours | CA17: More than 72 hours | CB17: Total | CF17: 785 | CG17: 30068250 | CH17: مراجع | CI17: العيادات الخارجية | CJ17: الطبي | CK17: عيادات جراحة العظام | CL17: 2023-01-19T19:45:00 | CM17: تهاني عبدالله القرني | CN17: 48 Hours | CQ17: 820 | CR17: 30234832 | CS17: ذوي المراجع | CT17: العيادات الخارجية | CU17: الطبي | CV17: قسم الصيدلية | CW17: 2023-01-29T09:28:00 | CX17: تهاني عبدالله القرني | CY17: More than 72 Hours
B18: 16 | C18: 772 | D18: 30240674 | E18: مراجع | F18: العيادات الخارجية | G18: الإداري | H18: قسم السنترال | I18: 2023-01-12T21:11:00 | J18: تهاني عبدالله القرني | K18: 48 Hours | L18: 2023-01-12 | M18: 20:44:00 | N18: تهاني عبداله القرني | O18: 2023-01-12 | P18: 21:11:00 | Q18: 2023-01-15 | R18: 17:38:00 | S18: تهاني عبدالله القرني | T18: 2023-01-12 | U18: 21:11:00 | V18: تهاني عبدالله القرني | W18: 0 | AA18: -44938.88264 | AE18: 0 | AJ18: -44938.88264 | AK18: 2023-01-17 | AL18: 01:12:00 | AM18: تهاني عبدالله القرني | AN18: 4.167361111 | AQ18: -44938.88264 | AU18: -44938.88264 | AX18: Relationship complaints | AY18: 5. Communication | AZ18: 1.Patient-staff communication | BA18: 1.1.Miscommunication with Patient | BB18: لم يتم الاستجابه لي بخصوص طلب تواصلي مع الدكتور وتم الاتصال لاكثر من مره بالعياده ويتم اغلاق السماعه لاكثر من مره وحصلت اكثر من يوم | BC18: My request to contact the doctor went unanswered, and I called the clinic multiple times, but the phone kept hanging up. This happened more than once a day. | BE18: Patient | BJ18: امال القحطاني | BK18: 3 | BL18: =BK18/BK20 -> 37.50% | BM18: 3 | BQ18: =BK18 -> 3 | BU18: ابرار الشمري | BV18: 1 | BW18: =BV18/BV20 -> 50.00% | BX18: 1 | CB18: =BV18 -> 1 | CF18: 794 | CG18: 1234 | CH18: مراجع | CI18: العيادات الخارجية | CJ18: الطبي | CK18: عيادات الجهاز الهضمي والمناظير | CL18: 2023-01-21T18:07:00 | CM18: امال القحطاني | CN18: 24 Hours | CQ18: 832 | CR18: 1387136 | CS18: ذوي المراجع | CT18: العيادات الخارجية | CU18: الطبي | CV18: عيادات الصدرية | CW18: 2023-01-30T20:54:00 | CX18: تهاني عبدالله القرني | CY18: More than 72 Hours
B19: 17 | C19: 780 | D19: 1227843 | E19: ذوي المراجع | F19: العيادات الخارجية | G19: الإداري | H19: قسم الموافقات الطبية | I19: 2023-01-16T18:24:00 | J19: تهاني عبدالله القرني | K19: 24 Hours | L19: 2023-01-16 | M19: 18:16:00 | N19: تهاني عبدالله القرني | O19: 2023-01-16 | P19: 18:24:00 | Q19: 2023-01-16 | R19: 18:48:00 | S19: تهاني عبدالله القرني | T19: 2023-01-16 | U19: 18:48:00 | V19: تهاني عبدالله القرني | W19: 0.01666666666 | AA19: -44942.78333 | AE19: 0 | AJ19: -44942.78333 | AK19: 2023-02-16 | AL19: 19:41:00 | AM19: تهاني عبدالله القرني | AN19: 31.03680556 | AQ19: -44942.78333 | AU19: -44942.78333 | AX19: Relationship complaints | AY19: 5. Communication | AZ19: 1.Patient-staff communication | BA19: 1.1.Miscommunication with Patient | BB19: تم الاتصال بقسم الموافقات بتاريخ 16 يناير 2022م، ما يقارب الساعة الثالثة والنصف، لطلب رفع موافقة، حيث تم الطلب من الموظفة الأولى بالرد بخصوص موافقة أو رفض من الشركة، وصرحت لي أن الموضوع مو عندهم عند قسم التنويم، وتم الاتصال بقسم التنويم وأبلغوني ليس لهم علاقة بالموافقات، فتم الاتصال مرة أخرى بالموافقات حيث تم خدمتي ورفع طلب الموافقة، وعند استفساري عن اسم الموظفة الأولى تم إغلاق الخط. | BC19: The approvals department was contacted on January 16, 2022, at approximately 3:30 PM to request the submission of an approval. The first employee was asked to respond regarding the approval or rejection from the company, and she stated that the matter was not with them but with the admission department. The admission department was then contacted, and they informed me that they had no relation to approvals. The approvals department was contacted again where I was assisted and the approval request was submitted. When I inquired about the name of the first employee, the call was disconnected | BE19: Patient | BJ19: تهاني عبدالله القرني | BK19: 5 | BL19: =BK19/BK20 -> 62.50% | BM19: 3 | BO19: 1 | BP19: 1 | BQ19: 5 | BU19: تهاني عبدالله القرني | BV19: 5 | BW19: =BV19/BV21 -> 62.50% | BX19: 1 | BY19: 2 | BZ19: 1 | CA19: 1 | CB19: =BV19 -> 5 | CF19: 815 | CG19: 30234465 | CH19: مراجع | CI19: العيادات الخارجية | CJ19: الإداري | CK19: قسم المواعيد | CL19: 2023-01-26T18:32:00 | CM19: تهاني عبدالله القرني | CN19: More than 72 Hours
B20: 18 | C20: 775 | D20: 30163534 | E20: ذوي المراجع | F20: العيادات الخارجية | G20: الإداري | H20: قسم الموافقات الطبية | I20: 2023-01-16T19:43:00 | J20: تهاني عبدالله القرني | K20: 24 Hours | L20: 2023-01-14 | M20: 18:10:00 | N20: تهاني عبدالله القرني | O20: 2023-01-16 | P20: 19:43:00 | Q20: 2023-01-16 | R20: 18:56:00 | S20: تهاني عبدالله القرني | T20: 2023-01-16 | U20: 07:43:00 | V20: تهاني عبدالله القرني | W20: -0.5 | AA20: -44942.32153 | AE20: 0 | AJ20: -44942.32153 | AK20: 2023-01-16 | AL20: 19:42:00 | AM20: تهاني عبدالله القرني | AN20: 0.4993055556 | AQ20: -44942.32153 | AU20: -44942.32153 | AX20: Clinical complaints | AY20: 5. Communication | AZ20: 3.4.Finance and Billing | BA20: .1.1.Miscommunication with Patient | BB20: تم رفع اكواد تحاليل خاطئة من قبل موظفه الكاملين بعد انتظار ساعتين وتم ابلاغي بذلك من قبل شركة البسيطين بعد الاتصال عليهم راجعت يوم الجمعه في الليل لاستلام الحليب ذهبت الي شكرات وبلغني ان اتوجه للصيدليه لا تسلم الحليب وبعد توجهي للصيدليه ابلغني الصيدلي ان الحليب غير متوفر راجع التقارير وبعدها الموافقات ورحت التقارير وبعد ذهابي للموافقات الطبيه لطلب تحويل ابلغتني الموظفه بكل ثقه لا يوجد تحويل اذهب الى الصيدليه مباشره وبعد التاكيد لى الموظفه عن اهميت طلب التحويل جاوبت بكل ثقه لا داعي للتحويل وبعد خروجي من المستشفى و التوجه كههداليه وبعد انظار ساعه وانا في انتظار الموافقه من التامين ارسل رد انه بحاجه الى طلب التحويل بكل بساطه وبعد ٨ محاولات بالاتصال على قسم الموافقات دون اي استجابه ما في احد يرد | BC20: Incorrect test codes were uploaded by a Kamleen employee after a two-hour wait, and I was informed of this by Al-Basteen Company after contacting them. I went back on Friday night to pick up the milk. I went to Shukrat and they told me to go to the pharmacy; they wouldn't deliver the milk. After going to the pharmacy, the pharmacist told me that the milk was unavailable and to check the reports and then the approvals. I went to the reports department and then to the medical approvals department to request a referral. The employee confidently told me there was no referral available and to go directly to the pharmacy. After confirmation When I asked the employee about the importance of the transfer request, she confidently replied that there was no need. After leaving the hospital and heading to the clinic, and after waiting for an hour for approval from the insurance company, they simply replied that they needed a transfer request. After eight attempts to contact the approvals department, there was no response; no one answered. | BE20: Patient | BJ20: Total | BK20: =SUBTOTAL(9,BK18:BK19) -> 8 | BL20: =SUBTOTAL(9,BL18:BL19) -> 100% | BM20: =SUM(BM18:BM19) -> 6 | BN20: =SUM(BN18:BN19) -> 0 | BO20: =SUM(BO18:BO19) -> 1 | BP20: =SUM(BP18:BP19) -> 1 | BQ20: =SUBTOTAL(9,BQ18:BQ19) -> 8 | BU20: امال القحطاني | BV20: 2 | BW20: =BV20/BV21 -> 25.00% | BX20: 1 | BZ20: 1 | CB20: =BV20 -> 2 | CF20: 788 | CG20: 30118752 | CH20: مراجع | CI20: العيادات الخارجية | CJ20: الإداري | CK20: استقبال العيادات الخارجية | CL20: 2023-01-28T11:26:00 | CM20: امال القحطاني | CN20: More than 72 Hours
A21: 2 | B21: 19 | C21: 783 | D21: ALHH.0030059140 | E21: ذوي المراجع | F21: العيادات الخارجية | G21: الطبي | H21: عيادات الجلدية | I21: 2023-01-17T13:14:00 | J21: تهاني عبدالله القرني | K21: 24 Hours | L21: 2023-01-17 | M21: 12:35:00 | N21: تهاني عبدالله القرني | O21: 2023-01-17 | P21: 13:14:00 | Q21: 2023-01-18 | R21: 07:23:00 | S21: تهاني عبدالله القرني | T21: 2023-01-18 | U21: 07:23:00 | V21: تهاني عبدالله القرني | W21: 0.75625 | AA21: -44944.30764 | AE21: 0 | AJ21: -44944.30764 | AK21: 2023-01-18 | AL21: 19:28:00 | AM21: تهاني عبدالله القرني | AN21: 0.5034722222 | AQ21: -44944.30764 | AU21: -44944.30764 | AW21: DR. KAREEM AHMED | AX21: Relationship complaints | AY21: 5. Communication | AZ21: 1.2.Patient journey | BA21: 4.1.2.Poor availability and scheduling | BB21: قبل عدة أيام قمت بالدخول لتطبيقكم لحجز موعد لابني في عيادة الجلدية، ولم أعرف كيفية الوصول لبيانات ابني في التطبيق، فقمت بحجز الموعد باسمي. وبالأمس قمنا بالحضور للموعد، وأخبرنا الإخوة في الاستقبال بأن الموعد باسم الأب، ولكنه فعليًا للابن مبارك (0030059140ALHH)، وقد كانوا متعاونين وانتظرنا إلى أن دخلنا للطبيب. وفي البداية استغرب وسألنا: كيف دخلتم؟ وهل عندكم موعد؟ وأفدته نعم، فقال إن الظاهر أمامه في برنامجكم (Walk-in) حسبما أتذكر، وأفدته أنني قمت بحجز الموعد باسمي (الأب). وبعد ذلك قام بالكشف على ابني، وعندما نرغب بالكشف على منطقة الفخذ بالقرب من المنطقة الحساسة، كان الطفل يمتنع للاستحياء إلى أن أقنعناه (واستمر ذلك ما بين نصف دقيقة إلى 45 ثانية فقط لا أكثر)، وخلال تلك المدة كان الطبيب متضايقًا ويُشعرني بأن لديه مراجعين آخرين وأنه تأخر، والمفروض أنه ينتظر، وبعد ذلك قام بالكشف بسرعة ولا أعتقد أنه أخذ وقته الكافي في الكشف. وبعد أن فرغنا من الكشف أفادنا بأن العلاج بالكي البارد، ولكنه سيكون مؤلمًا لطفل في عمره، وسألنا: هل سيتحمل؟ وأجبته: كيف لي أن أعرف؟ وسألناه أنا ووالدته عن أي طريقة أخرى، وأفاد أن هذا هو العلاج، ومن ثم سألته: هل يوجد أدوية؟ فقال يوجد كريم ومحلول يمكن وضعهما، ولكن المحلول حارق وقد يصل للمنطقة الحساسة للطفل. وعند خروجنا سألته: هل ممكن بعد وضع الدواء أن أقوم بتغطية المنطقة بشاش أو لاصق لكي لا يصل الدواء للمنطقة الحساسة؟ فقال نعم، ويفضل ذلك، وأحسست أنه يجب عليّ السؤال لكي أستخرج المعلومة منه. الخلاصة: أنا لست مسؤولًا عن إدخالنا له دون موافقته الكريمة، أو عن تأخره في العيادة، أو عن أن هناك مراجعين آخرين ينتظرون بعدنا، ولست من يجب عليه تلقي اللوم عن تلك الأشياء، وأكاد لا أثق في دقة تشخيصه، وسأقوم بزيارة طبيب آخر في مستشفى آخر للتأكد، وأنا نادم على هذه الزيارة. | BC21: A few days ago, I accessed your application to book an appointment for my son at the dermatology clinic. I did not know how to access or enter my son’s details in the application, so I booked the appointment under my name. Yesterday, we attended the appointment, and the reception staff informed us that the appointment was under the father’s name, but it was actually for the son, Mubarak (0030059140ALHH). They were cooperative, and we waited until we entered to see the doctor. At the beginning, he seemed surprised and asked us, “How did you enter? Do you have an appointment?” I told him yes. He said that what appeared in your system was “Walk-in,” as I recall. I informed him that I had booked the appointment under my name (the father). After that, he examined my son. When he wanted to examine the thigh area near the sensitive region, the child hesitated out of shyness until we convinced him (this lasted between half a minute to 45 seconds only, no more). During that time, the doctor appeared annoyed and made me feel that he had other patients waiting and that he was delayed, whereas he was supposed to wait. After that, he conducted the examination quickly, and I do not believe he took sufficient time for the examination. After we finished, he informed us that the treatment is cryotherapy (cold cauterization), but that it would be painful for a child his age, and he asked us, “Will he تحمل it?” I replied, “How would I know?” My wife and I asked if there was any other method, and he said this is the treatment. Then I asked whether there were any medications. He said there is a cream and a solution that can be applied, but the solution is burning and may reach the child’s sensitive area. When we were leaving, I asked him whether, after applying the medication, I could cover the area with gauze or a bandage so that the medicine would not reach the sensitive area. He said yes, and that it is preferable to do so. I felt that I had to ask in order to extract the information from him. In conclusion, I am not responsible for being entered to see him without his prior approval, nor for his delay in the clinic, nor for the presence of other patients waiting after us. I am not the one who should bear the blame for those matters. I almost do not trust the accuracy of his diagnosis, and I will visit another doctor at another hospital to make sure. I regret this visit. | BE21: Hospital | BU21: Total | BV21: =SUBTOTAL(9,BV18:BV20) -> 8 | BW21: =SUBTOTAL(9,BW18:BW20) -> 138% | BX21: =SUM(BX18:BX20) -> 3 | BY21: =SUM(BY18:BY20) -> 2 | BZ21: 2 | CA21: 1 | CB21: =SUBTOTAL(9,CB18:CB20) -> 8 | CF21: 809 | CG21: 1316237 | CH21: مراجع | CI21: الطوارئ | CJ21: الطبي | CK21: أطباء الطوارئ | CL21: 2023-01-30T18:35:00 | CM21: تهاني عبدالله القرني | CN21: More than 72 Hours
B22: 20 | C22: 813 | D22: 30127955 | E22: مجلس الضمان الصحي | F22: التنويم | G22: الطبي | H22: تنويم النساء والولادة | I22: 2023-01-17T18:13:00 | J22: تهاني عبدالله القرني | K22: More than 72 Hours | L22: 2023-01-17 | M22: 18:13:00 | N22: تهاني عبدالله القرني | O22: 2023-01-17 | P22: 18:13:00 | T22: 2023-01-17 | U22: 18:13:00 | V22: تهاني عبدالله القرني | W22: 0 | AA22: -44943.75903 | AE22: 0 | AJ22: -44943.75903 | AN22: -44943.75903 | AO22: 2023-01-25 | AP22: 18:52:00 | AQ22: 8.027083333 | AR22: 2023-01-25 | AS22: 18:52:00 | AT22: تهاني عبدالله القرني | AU22: 8.027083333 | AX22: Clinical complaints | AY22: 5. Communication | AZ22: 1.3.Quality of Care | BA22: 1.2.1.Miscoordination | BB22: المستفيده حامل و تعاني من ارتفاع إنزيمات الكبد و حصوات في المراره وتم تحويلها من قبل نساء وولاده وليس من قبل طبيب الباطنيه والمستفيده ترغب يكون تحويل من قبل طبيب الباطنيه فقط لاتحسب من قسم النساء والولاده علما بأن تم ابلاغها من المستشفى ان تحويل سيكون من قبل الباطنيه وليس النساء والولاده والمستفيده لم تدخل الشهر التاسع بتاريخ 2023-1-16 | BC22: The beneficiary is pregnant and suffers from elevated liver enzymes and gallstones, and she was referred by Obstetrics and Gynecology, not by the Internal Medicine doctor. The beneficiary wishes the referral to be from the Internal Medicine doctor only, and not counted under Obstetrics and Gynecology. It should be noted that she was informed by the hospital that the referral would be from Internal Medicine only, not Obstetrics and Gynecology. The beneficiary had not entered the ninth month as of 2023-01-16. | BE22: Patient | BJ22: CCHI | BK22: =BK20 -> 8 | BL22: =BK22/56 -> 14.29% | CF22: 821 | CG22: 30247472 | CH22: مراجع | CI22: العيادات الخارجية | CJ22: الطبي | CK22: عيادات النساء والولادة | CL22: 2023-01-30T19:17:00 | CM22: تهاني عبدالله القرني | CN22: More than 72 Hours | CQ22: Employee Name | CR22: Number of complaints | CS22: Total Percentage | CT22: 24 Hours | CU22: 48 Hours | CV22: 72 Hours | CW22: More than 72 hours | CX22: Total
B23: 21 | C23: 773 | D23: 30029557 | E23: مراجع | F23: التنويم | G23: الخدمات المساندة | H23: قسم المطبخ | I23: 2023-01-17T20:43:00 | J23: تهاني عبدالله القرني | K23: More than 72 Hours | L23: 2023-01-14 | M23: 11:39:00 | N23: تهاني عبدالله القرني | O23: 2023-01-17 | P23: 20:43:00 | Q23: 2023-01-17 | R23: 08:09:00 | S23: تهاني عبدالله القرني | T23: 2023-01-17 | U23: 20:44:00 | V23: تهاني عبدالله القرني | W23: 0.0006944444467 | X23: 2023-01-18 | Y23: 17:37:00 | Z23: امال القحطاني | AA23: 0.8701388889 | AE23: -44944.73403 | AJ23: -44943.86389 | AN23: -44943.86389 | AO23: 2023-01-19 | AP23: 15:50:00 | AQ23: 1.795833333 | AR23: 2023-01-22 | AS23: 17:14:00 | AT23: تهاني عبدالله القرني | AU23: 4.854166667 | AX23: Clinical complaints | AY23: 1. Quality | AZ23: 3.Safety & Security | BA23: 2.4.Poor Food service | BB23: تنومت يوم الخميس تاريخ 12 يناير 2023 غرفه 4137 تم احضار وجبه الفطور شاملة شوكه طعام فيها بقايا اكل وغير نظيفه | BC23: I was admitted on Thursday, January 12, 2023, to room 4137. Breakfast was brought, including a fork with food remnants and it was unclean. | BE23: Patient | BU23: MOH | BV23: =BV21 -> 8 | BW23: =BV23/56 -> 14.29% | CF23: 831 | CG23: 1748703 | CH23: مراجع | CI23: العيادات الخارجية | CJ23: الطبي | CK23: قسم الصيدلية | CL23: 2023-01-30T20:15:00 | CM23: تهاني عبدالله القرني | CN23: More than 72 Hours | CQ23: امال القحطاني | CR23: 5 | CS23: =CR23/CR25 -> 31.25% | CT23: 2 | CW23: 3 | CX23: =CR23 -> 5
B24: 22 | C24: 781 | D24: 30247161 | E24: مراجع | F24: العيادات الخارجية | G24: التمريض | H24: تمريض العيادات الخارجية | I24: 2023-01-18T19:40:00 | J24: تهاني عبدالله القرني | K24: More than 72 Hours | L24: 2023-01-17 | M24: 11:08:00 | N24: تهاني عبدالله القرني | O24: 2023-01-18 | P24: 19:40:00 | Q24: 2023-01-18 | R24: 19:19:00 | S24: تهاني عبدالله القرني | T24: 2023-01-18 | U24: 19:41:00 | V24: تهاني عبدالله القرني | W24: 0.0006944444467 | AA24: -44944.82014 | AE24: 0 | AJ24: -44944.82014 | AN24: -44944.82014 | AO24: 2023-01-21 | AP24: 23:39:00 | AQ24: 3.165277778 | AR24: 2023-01-22 | AS24: 17:14:00 | AT24: تهاني عبدالله القرني | AU24: 3.897916667 | AX24: Relationship complaints | AY24: 5. Communication | AZ24: 1.Patient-staff communication | BA24: 1.1.Miscommunication with Patient | BB24: في ١٧ يناير ٢٠٢٢، عندما سألت الممرضة عن موعدي لأنني كنت انتظر لأكثر من ساعة، قالت لي انتظري وأغلقي الباب دون أن تخبرني بأي شيء. | BC24: on 17JAN2022 when I asked the nurse about my appointment because I was wetting more than one . hour she said wait and close the door without told me anything | BE24: Patient | BJ24: 24 Hours | BK24: 48 Hours | BL24: 72 Hours | BM24: More than 72 hours | CF24: 826 | CG24: 30011107 | CH24: مراجع | CI24: العيادات الخارجية | CJ24: الطبي | CK24: قسم العلاج الطبيعي | CL24: 2023-01-31T17:43:00 | CM24: تهاني عبدالله القرني | CN24: More than 72 Hours | CQ24: تهاني القرني | CR24: 11 | CS24: =CR24/CR25 -> 68.75% | CT24: 5 | CV24: 2 | CW24: 4 | CX24: =CR24 -> 11
B25: 23 | C25: 787 | D25: 1462560 | E25: مراجع | F25: التنويم | G25: الإداري | H25: إدارة التنويم | I25: 2023-01-19T09:56:00 | J25: امال القحطاني | K25: 72 Hours | L25: 2023-01-18 | M25: 16:17:00 | N25: امال القحطاني | O25: 2023-01-19 | P25: 09:56:00 | Q25: 2023-01-19 | R25: 09:15:00 | S25: امال القحطاني | T25: 2023-01-19 | U25: 09:57:00 | V25: امال القحطاني | W25: 0.0006944444394 | AA25: -44945.41458 | AE25: 0 | AJ25: -44945.41458 | AN25: -44945.41458 | AO25: 2023-01-19 | AP25: 10:14:00 | AQ25: 0.01180555556 | AR25: 44978 | AS25: 18:58:00 | AT25: امال القحطاني | AU25: 33.37569444 | AX25: Clinical complaints | AY25: 5. Communication | AZ25: 4.2.Patient Disposition ( final plan) | BA25: 5.1.3.Not involving patient in clinical decisions | BB25: تم الحضور الساعه 7 صباحا حيث تم الصيام كما هو متفق عليھ من من قبل الدكتور معنا لاجراء العملية في تمام الساعھ 9 حتى الساعه 4 مساء وتم ادخالي للغرفة وتجهيزي وتم وضع الابرة وتم الانتظار حتى الساعه الرابعه بعد ذلك تم طلب التواصل مع مدير قسم التنويم حواس ولم يتم التوضيح لنا حيث تم اخبارنا من قبله بعدم وجود موعد وعدم ادراج اسمي في جدول العمليات وليس هناك موعد محدد ولم يتم توضيح سبب ذلك رغم كل الاجراءات التي تم عملها وقت الحضور | BC25: I arrived at 7 AM and fasted as agreed upon with the doctor. The procedure was scheduled for 9 AM to 4 PM. I was taken to the room, prepared, and the injection was administered. I waited until 4 PM. After that, we were asked to contact the head of the inpatient department, Hawas, but no explanation was given. He informed us that there was no appointment available, that my name was not on the operating schedule, and that there was no specific appointment. He did not explain why, despite all the procedures that had been followed at the time of arrival. | BE25: Patient | BJ25: =BM20 -> 600.00% | BK25: =BN20 -> 0.00% | BL25: 100.00% | BM25: 100.00% | BU25: 24 Hours | BV25: 48 Hours | BW25: 72 Hours | BX25: More than 72 hours | CF25: 828 | CG25: 30223782 | CH25: مراجع | CI25: العيادات الخارجية | CJ25: الإداري | CK25: قسم الموافقات الطبية | CL25: 2023-01-31T17:50:00 | CM25: تهاني عبدالله القرني | CN25: More than 72 Hours | CQ25: Total | CR25: =SUBTOTAL(9,CR23:CR24) -> 16 | CS25: =CS23+CS24 -> 100% | CT25: =SUBTOTAL(9,CT23:CT24) -> 7 | CU25: =SUBTOTAL(9,CU23:CU24) -> 0 | CV25: =SUBTOTAL(9,CV23:CV24) -> 2 | CW25: =SUBTOTAL(9,CW23:CW24) -> 7 | CX25: =SUM(CT25:CW25) -> 16
B26: 24 | C26: 786 | D26: 30241140 | E26: مراجع | F26: العيادات الخارجية | G26: الإداري | H26: قسم المالية | I26: 2023-01-19T10:16:00 | J26: امال القحطاني | K26: More than 72 Hours | L26: 2023-01-18 | M26: 12:58:oo pm | N26: امال القحطاني | O26: 2023-01-19 | P26: 10:16:00 | Q26: 2023-01-19 | R26: 09:23:00 | S26: امال القحطاني | T26: 2023-01-19 | U26: 10:17:00 | V26: امال القحطاني | W26: 0.0006944444467 | AA26: -44945.42847 | AE26: 0 | AJ26: -44945.42847 | AN26: -44945.42847 | AO26: 2023-01-19 | AP26: 12:44:00 | AQ26: 0.1020833333 | AR26: 2023-01-28 | AS26: 10:07:00 | AT26: امال القحطاني | AU26: 8.993055556 | AX26: Relationship complaints | AY26: 5. Communication | AZ26: 3.4.Finance and Billing | BA26: 3.4.2.Miscalculation | BB26: حضرت في اليوم والتاريخ والوقت المشار اليه اعلاه ليتم استلام مبلغ مسترجع لي بعد ان تم علاج والدتي على حساب وزارة الصحة وكان المبلغ المفترض اسسترجاعھه ١٧٤٠ ريال ، الا انھ تم تسليمي من قبل الموظفة مبلغ ١٢٤٠ ريال ، ولم يتم ملاحظة ذلك الا عند الرجوع للمنزل فإن المبلغ المتبقي لي هو ٥٠٠ ريال | BC26: I arrived on the date and time mentioned above to receive a refund for my mother's treatment, which was covered by the Ministry of Health. The refund was supposed to be 1740 riyals, but the employee only gave me 1240 riyals. This wasn't noticed until I got home, when I discovered I still owe 500 riyals. | BE26: Patient | BU26: 3 | BV26: 2 | BW26: 2 | BX26: 1 | CF26: 829 | CG26: 932283 | CH26: مراجع | CI26: العيادات الخارجية | CJ26: الطبي | CK26: فني فحص النظر | CL26: 2023-01-31T18:08:00 | CM26: تهاني عبدالله القرني | CN26: More than 72 Hours
B27: 25 | C27: 758 | D27: 30057852 | E27: مراجع | F27: العيادات الخارجية | G27: الطبي | H27: عيادات الأسنان | I27: 2023-01-19T13:35:00 | J27: امال القحطاني | K27: More than 72 Hours | L27: 2023-01-05 | M27: 10:19:00 | N27: امال القحطاني | O27: 2023-01-19 | P27: 13:35:00 | Q27: 2023-01-11 | R27: 10:19:00 | S27: امال القحطاني | T27: 2023-01-19 | U27: 13:35:00 | V27: امال القحطاني | W27: 0 | AA27: -44945.56597 | AE27: 0 | AJ27: -44945.56597 | AK27: 2023-01-19 | AL27: 13:38:00 | AM27: امال القحطاني | AN27: 0.00208333334 | AQ27: -44945.56597 | AU27: -44945.56597 | AW27: DR. AZZA ALMUT | AX27: Clinical complaints | AY27: 5. Communication | AZ27: 3.Skills and Conduct | BA27: 5.1.2.Poor provider-patient communication | BB27: تم التعامل معي بطريقة غير مهنية من قبل الطبيبة لمعالجه ولم تكن متعاونه معي حيث لم اتمكن من اخذ الاجابات والتوضيح الكامل على اسئلتي. | BC27: I was treated unprofessionally by the doctor who treated me and she was not cooperative with me, as I was unable to get full answers and explanations to my questions. | BE27: Patient
B28: 26 | C28: 788 | D28: 30118752 | E28: مراجع | F28: العيادات الخارجية | G28: الإداري | H28: استقبال العيادات الخارجية | I28: 2023-01-19T13:42:00 | J28: امال القحطاني | K28: More than 72 Hours | L28: 2023-01-19 | M28: 13:42:00 | N28: امال القحطاني | Q28: 2023-01-28 | R28: 11:24:00 | S28: امال القحطاني | T28: 2023-01-28 | U28: 13:42:00 | V28: امال القحطاني | W28: 44954.57083 | X28: 2023-01-29 | Y28: 09:29:00 | Z28: امال القحطاني | AA28: 0.8243055556 | AB28: 2023-01-30 | AC28: 10:42:00 | AD28: امال القحطاني | AE28: 1.050694444 | AF28: 2023-02-04 | AG28: 19:03:00 | AH28: امال القحطاني | AI28: The complaint was escalated due to the department's failure to respond | AJ28: 7.222916667 | AK28: 2023-02-05 | AL28: 19:12:00 | AM28: امال القحطاني | AN28: 8.229166667 | AQ28: -44954.57083 | AU28: -44954.57083 | AX28: Management complaints | AY28: 3. Institutional issues | AZ28: 3.1.Administrative Policies and Procedures | BA28: 3.1.8.Inadequate reception service | BB28: تم حضوري الى استقبال بوابه 3 وتم التعامل بشكل غير مهني واسلوب غير لائق من قبل موظف الاستقبال حيث ان تم الانتظار اكثر من نصف ساعة وعند طرح ملاحظتي واستفساري قام بالرد باسلوب غير مهني | BC28: I went to the reception at Gate 3 and was treated unprofessionally and inappropriately by the receptionist. I waited for more than half an hour, and when I raised my concerns and inquiries, he responded unprofessionally. | BE28: Patient | CQ28: Patient | CR28: =CR25 -> 16 | CS28: =CR28/56 -> 28.57%
B29: 27 | C29: 887 | D29: 30246056 | E29: وزارة الصحة | F29: التنويم | G29: الإداري | H29: قسم المالية | I29: 2023-01-19T15:17:00 | J29: ابرار الشمري | K29: 24 Hours | L29: 2023-01-19 | M29: 15:17:00 | N29: تهاني عبدالله القرني | O29: 2023-01-19 | P29: 15:17:00 | T29: 2023-02-19 | U29: 15:28:00 | V29: تهاني عبدالله القرني | W29: 31.00763889 | AA29: -44976.64444 | AE29: 0 | AJ29: -44976.64444 | AN29: -44976.64444 | AO29: 2023-02-09 | AP29: 16:53:00 | AQ29: -9.940972222 | AR29: 2023-02-09 | AS29: 16:53:00 | AT29: تهاني عبدالله القرني | AU29: -9.940972222 | AX29: Clinical complaints | AY29: 5. Communication | AZ29: 3.4.Finance and Billing | BA29: 3.4.3.Calculate Additional amount | BB29: تم إجراء عمليه تبديل مفاصل بمبلغ 75 الف ريال والمستشفى الان يطالب بدفع 15 الف ريال لدخول الوالد في العنايه المركزه بعد العمليه حي لم يتم ابلاغنا بالخطه العلاجيه واحتمال زياده المبلغ | BC29: A joint replacement surgery costing 75,000 riyals was performed, and the hospital is now demanding 15,000 riyals for my father's admission to the intensive care unit after the operation. We have not been informed of the treatment plan, and there is a possibility that the amount will increase. | BE29: Patient | BJ29: In-Patient | BK29: 6 | BL29: =BK29/BK32 -> 75.00% | BU29: In-Patient | BV29: 4 | BW29: =BV29/BV32 -> 50.00% | CQ29: 24 Hours | CR29: 48 Hours | CS29: 72 Hours | CT29: More than 72 hours
B30: 28 | C30: 789 | D30: 30186314 | E30: وزارة الصحة | F30: الطوارئ | G30: التمريض | H30: تمريض الطوارئ | I30: 2023-01-19T19:01:00 | J30: تهاني عبدالله القرني | K30: 72 Hours | O30: 2023-01-19 | P30: 19:01:00 | T30: 2023-01-19 | U30: 19:03:00 | V30: تهاني عبدالله القرني | W30: 0.001388888886 | X30: 2023-01-21 | Y30: 11:57:00 | Z30: تهاني عبدالله القرني | AA30: 1.704166667 | AB30: 2023-01-22 | AC30: 13:38:00 | AD30: تهاني عبدالله القرني | AE30: 1.070138889 | AJ30: -44945.79375 | AN30: -44945.79375 | AO30: 2023/01/22 | AP30: 17:23:00 | AR30: 2023-01-22 | AS30: 18:32:00 | AT30: تهاني عبدالله القرني | AU30: 2.978472222 | AX30: Clinical complaints | AY30: 6. Humanness / Caring | AZ30: 1.3.Quality of Care | BA30: 1.3.1.Substandard clinical/nursing care | BB30: في 9 سبتمبر 2022، ذهبنا إلى قسم الطوارئ لطفلي، ولم تكن الممرضة تعرف كيفية إدخال القنية، وحاولت ثلاث مرات إدخالها لطفلي. | BC30: on 9 sep 2022, we went to the ER department for my baby and the nurse did not know how to put the . cannula and she tried three times to put the cannula for my baby | BE30: Patient | BJ30: Out-Patient | BK30: 1 | BL30: =BK30/BK32 -> 12.50% | BU30: Out-Patient | BV30: 1 | BW30: =BV30/BV32 -> 12.50% | CQ30: =CT25 -> 7 | CR30: =CU25 -> 0 | CS30: =CV25 -> 2 | CT30: =CW25 -> 7
B31: 29 | C31: 785 | D31: 30068250 | E31: مراجع | F31: العيادات الخارجية | G31: الطبي | H31: عيادات جراحة العظام | I31: 2023-01-19T19:45:00 | J31: تهاني عبدالله القرني | K31: 48 Hours | L31: 2023-01-17 | M31: 20:41:00 | N31: تهاني عبدالله القرني | O31: 2023-01-19 | P31: 19:45:00 | Q31: 2023-01-19 | R31: 19:40:00 | S31: تهاني عبدالله القرني | T31: 2023-01-19 | U31: 19:47:00 | V31: تهاني عبدالله القرني | W31: 0.001388888893 | AA31: -44945.82431 | AE31: 0 | AJ31: -44945.82431 | AN31: -44945.82431 | AO31: 2023-01-19 | AP31: 23:57:00 | AQ31: 0.1736111111 | AR31: 2023-01-21 | AS31: 11:57:00 | AT31: تهاني عبدالله القرني | AU31: 1.673611111 | AX31: Management complaints | AY31: 3. Institutional Issues | AZ31: 3.7.Medical records | BA31: 3.7.7.Sick leave issues | BB31: بتاريخ 17 يناير 2023 م جئت اشكو من اصابھ بالقدم وثقل بالمشي والم شديد وارغب اجازه يوم واحد لعدم تمكني من المشي وقيادة السياره والذهاب للعمل وتم رفض الا بوجود كسر | BC31: On January 17, 2023, I came complaining of a foot injury, heaviness in walking, and severe pain. I requested one day off because I was unable to walk, drive, or go to work, but my request was denied unless a fracture was found. | BE31: Patient | BJ31: ER | BK31: 1 | BL31: =BK31/BK32 -> 12.50% | BU31: ER | BV31: 3 | BW31: =BV31/BV32 -> 37.50%
B32: 30 | C32: 794 | D32: 1234 | E32: مراجع | F32: العيادات الخارجية | G32: الطبي | H32: عيادات الجهاز الهضمي والمناظير | I32: 2023-01-21T18:07:00 | J32: امال القحطاني | K32: 24 Hours | L32: 2023-01-21 | M32: 18:05:00 | N32: امال القحطاني | O32: 2023-01-21 | P32: 18:07:00 | Q32: 2023-01-24 | R32: 11:56:00 | S32: امال القحطاني | T32: 2023-01-24 | U32: 11:56:00 | V32: امال القحطاني | W32: 2.742361111 | AA32: -44950.49722 | AE32: 0 | AJ32: -44950.49722 | AK32: 2023-01-24 | AL32: 11:58:00 | AM32: امال القحطاني | AN32: 0.001388888893 | AQ32: -44950.49722 | AU32: -44950.49722 | AX32: Management complaints | AY32: 1. Quality | AZ32: 1.2.Patient journey | BA32: 1.2.1.Miscoordination | BB32: تم ادخال مريض قبلي . | BC32: A patient was admitted before me. | BE32: Patient | BJ32: Total | BK32: =BK29+BK30+BK31 -> 8 | BL32: =SUM(BL29:BL31) -> 100% | BU32: Total | BV32: =BV29+BV30+BV31 -> 8 | BW32: =SUM(BW29:BW31) -> 100% | CF32: Employee Name | CG32: Number of complaints | CH32: Total Percentage | CI32: 24 Hours | CJ32: 48 Hours | CK32: 72 Hours | CL32: More than 72 hours | CM32: Total | CQ32: In-Patient | CR32: 4 | CS32: =CR32/CR35 -> 25.00%
B33: 31 | C33: 798 | D33: 30181234 | E33: ذوي المراجع | F33: التنويم | G33: التمريض | H33: تمريض قسم الإفاقة | I33: 2023-01-22T15:39:00 | J33: تهاني عبدالله القرني | K33: 24 Hours | L33: 2023-01-22 | M33: 09:58:00 | N33: امال القحطاني | O33: 2023-01-22 | P33: 10:09:00 | Q33: 2023-01-22 | R33: 10:07:00 | S33: امال القحطاني | T33: 2023-01-22 | U33: 10:10:00 | V33: امال القحطاني | W33: 0.0006944444394 | X33: 2023-01-22 | Y33: 10:11:00 | Z33: امال القحطاني | AA33: 0.0006944444467 | AB33: 2023-01-22 | AC33: 10:12:00 | AD33: امال القحطاني | AE33: 0.0006944444467 | AJ33: -44948.42361 | AN33: -44948.42361 | AO33: 2023-01-22 | AP33: 15:39:00 | AQ33: 0.2284722222 | AR33: 2023-01-22 | AS33: 10:12:00 | AT33: امال القحطاني | AU33: 0.001388888893 | AX33: Relationship complaints | AY33: 5. Communication | AZ33: 1.Patient-staff communication | BA33: 5.1.4.Failure to clarify patient case to his family | BB33: عامل باسلوب مستفز وعدم مراعات حالھ اهل المريض الذي داخل غرفھ الافاقھ وعدم الرد على استفسارهم وطمئنتهم | BC33: The staff acted provocatively, showing no consideration for the patient's family in the recovery room and failing to respond to their inquiries or reassure them. | BE33: Patient | BJ33: Medical | BK33: 3 | BL33: =BK33/BK35 -> 37.50% | BU33: Medical | BV33: 3 | BW33: =BV33/BV35 -> 37.50% | CF33: امال القحطاني | CG33: 9 | CH33: =CG33/CG35 -> 37.50% | CI33: 3 | CJ33: 1 | CK33: 1 | CL33: 4 | CM33: =CG33 -> 9 | CQ33: Out-Patient | CR33: 9 | CS33: =CR33/CR35 -> 56.25%
B34: 32 | C34: 769 | D34: 30034241 | E34: ذوي المراجع | F34: التنويم | G34: التمريض | H34: تمريض تنويم الأطفال | I34: 2023-01-23T11:47:00 | J34: امال القحطاني | K34: More than 72 Hours | L34: 2023-01-10 | M34: 11:12:00 | N34: امال القحطاني | O34: 2023-01-23 | P34: 11:47:00 | Q34: 2023-01-21 | R34: 18:41:00 | S34: امال القحطاني | T34: 2023-01-23 | U34: 11:49:00 | V34: امال القحطاني | W34: 0.001388888886 | AA34: -44949.49236 | AE34: 0 | AJ34: -44949.49236 | AN34: -44949.49236 | AO34: 2023-01-23 | AP34: 14:13:00 | AQ34: 0.1 | AR34: 2023-01-28 | AS34: 10:09:00 | AT34: امال القحطاني | AU34: 4.930555556 | AX34: Clinical complaints | AY34: 6. Humanness / Caring | AZ34: 3.Safety & Security | BA34: 2.3.4.Poor hand-hygiene | BB34: لا يقوم طاقم التمريض في قسم الأطفال بتعقيم أيديهم، ويستخدمون نفس القفازات عند زيارة أكثر من غرفة في نفس الوقت. تحدثتُ مع الممرضة عن ذلك، لكنها لم تُبدِ أي اهتمام ولم تعتذر. | BC34: ‏The nursing staff in the pedia ward department don't sterilize their hands, and used the same gloves while visiting more than one room at the same time. I talked with the nurse about it she wasn't care and don’t apologize | BE34: Patient | BJ34: Admin | BK34: 5 | BL34: =BK34/BK35 -> 62.50% | BU34: Admin | BV34: 5 | BW34: =BV34/BV35 -> 62.50% | CF34: تهاني القرني | CG34: 15 | CH34: =CG34/CG35 -> 62.50% | CI34: 1 | CJ34: 2 | CK34: 1 | CL34: 11 | CM34: =CG34 -> 15 | CQ34: ER | CR34: 3 | CS34: =CR34/CR35 -> 18.75%
B35: 33 | C35: 803 | D35: 30086592 | E35: وزارة الصحة | F35: الطوارئ | G35: الإداري | H35: المدير المناوب | I35: 2023-01-23T12:21:00 | J35: امال القحطاني | K35: 72 Hours | L35: 2023-01-23 | M35: 11:58:00 | N35: امال القحطاني | O35: 2023-01-23 | P35: 00:21:00 | T35: 2023-01-23 | U35: 12:21:00 | V35: امال القحطاني | W35: =(U35+T35)-(P35+O35) -> 0.5 | X35: 2023-01-24 | Y35: 12:11:00 | Z35: امال القحطاني | AA35: =(Y35+X35)-(U35+T35) -> 0.9930555556 | AE35: =(AC35+AB35)-(Y35+X35) -> -44950.50764 | AJ35: =(AG35+AF35)-(U35+T35) -> -44949.51458 | AN35: =(AL35+AK35)-(U35+T35) -> -44949.51458 | AO35: 2023-01-25 | AP35: 17:07:00 | AQ35: =(AP35+AO35)-(U35+T35) -> 2.198611111 | AR35: 2023-01-26 | AS35: 22:39:00 | AT35: امال القحطاني | AU35: =(AS35+AR35)-(U35+T35) -> 3.429166667 | AX35: Relationship complaints | AY35: 5. Communication | AZ35: 1.Patient-staff communication | BA35: 5.1.4.Failure to clarify patient case to his family | BB35: تم الحضور لقسم الطوارئ لوجود حالة طارئة وكان هناك تأخير واضح في اجراءات الدخول حيث تم الانتظار لمدة طويلھ ليتم حضور الطبيب وعند حضوره طلب تحاليل للطفلھ وتم الانتظار لوقت اطول لحين حضور طبيب اطفال واخذ التحاليل المطلوبھ وبعد الكشف من قبل الطبيب المعالج لم يتم شرح اي تفاصيل عن الحالھ بشكل واضح لذوي الطفلھ وعند مناقشة ذلك مع المدير المناوب لم يتم التعاون معي وتم التصرف بطريقة غير لائقة حيث تم طلب الخروج والذهاب لمستشفى اخر . وطمئنتهم | BC35: The child was admitted to the emergency department due to an emergency case. There was a significant delay in the admission process, as there was a long wait for the doctor to arrive. Upon his arrival, he ordered tests for the child, and the wait was even longer until a pediatrician arrived. The required tests were taken, and after the examination by the attending physician, no details about the child's condition were clearly explained to her family. When I discussed this with the on-duty manager, he was uncooperative and acted inappropriately, telling me to leave and go to another hospital. I reassured them at length until a doctor arrived. When he did, he ordered tests for the child, and we waited even longer until a pediatrician arrived. | BE35: Patient | BJ35: Total | BK35: =BK33+BK34 -> 8 | BL35: =SUM(BL33:BL34) -> 100% | BU35: Total | BV35: =BV33+BV34 -> 8 | BW35: =SUM(BW33:BW34) -> 100% | CF35: Total | CG35: =SUBTOTAL(9,CG33:CG34) -> 24 | CH35: =CH33+CH34 -> 100% | CI35: =SUBTOTAL(9,CI33:CI34) -> 4 | CJ35: =SUBTOTAL(9,CJ33:CJ34) -> 3 | CK35: =SUBTOTAL(9,CK33:CK34) -> 2 | CL35: =SUBTOTAL(9,CL33:CL34) -> 15 | CM35: =SUM(CI35:CL35) -> 24 | CQ35: Total | CR35: =CR32+CR33+CR34 -> 16 | CS35: =SUM(CS32:CS34) -> 100%
B36: 34 | C36: 793 | D36: 20040379 | E36: ذوي المراجع | F36: التنويم | G36: الطبي | H36: قسم الجهاز الهمضي و الكبد والمناظير | I36: 2023-01-23T14:45:00 | J36: تهاني عبدالله القرني | K36: More than 72 Hours | O36: 2023-01-23 | P36: 14:45:00 | Q36: 2023-01-23 | R36: 12:39:00 | S36: امال القحطاني | T36: 2023-01-23 | U36: 14:46:00 | V36: تهاني عبدالله القرني | W36: 0.0006944444394 | X36: 2023-01-28 | Y36: 10:00:00 | Z36: تهاني عبدالله القرني | AA36: 4.801388889 | AB36: 2023-01-28 | AC36: 10:00:00 | AD36: امال القحطاني | AE36: 0 | AF36: 2023-01-29 | AG36: 04:25:00 | AH36: تهاني عبدالله القرني | AI36: The complaint was escalated due to the department's failure to respond | AJ36: 5.56875 | AN36: -44949.61528 | AQ36: -44949.61528 | AU36: -44949.61528 | AW36: DR. TAREK ALSHARAWI | AX36: Clinical complaints | AY36: 5. Communication | AZ36: 3.4.Finance and Billing | BA36: 6.4.2.No/Invalid consent obtained | BB36: تم الدخول لغرفة التنويم 3124 وتم الانتظار لمدة طويله ليتم اجراء اشعة الخزعة حيث انھ تم اعطائي الصبغة قبل الوصول على الموافقه من قبل شركة التامين ولم يتم اتخاذ اي اجراء بديل وبعد مناقشة الدكتور طارق تمت افادتي باانتظار الموافقه واعادة اجراءها بعد 74 ساعة | BC36: I was admitted to room 3124 and waited a long time for the biopsy, as I had been given the contrast dye before receiving approval from the insurance company. No alternative procedure was offered. After discussing it with Dr. Tariq, I was told to wait for approval and repeat the procedure after 74 hours. | BE36: Patient | CQ36: Medical | CR36: 9 | CS36: =CR36/CR40 -> 56.25%
B37: 35 | C37: 784 | D37: 30163120 | E37: مراجع | F37: الطوارئ | G37: الإداري | H37: استقبال الطوارئ | I37: 2023-01-23T14:49:00 | J37: تهاني عبدالله القرني | K37: 24 Hours | L37: 2023-01-17 | M37: 20:20:00 | N37: تهاني عبدالله القرني | O37: 2023-01-23 | P37: 14:49:00 | Q37: 2023-01-22 | R37: 17:07:00 | S37: تهاني عبدالله القرني | T37: 2023-01-22 | U37: 17:07:00 | V37: تهاني عبدالله القرني | W37: -0.9041666667 | AA37: -44948.71319 | AE37: 0 | AJ37: -44948.71319 | AK37: 2023-01-23 | AL37: 14:52:00 | AM37: تهاني عبدالله القرني | AN37: 0.90625 | AQ37: -44948.71319 | AU37: -44948.71319 | AX37: Management complaints | AY37: 1. Quality | AZ37: 3.2.Environment | BA37: 3.2.1.Poor environment | BB37: جهل بالإجراءات وتخاذل في العمل وقلة الطاقم، لا يوجد سوى ممرضتين أجنبيتين وطبيبة سودانية وموظف سعودي، والجميع يعمل ببرود تام لا يمت لمعنى طوارئ بصلة، بالإضافة إلى أن الموجودين بالاستقبال ليس لديهم إلمام بالإجراءات. مع العلم أني وضحت لهم الآلية المتبعة والمتفق عليها من قبل طبيب العيادة، بالإضافة إلى قلة النظافة وتواجد ذباب وناموس بشكل ملحوظ. | BC37: Lack of knowledge of procedures, negligence at work, and shortage of staff. There are only two foreign nurses, a Sudanese female doctor, and a Saudi employee. Everyone works with complete indifference that has nothing to do with the concept of an emergency. In addition, the reception staff are not familiar with the procedures. Although I explained to them the approved and agreed-upon process set by the clinic doctor, there is also a lack of cleanliness and the noticeable presence of flies and mosquitoes | BE37: Patient | CQ37: ADMIN | CR37: 4 | CS37: =CR37/CR40 -> 25.00%
B38: 36 | C38: 808 | D38: 30245460 | E38: ذوي المراجع | F38: التنويم | G38: الإداري | H38: إدارة التنويم | I38: 2023-01-24T12:26:00 | J38: امال القحطاني | K38: 24 Hours | L38: 2023-01-24 | M38: 11:34:00 | N38: امال القحطاني | O38: 2023-01-24 | P38: 12:26:00 | Q38: 2023-01-30 | R38: 11:44:00 | S38: امال القحطاني | T38: 2023-01-30 | U38: 11:44:00 | V38: امال القحطاني | W38: 5.970833333 | AA38: -44956.48889 | AE38: 0 | AJ38: -44956.48889 | AK38: 2023-01-30 | AL38: 11:44:00 | AM38: امال القحطاني | AN38: 0 | AQ38: -44956.48889 | AU38: -44956.48889 | AV38: 1273 | AW38: HAWAS TALEB ALSADOUN | AX38: Management complaints | AY38: 1. Quality | AZ38: 1.2.Patient journey | BA38: 1.2.1.Miscoordination | BB38: تم نقل زوجتي الى العنايه المركزه وتم اخبار زوجتي بتفريغ الغرفھ من الاغراض الشخصيه يوم الاثنين الساعه 7 مساء وتم افادتهم بانني في العمل وسوف احضر في صباح اليوم التالي .. عند حضوري للمستشفى تفاجات بوجود مريض اخر في نفس الغرفھ ولا اعلم اين هي الاغراض الشخصيھ وكيف تم دخول الغرفه بدون اذن | BC38: My wife was transferred to the intensive care unit and told to remove her personal belongings from her room by 7 PM on Monday. They informed her that I was at work and would return the following morning. Upon arriving at the hospital, I was surprised to find another patient in the same room. I have no idea where my personal belongings are or how they entered the room without permission. | BE38: Patient | CF38: Patient | CG38: =CG35 -> 24 | CH38: =CG38/56 -> 42.86% | CQ38: mnursing | CR38: 2 | CS38: =CR38/CR40 -> 12.50%
B39: 37 | C39: 802 | D39: 30234040 | E39: ذوي المراجع | F39: الطوارئ | G39: الطبي | H39: أطباء الطوارئ | I39: 2023-01-24T15:48:00 | J39: امال القحطاني | K39: More than 72 Hours | O39: 2023-01-24 | P39: 15:48:00 | Q39: 2023-01-24 | R39: 10:18:00 | S39: امال القحطاني | T39: 2023-01-24 | U39: 15:49:00 | V39: امال القحطاني | W39: 0.0006944444467 | X39: 2023-01-30 | Y39: 10:45:00 | Z39: امال القحطاني | AA39: 5.788888889 | AB39: 2023-02-01 | AC39: 16:06:00 | AD39: امال القحطاني | AE39: 2.222916667 | AF39: 2023-02-04 | AG39: 19:02:00 | AH39: امال القحطاني | AI39: The complaint was escalated due to the department's failure to respond | AJ39: 11.13402778 | AN39: -44950.65903 | AO39: 2023-02-12 | AP39: 18:32:00 | AQ39: 19.11319444 | AR39: 2023-02-12 | AS39: 18:32:00 | AT39: امال القحطاني | AU39: 19.11319444 | AX39: Relationship complaints | AY39: 5. Communication | AZ39: 1.Patient-staff communication | BA39: 1.1.Miscommunication with Patient | BB39: تم حضوري لقسم الطوارئ في حالة ولادة وتم استقبالي من قبل القسم وتوجيهي الى الطبيبه المعالجه ولم تكن متجاوبھ معنا حيث تم التعامل والتحدث معنا بطريقة غير مهنيھ بحضور المدير المناوب وقالت ( هل يتم استقبالها في الشارع لدي حالات اخرى) علما انھ لم يتم حضورها الا بعد الانتظار لمدة طويله وحالة المريضه طارئه جدا | BC39: I arrived at the emergency department in labor. I was received by the staff and directed to the attending physician, who was unresponsive. She treated us unprofessionally in the presence of the on-duty manager, saying, "Do you expect me to wait in the street? I have other patients." It's worth noting that she only arrived after a long wait, and the patient's condition was extremely urgent. | BE39: Patient | CF39: 24 Hours | CG39: 48 Hours | CH39: 72 Hours | CI39: More than 72 hours | CQ39: Support Services | CR39: 1 | CS39: =CR39/CR40 -> 6.25%
B40: 38 | C40: 811 | D40: 1388026 | E40: مجلس الضمان الصحي | F40: التنويم | G40: الإداري | H40: إدارة التنويم | I40: 2023-01-25T11:42:00 | J40: امال القحطاني | K40: 24 Hours | L40: 2023-01-25 | M40: 11:39:00 | N40: امال القحطاني | O40: 2023-01-25 | P40: 11:42:00 | T40: 2023-01-25 | U40: 11:42:00 | V40: امال القحطاني | W40: 0 | AA40: -44951.4875 | AE40: 0 | AJ40: -44951.4875 | AN40: -44951.4875 | AO40: 2023-01-25 | AP40: 12:00:00 | AQ40: 0.0125 | AR40: 2023-01-25 | AS40: 12:00:00 | AT40: امال القحطاني | AU40: 0.0125 | AX40: Relationship complaints | AY40: 5. Communication | AZ40: 1.3.Quality of Care | BA40: 3.6.5.Unavailable Beds | BB40: لم يتم توفير سرير للمرافق وتم التواصل لعدة مرات مع الاخصائية وادارة التنويم ولم يكن هناك استجابھ من قبلهم . | BC40: No bed was provided for the attendant, and several times the specialist and the admissions department were contacted, but there was no response from them. | BE40: Patient | CF40: =CI35 -> 4 | CG40: =CJ35 -> 3 | CH40: =CK35 -> 2 | CI40: =CL35 -> 15 | CQ40: Total | CR40: =CR36+CR37+CR38+CR39 -> 16 | CS40: =CS36+CS37+CS38+CS39 -> 100%
B41: 39 | C41: 812 | D41: 1833680 | E41: مجلس الضمان الصحي | F41: التنويم | G41: الإداري | H41: قسم الموافقات الطبية | I41: 2023-01-25T12:24:00 | J41: امال القحطاني | K41: 24 Hours | L41: 2023-01-25 | M41: 12:03:00 | N41: امال القحطاني | O41: 2023-01-25 | P41: 12:24:00 | T41: 2023-01-25 | U41: 12:24:00 | V41: امال القحطاني | W41: 0 | AA41: -44951.51667 | AE41: 0 | AJ41: -44951.51667 | AN41: -44951.51667 | AO41: 2023-01-25 | AP41: 13:13:00 | AQ41: 0.03402777777 | AR41: 2023-01-25 | AS41: 16:47:00 | AT41: امال القحطاني | AU41: 0.1826388889 | AX41: Clinical complaints | AY41: 5. Communication | AZ41: 3.4.Finance and Billing | BA41: 6.4.2.No/Invalid consent obtained | BB41: تم تنويم المريضه في مستشفى الحمادي بسبب كرونا ولعدم تغطية التأمين للحالھ تم الرفض من قبل شركة التأمين حيث لم يتم ابلاغنا من قبل القسم وتم مطالبتنا بمبالغ مالية بعد ذلك | BC41: The patient was admitted to Al Hammadi Hospital due to COVID-19. Because the insurance did not cover the case, the insurance company refused to reimburse us. We were not informed by the department and were subsequently asked to pay fees. | BE41: Patient
B42: 40 | C42: 816 | D42: 30127955 | E42: مجلس الضمان الصحي | F42: الطوارئ | G42: الطبي | H42: أطباء الطوارئ | I42: 2023-01-25T21:02:00 | J42: تهاني عبدالله القرني | K42: 72 Hours | L42: 2023-01-17 | M42: 20:49:00 | N42: تهاني عبدالله القرني | O42: 2023-01-25 | P42: 21:02:00 | T42: 2023-01-25 | U42: 21:03:00 | V42: تهاني عبدالله القرني | W42: 0.0006944444467 | X42: 2023-01-25 | Y42: 21:06:00 | Z42: تهاني عبدالله القرني | AA42: 0.002083333333 | AE42: -44951.87917 | AJ42: -44951.87708 | AN42: -44951.87708 | AO42: 2023-01-26 | AP42: 20:06:00 | AQ42: 0.9604166667 | AR42: 2023-01-28 | AS42: 13:24:00 | AT42: تهاني عبدالله القرني | AU42: 2.68125 | AV42: 16290 | AW42: DR. SAMAH ABDULRAHMAN ABDO SAEED | AX42: Relationship complaints | AY42: 5. Communication | AZ42: 3.4.Finance and Billing | BA42: 1.2.1.Miscoordination | BB42: تم الحضور بتاريخ 16 يناير 2022م االى قسم الطوارئ حيث تم مباشرتي من قبل الطبيبة سماح وتم طلب عمل الفحوصات اللازمة وتم طلب عمل اشعھ صوتيھ للجنين للتاكد من عدم وجود اي مشكلھ ويتم تحويل حالتي الى قسم الباطنيھ تم التاكد من ذلك وتم الطلب من قبلهم بأن يباشر حالتي ويتم تنويمي من قبل قسم الباطنيھ ولكن تم تنويمي تحت اسم الطبيبة عزة رغم التاكد من عدم وجود اي مشكلھ تتعلق بقسم النساء والولادة مما ادى الى اخذ من الحد الائتمائي المتعلق بقسم النساء والولادة | BC42: On January 16, 2022, I went to the emergency department where I was seen by Dr. Samah. She ordered the necessary tests, including an ultrasound of the fetus to ensure there were no problems, and my case was referred to [the doctor/department].The internal medicine department confirmed this and requested that my case be handled and that I be admitted there. However, I was admitted under the name of Dr. Azza, despite confirmation that there were no issues related to the obstetrics and gynecology department. This resulted in the use of the credit limit allocated to the obstetrics and gynecology department. | BE42: Patient | CF42: In-Patient | CG42: 3 | CH42: =CG42/CG45 -> 12.50%
B43: 41 | C43: 776 | D43: 30137857 | E43: ذوي المراجع | F43: العيادات الخارجية | G43: الطبي | H43: عيادات الأسنان | I43: 2023-01-26T11:03:00 | J43: تهاني عبدالله القرني | K43: More than 72 Hours | L43: 2023-01-15 | M43: 18:26:00 | N43: تهاني عبدالله القرني | O43: 2023-01-26 | P43: 11:03:00 | Q43: 2023-01-17 | R43: 08:13:00 | S43: تهاني عبدالله القرني | T43: 2023-01-17 | U43: 20:56:00 | V43: تهاني عبدالله القرني | W43: -8.588194444 | X43: 2023-01-18 | Y43: 17:36:00 | Z43: امال القحطاني | AA43: 0.8611111111 | AB43: 2023-01-19 | AC43: 10:18:00 | AD43: امال القحطاني | AE43: 0.6958333333 | AJ43: -44943.87222 | AN43: -44943.87222 | AO43: 2023-01-19 | AP43: 11:49:00 | AQ43: 1.620138889 | AR43: 2023-01-19 | AS43: 11:23:00 | AT43: تهاني عبدالله القرني | AU43: 1.602083333 | AV43: 14376 | AW43: DR. RUBA HUSSEIN IBRAHIM ALMALLAH | AX43: Clinical complaints | AY43: 6. Humanness / Caring | AZ43: 1.3.Quality of Care | BA43: 6.1.2.Neglect | BB43: ‎ تم عمل اجراء على السن العلوي من قبل الطبيبة ربا وتم انكسار ابرتين في السن ولم تستطع العمل عليه بسبب الكسر وقدمت الدكتوره في وقتها الاعتذار للمريضه بسبب الضرر وتوقعنا ان الموضوع بسيط ولكن الان السن ملتهب وتم مراجعة الدكتوره عزه وابلغتنا ان السن ملتهب ويجب وجود جهاز معين للتمكن من العمل عليه ولايوجد الجهاز في مستشفى الحمادي ويوجد في عيادات خاصه لا تقبل التأمين وفقط الكاش ف هذا سبب الشكوى لان المريضه تعاني الان من نتيجه التهاب السن واريد من شكواي اصلاح السن في الحمادي او في مركز غيره اذا وجد او تحمل تكاليف الخلع وزرع سن مكانه. | BC43: Procedures were performed on the ideal tooth by Dr. Ruba, and two needles broke in the tooth. The work was not affected by the broken nails. The doctor apologized to the patient for the damage.We thought it was a simple matter, but now the tooth is inflamed. We consulted Dr. Azza, who informed us that the tooth is inflamed and requires a specific device to operate on it, which is not available at Al Hammadi Hospital. There are private clinics that do not accept insurance and only cash. This is the reason for the complaint because the patient is now suffering from the result of tooth inflammation. I want my complaint to fix the tooth at Al-Hammadi or at another center if there is one, or to bear the costs of extraction and implanting a tooth in its place. | BE43: Patient | CF43: Out-Patient | CG43: 19 | CH43: =CG43/CG45 -> 79.17%
B44: 42 | C44: 815 | D44: 30234465 | E44: مراجع | F44: العيادات الخارجية | G44: الإداري | H44: قسم المواعيد | I44: 2023-01-26T18:32:00 | J44: تهاني عبدالله القرني | K44: More than 72 Hours | L44: 2023-01-25 | M44: 20:39:00 | N44: تهاني عبدالله القرني | O44: 2023-01-26 | P44: 18:32:00 | Q44: 2023-01-26 | R44: 18:22:00 | S44: تهاني عبدالله القرني | T44: 2023-01-26 | U44: 18:33:00 | V44: تهاني عبدالله القرني | W44: 0.0006944444467 | X44: 2023-01-30 | Y44: 18:34:00 | Z44: تهاني عبدالله القرني | AA44: 4.000694444 | AB44: 2023-01-31 | AC44: 17:37:00 | AD44: تهاني عبدالله القرني | AE44: 0.9604166667 | AJ44: -44952.77292 | AN44: -44952.77292 | AO44: 2023-01-26 | AP44: 18:33:00 | AQ44: 0 | AR44: 2023-02-04 | AS44: 09:08:00 | AT44: تهاني عبدالله القرني | AU44: 8.607638889 | AX44: Relationship complaints | AY44: 5. Communication | AZ44: 5.1.Patient-staff communication | BA44: 3.1.9.Inadequate call center service | BB44: تم الاتصال على خدمه العملاء وطلب موعد لدى طبيب تخصص اسنان عصب خلفي وتم حجز موعد مع الطبيبة ربى ولما حضرت ابلغتني الطبيبة بانها لا تعالج العصب الخلفي | BC44: I contacted customer service and requested an appointment with a root canal specialist. After the appointment, the dentist informed me that she was not experiencing any back pain. | BE44: Patient | CF44: ER | CG44: 2 | CH44: =CG44/CG45 -> 8.33%
B45: 43 | C45: 788 | D45: 30118752 | E45: مراجع | F45: العيادات الخارجية | G45: الإداري | H45: استقبال العيادات الخارجية | I45: 2023-01-28T11:26:00 | J45: امال القحطاني | K45: More than 72 Hours | L45: 2023-01-19 | M45: 11:26:00 | N45: امال القحطاني | O45: 2023-01-28 | P45: 11:26:00 | Q45: 2023-01-28 | R45: 11:24:00 | S45: امال القحطاني | T45: 2023-01-28 | U45: 11:27:00 | V45: امال القحطاني | W45: 0.0006944444394 | X45: 2023-01-29 | Y45: 09:29:00 | Z45: امال القحطاني | AA45: 0.9180555556 | AB45: 2023-01-30 | AC45: 10:42:00 | AD45: امال القحطاني | AE45: 1.050694444 | AF45: 2023-02-04 | AG45: 19:03:00 | AH45: امال القحطاني | AI45: The complaint was escalated due to the department's failure to respond | AJ45: 7.316666667 | AK45: 2023-02-05 | AL45: 19:12:00 | AM45: امال القحطاني | AN45: 8.322916667 | AQ45: -44954.47708 | AU45: -44954.47708 | AX45: Relationship complaints | AY45: 5. Communication | AZ45: 5.1.Patient-staff communication | BA45: 6.2.1.Inappropriate/aggressive behavior | BB45: تم حضوري الى استقبال بوابھ 3 وتم التعامل بشكل غير مهني واسلوب غير لائق من قبل موظف الاستقبال حيث ان تم الانتظار اكثر من نصف ساعة وعند طرح ملاحظتي واستفساري قام بالرد باسلوب غير مهني | BC45: I went to the reception at Gate 3 and was treated unprofessionally and inappropriately by the receptionist. I waited for more than half an hour, and when I raised my concerns and inquiries, he responded unprofessionally. | BE45: Patient | CF45: Total | CG45: =CG42+CG43+CG44 -> 24 | CH45: =SUM(CH42:CH44) -> 100%
B46: 44 | C46: 820 | D46: 30234832 | E46: ذوي المراجع | F46: العيادات الخارجية | G46: الطبي | H46: قسم الصيدلية | I46: 2023-01-29T09:28:00 | J46: تهاني عبدالله القرني | K46: More than 72 Hours | L46: 2023-01-26 | M46: 19:50:00 | N46: تهاني عبدالله القرني | O46: 2023-01-29 | P46: 09:28:00 | Q46: 2023-01-28 | R46: 11:09:00 | S46: امال القحطاني | T46: 2023-01-29 | U46: 09:28:00 | V46: امال القحطاني | W46: 0 | X46: 2023-01-29 | Y46: 09:28:00 | Z46: امال القحطاني | AA46: 0 | AB46: 2023-01-30 | AC46: 10:40:00 | AD46: امال القحطاني | AE46: 1.05 | AF46: 2023-01-31 | AG46: 04:09:00 | AH46: تهاني عبدالله القرني | AI46: The complaint was escalated due to the department's failure to respond | AJ46: 1.778472222 | AN46: -44955.39444 | AO46: 2023-02-07 | AP46: 13:59:00 | AQ46: 9.188194444 | AR46: 2023-02-07 | AS46: 13:59:00 | AT46: تهاني عبدالله القرني | AU46: 9.188194444 | AW46: HIKMAH | AX46: Relationship complaints | AY46: 5. Communication | AZ46: 5.1.Patient-staff communication | BA46: 6.2.1.Inappropriate/aggressive behavior | BB46: تم حضوري الى الصيدلية لصرف الادوية وتم التعامل بشكل غير مهني واسلوب غيرلائق من قبل موظفة الصيدلية حيث انها رفضت دفع قيمة الدواء كاش قبل صدور الموافقھ واسترجاع المبلغ فيما بعد في حال صدور الموافقھ | BC46: I went to the pharmacy to pick up my medication, and the pharmacy employee treated me unprofessionally and inappropriately. She refused to accept cash payment for the medication before approval and promised a refund later if approval was granted. | BE46: Patient | CF46: Medical | CG46: 12 | CH46: =CG46/CG50 -> 50.00%
B47: 45 | C47: 809 | D47: 1316237 | E47: مراجع | F47: الطوارئ | G47: الطبي | H47: أطباء الطوارئ | I47: 2023-01-30T18:35:00 | J47: تهاني عبدالله القرني | K47: More than 72 Hours | L47: 2023-01-24 | M47: 18:21:00 | N47: تهاني عبدالله القرني | O47: 2023-01-30 | P47: 18:35:00 | Q47: 2023-01-26 | R47: 18:25:00 | S47: تهاني عبدالله القرني | T47: 2023-01-28 | U47: 20:49:00 | V47: تهاني عبدالله القرني | W47: -1.906944444 | X47: 2023-01-30 | Y47: 18:36:00 | Z47: تهاني عبدالله القرني | AA47: 1.907638889 | AB47: 2023-01-31 | AC47: 16:10:00 | AD47: تهاني عبدالله القرني | AE47: 0.8986111111 | AF47: 2023-02-04 | AG47: 09:07:00 | AH47: تهاني عبدالله القرني | AI47: The complaint was escalated due to the department's failure to respond | AJ47: 6.5125 | AN47: -44954.86736 | AQ47: -44954.86736 | AU47: -44954.86736 | AV47: 16290 | AW47: DR. SAMAH ABDULRAHMAN ABDO SAEED | AX47: Clinical complaints | AY47: 6. Humanness / Caring | AZ47: 4.2.Patient Disposition ( final plan) | BA47: 5.1.3.Not involving patient in clinical decisions | BB47: تم حضوري بتاريخ 22 يناير 2023م االى عيادة الدكتور أمير غانم فحصني وطلب بعض التحاليل وأشعھ سونار وطلب اجراءها بعد الامتناع عن الطعام لمده ٦ ساعات. نصحني في حاله زياده الاعراض التوجھ للطوارئ. بالفعل زاد التعب ليلا . توجهت للطوارئ بعد فتره تقريبا ساعھ دخلت وتم تركيب محاليل وسحب عينات دم وطلبوا اجراء اشعھ السونار كما طلب دكتور امير غانم وقمت بعمل الاشعھ والنزول للطوارئ. افادوا بأن التشخييص التهاب الزائدة الدوديھ وطلبوا الاستعداد للتنويم لعمل حراحھ مباشره لاستئصال الزائدة . رفضت التشخيص لان الاعراض سبق ان حدثت معي الفتره السابقھ انها التهاب قولون. ورفضوا القيام باشعھ مقطعيھ بالصبغة والاكتفاء بالموجات الصوتيھ . طلبت الخروج على مسئوليتي وتوجهت الى مستشفى اخر و بعد اجراء الاشعھ المقطعيھ والتحاليل والفحوصات . افادوا بأن الزائده سليمھ ولا وجود لالتهاب يتطلب اجراء جراحھ والتشخيص التهاب في القولون | BC47: On January 22, 2023, I visited Dr. Amir Ghanem's clinic. He examined me, ordered some tests and an ultrasound, and instructed me to fast for six hours beforehand. He advised me to go to the emergency room if my symptoms worsened. Indeed, my fatigue increased during the night.I went to the emergency room after about an hour. They administered IV fluids, drew blood samples, and ordered an ultrasound. Dr. Amir Ghanem requested the ultrasound, and I had it done before going back to the emergency room. They diagnosed me with appendicitis and asked me to prepare for immediate surgery to remove my appendix. I refused the diagnosis because I had experienced the same symptoms previously; they were diagnosed as colitis. They refused to perform a CT scan with contrast, only an ultrasound. I requested to be discharged against medical advice and went to another hospital. After a CT scan, tests, and examinations, they reported that my appendix was healthy, there was no inflammation requiring surgery, and the diagnosis was colitis. | BE47: Patient | CF47: ADMIN | CG47: 8 | CH47: =CG47/CG50 -> 33.33%
B48: 46 | C48: 765 | D48: 30220689 | E48: مراجع | F48: العيادات الخارجية | G48: الطبي | H48: عيادات الجلدية | I48: 2023-01-30T18:36:00 | J48: تهاني عبدالله القرني | K48: More than 72 Hours | L48: 2023-01-08 | M48: 17:53:00 | N48: تهاني عبدالله القرني | O48: 2023-01-30 | P48: 18:36:00 | Q48: 2023-01-11 | R48: 05:19:00 | S48: تهاني عبدالله القرني | T48: 2023-01-30 | U48: 18:36:00 | V48: تهاني عبدالله القرني | W48: 0 | X48: 2023-01-14 | Y48: 11:37:00 | Z48: تهاني عبدالله القرني | AA48: -16.29097222 | AB48: 2023-01-15 | AC48: 17:46:00 | AD48: تهاني عبدالله القرني | AE48: 1.25625 | AF48: 2023-01-17 | AG48: 11:14:00 | AH48: تهاني عبدالله القرني | AI48: The complaint was escalated due to the department's failure to respond. | AJ48: -13.30694444 | AN48: -44956.775 | AO48: 2023-01-27 | AP48: 13:24:00 | AQ48: -3.216666667 | AR48: 2023-01-27 | AS48: 13:24:00 | AT48: تهاني عبدالله القرني | AU48: -3.216666667 | AW48: DR. KAREEM AHMED | AX48: Clinical complaints | AY48: 6. Humanness / Caring | AZ48: 1. Examination | BA48: 2. Inadequate/incomplete assessment | BB48: ‎تم حضوري بتاريخ 8 يناير 2023م حيث تم التعامل معي من قبل الطبيب باسلوب غير لائق ولم يتم الفحص علي من قبله بشكل دقيق مما ادى الى استياني من حضوري الى العياده. | BC48: I attended on January 8, 2023, where I was treated inappropriately by the doctor and he did not examine me thoroughly, which led to my dissatisfaction with my attendance at the clinic. | BE48: Patient | CF48: ER | CG48: 2 | CH48: =CG48/CG50 -> 8.33%
B49: 47 | C49: 821 | D49: 30247472 | E49: مراجع | F49: العيادات الخارجية | G49: الطبي | H49: عيادات النساء والولادة | I49: 2023-01-30T19:17:00 | J49: تهاني عبدالله القرني | K49: More than 72 Hours | L49: 2023-01-28 | M49: 17:32:00 | N49: تهاني عبدالله القرني | O49: 2023-01-30 | P49: 19:17:00 | Q49: 2023-01-30 | R49: 18:30:00 | S49: تهاني عبدالله القرني | T49: 2023-01-30 | U49: 19:19:00 | V49: تهاني عبدالله القرني | W49: 0.001388888886 | X49: 2023-01-31 | Y49: 17:38:00 | Z49: تهاني عبدالله القرني | AA49: 0.9298611111 | AE49: -44957.73472 | AJ49: -44956.80486 | AN49: -44956.80486 | AO49: 2023-02-01 | AP49: 19:17:00 | AQ49: 1.998611111 | AR49: 2023-02-04 | AS49: 09:09:00 | AT49: تهاني عبدالله القرني | AU49: 4.576388889 | AW49: DR. SAHAR DERGHAM | AX49: Relationship complaints | AY49: 5. Communication | AZ49: 1.Patient-staff communication | BA49: 1.1.Miscommunication with Patient | BB49: بتاريخ 25 يناير 2023م تم الحضور الى عيادة الدكتورة سحر حيث انني حامل و كنت اعاني من الم في البطن وتم التعامل معي من قبل الطبيبة باسلوب غير لائق وعدم تقدير للمريض عند سماعھ ولم يتم اعطائي حل للمشكلة وكانت غير متعاونة | BC49: On January 25, 2023, I went to Dr. Sahar's clinic because I was pregnant and suffering from abdominal pain. The doctor treated me inappropriately and showed a lack of respect for the patient when listening to me. She did not provide a solution to the problem and was uncooperative. | BE49: Patient | CF49: Support Services | CG49: 2 | CH49: =CG49/CG50 -> 8.33%
B50: 48 | C50: 831 | D50: 1748703 | E50: مراجع | F50: العيادات الخارجية | G50: الطبي | H50: قسم الصيدلية | I50: 2023-01-30T20:15:00 | J50: تهاني عبدالله القرني | K50: More than 72 Hours | L50: 2023-01-29 | M50: 5:34:00P M | N50: تهاني عبدالله القرني | O50: 2023-01-30 | P50: 20:15:00 | Q50: 2023-01-30 | R50: 18:20:00 | S50: تهاني عبدالله القرني | T50: 2023-01-30 | U50: 20:16:00 | V50: تهاني عبدالله القرني | W50: 0.0006944444467 | X50: 2023-01-31 | Y50: 17:38:00 | Z50: تهاني عبدالله القرني | AA50: 0.8902777778 | AB50: 2023-02-04 | AC50: 09:10:00 | AD50: تهاني عبدالله القرني | AE50: 3.647222222 | AF50: 2023-02-05 | AG50: 09:11:00 | AH50: تهاني عبدالله القرني | AI50: The complaint was escalated due to the department's failure to respond | AJ50: 5.538194444 | AN50: -44956.84444 | AO50: 2023-02-01 | AP50: 11:03:00 | AQ50: 1.615972222 | AR50: 2023-02-01 | AS50: 11:03:00 | AT50: تهاني عبدالله القرني | AU50: 1.615972222 | AX50: Management complaints | AY50: 4. Accessibility | AZ50: 4.3.Delays | BA50: 4.3.6.Treatment delay | BB50: بتاريخ 28 يناير 2023م تم انتظاري لدى قسم الصيدليھ ساعھ و عشر دقايق ولم يصل رقمي وبعدما توجهت للمدير الاداري وتم مساعدتي وصرف لي الادويھ مما ادى االى استيائي الشديد بانتظاري لاكثر من ساعھ لصرف الادوية | BC50: On January 28, 2023, I waited at the pharmacy for one hour and ten minutes without my number being called. After approaching the administrative manager, I was assisted and my medication was dispensed, which greatly upset me as I had to wait for more than an hour to receive my medication. | BE50: Patient | CF50: Total | CG50: =CG46+CG47+CG48+CG49 -> 24 | CH50: =CH46+CH47+CH48+CH49 -> 100%
B51: 49 | C51: 832 | D51: 1387136 | E51: ذوي المراجع | F51: العيادات الخارجية | G51: الطبي | H51: عيادات الصدرية | I51: 2023-01-30T20:54:00 | J51: تهاني عبدالله القرني | K51: More than 72 Hours | L51: 2023-01-29 | M51: 21:05:00 | N51: تهاني عبدالله القرني | O51: 2023-01-30 | P51: 20:54:00 | Q51: 2023-01-30 | R51: 20:53:00 | S51: تهاني عبدالله القرني | T51: 2023-01-30 | U51: 20:55:00 | V51: تهاني عبدالله القرني | W51: 0.0006944444467 | X51: 2023-01-31 | Y51: 17:39:00 | Z51: تهاني عبدالله القرني | AA51: 0.8638888889 | AB51: 2023-02-04 | AC51: 09:11:00 | AD51: تهاني عبدالله القرني | AE51: 3.647222222 | AF51: 2023-02-07 | AG51: 12:48:00 | AH51: تهاني عبدالله القرني | AI51: The complaint was escalated due to the department's failure to respond | AJ51: 7.661805556 | AN51: -44956.87153 | AQ51: -44956.87153 | AU51: -44956.87153 | AW51: DR. AHMED MOHAMMED FARRAJ JAMALADDIEN | AX51: Management complaints | AY51: 1. Quality | AZ51: 1.5.Diagnosis | BA51: 1.5.1.Errors in diagnosis | BB51: تمت زيارة الدكتور احمد وتم شرح لھ مشكلة زوجتي حين راجعت مستشفى سابقا وابلغونا بوجود التهااب حاد في الرئة ووجود حرارة في الجسم وتمت مشاهدة صورة الاشعة للصدر المرسلة من المستوصف وأفاد الطبيب احمد بأن الرئة سليمة لايوجد بها مشكلة إنما المشكلة في من المريء(أكاليزيا) علما أن مشكلة المريء قديمة تم عمل اشعة مقطعية ً وبعد مشاهدة الطبيب للصورة أصر بإفادتھ أن الرئة سليمة وتم صرف دواء لتخفيف السعال ودواء للحساسية علما أن الطبيب أحمد لم يفحص المريضة سريريا فقط اكتفى بمشاهدة الصور ازدات حالة المريضھ سوء و تعاني من ألم شديد في الصدر من جهة اليمين تم اسعاف زوجتي الى قسم الطوارىء وتم تشخيصها سريريا من قبل طبيبة الطوارىء بألتهاب حاد بالفص الأيمن من الرئة وهذا ما أكدتھ الصور و النتائج المخبيرية لاحقا بإصابتها بجرثومة (LEGIONELLA PNEUMOPHILA) ولا علاقة (الأكاليزيا) بذلك وبناء عليه ذلك تم تنويم المريضة اريع ايام | BC51: Dr. Ahmed was visited and the issue of the bottle was explained to him. He had previously been to the hospital and informed us of a severe lung infection and a fever. The chest x-ray image sent from the clinic was reviewed by Dr. Ahmed. The x-ray was normal and showed no problem, except for an esophageal issue (acidosis). It should be noted that a CT scan was performed to address the intermediate larval issue. After reviewing the images, the doctor insisted that the lungs were healthy and prescribed cough suppressant and allergy medication. It's worth noting that Dr. Ahmed did not conduct a clinical examination; he only reviewed the images. The patient's condition worsened, and she experienced severe pain in the right side of her chest. My wife was rushed to the emergency room and clinically diagnosed by the emergency room physician. She presented with acute inflammation of the right lobe of the lung, which was later confirmed by imaging and laboratory results indicating infection with Legionella pneumophila. Achalasia was unrelated. Consequently, the patient was hospitalized for four days. | BE51: Patient
B52: 50 | C52: 817 | D52: 30086592 | E52: مجلس الضمان الصحي | F52: التنويم | G52: الطبي | H52: تنويم الأطفال | I52: 2023-01-31T11:30:00 | J52: امال القحطاني | K52: 24 Hours | L52: 2023-01-26 | M52: 10:40:00 | N52: امال القحطاني | O52: 2023-01-31 | P52: 11:30:00 | T52: 2023-01-31 | U52: 11:30:00 | V52: تهاني عبدالله القرني | W52: 0 | AA52: -44957.47917 | AE52: 0 | AJ52: -44957.47917 | AN52: -44957.47917 | AQ52: -44957.47917 | AR52: 2023-01-26 | AS52: 11:25:00 | AT52: امال القحطاني | AU52: -5.003472222 | AX52: Relationship complaints | AY52: 5. Communication | AZ52: 5.1.Patient-staff communication | BA52: 5.1.2.Poor provider-patient communication | BB52: تم نقل الطفلھ لقسم التنوبم وبعد عمل تحاليل والفحوصات تم طلب الخروج من قبل قسم التنويم وتم التوججھ لقسم الطوارى والتحدث مع المدير المناوب للتعاون معي تم اخباري من قبلھ بالخروج وتم طلب الشرطھ واكمال اجراءات الخروج من قبل قسم التنويم حيث لم يتم شرح الحالھ كما يجب | BC52: The child was transferred to the inpatient ward. After tests and examinations, the ward requested her discharge. I went to the emergency department and spoke with the on-duty manager, who informed me of the discharge. The police were called, and the discharge procedures were completed by the inpatient ward, as the case was not explained properly. | BE52: Hospital
B53: 51 | C53: 840 | D53: 30106720 | E53: مجلس الضمان الصحي | F53: التنويم | G53: الإداري | H53: قسم المالية | I53: 2023-01-31T13:41:00 | J53: تهاني عبدالله القرني | K53: 24 Hours | L53: 2023-01-30 | M53: 13:24:00 | N53: تهاني عبدالله القرني | O53: 2023-01-31 | P53: 13:41:00 | Q53: 2023-01-31 | R53: 13:42:00 | S53: تهاني عبدالله القرني | T53: 2023-01-31 | U53: 13:42:00 | V53: تهاني عبدالله القرني | W53: 0.0006944444394 | AA53: -44957.57083 | AE53: 0 | AJ53: -44957.57083 | AN53: -44957.57083 | AO53: 2023-02-01 | AP53: 11:03:00 | AQ53: 0.8895833333 | AR53: 2023-02-01 | AS53: 11:03:00 | AT53: تهاني عبدالله القرني | AU53: 0.8895833333 | AW53: YOUSEF | AX53: Relationship complaints | AY53: 6. Humanness / Caring | AZ53: 6.4.Consent | BA53: 6.4.2.No/Invalid consent obtained | BB53: تم دخول المريض الى الطوارئ انقاذ حياة وتم عمل الاجراءات اللازمة وحين موعد خروج المريض تم حضور الموظف يوسف الى المريض وابلاغھ ان التامين لم يتم الموافقة على جزء من الطلب ويجب دفع 45الف او التوقيع على الكمبيالة حيث ان الموظف طلب عدم استجابة التمريض للمريض لرفض المريض بالدفع والتوقيع وتم ابلاغھ بانھ سيتم حجزه | BC53: The patient was admitted to the emergency room for life-saving treatment, and the necessary procedures were performed. When it was time for the patient's discharge, an employee named Youssef approached him and informed him that the insurance had not approved part of the claim and that he must either pay 45,000 or sign a promissory note. The employee instructed the nursing staff not to attend to the patient because the patient refused to pay and sign, and he was informed that he would be detained. | BE53: Patient
B54: 52 | C54: 841 | D54: 30236197 | E54: مجلس الضمان الصحي | F54: التنويم | G54: الإداري | H54: قسم الموافقات الطبية | I54: 2023-01-31T14:33:00 | J54: تهاني عبدالله القرني | K54: 24 Hours | L54: 2023-01-30 | M54: 13:42:00 | N54: تهاني عبدالله القرني | O54: 2023-01-31 | P54: 14:33:00 | T54: 2023-01-31 | U54: 14:34:00 | V54: تهاني عبدالله القرني | W54: 0.0006944444467 | AA54: -44957.60694 | AE54: 0 | AJ54: -44957.60694 | AN54: -44957.60694 | AO54: 2023-02-01 | AP54: 16:43:00 | AQ54: 1.089583333 | AR54: 2023-02-01 | AS54: 16:43:00 | AT54: امال القحطاني | AU54: 1.089583333 | AX54: Relationship complaints | AY54: 6. Humanness / Caring | AZ54: 6.4.Consent | BA54: 6.4.2.No/Invalid consent obtained | BB54: تم عمل اجراء عملية بتاريخ 27 نوفمبر2022م وتم الموافقة عليھ من قبل التامين ولكن تم ابلاغي من قبل المسشتفى بعدم موافقة التامين على الاجراء ويجب دفع مبلغ مايقارب 5200 ريال | BC54: A procedure was performed on November 27, 2022, and was approved by the insurance. However, the hospital informed me that the insurance did not approve the procedure and that I would have to pay approximately 5200 riyals. | BE54: Patient
B55: 53 | C55: 842 | D55: 30167647 | E55: مجلس الضمان الصحي | F55: العيادات الخارجية | G55: الإداري | H55: قسم الموافقات الطبية | I55: 2023-01-31T16:35:00 | J55: تهاني عبدالله القرني | K55: 24 Hours | L55: 2023-01-31 | M55: 16:20:00 | N55: تهاني عبدالله القرني | O55: 2023-01-31 | P55: 16:35:00 | T55: 2023-01-31 | U55: 16:36:00 | V55: تهاني عبدالله القرني | W55: 0.0006944444467 | AA55: -44957.69167 | AE55: 0 | AJ55: -44957.69167 | AN55: -44957.69167 | AO55: 2023-01-31 | AP55: 16:55:00 | AQ55: 0.01319444444 | AR55: 2023-01-31 | AS55: 16:55:00 | AT55: امال القحطاني | AU55: 0.01319444444 | AX55: Management complaints | AY55: 5. Communication | AZ55: 2.3.Skills and Conduct | BA55: 6.4.1.Consent not explained | BB55: تم التوجھ لقسم الموافقات وتم رفض استقبالي واخباري بعدم تفعيل التأمين لدى مستشفى ااحمادي ولم يتم الشرح والتوضيح لي من قبلهم | BC55: I went to the approvals department but was refused admission and told that my insurance wasn't activated at Al-Ahmadi Hospital. No explanation or clarification was provided. | BE55: Patient
B56: 54 | C56: 826 | D56: 30011107 | E56: مراجع | F56: العيادات الخارجية | G56: الطبي | H56: قسم العلاج الطبيعي | I56: 2023-01-31T17:43:00 | J56: تهاني عبدالله القرني | K56: More than 72 Hours | L56: 2023-01-29 | M56: 13:28:00 | N56: تهاني عبدالله القرني | O56: 2023-01-31 | P56: 17:43:00 | Q56: 2023-01-30 | R56: 18:30:00 | S56: تهاني عبدالله القرني | T56: 2023-01-31 | U56: 17:43:00 | V56: تهاني عبدالله القرني | W56: 0 | AA56: -44957.73819 | AE56: 0 | AJ56: -44957.73819 | AN56: -44957.73819 | AO56: 2023-01-31 | AP56: 22:16:00 | AQ56: 0.1895833333 | AR56: 2023-02-04 | AS56: 09:18:00 | AT56: تهاني عبدالله القرني | AU56: 3.649305556 | AV56: 10308 | AW56: DR. EHOUD AHMED AHMED ELSANDAROUSY | AX56: Relationship complaints | AY56: 5. Communication | AZ56: 1.Patient-staff communication | BA56: 1.1.Miscommunication with Patient | BB56: تم الحضور لعمل جلسة العلاج الطبيبعي حيث تم البدأ في اجراءات العلاج الطبيعي دون شرح الخطة العلاجية وفي كل مره اسألها عن الجهاز وعن الخطة تنفعل ولم يتم التوضيح لي بشكل كامل وتم رفض تكملة العلاج لديها حيث تم انفعالها بسبب رفضي وابلغتها بانھ تم الاطلاع على ملفي لذلك لا ترديني ان اسال عن تفاصيل الخطة العلاجيھ | BC56: I attended a physical therapy session where the treatment began without explaining the treatment plan. Every time I asked about the equipment or the plan, she became agitated and didn't explain anything fully. I refused to continue the treatment with her because she became upset by my refusal. I told her that she had reviewed my file and therefore didn't want me to ask about the details of the treatment plan. | BE56: Patient
B57: 55 | C57: 828 | D57: 30223782 | E57: مراجع | F57: العيادات الخارجية | G57: الإداري | H57: قسم الموافقات الطبية | I57: 2023-01-31T17:50:00 | J57: تهاني عبدالله القرني | K57: More than 72 Hours | L57: 2023-01-29 | M57: 16:18:00 | N57: تهاني عبدالله القرني | O57: 2023-01-31 | P57: 17:50:00 | Q57: 2023-01-29 | R57: 18:29:00 | S57: تهاني عبدالله القرني | T57: 2023-01-31 | U57: 17:51:00 | V57: تهاني عبدالله القرني | W57: 0.0006944444467 | X57: 2023-02-04 | Y57: 09:15:00 | Z57: تهاني عبدالله القرني | AA57: 3.641666667 | AE57: -44961.38542 | AJ57: -44957.74375 | AN57: -44957.74375 | AQ57: -44957.74375 | AR57: 2023-02-06 | AS57: 09:29:00 | AT57: تهاني عبدالله القرني | AU57: 5.651388889 | AV57: 13662 | AW57: MAMDOUH MATAR HASSAN ALAMRI | AX57: Relationship complaints | AY57: 5. Communication | AZ57: 1.Patient-staff communication | BA57: 1.1.Miscommunication with Patient | BB57: تم انتظاري مايقارب ساعة لاستلام الموافقة من التأمين، أذهب للموظف وفور وقوفي عند مكتبھ يقوم باستلام مكالمة هاتفية على جوالھ يتحدث فيها مع الطرف الآخر ولم يتم تقدير وقوفي أمامھ رغم فترة الإنتظار، وتم ذهابي الى الموظفة التي بجانبھ لإنهاء الإجراء | BC57: I waited for almost an hour to receive approval from the insurance company. I went to the employee, and as soon as I stood at his desk, he took a phone call on his mobile, speaking with the other party. He didn't acknowledge my waiting time, and I was then directed to the employee next to him to complete the procedure. | BE57: Patient
B58: 56 | C58: 829 | D58: 932283 | E58: مراجع | F58: العيادات الخارجية | G58: الطبي | H58: فني فحص النظر | I58: 2023-01-31T18:08:00 | J58: تهاني عبدالله القرني | K58: More than 72 Hours | L58: 2023-01-29 | M58: 16:48:00 | N58: تهاني عبدالله القرني | O58: 2023-01-31 | P58: 18:08:00 | Q58: 2023-01-30 | R58: 18:29:00 | S58: تهاني عبدالله القرني | T58: 2023-01-31 | U58: 18:08:00 | V58: تهاني عبدالله القرني | W58: 0 | AA58: -44957.75556 | AE58: 0 | AJ58: -44957.75556 | AN58: -44957.75556 | AO58: 2023-02-01 | AP58: 21:49:00 | AQ58: 1.153472222 | AR58: 2023-02-04 | AS58: 09:16:00 | AT58: تهاني عبدالله القرني | AU58: 3.630555556 | AX58: Clinical complaints | AY58: 6. Humanness / Caring | AZ58: 1.5.Diagnosis | BA58: 1.5.1.Errors in diagnosis | BB58: تم اخذ قياسات النظر من قبل فنية قياس النظر وتم اعطاي القياسات وتم توجيه لتفصيل النظارات واستخدامها مما ادى للصداع والم وشرار وحرقان فالعين وعدم الارتياح و اتضح عند عودتي الى مسؤول النظارات ان القياسات التي تم عملها من قبل فنية الفحص غير صحيحة فأضطررت الى اخذ قياسات جديده وعدسات جديده وتم دفع 625 ريال نسبة تحمل | BC58: My vision was measured by an optician, and I was given the measurements and instructed to have glasses made and used. This resulted in headaches, pain, burning, and discomfort in my eyes. Upon returning to the optician, it became clear that the measurements taken by the optician were incorrect. I was forced to have new measurements taken and new lenses, and I paid 625 riyals as a co-payment. | BE58: Patient
A61: 1st Half | B61: 18 | D61: MOH | E61: 8 | F61: =E61/E65 -> 14% | H61: Medical | K61: Employee Name | L61: Number of complaints | M61: Total Percentage | N61: 24 Hours | O61: 48 Hours | P61: 72 Hours | Q61: More than 72 hours | R61: Total | T61: Number of delays in sending the complaint (delay in activation) | V61: Percentage | W61: Activated within two hours | X61: Percentage | Y61: Total | AA61: الشكاوي المصعدة | AB61: خلال 72 | AC61: مبكرة | AD61: متأخرة | AE61: الموظف المسؤول
A62: 2nd Half | B62: 38 | D62: CCHI | E62: 8 | F62: =E62/E65 -> 14% | H62: وحدة العناية المركزة | I62: 1 | K62: ابرار الشمري | L62: 1 | M62: =L62/L65 -> 1.79% | N62: 9 | O62: 1 | P62: 2 | Q62: 7 | R62: =L62 -> 1 | T62: امال القحطاني | U62: 5 | V62: =U62/Y65 -> 9.62% | W62: 12 | X62: =W62/Y65 -> 23.08% | Y62: =W62+U62 -> 17 | AA62: 9 | AC62: 1 | AD62: 2 | AE62: امال القحطاني | AP62: Medical | AR62: Average
D63: Patients | E63: 24 | F63: =E63/E65 -> 43% | H63: تنويم النساء والولاده | I63: 1 | K63: امال القحطاني | L63: 19 | M63: =L63/L65 -> 33.93% | N63: 9 | O63: 1 | P63: 2 | Q63: 7 | R63: =L63 -> 19 | T63: تهاني القرني | U63: 19 | V63: =U63/Y65 -> 36.54% | W63: 15 | X63: =W63/Y65 -> 28.85% | Y63: =U63+W63 -> 34 | AB63: 1 | AD63: 6 | AE63: تهاني عبدالله القرني | AP63: وحدة العناية المركزة | AQ63: 1 | AR63: =AVERAGE(AS63:AU63) -> 0.01 | AS63: 0.02 | AT63: 0
A64: Total | B64: =B61+B62 -> 56 | D64: Patient’s relatives | E64: 16 | F64: =E64/E65 -> 29% | H64: عيادات الجلديه | I64: 2 | K64: تهاني عبدالله القرني | L64: 36 | M64: =L64/L65 -> 64.29% | N64: 10 | O64: 4 | P64: 5 | Q64: 17 | R64: =L64 -> 36 | T64: ابرار الشمري | V64: =U64/Y65 -> 0.00% | W64: 1 | X64: =W64/Y65 -> 1.92% | Y64: =U64+W64 -> 1 | AP64: تنويم النساء والولاده | AQ64: 1 | AR64: =AVERAGE(AS64:AU64) -> 8.01 | AT64: 8.01
D65: Total | E65: =E61+E62+E63+E64 -> 56 | F65: =F61+F62+F63+F64 -> 100.00% | H65: جراحه الانف واذن وحنجره | I65: 1 | K65: Total | L65: =SUM(L62:L64) -> 56 | M65: =SUBTOTAL(9,M62:M64) -> 100% | N65: =SUBTOTAL(9,N62:N64) -> 28 | O65: =SUBTOTAL(9,O62:O64) -> 6 | P65: 9 | Q65: 31 | R65: 56 | T65: Total | U65: =SUM(U62:U64) -> 24 | V65: =V62+V63+V64 -> 46.15% | W65: =W62+W63+W64 -> 28 | X65: =X62+X63+X64 -> 53.85% | Y65: =Y62+Y63+Y64 -> 52 | AP65: عيادات الجلديه | AQ65: 2 | AR65: 0.00 | AS65: 0 | AT65: 0
D66: In-Patient | E66: 17 | F66: =E66/E69 -> 30% | H66: عيادات الجهاز الهضمي والمناظير | I66: 1 | Y66: =X65+V65 -> 100.00% | AP66: جراحه الانف واذن وحنجره | AQ66: 1 | AR66: 0.00 | AS66: 0
D67: Out-Patient | E67: 30 | F67: =E67/E69 -> 54% | H67: فني تخطيط المخ والاعصاب | I67: 1 | AA67: الشكاوي المغلقة | AB67: خلال 72 | AC67: مبكرة | AD67: متأخرة | AE67: الموظف المسؤول | AP67: عيادات الجهاز الهضمي والمناظير | AQ67: 1 | AR67: 0.00 | AS67: 0
D68: ER | E68: 9 | F68: =E68/E69 -> 16% | H68: عيادات جراحه العظام | I68: 1 | AA68: 15 | AC68: 4 | AD68: 4 | AE68: امال القحطاني | AP68: فني تخطيط المخ والاعصاب | AQ68: 1 | AR68: 0.09 | AS68: 0.09
D69: Total | E69: =E66+E67+E68 -> 56 | F69: =F66+F68+F67 -> 100.00% | H69: فني فحص النظر | I69: 1 | AB69: 1 | AC69: 6 | AE69: تهاني عبدالله القرني | AP69: عيادات جراحه العظام | AQ69: 1 | AR69: 0.17 | AS69: 0.17
D70: Medical | E70: 26 | F70: =E70/E74 -> 46% | H70: عيادات النساء والولادة | I70: 1 | AP70: فني فحص النظر | AQ70: 1 | AR70: 1.14 | AS70: 1.14
D71: Admin | E71: 22 | F71: =E71/E74 -> 39% | H71: عيادات الصدريه | I71: 2 | AP71: عيادات النساء والولادة | AQ71: 1 | AR71: 1.98 | AS71: 1.98
D72: Nursing | E72: 5 | F72: =E72/E74 -> 9% | H72: العلاج الطبيعي | I72: 1 | AP72: عيادات الصدريه | AQ72: 2 | AR72: 0.00 | AS72: 0 | AT72: 0
D73: Support Services | E73: 3 | F73: =E73/E74 -> 5% | H73: Grand Total | I73: =SUM(I62:I72) -> 13 | AP73: العلاج الطبيعي | AQ73: 1 | AR73: 0.18 | AS73: 0.18
D74: Total | E74: =E70+E71+E72+E73 -> 56 | F74: =F70+F71+F72+F73 -> 100% | AA74: Total Escalated | AB74: 9 | AP74: Total | AR74: =SUM(AR63:AR73) -> 11.58
AA75: Total Closed | AB75: 15
H76: Non-Medical
H77: قسم الموافقات الطبية | I77: 8
H78: قسم التقارير الطبية | I78: 1
H79: قسم المالية | I79: 3
H80: قسم المواعيد | I80: 1 | AP80: Non-Medical | AR80: Average
H81: المدير المناوب | I81: 2 | AP81: اداره التنويم | AR81: =AVERAGE(AS81:AU81) -> 
H82: استقبال العيادات الخارجية | I82: 2 | AP82: قسم الموافقات الطبية | AR82: =AVERAGE(AS82:AU82) -> 0.00 | AS82: 0
H83: اداره التنويم | I83: 4 | AP83: قسم التقارير الطبية | AR83: =AVERAGE(AS83:AU83) -> 1.01 | AS83: 1.01
H84: قسم السنترال | I84: 1 | AP84: قسم المالية | AR84: 0.32 | AS84: 0 | AT84: 0.09 | AU84: 0.88
H85: Grand Total | I85: =SUM(I77:I84) -> 22 | AP85: قسم المواعيد | AR85: 0.00 | AS85: 0
AP86: المدير المناوب | AR86: 13.73 | AS86: 26.23 | AT86: 1.22
AP87: استقبال العيادات الخارجية | AR87: 0.00 | AS87: 0
H88: Nursing | AP88: قسم السنترال | AR88: 0.00 | AS88: 0 | AT88: 0
H89: تمريض العيادات الخارجية | I89: 1 | AP89: Total | AR89: =SUM(AR82:AR88) -> 15.05833333
H90: تمريض قسم الإفاقة | I90: 1
H91: تمريض الطوارئ | I91: 1
H92: تمريض التخدير | I92: 1
H93: تمريض العيادات الخارجيه | I93: 1
H94: تمريض تنويم الاطفال | I94: 1 | AP94: Nursing | AR94: Average
H95: Grand Total | I95: =SUM(I89:I94) -> 6 | AP95: تمريض العيادات الخارجية | AQ95: 1 | AR95: =AVERAGE(AS95:AU95) -> 0.00 | AS95: 0
AP96: تمريض قسم الإفاقة | AQ96: 1 | AR96: =AVERAGE(AS96:AU96) -> 0.22 | AS96: 0.22
AP97: تمريض الطوارئ | AQ97: 1 | AR97: 0.00 | AS97: 0
H98: Support Services | AP98: تمريض التخدير | AQ98: 1 | AR98: 0.00 | AS98: 0
H99: المطبخ | I99: 2 | AP99: تمريض العيادات الخارجية | AQ99: 1 | AR99: 3.14 | AS99: 3.14
H100: النظافه | I100: 1 | AP100: تمريض تنويم الاطفال | AQ100: 1 | AR100: =AVERAGE(AS100:AU100) -> 0.09 | AS100: 0.09
H101: Grand Total | I101: =SUM(I99:I100) -> 3 | AP101: Total | AR101: =SUM(AR95:AR100) -> 3.45
AP106: Support Services | AR106: Average
AP107: المطبخ | AQ107: 2 | AR107: =AVERAGE(AS107:AU107) -> 
AP108: النظافه | AQ108: 1 | AR108: =AVERAGE(AS108:AU108) -> 
AP109: Total | AR109: =SUM(AR107:AR108) -> 

Sheet February 2023
A1: Week | B1: No. | C1: رقم الشكوى | D1: رقم الملف | E1: جهة الشكوى | F1: الموقع | G1: القسم الرئيس | H1: القسم الفرعي | I1: تاريخ إستلام الشكوى | J1: المدخل | K1: Time line | L1: إرسال نموذج الشكوى | N1: Employee | O1: تحرير الشكوى | Q1: تفعيل الشكوى | S1: Employee | T1: تم ارسال الشكوى | V1: Employee | W1: الوقت بين التحرير والارسال | X1: First Reminder Sent | Z1: Employee | AA1: الوقت بين اول ايميل والارسال | AB1: Second Reminder Sent | AD1: Employee | AE1: الوقت بين ثاني ايميل والاول | AF1: Escalated | AH1: Employee | AI1: Reason of Escalation | AJ1: الوقت بين التصعيد والارسال | AK1: Closed | AM1: Employee | AN1: الوقت بين الاغلاق والارسال | AO1: تاريخ الرد | AQ1: الوقت بين الرد والارسال | AR1: Resolved | AT1: Employee | AU1: الوقت بين المعالجة و الارسال | AV1: ID | AW1: اسم الشخص المشتكى عليه - ان وجد | AX1: Domain | AY1: Category | AZ1: Sub-Category | BA1: Classification | BB1: محتوى الشكوى (عربي) | BC1: محتوى الشكوى (English) | BD1: Satisfied/Dissatisfied | BE1: The Rightful Side | BF1: Recommendation/Action plan | BJ1: رقم الشكوى | BK1: رقم الملف | BL1: جهة الشكوى | BM1: الموقع | BN1: القسم الرئيس | BO1: القسم الفرعي | BP1: تاريخ إستلام الشكوى | BQ1: المدخل | BR1: Time line | BU1: رقم الشكوى | BV1: رقم الملف | BW1: جهة الشكوى | BX1: الموقع | BY1: القسم الرئيس | BZ1: القسم الفرعي | CA1: تاريخ إستلام الشكوى | CB1: المدخل | CC1: Time line | CF1: رقم الشكوى | CG1: رقم الملف | CH1: جهة الشكوى | CI1: الموقع | CJ1: القسم الرئيس | CK1: القسم الفرعي | CL1: تاريخ إستلام الشكوى | CM1: المدخل | CN1: Time line | CQ1: رقم الشكوى | CR1: رقم الملف | CS1: جهة الشكوى | CT1: الموقع | CU1: القسم الرئيس | CV1: القسم الفرعي | CW1: تاريخ إستلام الشكوى | CX1: المدخل | CY1: Time line
K2: Time line | L2: Date | M2: Time | O2: Date | P2: Time | Q2: Date | R2: Time | T2: Date | U2: Time | X2: Date | Y2: Time | AB2: Date | AC2: Time | AF2: Date | AG2: Time | AK2: Date | AL2: Time | AO2: Date | AP2: Time | AR2: Date | AS2: Time
A3: 1 | B3: 1 | C3: 887 | D3: 30246056 | E3: وزارة الصحة | F3: التنويم | G3: الإداري | H3: قسم المالية | I3: 2023-01-19T15:17:00 | J3: ابرار الشمري | K3: 24 Hours | T3: 2023-09-02 | U3: 15:28:00 | W3: =(U3+T3)-(P3+O3) -> 45171.64444 | AA3: =(Y3+X3)-(U3+T3) -> -45171.64444 | AE3: =(AC3+AB3)-(Y3+X3) -> 0 | AJ3: =(AG3+AF3)-(U3+T3) -> -45171.64444 | AN3: =(AL3+AK3)-(U3+T3) -> -45171.64444 | AQ3: =(AP3+AO3)-(U3+T3) -> -45171.64444 | AU3: =(AS3+AR3)-(U3+T3) -> -45171.64444 | AX3: Management complaints | AY3: 3. Institutional Issues | AZ3: 4.Finance and Billing | BA3: 3.4.3.Calculate Additional amount | BB3: تم عمل عمليه تبديل مفاصل بمبلغ 75 الف ريال والمستشفى الان يطالب بدفع مبلغ 15 الف ريال لدخول الوالد في العناية المركزة بعد العملية حي لم يتم ابلاغنا بالخطة العلاجيه واحتمال زيادة المبلغ . | BC3: Joint replacement surgery was performed for 75,000 riyals, and the hospital is now demanding payment of 15,000 riyals for my father's admission to intensive care after the surgery, as we have not been informed of the treatment plan and the possibility of an increase in the amount. | BE3: Patient | BJ3: 845 | BK3: 1595072 | BL3: مجلس الضمان الصحي | BM3: العيادات الخارجية | BN3: الإداري | BO3: قسم الموافقات الطبية | BP3: 2023-02-01T15:59:00 | BQ3: امال القحطاني | BR3: More than 72 Hours | BU3: 887 | BV3: 30246056 | BW3: وزارة الصحة | BX3: التنويم | BY3: الإداري | BZ3: قسم المالية | CA3: 2023-01-19T15:17:00 | CB3: ابرار الشمري | CC3: 24 Hours | CF3: 856 | CG3: 1149493 | CH3: مراجع | CI3: العيادات الخارجية | CJ3: الطبي | CK3: عيادات جراحة العظام | CL3: 2023-02-02T19:21:00 | CM3: امال القحطاني | CN3: 48 Hours | CQ3: 846 | CR3: 1763712 | CS3: ذوي المراجع | CT3: العيادات الخارجية | CU3: الإداري | CV3: قسم الموافقات الطبية | CW3: 2023-02-01T20:18:00 | CX3: امال القحطاني | CY3: 24 Hours
B4: 2 | C4: 845 | D4: 1595072 | E4: مجلس الضمان الصحي | F4: العيادات الخارجية | G4: الإداري | H4: قسم الموافقات الطبية | I4: 2023-02-01T15:59:00 | J4: امال القحطاني | K4: More than 72 Hours | L4: 2023-02-01 | M4: 15:38:00 | N4: امال القحطاني | O4: 2023-02-01 | P4: 15:59:00 | T4: 2023-02-01 | U4: 16:00:00 | V4: امال القحطاني | W4: =(U4+T4)-(P4+O4) -> 0.0006944444394 | X4: 2023-02-04 | Y4: 18:58:00 | Z4: امال القحطاني | AA4: 3.123611111 | AE4: -44961.79028 | AJ4: -44958.66667 | AN4: -44958.66667 | AO4: 2023-02-12 | AP4: 21:32:00 | AQ4: 11.23055556 | AR4: 2023-02-12 | AS4: 21:32:00 | AT4: ابرار الشمري | AU4: 11.23055556 | AX4: Relationship complaints | AY4: 6. Humanness / Caring | AZ4: 6.4.Consent | BA4: 6.4.2.No/Invalid consent obtained | BB4: تم ارسال طلب من قبل شركة التأمين الى قسم الموافقات ليتم كتابة معلومات اضافيھ من قبل الطبيب المعالج تخص حالة المريضھ حيث لم يتم الرد من قبل القسم على ذلك ولم يتم افادتنا علما ان حالھ المريضھ غير مستقره وتستدعي اتخاذ الاجراءات باسرع وقت | BC4: A request was sent by the insurance company to the approval department for the treating physician to write additional information regarding the patient. The patient has not responded to this request, and we have not been informed, even though her condition is unstable and requires immediate attention. | BE4: Patient | BJ4: 860 | BK4: 30249807 | BL4: مجلس الضمان الصحي | BM4: العيادات الخارجية | BN4: الإداري | BO4: قسم الموافقات الطبية | BP4: 2023-02-04T15:00:00 | BQ4: امال القحطاني | BR4: 24 Hours | BU4: 848 | BV4: 30007356 | BW4: وزارة الصحة | BX4: العيادات الخارجية | BY4: الإداري | BZ4: قسم التقارير الطبية | CA4: 2023-02-02T13:39:00 | CB4: امال القحطاني | CC4: 24 Hours | CF4: 847 | CG4: 30244275 | CH4: مراجع | CI4: التنويم | CJ4: التمريض | CK4: تمريض وحدة العناية المركزة - أطفال | CL4: 2023-02-04T10:08:00 | CM4: تهاني عبدالله القرني | CN4: More than 72 Hours | CQ4: 849 | CR4: 30240627 | CS4: ذوي المراجع | CT4: التنويم | CU4: التمريض | CV4: تمريض تنويم الأطفال | CW4: 2023-02-02T15:41:00 | CX4: امال القحطاني | CY4: 48 Hours
B5: 3 | C5: 846 | D5: 1763712 | E5: ذوي المراجع | F5: العيادات الخارجية | G5: الإداري | H5: قسم الموافقات الطبية | I5: 2023-02-01T20:18:00 | J5: امال القحطاني | K5: 24 Hours | L5: 2023-02-01 | M5: 7:23:oo pm | N5: امال القحطاني | O5: 2023-02-01 | P5: 20:18:00 | Q5: 2023-02-02 | R5: 19:40:00 | S5: امال القحطاني | T5: 2023-02-01 | U5: 20:18:00 | V5: امال القحطاني | W5: 0 | AA5: -44958.84583 | AE5: 0 | AJ5: -44958.84583 | AK5: 2023-02-02 | AL5: 19:49:00 | AM5: امال القحطاني | AN5: 0.9798611111 | AQ5: -44958.84583 | AU5: -44958.84583 | AX5: Relationship complaints | AY5: 5. Communication | AZ5: 1.Patient-staff communication | BA5: 5.1.2.Poor provider-patient communication | BB5: حاولت الاتصال بقسم الموافقات و مدير قسم الموافقات و حتى المدير المناوب لأكثر من 10 مرات على مدار اكثر من يوم و لم يتم الرد على الاتصال ولا أي مرة . | BC5: I tried contacting the approvals department, the approvals manager, and even the on-duty manager more than 10 times over the course of more than a day, and no one answered my calls even once. | BE5: Patient | BJ5: 868 | BK5: 1774163 | BL5: مجلس الضمان الصحي | BM5: العيادات الخارجية | BN5: الإداري | BO5: استقبال العيادات الخارجية | BP5: 2023-02-05T14:07:00 | BQ5: تهاني عبدالله القرني | BR5: 24 Hours | BU5: 850 | BV5: 0 | BW5: وزارة الصحة | BX5: العيادات الخارجية | BY5: الإداري | BZ5: قسم الإدارة | CA5: 2023-02-02T16:44:00 | CB5: امال القحطاني | CC5: 48 Hours | CF5: 864 | CG5: 30159292 | CH5: مراجع | CI5: العيادات الخارجية | CJ5: الإداري | CK5: استقبال العيادات الخارجية | CL5: 2023-02-05T18:49:00 | CM5: امال القحطاني | CN5: More than 72 Hours | CQ5: 891 | CR5: 1169619 | CS5: ذوي المراجع | CT5: التنويم | CU5: التمريض | CV5: تمريض تنويم الباطنية | CW5: 2023-02-11T14:08:00 | CX5: ابرار الشمري | CY5: More than 72 Hours
B6: 4 | C6: 848 | D6: 30007356 | E6: وزارة الصحة | F6: العيادات الخارجية | G6: الإداري | H6: قسم التقارير الطبية | I6: 2023-02-02T13:39:00 | J6: امال القحطاني | K6: 24 Hours | L6: 2023-02-02 | M6: 13:39:00 | N6: امال القحطاني | O6: 2023-02-02 | P6: 13:39:00 | T6: 2023-02-02 | U6: 13:39:00 | V6: امال القحطاني | W6: 0 | AA6: -44959.56875 | AE6: 0 | AJ6: -44959.56875 | AN6: -44959.56875 | AO6: 2023-02-02 | AP6: 16:21:00 | AQ6: 0.1125 | AR6: 2023-02-02 | AS6: 16:21:00 | AT6: امال القحطاني | AU6: 0.1125 | AX6: Management complaints | AY6: 3. Institutional Issues | AZ6: 3.7.Medical records | BA6: 3.7.7.Sick leave issues | BB6: لم يتم رفع الاجازه على المنصة الصحيحة . | BC6: The leave request was not uploaded to the correct platform. | BE6: Patient | BJ6: 877 | BK6: 30222839 | BL6: مجلس الضمان الصحي | BM6: التنويم | BN6: الإداري | BO6: قسم الموافقات الطبية | BP6: 2023-02-08T13:01:00 | BQ6: تهاني عبدالله القرني | BR6: 24 Hours | BU6: 851 | BV6: 30249729 | BW6: وزارة الصحة | BX6: العيادات الخارجية | BY6: الإداري | BZ6: قسم التقارير الطبية | CA6: 2023-02-06T17:25:00 | CB6: امال القحطاني | CC6: More than 72 Hours | CF6: 896 | CG6: 30249228 | CH6: مراجع | CI6: العيادات الخارجية | CJ6: الإداري | CK6: قسم الموافقات الطبية | CL6: 2023-02-12T11:32:00 | CM6: تهاني عبدالله القرني | CN6: 48 Hours | CQ6: 889 | CR6: 30251798 | CS6: ذوي المراجع | CT6: العيادات الخارجية | CU6: الطبي | CV6: قسم المختبر | CW6: 2023-02-12T19:16:00 | CX6: امال القحطاني | CY6: More than 72 Hours
B7: 5 | C7: 849 | D7: 30240627 | E7: ذوي المراجع | F7: التنويم | G7: التمريض | H7: تمريض تنويم الأطفال | I7: 2023-02-02T15:41:00 | J7: امال القحطاني | K7: 48 Hours | L7: 2023-02-02 | M7: 15:35:00 | N7: امال القحطاني | O7: 2023-02-02 | P7: 15:41:00 | Q7: 2023-02-02 | R7: 19:42:00 | S7: امال القحطاني | T7: 2023-02-02 | U7: 16:00:00 | V7: امال القحطاني | W7: 0.01319444444 | AA7: -44959.66667 | AE7: 0 | AJ7: -44959.66667 | AN7: -44959.66667 | AO7: 2023-02-04 | AP7: 18:52:00 | AQ7: 2.119444444 | AR7: 2023-02-04 | AS7: 18:52:00 | AT7: امال القحطاني | AU7: 2.119444444 | AX7: Management complaints | AY7: 4. Accessibility | AZ7: 3.Delays | BA7: 4.3.6.Treatment delay | BB7: بعد الموافقھ على الخروج عدم تسليم الادوية والاجبار على الانتظار ٦ ساعات | BC7: After agreeing to leave, the medication was not delivered and the patient was forced to wait for 6 hours. | BE7: Patient | BJ7: 893 | BK7: 30190914 | BL7: مجلس الضمان الصحي | BM7: العيادات الخارجية | BN7: الإداري | BO7: قسم الموافقات الطبية | BP7: 2023-02-09T16:38:00 | BQ7: تهاني عبدالله القرني | BR7: 72 Hours | BU7: 882 | BV7: 30023730 | BW7: وزارة الصحة | BX7: العيادات الخارجية | BY7: الإداري | BZ7: قسم التقارير الطبية | CA7: 2023-02-08T12:05:00 | CB7: ابرار الشمري | CC7: 48 Hours | CF7: 886 | CG7: 1296726 | CH7: مراجع | CI7: العيادات الخارجية | CJ7: الإداري | CK7: استقبال العيادات الخارجية | CL7: 2023-02-12T15:10:00 | CM7: ابرار الشمري | CN7: More than 72 Hours | CQ7: 897 | CR7: 30247131 | CS7: ذوي المراجع | CT7: العيادات الخارجية | CU7: الطبي | CV7: عيادات جراحة الختان | CW7: 2023-02-13T12:27:00 | CX7: تهاني عبدالله القرني | CY7: 72 Hours
B8: 6 | C8: 850 | D8: 0 | E8: وزارة الصحة | F8: العيادات الخارجية | G8: الإداري | H8: قسم الإدارة | I8: 2023-02-02T16:44:00 | J8: امال القحطاني | K8: 48 Hours | L8: 2023-02-02 | M8: 16:44:00 | N8: امال القحطاني | O8: 2023-02-02 | P8: 16:44:00 | T8: 2023-02-02 | U8: 16:44:00 | V8: امال القحطاني | W8: 0 | AA8: -44959.69722 | AE8: 0 | AJ8: -44959.69722 | AN8: -44959.69722 | AO8: 2023-02-04 | AP8: 15:00:00 | AQ8: 1.927777778 | AR8: 2023-02-04 | AS8: 15:00:00 | AT8: امال القحطاني | AU8: 1.927777778 | AX8: Management complaints | AY8: 3. Institutional Issues | AZ8: 3.7.Medical records | BA8: 3.7.6.Lab results issues | BB8: تم رفع طلب تحاليل ماقبل الزواج وحصول تاخير بتقديم الخدمة واتضح وجود خطاء موظف ، وتمت الافادة انھ سوف يتم تعويضي واعادة اخذ العينة وفي اليوم التالي تم التواصل من المستشفى والافادة انھ لن يتم التعويض ولايوجد خطاء من قبل مستشفى الحمادي | BC8: I submitted a request for premarital testing, but there was a delay in service delivery. It turned out to be an employee error, and I was informed that I would be compensated and the sample would be retaken. However, the following day, I contacted the hospital and was informed that there would be no compensation and that there was no error on the part of Al Hammadi Hospital. | BE8: Patient | BJ8: 925 | BK8: 30251308 | BL8: مجلس الضمان الصحي | BM8: العيادات الخارجية | BN8: الإداري | BO8: قسم الموافقات الطبية | BP8: 2023-02-19T14:09:00 | BQ8: ابرار الشمري | BR8: 24 Hours | BU8: 883 | BV8: 1749141 | BW8: وزارة الصحة | BX8: العيادات الخارجية | BY8: الطبي | BZ8: قسم الصيدلية | CA8: 2023-02-09T13:48:00 | CB8: ابرار الشمري | CC8: 24 Hours | CF8: 888 | CG8: 30069419 | CH8: مراجع | CI8: العيادات الخارجية | CJ8: الإداري | CK8: استقبال العيادات الخارجية | CL8: 2023-02-12T19:27:00 | CM8: امال القحطاني | CN8: 24 Hours | CQ8: 918 | CR8: 30001918 | CS8: ذوي المراجع | CT8: الطوارئ | CU8: الإداري | CV8: قسم الأمن | CW8: 2023-02-18T13:01:00 | CX8: تهاني عبدالله القرني | CY8: 48 Hours
B9: 7 | C9: 856 | D9: 1149493 | E9: مراجع | F9: العيادات الخارجية | G9: الطبي | H9: عيادات جراحة العظام | I9: 2023-02-02T19:21:00 | J9: امال القحطاني | K9: 48 Hours | L9: 2023-02-02 | M9: 7:15:oo pm | N9: امال القحطاني | O9: 2023-02-02 | P9: 19:21:00 | Q9: 2023-02-02 | R9: 19:41:00 | S9: امال القحطاني | T9: 2023-02-02 | U9: 20:00:00 | V9: امال القحطاني | W9: 0.02708333333 | AA9: -44959.83333 | AE9: 0 | AJ9: -44959.83333 | AN9: -44959.83333 | AO9: 2023-02-02 | AP9: 20:00:00 | AQ9: 0 | AR9: 2023-02-04 | AS9: 18:51:00 | AT9: امال القحطاني | AU9: 1.952083333 | AX9: Management complaints | AY9: 3. Institutional Issues | AZ9: 3.1.Administrative Policies and Procedures | BA9: 3.1.7.Non-compliance with visiting hours policy | BB9: وصلت المستشفي قبل موعدي حوالي ١٠.٦ وموعدي ١٥.٦ والان ١٨.٧ ومازلت لم ادخل ودخل عدة مرضى وخرجوا أكثر من مرة نفس والممرضة ابلغني مرة إنهم انتظار ومرة إنهم يفكون الجبس وايضا حجزت عند نفس العيادة منذ حوالي أسبوعين والغوا معادي يوم السبت الماضي واضطررت للحجز اليوم ومازلت بالانظار الساعة إلا الان ٢٠.٧ | BC9: I arrived at the hospital around 10:06 AM before my appointment, which was on 15:06 AM. Now it's 18:07 AM and I still haven't been seen. Several patients have been seen and seen more than once. The nurse told me once that they were waiting and another time that they were removing casts. I also booked an appointment at the same clinic about two weeks ago, and they canceled my appointment last Saturday. I had to book again today, and I'm still waiting. It's 20:07 AM now. | BE9: Patient | BU9: 913 | BV9: 30235020 | BW9: وزارة الصحة | BX9: التنويم | BY9: الطبي | BZ9: تنويم الأطفال | CA9: 2023-02-15T16:49:00 | CB9: ابرار الشمري | CC9: 72 Hours | CF9: 898 | CG9: 30252389 | CH9: مراجع | CI9: العيادات الخارجية | CJ9: الطبي | CK9: عيادات النساء والولادة | CL9: 2023-02-13T12:33:00 | CM9: تهاني عبدالله القرني | CN9: 72 Hours | CQ9: 920 | CR9: 30088984 | CS9: ذوي المراجع | CT9: العيادات الخارجية | CU9: الطبي | CV9: عيادات الأنف والأذن والحنجرة (أطفال) | CW9: 2023-02-18T16:48:00 | CX9: ابرار الشمري | CY9: 24 Hours
B10: 8 | C10: 847 | D10: 30244275 | E10: مراجع | F10: التنويم | G10: التمريض | H10: تمريض وحدة العناية المركزة - أطفال | I10: 2023-02-04T10:08:00 | J10: تهاني عبدالله القرني | K10: More than 72 Hours | L10: 2023-02-02 | M10: 22:53:00 | N10: تهاني عبدالله القرني | O10: 2023-02-04 | P10: 22:08:00 | Q10: 2023-02-04 | R10: 22:08:00 | S10: تهاني عبدالله القرني | T10: 2023-02-04 | U10: 22:09:00 | V10: تهاني عبدالله القرني | W10: 0.0006944444467 | X10: 2023-02-06 | Y10: 09:30:00 | Z10: تهاني عبدالله القرني | AA10: 1.472916667 | AB10: 2023-02-07 | AC10: 12:34:00 | AD10: تهاني عبدالله القرني | AE10: 1.127777778 | AF10: 2023-02-08 | AG10: 21:52:00 | AH10: تهاني عبدالله القرني | AI10: The complaint was escalated due to the department's failure to respond | AJ10: 3.988194444 | AN10: -44961.92292 | AO10: 2023-02-27 | AP10: 22:26:00 | AQ10: 23.01180556 | AR10: 2023-02-27 | AS10: 22:26:00 | AT10: تهاني عبدالله القارني | AU10: 23.01180556 | AX10: Clinical complaints | AY10: 6. Humanness / Caring | AZ10: 3.Quality of Care | BA10: .1.Substandard clinical/nursing care | BB10: في ٢ فبراير ٢٠٢٣، لم تُركّب الممرضة القنية الوريدية بشكل صحيح لطفلي، مما أدى إلى تسرب الدم إلى السرير. كان ينزف، فاتصلتُ بمدير قسم الطوارئ الذي لاحظ خطأها، وقد أثّر هذا الخطأ على ضغط دمه. | BC10: on 2 feb2023, the nurse did not put the cannula very well for my baby. the blood is leaked to the bed and he was bleeding then I called the ER manager and he seen her mistake also this mistake affected .for his blood pressure | BE10: Patient | BU10: 935 | BV10: 30112399 | BW10: وزارة الصحة | BX10: العيادات الخارجية | BY10: الطبي | BZ10: بنك الدم | CA10: 2023-02-21T13:42:00 | CB10: تهاني عبدالله القرني | CC10: 24 Hours | CF10: 904 | CG10: 30162350 | CH10: مراجع | CI10: التنويم | CJ10: الطبي | CK10: قسم التخدير | CL10: 2023-02-13T19:00:00 | CM10: امال القحطاني | CN10: 48 Hours | CQ10: 911 | CR10: 30069197 | CS10: ذوي المراجع | CT10: الطوارئ | CU10: الإداري | CV10: مكتب التنويم | CW10: 2023-02-21T11:10:00 | CX10: تهاني عبدالله القرني | CY10: More than 72 Hours
B11: 9 | C11: 860 | D11: 30249807 | E11: مجلس الضمان الصحي | F11: العيادات الخارجية | G11: الإداري | H11: قسم الموافقات الطبية | I11: 2023-02-04T15:00:00 | J11: امال القحطاني | K11: 24 Hours | L11: 2023-02-04 | M11: 15:00:00 | N11: امال القحطاني | T11: 2023-02-04 | U11: 16:00:00 | V11: امال القحطاني | W11: 44961.66667 | AA11: -44961.66667 | AE11: 0 | AJ11: -44961.66667 | AN11: -44961.66667 | AO11: 2023-02-04 | AP11: 15:00:00 | AQ11: =(AP11+AO11)-(U11+T11) -> -0.04166666666 | AR11: 2023-02-04 | AS11: 15:08:00 | AT11: امال القحطاني | AU11: -0.03611111111 | AX11: Relationship complaints | AY11: 6. Humanness / Caring | AZ11: 6.4.Consent | BA11: 6.4.2.No/Invalid consent obtained | BB11: لم يتم ارسال طلبات شركة التأمين ليتم الموافقة عليها | BC11: The insurance company's requests have not been sent for approval. | BE11: Patient | BU11: 954 | BV11: 1485008 | BW11: وزارة الصحة | BX11: العيادات الخارجية | BY11: الطبي | BZ11: عيادات الأطفال | CA11: 2023-02-28T12:39:00 | CB11: ابرار الشمري | CC11: 24 Hours | CF11: 858 | CG11: 30250181 | CH11: مراجع | CI11: التنويم | CJ11: التمريض | CK11: تمريض تنويم النساء والولادة | CL11: 2023-02-13T19:56:00 | CM11: امال القحطاني | CN11: More than 72 Hours | CQ11: 911 | CR11: 30069197 | CS11: ذوي المراجع | CT11: الطوارئ | CU11: التمريض | CV11: تمريض الطوارئ | CW11: 2023-02-21T11:20:00 | CX11: تهاني عبدالله القرني | CY11: More than 72 Hours
B12: 10 | C12: 868 | D12: 1774163 | E12: مجلس الضمان الصحي | F12: العيادات الخارجية | G12: الإداري | H12: استقبال العيادات الخارجية | I12: 2023-02-05T14:07:00 | J12: تهاني عبدالله القرني | K12: 24 Hours | L12: 2023-02-05 | M12: 13:58:00 | N12: تهاني عبدالله القرني | O12: 2023-02-05 | P12: 14:07:00 | T12: 2023-02-05 | U12: 14:07:00 | V12: تهاني عبدالله القرني | W12: 0 | AA12: -44962.58819 | AE12: 0 | AJ12: -44962.58819 | AN12: -44962.58819 | AO12: 2023-02-05 | AP12: 16:55:00 | AQ12: 0.1166666667 | AR12: 2023-02-05 | AS12: 16:55:00 | AT12: تهاني عبدالله القارني | AU12: 0.1166666667 | AX12: Management complaints | AY12: 3. Institutional Issues | AZ12: 4.Finance and Billing | BA12: 3.4.3.Calculate Additional amount | BB12: نسبھ التحمل بالتامين 75 ريال تم دفع كشفيھ وتحاليل واشعھ فقط واخذ مني المستشفى 161 ريال | BC12: The insurance deductible is 75 riyals. I only paid for the consultation, tests, and X-rays, and the hospital charged me 161 riyals. | BE12: Patient | BU12: 948 | BV12: 30245206 | BW12: وزارة الصحة | BX12: التنويم | BY12: الطبي | BZ12: تنويم الباطنية | CA12: 2023-03-01T13:50:00 | CB12: تهاني عبدالله القرني | CC12: 24 Hours | CF12: 874 | CG12: 1414046 | CH12: مراجع | CI12: العيادات الخارجية | CJ12: الإداري | CK12: قسم الموافقات الطبية | CL12: 2023-02-13T21:16:00 | CM12: امال القحطاني | CN12: More than 72 Hours | CQ12: 928 | CR12: 30252911 | CS12: ذوي المراجع | CT12: الطوارئ | CU12: التمريض | CV12: تمريض الطوارى | CW12: 2023-02-21T12:53:00 | CX12: ابرار الشمري | CY12: More than 72 Hours
B13: 11 | C13: 864 | D13: 30159292 | E13: مراجع | F13: العيادات الخارجية | G13: الإداري | H13: استقبال العيادات الخارجية | I13: 2023-02-05T18:49:00 | J13: امال القحطاني | K13: More than 72 Hours | L13: 2023-02-04 | M13: 18:08:00 | N13: امال القحطاني | O13: 2023-02-05 | P13: 18:49:00 | Q13: 2023-02-05 | R13: 17:39:00 | S13: امال القحطاني | T13: 2023-02-05 | U13: 18:50:00 | V13: امال القحطاني | W13: 0.0006944444394 | AA13: -44962.78472 | AE13: 0 | AJ13: -44962.78472 | AN13: -44962.78472 | AO13: 2023-02-13 | AP13: 20:40:00 | AQ13: 8.076388889 | AR13: 2023-02-13 | AS13: 20:40:00 | AT13: امال القحطاني | AU13: 8.076388889 | AW13: MOHAMMED | AX13: Management complaints | AY13: 5. Communication | AZ13: 1.Patient-staff communication | BA13: 5.1.1.Miscommunication with Patient | BB13: تم الذهاب للاستقبال الباطنية لدى الموظف محمد وطلبت تسجيل اسعى لدى عيادة 77 للدكتور عادل حسامي فقام باخباري انها ليست عيادة الدكتور المذكور طلبت منھ النظر في ملفي ويتم تسجيلي عند عند نفس الطبيب في اخر زيارة لي حيث تم رفع الصوت علي من قبل الموظف ولم يكن متعاون علما انني مريض ويحق لي الاستفسار والسوال لم يكن لدي علم بتغير العيادات ولم يكن هناك توضيح من قبلھ في بداية الامر | BC13: I went to the internal medicine reception and spoke with employee Mohammed. I asked to be registered at clinic 77 for Dr. Adel Hossami, but he told me it wasn't the doctor's clinic. I asked him to look at my file and register me with the same doctor from my last visit.The employee raised his voice at me and was uncooperative, even though I am a patient and have the right to inquire and ask questions. I was unaware of the clinic change and there was no explanation from him initially. | BE13: Patient | CF13: 853 | CG13: 30129164 | CH13: مراجع | CI13: العيادات الخارجية | CJ13: الطبي | CK13: عيادات الجراحة التجميلية | CL13: 2023-02-14T21:00:00 | CM13: امال القحطاني | CN13: More than 72 Hours | CQ13: 928 | CR13: 30252911 | CS13: ذوي المراجع | CT13: التنويم | CU13: الطبي | CV13: تنويم الباطنية | CW13: 2023-02-21T12:53:00 | CX13: ابرار الشمري | CY13: 48 Hours
B14: 12 | C14: 851 | D14: 30249729 | E14: وزارة الصحة | F14: العيادات الخارجية | G14: الإداري | H14: قسم التقارير الطبية | I14: 2023-02-06T17:25:00 | J14: امال القحطاني | K14: More than 72 Hours | L14: 2023-02-02 | M14: 16:44:00 | N14: امال القحطاني | O14: 2023-02-06 | P14: 17:25:00 | Q14: 2023-02-02 | R14: 19:15:00 | S14: امال القحطاني | T14: 2023-02-06 | U14: 17:25:00 | V14: امال القحطاني | W14: 0 | X14: 2023-02-04 | Y14: 18:53:00 | Z14: امال القحطاني | AA14: -1.938888889 | AB14: 2023-02-05 | AC14: 17:31:00 | AD14: امال القحطاني | AE14: 0.9430555556 | AJ14: -44963.72569 | AN14: -44963.72569 | AO14: 2023-02-06 | AP14: 18:00:00 | AQ14: 0.02430555555 | AR14: 2023-02-06 | AS14: 18:00:00 | AT14: امال القحطاني | AU14: 0.02430555555 | AX14: Management complaints | AY14: 3. Institutional Issues | AZ14: 3.Delays | BA14: 3.7.6.Lab results issues | BB14: تم رفع طلب تحاليل ماقبل الزواج وكان كناك تاخير حيث تم الحضور والتحدث مع مدير العيادات وتم اخباري من قبلھ بوجود خطأ وسوف يتم تعويضي حيث قام بخدمتي وتوجيهي للمختبر وفي اليوم التالي تم التواصل معي بعدم وجود خطأ ولن يتم التعويض | BC14: I submitted a request for premarital tests, but there was a delay. I went and spoke with the clinic manager, who informed me that there had been an error and that I would be compensated. He assisted me and directed me to the lab. The following day, I was contacted again and told that there was no error and that I would not be compensated. | BE14: Patient | CF14: 895 | CG14: 30212972 | CH14: مراجع | CI14: التنويم | CJ14: الطبي | CK14: قسم عمليات الولادة | CL14: 2023-02-15T11:35:00 | CM14: تهاني عبدالله القرني | CN14: More than 72 Hours | CQ14: 932 | CR14: 30047631 | CS14: ذوي المراجع | CT14: العيادات الخارجية | CU14: الإداري | CV14: استقبال العيادات الخارجية | CW14: 2023-02-21T16:11:00 | CX14: امال القحطاني | CY14: More than 72 Hours
B15: 13 | C15: 882 | D15: 30023730 | E15: وزارة الصحة | F15: العيادات الخارجية | G15: الإداري | H15: قسم التقارير الطبية | I15: 2023-02-08T12:05:00 | J15: ابرار الشمري | K15: 48 Hours | L15: 2023-02-08 | M15: 12:05:00 | N15: ابرار الشمري | O15: 2023-02-08 | P15: 12:05:00 | T15: 2023-02-08 | U15: 12:05:00 | V15: ابرار الشمري | W15: 0 | AA15: -44965.50347 | AE15: 0 | AJ15: -44965.50347 | AN15: -44965.50347 | AO15: 2023-02-09 | AP15: 12:50:00 | AQ15: 1.03125 | AR15: 2023-02-09 | AS15: 12:50:00 | AT15: ابرار الشمري | AU15: =(AS15+AR15)-(U15+T15) -> 1.03125 | AX15: Management complaints | AY15: 3. Institutional Issues | AZ15: 3.7.Medical records | BA15: 3.7.7.Sick leave issues | BB15: لدي اجازة لمدة يوم وذلك بتاريخ 6/2/2023 ولاكن في منصة صحتي تظهر بتاريخ 7/2/2023 | BC15: I have a day off on 6/2/2023, but on the Sehaty platform it shows as 7/2/2023 | BE15: Patient | CF15: 908 | CG15: 30125312 | CH15: مراجع | CI15: العيادات الخارجية | CJ15: الإداري | CK15: استقبال العيادات الخارجية | CL15: 2023-02-16T10:50:00 | CM15: ابرار الشمري | CN15: More than 72 Hours | CQ15: 903 | CR15: 1809355 | CS15: ذوي المراجع | CT15: العيادات الخارجية | CU15: الطبي | CV15: قسم الصيدلية | CW15: 2023-02-21T17:20:00 | CX15: امال القحطاني | CY15: More than 72 Hours
B16: 14 | C16: 877 | D16: 30222839 | E16: مجلس الضمان الصحي | F16: التنويم | G16: الإداري | H16: قسم الموافقات الطبية | I16: 2023-02-08T13:01:00 | J16: تهاني عبدالله القرني | K16: 24 Hours | L16: 2023-02-08 | M16: 12:36:00 | N16: تهاني عبدالله القرني | O16: 2023-02-08 | P16: 13:01:00 | T16: 2023-02-08 | U16: 13:02:00 | V16: تهاني عبدالله القرني | W16: 0.0006944444467 | AA16: -44965.54306 | AE16: 0 | AJ16: -44965.54306 | AN16: -44965.54306 | AO16: 2023-02-08 | AP16: 14:47:00 | AQ16: 0.07291666666 | AR16: 2023-02-08 | AS16: 14:47:00 | AT16: تهاني عبدالله القارني | AU16: =(AS16+AR16)-(U16+T16) -> 0.07291666666 | AX16: Relationship complaints | AY16: 6. Humanness / Caring | AZ16: 6.4.Consent | BA16: 6.4.2.No/Invalid consent obtained | BB16: تم الحضور بتاريخ 5 فبراير 2022م الى المستشفى بموعد مجدول للولادة وليست طارئھ حيث تم دخولي الى قسم الطوارئ وتم التنويم ولم يتم رفع طلب الموافقھ لشركة التامين الى بعد الولادة بتاريخ 6 فبراير 2022م حيث تم رفض التامين الطلب لعدم وجود افصاح ولم يتم ابلاغي مسبقا بهذا ليكون لي الخيار بالذهاب الى مستشفى اخر بتكلفھ اقل | BC16: I arrived at the hospital on February 5, 2022, for a scheduled delivery appointment, not an emergency. I was admitted to the emergency department. I was admitted, and the insurance company's approval request was not submitted until after delivery on February 6, 2022. The insurance company rejected the request due to a lack of disclosure, and I was not informed of this beforehand, which would have given me the option to go to another hospital at a lower cost. | BE16: Patient | CF16: 922 | CG16: 30245340 | CH16: مراجع | CI16: التنويم | CJ16: التمريض | CK16: تمريض قسم عمليات الولادة | CL16: 2023-02-19T17:18:00 | CM16: تهاني عبدالله القرني | CN16: More than 72 Hours | CQ16: 879 | CR16: 30201270 | CS16: ذوي المراجع | CT16: العيادات الخارجية | CU16: الطبي | CV16: عيادات المخ والأعصاب | CW16: 2023-02-22T10:43:00 | CX16: ابرار الشمري | CY16: More than 72 Hours
B17: 15 | C17: 883 | D17: 1749141 | E17: وزارة الصحة | F17: العيادات الخارجية | G17: الطبي | H17: قسم الصيدلية | I17: 2023-02-09T13:48:00 | J17: ابرار الشمري | K17: 24 Hours | L17: 2023-02-09 | M17: 12:29:00 | N17: ابرار الشمري | O17: 2023-02-09 | P17: 13:48:00 | T17: 2023-02-09 | U17: 14:00:00 | V17: ابرار الشمري | W17: 0.008333333339 | AA17: -44966.58333 | AE17: 0 | AJ17: -44966.58333 | AN17: -44966.58333 | AO17: 2023-02-09 | AP17: 13:49:00 | AQ17: -0.007638888892 | AR17: 2023-02-09 | AS17: 13:49:00 | AT17: ابرار الشمري | AU17: -0.007638888892 | AX17: Clinical complaints | AY17: 5. Communication | AZ17: 5.2.Incorrect Information | BA17: 5.2.1.Deficient Information | BB17: تم صرف وصفة طبية وعند التوجيھ الى الصيدلية لصرفها تم افادتي بان سيتم صرفها في الفترة الصباحية . | BC17: A prescription was issued, and when I went to the pharmacy to fill it, I was informed that it would be filled in the morning. | BE17: Patient | CF17: 929 | CG17: 1296428 | CH17: مراجع | CI17: العيادات الخارجية | CJ17: الطبي | CK17: عيادات جراحة الأنف وأذن وحنجرة | CL17: 2023-02-21T10:57:00 | CM17: تهاني عبدالله القرني | CN17: More than 72 Hours | CQ17: 928 | CR17: 30252911 | CS17: ذوي المراجع | CT17: التنويم | CU17: الطبي | CV17: قسم التغذية | CW17: 2023-02-22T14:41:00 | CX17: ابرار الشمري | CY17: 48 Hours
B18: 16 | C18: 893 | D18: 30190914 | E18: مجلس الضمان الصحي | F18: العيادات الخارجية | G18: الإداري | H18: قسم الموافقات الطبية | I18: 2023-02-09T16:38:00 | J18: تهاني عبدالله القرني | K18: 72 Hours | L18: 2023-02-09 | M18: 16:38:00 | N18: تهاني عبدالله القرني | O18: 2023-02-09 | P18: 16:38:00 | T18: 2023-02-09 | U18: 16:38:00 | V18: تهاني عبدالله القرني | W18: 0 | AA18: -44966.69306 | AE18: 0 | AJ18: -44966.69306 | AN18: -44966.69306 | AO18: 2023-02-11 | AP18: 16:49:00 | AQ18: 2.007638889 | AR18: 2023-02-11 | AS18: 16:49:00 | AT18: تهاني عبدالله القارني | AU18: 2.007638889 | AX18: Relationship complaints | AY18: 6. Humanness / Caring | AZ18: 6.4.Consent | BA18: 6.4.2.No/Invalid consent obtained | BB18: يعاني طفلي من سوء امتصاص الغذاء و حساسيھ الحليب .. الطفل من عمر 3 اشهر استقر على حليب (DUO NAN (و كانت المستشفى تصرف حليب للطفل من عمرالثلاث اشهر الى عمر 11 شهر(موجود في التقارير القديمھ المرفقھ) و بعدها نفذ الحليب من المستشفى و عند التحويل الخارجي اصبح التأمين يرفض صرف الحليب بحجھ عدم وجود اي طلبات سابقھ الحليب .. وكانت المشفى لا ترسل نوعيھ الحليب الى التأمين او حتى ارسال تقارير الى التأمين .. والان الولد في حالھ يرثى لها من سوء الامتصاص والحساسيھ و المغص و الاسهال .. تم عمل فحص للدم و البراز(في 31 يناير 2023) ولم يتم ارسالھ الى التأمين ايضا من المشفى و التامين يستمر بالرفض بحجھ عدم الحاجھ ...لماذا يجب على المريض تحمل اخطاء المركز الصحي مع التامين.. الولد تعبان بهذا السبب يرجى المساعده .. مرفق تقارير الطفل المتوفره من صرف الحليب السابق والتحاليل القديمھ للحساسيھ الحليب | BC18: My child suffers from malabsorption and milk allergy. Since the age of 3 months, the child has been on (DUO NAN) milk, and the hospital used to prescribe milk for children from 3 months to 11 months (see attached old reports).After that, the hospital ran out of milk, and when an external transfer was made, the insurance company refused to provide milk, claiming there were no previous orders for it. The hospital was not sending the type of milk to the insurance company or even any reports to them.The boy is now in a deplorable state of malabsorption, allergies, colic, and diarrhea. Blood and stool tests were performed (on January 31, 2023), but the results were not sent to the insurance company by the hospital, and the insurance company continues to refuse, claiming it is unnecessary. Why should the patient...The health center's errors are covered by insurance. My son is unwell because of this. Please help. Attached are the child's available reports, including previous milk prescriptions and old milk allergy tests. | BE18: Patient | CF18: 944 | CG18: 30174266 | CH18: مراجع | CI18: العيادات الخارجية | CJ18: الطبي | CK18: قسم الأشعة | CL18: 2023-02-23T20:59:00 | CM18: ابرار الشمري | CN18: More than 72 Hours | CQ18: 940 | CR18: 30046059 | CS18: ذوي المراجع | CT18: العيادات الخارجية | CU18: الطبي | CV18: قسم الصيدلية | CW18: 2023-02-27T20:59:00 | CX18: امال القحطاني | CY18: More than 72 Hours
B19: 17 | C19: 891 | D19: 1169619 | E19: ذوي المراجع | F19: التنويم | G19: التمريض | H19: تمريض تنويم الباطنية | I19: 2023-02-11T14:08:00 | J19: ابرار الشمري | K19: More than 72 Hours | L19: 2023-02-11 | M19: 12:16:00 | N19: ابرار الشمري | O19: 2023-02-11 | P19: 14:16:00 | Q19: 2023-02-11 | R19: 14:07:00 | S19: ابرار الشمري | T19: 2023-02-11 | U19: 14:20:00 | V19: ابرار الشمري | W19: 0.002777777772 | X19: 2023-02-12 | Y19: 15:08:00 | Z19: تهاني عبدالله القرني | AA19: 1.033333333 | AB19: 2023-02-13 | AC19: 14:21:00 | AD19: تهاني عبدالله القرني | AE19: 0.9673611111 | AJ19: -44968.59722 | AN19: -44968.59722 | AO19: 2023-02-15 | AP19: 12:27:00 | AQ19: 3.921527778 | AR19: 2023-02-15 | AS19: 12:27:00 | AT19: ابرار الشمري | AU19: 3.921527778 | AX19: Management complaints | AY19: 3. Institutional Issues | AZ19: 3.1.Administrative Policies and Procedures | BA19: 3.1.4.Required Service not obtained | BB19: في 11 فبراير 2023، تم إدخال ابنتي إلى المستشفى، وكانت تعاني من الحمى والقيء، ومن الساعة 4 إلى 7 لم يستجب لي أحد من الممرضات عندما اتصلت بهن. كما كان هناك تأخير. | BC19: On 11 feb 2023, my daughter was admitted, she had fever and vomiting and from 4 to 7 no one from . the nurses response to me when i called them. also they was delay | BE19: Patient | CF19: 947 | CG19: 20259069 | CH19: مراجع | CI19: الطوارئ | CJ19: الطبي | CK19: أطباء الطوارئ | CL19: 2023-02-27T11:23:00 | CM19: ابرار الشمري | CN19: 48 Hours | CQ19: 814 | CR19: 30248591 | CS19: ذوي المراجع | CT19: العيادات الخارجية | CU19: الطبي | CV19: عيادات الأطفال | CW19: 2023-03-01T11:47:00 | CX19: تهاني عبدالله القرني | CY19: 72 Hours
B20: 18 | C20: 896 | D20: 30249228 | E20: مراجع | F20: العيادات الخارجية | G20: الإداري | H20: قسم الموافقات الطبية | I20: 2023-02-12T11:32:00 | J20: تهاني عبدالله القرني | K20: 48 Hours | L20: 2023-02-12 | M20: 11:24:00 | N20: تهاني عبدالله القرني | O20: 2023-02-12 | P20: 11:32:00 | Q20: 2023-02-12 | R20: 12:04:00 | S20: تهاني عبدالله القرني | T20: 2023-02-12 | U20: 12:05:00 | V20: تهاني عبدالله القرني | W20: 0.02291666666 | X20: 2023-02-13 | Y20: 09:47:00 | Z20: تهاني عبدالله القرني | AA20: 0.9041666667 | AE20: -44970.40764 | AJ20: -44969.50347 | AN20: -44969.50347 | AO20: 2023-02-14 | AP20: 10:58:00 | AQ20: 1.953472222 | AR20: 2023-02-14 | AS20: 10:58:00 | AT20: تهاني عبدالله القارني | AU20: 1.953472222 | AX20: Relationship complaints | AY20: 6. Humanness / Caring | AZ20: 6.2.Assault and Harassment | BA20: 6.2.1.Inappropriate/aggressive behavior | BB20: في 12 فبراير 2023، تعرضتُ لمعاملة غير لائقة ووقحة من قِبل موظف قسم الموافقات، ولم تُقدَّم لي الخدمة المطلوبة. حيث تم ذهابي الى لمشرفه، و تُقدَّيم الخدمة لي. | BC20: On February 12, 2023, I was treated in an inappropriate and rude manner by the approvals employee, and the required service was not provided. The supervisor was notified, and the service was not provided | BE20: Patient | CF20: 950 | CG20: 20259069 | CH20: مراجع | CI20: التنويم | CJ20: الطبي | CK20: تنويم النساء والولادة | CL20: 2023-02-27T11:34:00 | CM20: ابرار الشمري | CN20: More than 72 Hours
B21: 19 | C21: 886 | D21: 1296726 | E21: مراجع | F21: العيادات الخارجية | G21: الإداري | H21: استقبال العيادات الخارجية | I21: 2023-02-12T15:10:00 | J21: ابرار الشمري | K21: More than 72 Hours | L21: 2023-02-09 | M21: 13:54:00 | N21: ابرار الشمري | O21: 2023-02-12 | P21: 15:10:00 | Q21: 2023-02-11 | R21: 13:29:00 | S21: ابرار الشمري | T21: 2023-02-11 | U21: 13:30:00 | V21: ابرار الشمري | W21: -1.069444444 | X21: 2023-02-12 | Y21: 16:27:00 | Z21: تهاني عبدالله القرني | AA21: 1.122916667 | AB21: 2023-02-27 | AC21: 10:44:00 | AD21: تهاني عبدالله القرني | AE21: 14.76180556 | AF21: 2023-03-07 | AG21: 18:08:00 | AH21: تهاني عبدالله القرني | AI21: The complaint was escalated due to the department's failure to respond | AJ21: 24.19305556 | AK21: 2023-03-08 | AL21: 11:38:00AM | AM21: امال القحطاني | AQ21: -44968.5625 | AU21: -44968.5625 | AX21: Clinical complaints | AY21: 1. Quality | AZ21: 1.2.Patient journey | BA21: 1.2.1.Miscoordination | BB21: وصلتُ إلى موعدي في عيادة جراحة العمود الفقري في تمام الساعة السادسة مساءً بتاريخ 2 سبتمبر 2023، لكن لم يتم استقبالي. انتظرتُ لأكثر من ساعة. وعندما ذهبتُ إلى مكتب الاستقبال، أخبرني الموظف أن الطبيب منزله بعيد مما ادى الى استيائي . | BC21: I arrived at my appointment on 9/2/2023 at the Spine Surgery Clinic at 6:00 PM, but I wasn't admitted. I waited for over an hour. When I went to the clinic reception, the employee informed me that the doctor was away. | BE21: Patient | BJ21: Employee Name | BK21: Number of complaints | BL21: Total Percentage | BM21: 24 Hours | BN21: 48 Hours | BO21: 72 Hours | BP21: More than 72 hours | BQ21: Total | CF21: 950 | CG21: 20259069 | CH21: مراجع | CI21: الطوارئ | CJ21: الطبي | CK21: أطباء الطوارئ | CL21: 2023-02-27T11:34:00 | CM21: ابرار الشمري | CN21: More than 72 Hours
B22: 20 | C22: 889 | D22: 30251798 | E22: ذوي المراجع | F22: العيادات الخارجية | G22: الطبي | H22: قسم المختبر | I22: 2023-02-12T19:16:00 | J22: امال القحطاني | K22: More than 72 Hours | L22: 2023-02-09 | M22: 18:16:00 | N22: امال القحطاني | O22: 2023-02-12 | P22: 19:16:00 | Q22: 2023-02-12 | R22: 17:46:00 | S22: ابرار الشمري | T22: 2023-02-12 | U22: 19:17:00 | V22: ابرار الشمري | W22: 0.0006944444467 | X22: 2023-02-12 | Y22: 19:21:00 | Z22: ابرار الشمري | AA22: 0.00277777778 | AB22: 2023-02-13 | AC22: 20:42:00 | AD22: امال القحطاني | AE22: 1.05625 | AF22: 2023-02-23 | AG22: 15:52:00 | AH22: ابرار الشمري | AI22: The complaint was escalated due to the department's failure to respond | AJ22: 10.85763889 | AN22: -44969.80347 | AO22: 2023-03-08 | AP22: 11:50:00 | AQ22: 23.68958333 | AR22: 2023-06-20 | AS22: 10:33:00 | AT22: امال القحطاني | AU22: 127.6361111 | AX22: Management complaints | AY22: 3. Institutional Issues | AZ22: 3.7.Medical records | BA22: 3.7.6.Lab results issues | BB22: تم حجز موعد تطهير لابني وطلب الدكتور تحاليل ماقبل التطهير . عندما ذهبت إلى المختبر، تأخرت بالدخول وانتظرت حوالي ساعة. وتم سحب العينة بطريقه خاطئه، وعندما وصلت في موعدي، أُبلغت بوجود مشكلة في العينة السابقة. حيث تم تأجيل الموعد لأخذ عينة جديدة. | BC22: I had a scheduled appointment for the lab, and the doctor requested pre-tests. When I went to the lab, I was late and waited for about an hour. The sample was taken incorrectly, and when I arrived for my appointment, I was told there was a problem with the previous sample. The appointment was postponed to take a new sample. | BE22: Patient | BJ22: تهاني القرني | BK22: 3 | BL22: =BK22/BK24 -> 150.00% | BM22: 2 | BO22: 1 | BQ22: =BK22 -> 3 | BU22: Employee Name | BV22: Number of complaints | BW22: Total Percentage | BX22: 24 Hours | BY22: 48 Hours | BZ22: 72 Hours | CA22: More than 72 hours | CB22: Total | CF22: 915 | CG22: 1472014 | CH22: مراجع | CI22: العيادات الخارجية | CJ22: الطبي | CK22: عيادات الباطنية | CL22: 2023-02-27T13:17:00 | CM22: تهاني عبدالله القرني | CN22: More than 72 Hours | CQ22: Employee Name | CR22: Number of complaints | CS22: Total Percentage | CT22: 24 Hours | CU22: 48 Hours | CV22: 72 Hours | CW22: More than 72 hours | CX22: Total
B23: 21 | C23: 888 | D23: 30069419 | E23: مراجع | F23: العيادات الخارجية | G23: الإداري | H23: استقبال العيادات الخارجية | I23: 2023-02-12T19:27:00 | J23: امال القحطاني | K23: 24 Hours | L23: 2023-02-09 | M23: 17:16:00 | N23: امال القحطاني | O23: 2023-02-12 | P23: 19:27:00 | Q23: 2023-02-12 | R23: 19:25:00 | S23: ابرار الشمري | T23: 2023-02-12 | U23: 19:27:00 | V23: امال القحطاني | W23: 0 | AA23: -44969.81042 | AE23: 0 | AJ23: -44969.81042 | AN23: -44969.81042 | AO23: 2023-02-13 | AP23: 19:19:00 | AQ23: 0.9944444444 | AR23: 2023-02-13 | AS23: 19:19:00 | AT23: امال القحطاني | AU23: 0.9944444444 | AX23: Management complaints | AY23: 4. Accessibility | AZ23: 4.1.Access | BA23: 4.1.7.Scheduling errors | BB23: تم تأكيد موعدي مع الدكتور عبد العزيز عدة مرات عبر الهاتف والرسائل النصية، وحضرت الموعد. وافادني بانه تم تعديل الموعد ليكون بتاخر بساعه عن الموعد المؤكد | BC23: My appointment with Dr. Abdul Aziz was confirmed several times by phone and text message, and I attended. He informed me that the appointment had been changed to be one hour later than the confirmed time. | BE23: Patient | BJ23: ابرار الشمري | BK23: 1 | BL23: =BK23/BK25 -> 33.33% | BM23: 1 | BQ23: =BK23 -> 1 | BU23: تهاني القرني | BV23: 2 | BW23: =BV23/BV26 -> 20.00% | BX23: 2 | CB23: =BV23 -> 2 | CF23: 921 | CG23: 30051913 | CH23: مراجع | CI23: العيادات الخارجية | CJ23: الطبي | CK23: قسم الصيدلية | CL23: 2023-02-27T18:56:00 | CM23: امال القحطاني | CN23: 72 Hours | CQ23: امال القحطاني | CR23: 6 | CS23: =CR23/CR26 -> 35.29% | CT23: 1 | CU23: 1 | CW23: 4 | CX23: =CR23 -> 6
B24: 22 | C24: 897 | D24: 30247131 | E24: ذوي المراجع | F24: العيادات الخارجية | G24: الطبي | H24: عيادات جراحة الختان | I24: 2023-02-13T12:27:00 | J24: تهاني عبدالله القرني | K24: 72 Hours | L24: 2023-02-12 | M24: 11:42:00 | N24: تهاني عبدالله القرني | O24: 2023-02-13 | P24: 12:27:00 | Q24: 2023-02-12 | R24: 12:59:00 | S24: تهاني عبدالله القرني | T24: 2023-02-13 | U24: 12:28:00 | V24: تهاني عبدالله القرني | W24: 0.0006944444394 | X24: 2023-02-14 | Y24: 10:59:00 | Z24: تهاني عبدالله القرني | AA24: 0.9381944444 | AB24: 2023-02-15 | AC24: 11:44:00 | AD24: تهاني عبدالله القرني | AE24: 1.03125 | AJ24: -44970.51944 | AN24: -44970.51944 | AO24: 2023-02-16 | AP24: 09:29:00 | AQ24: 2.875694444 | AR24: 2023-02-16 | AS24: 09:29:00 | AT24: تهاني عبدالله القارني | AU24: 2.875694444 | AV24: 4903 | AW24: Dr MAHMOUD FAWZY ABDELFATTAH ABDELHALIM | AX24: Management complaints | AY24: 3. Institutional Issues | AZ24: 3.1.Administrative Policies and Procedures | BA24: 3.1.4.Required Service not obtained | BB24: حجزتُ موعدًا لطفلي قبل أسبوع. ذهبتُ إلى الاستقبال في تمام الساعة 11:15 صباحًا، لكن الطبيب رفض استقباله. كان عذره أنني تأخرتُ وأن لديّ مواعيد أخرى. كان أسلوب الطبيب غير لائق في التعامل عند ابلاغي بعدم قبوله لي وعدم ايجاد حلول بديله للمريض | BC24: I booked an appointment a week ago for my child. I went to reception at 11:15 AM, but the doctor refused to admit my child. The excuse given was that I was late and had several other appointments. The doctor's approach was inappropriate when I was informed of the refusal to admit my child and the lack of alternative solutions for the patient. | BE24: Patient | BJ24: امال القحطاني | BK24: 2 | BL24: =BK24/BK25 -> 66.67% | BM24: 1 | BP24: 1 | BQ24: 2 | BU24: ابرار الشمري | BV24: 5 | BW24: =BV24/BV26 -> 50.00% | BX24: 4 | BY24: 1 | CB24: =BV24 -> 5 | CF24: 917 | CG24: 30150272 | CH24: مراجع | CI24: العيادات الخارجية | CJ24: الطبي | CK24: عيادات جراحة الأنف وأذن وحنجرة | CL24: 2023-02-27T19:15:00 | CM24: امال القحطاني | CN24: More than 72 Hours | CQ24: ابرار الشمري | CR24: 6 | CS24: =CR24/CR26 -> 35.29% | CT24: 1 | CU24: 2 | CW24: 3 | CX24: =CR24 -> 6
B25: 23 | C25: 898 | D25: 30252389 | E25: مراجع | F25: العيادات الخارجية | G25: الطبي | H25: عيادات النساء والولادة | I25: 2023-02-13T12:33:00 | J25: تهاني عبدالله القرني | K25: 72 Hours | L25: 2023-02-12 | M25: 12:47:00 | N25: تهاني عبدالله القرني | O25: 2023-02-13 | P25: 12:33:00 | Q25: 2023-02-13 | R25: 12:32:00 | S25: تهاني عبدالله القرني | T25: 2023-02-13 | U25: 12:33:00 | V25: تهاني عبدالله القرني | W25: 0 | X25: 2023-02-14 | Y25: 10:59:00 | Z25: تهاني عبدالله القرني | AA25: 0.9347222222 | AB25: 2023-02-15 | AC25: 11:43:00 | AD25: تهاني عبدالله القرني | AE25: 1.030555556 | AF25: 2023-02-16 | AG25: 09:30:00 | AH25: تهاني عبدالله القرني | AI25: The complaint was escalated due to the department's failure to respond | AJ25: 2.872916667 | AN25: -44970.52292 | AQ25: -44970.52292 | AU25: -44970.52292 | AV25: 13454 | AW25: Dr HAGIR ASIM ABDELMONEINIM HUSSEIN | AX25: Relationship complaints | AY25: 5. Communication | AZ25: 1.Patient-staff communication | BA25: 5.1.3.Not involving patient in clinical decisions | BB25: بتاريخ 12 فبراير2023م تم الدخول على طبيبة النساء لاجر لإجراء فحص فقط وابلغتني بأنھ لا يوجد لديها اي تصور عن حالتي حتى تقوم بالفحص الموضعي وبعد ان قامت بفحص موضعي قالت إنهاا عملت إجراء الكي بدون موافقتي ولم يتم شرح حالتي أو توضيح الخطھ العلاجية لي وانا اعرف أن من حقي أعرف الخطھ العلاجيھ قبل البدء بها وحقي في الموافقھ والرفض لأي إجراء بدون إذني وحتى لا أعرف ماهو الكي الذيم تم إجرائھ لي | BC25: On February 12, 2023, I went to a gynecologist for a physical examination only, and she informed me that she had no idea about my condition until she performed a physical examination. After examining me, she said she performed the cauterization procedure without my consent. My condition wasn't explained to me, nor was the treatment plan clarified. I know I have the right to know the treatment plan before it begins, and the right to consent to or refuse any procedure performed without my permission. I don't even know what kind of cauterization was performed on me. | BE25: Patient | BJ25: Total | BK25: =SUBTOTAL(9,BK23:BK24) -> 3 | BL25: 100% | BM25: 2 | BN25: 0 | BO25: 0 | BP25: 1 | BQ25: 3 | BU25: امال القحطاني | BV25: 3 | BW25: =BV25/BV26 -> 30.00% | BX25: 1 | CA25: 1 | CB25: =BV25 -> 3 | CF25: 951 | CG25: 30073932 | CH25: مراجع | CI25: العيادات الخارجية | CJ25: الطبي | CK25: عيادات الصدرية | CL25: 2023-02-28T11:11:00 | CM25: تهاني عبدالله القرني | CN25: 48 Hours | CQ25: تهاني القرني | CR25: 5 | CS25: =CR25/CR26 -> 29.41% | CU25: 1 | CV25: 2 | CW25: 2 | CX25: =CR25 -> 5
B26: 24 | C26: 904 | D26: 30162350 | E26: مراجع | F26: التنويم | G26: الطبي | H26: قسم التخدير | I26: 2023-02-13T19:00:00 | J26: امال القحطاني | K26: 48 Hours | L26: 2023-02-13 | M26: 18:34:00 | N26: امال القحطاني | O26: 2023-02-13 | P26: 19:00:00 | Q26: 2023-02-13 | R26: 19:01:00 | S26: امال القحطاني | T26: 2023-02-13 | U26: 19:00:00 | V26: امال القحطاني | W26: 0 | X26: 2023-02-14 | Y26: 17:02:00 | Z26: امال القحطاني | AA26: 0.9180555556 | AE26: -44971.70972 | AJ26: -44970.79167 | AN26: -44970.79167 | AO26: 2023-02-15 | AP26: 18:49:00 | AQ26: 1.992361111 | AR26: 2023-02-15 | AS26: 18:49:00 | AT26: امال القحطاني | AU26: 1.992361111 | AV26: 12632 | AW26: Dr HAYTHAM QASEEM IBRAHIM ABUSAMHAN | AX26: Clinical complaints | AY26: 6. Humanness / Caring | AZ26: 1.3.Quality of Care | BA26: 2.2.13.Surgical complications | BB26: تم اعطائي اكثر من جرعة للتخدير، وبعد انتهاء من عمليه جراحة الركبة، تم حدوث نزيف في موضع الحقن في الظهر. لم أستطع تحريك ظهري ، واستمر الألم. لم تتحسن حالتي بعد، ولم يقدم الطبيب المعالج أي تفسير. | BC26: I was given multiple doses of anesthesia, and after my knee surgery, I experienced bleeding at the injection site on my back. I couldn't move my back, and the pain persisted. My condition hasn't improved, and the doctor hasn't offered any explanation. | BE26: Hospital | BU26: Total | BV26: =SUBTOTAL(9,BV23:BV25) -> 10 | BW26: =SUBTOTAL(9,BW23:BW25) -> 100% | BX26: =SUM(BX23:BX25) -> 7 | BY26: =SUM(BY23:BY25) -> 1 | BZ26: 0 | CA26: 1 | CB26: =SUBTOTAL(9,CB23:CB25) -> 10 | CF26: 955 | CG26: 30211991 | CH26: مراجع | CI26: العيادات الخارجية | CJ26: الطبي | CK26: عيادات الجراحة العامة | CL26: 2023-02-28T13:16:00 | CM26: ابرار الشمري | CN26: More than 72 Hours | CQ26: Total | CR26: =SUBTOTAL(9,CR23:CR25) -> 17 | CS26: =CS23+CS24+CS25 -> 100% | CT26: =SUBTOTAL(9,CT23:CT25) -> 2 | CU26: =SUBTOTAL(9,CU23:CU25) -> 4 | CV26: 2 | CW26: 9 | CX26: =SUM(CT26:CW26) -> 17
B27: 25 | C27: 858 | D27: 30250181 | E27: مراجع | F27: التنويم | G27: التمريض | H27: تمريض تنويم النساء والولادة | I27: 2023-02-13T19:56:00 | J27: امال القحطاني | K27: More than 72 Hours | L27: 2023-02-02 | M27: 19:38:00 | N27: امال القحطاني | O27: 2023-02-13 | P27: 19:56:00 | Q27: 2023-02-04 | R27: 19:54:00 | S27: امال القحطاني | T27: 2023-02-13 | U27: 19:57:00 | V27: امال القحطاني | W27: 0.0006944444467 | X27: 2023-02-14 | Y27: 19:08:00 | Z27: امال القحطاني | AA27: 0.9659722222 | AB27: 2023-02-15 | AC27: 18:50:00 | AD27: امال القحطاني | AE27: 0.9875 | AF27: 2023-02-27 | AG27: 19:22:00 | AH27: امال القحطاني | AJ27: 13.97569444 | AN27: -44970.83125 | AQ27: -44970.83125 | AU27: -44970.83125 | AX27: Relationship complaints | AY27: 5. Communication | AZ27: 3.Delays | BA27: 4.3.1.Delay in admitting patient | BB27: لا يوجد رد، والانتظار طويل. كان هناك تأخير كبير من جانب طاقم التمريض. | BC27: There is no response and waiting for long time. There was a long delay by the nursing staff. | BE27: Patient
B28: 26 | C28: 874 | D28: 1414046 | E28: مراجع | F28: العيادات الخارجية | G28: الإداري | H28: قسم الموافقات الطبية | I28: 2023-02-13T21:16:00 | J28: امال القحطاني | K28: More than 72 Hours | L28: 2023-02-06 | M28: 20:08:00 | N28: امال القحطاني | O28: 2023-02-13 | P28: 21:16:00 | Q28: 2023-02-12 | R28: 19:26:00 | S28: ابرار الشمري | T28: 2023-02-13 | U28: 21:17:00 | V28: امال القحطاني | W28: 0.0006944444467 | X28: 2023-02-14 | Y28: 17:13:00 | Z28: امال القحطاني | AA28: 0.8305555556 | AB28: 2023-02-15 | AC28: 18:50:00 | AD28: امال القحطاني | AE28: 1.067361111 | AJ28: -44970.88681 | AN28: -44970.88681 | AO28: 2023-02-27 | AP28: 19:21:00 | AQ28: 13.91944444 | AR28: 2023-02-27 | AS28: 19:21:00 | AT28: امال القحطاني | AU28: 13.91944444 | AX28: Relationship complaints | AY28: 5. Communication | AZ28: 1.Patient-staff communication | BA28: 5.1.1.Miscommunication with Patient | BB28: تحدثتُ مع موضف الموافقات وأبلغته بوجود فترة انتظار طويلة عند تحديث أو تقديم طلب. تحدث إليّ بنبرة انفعاليه وأحالني إلى الإدارة العليا إذا لم أكن راضياً عن خدمته. | BC28: I spoke with the approvals officer and informed him of the long waiting period when updating or submitting an application. He spoke to me in an agitated tone and referred me to senior management if I was not satisfied with his service. | BE28: Patient | BJ28: CCHI | BK28: =BK25 -> 3 | BL28: =BK28/44 -> 6.82% | BU28: MOH | BV28: =BV26 -> 10 | BW28: =BV28/44 -> 22.73% | CF28: Employee Name | CG28: Number of complaints | CH28: Total Percentage | CI28: 24 Hours | CJ28: 48 Hours | CK28: 72 Hours | CL28: More than 72 hours | CM28: Total
B29: 27 | C29: 853 | D29: 30129164 | E29: مراجع | F29: العيادات الخارجية | G29: الطبي | H29: عيادات الجراحة التجميلية | I29: 2023-02-14T21:00:00 | J29: امال القحطاني | K29: More than 72 Hours | L29: 2023-02-02 | M29: 18:15:00 | N29: امال القحطاني | O29: 2023-02-14 | P29: 21:00:00 | Q29: 2023-02-06 | R29: 20:32:00 | S29: امال القحطاني | T29: 2023-02-14 | U29: 21:01:00 | V29: امال القحطاني | W29: 0.0006944444467 | X29: 2023-02-15 | Y29: 18:57:00 | Z29: امال القحطاني | AA29: 0.9138888889 | AB29: 2023-02-21 | AC29: 17:06:00 | AD29: ابرار الشمري | AE29: 5.922916667 | AF29: 2023-02-23 | AG29: 15:53:00 | AH29: ابرار الشمري | AI29: The complaint was escalated due to the department's failure to respond | AJ29: 8.786111111 | AK29: 2023-03-08 | AL29: 11:34:00AM | AM29: امال القحطاني | AO29: 2023-02-21 | AP29: 17:29:00 | AQ29: 6.852777778 | AU29: -44971.87569 | AW29: DR.MUSAAB ALRHILI | AX29: Clinical complaints | AY29: 6. Humanness / Caring | AZ29: 1.3.Quality of Care | BA29: 2.2.11.Wrong surgery | BB29: تم دخولي للعمليه ، وبناءً على طلبي، تم التوصل إلى اتفاق مع الطبيب بشأن عملية تجميل الأنف. أُجريت العملية تحت إشراف طبي، وبعدها لوحظ تورم، بالإضافة إلى ميلان في طرف الأنف ووجود جزء زائد منه. هذه هي الصور التي التقطتها عندما طلبتُ حضور طبيب، فقام بفحصي. ثم أجرى لي تدليكًا للأنف، وقال إن المشكلة ستزول مع مرور الوقت. سأكمل عامًا على العملية، ولم يطرأ أي تغيير على أنفي، كما قيل لي. | BC29: I was admitted for surgery, and at my request, an agreement was reached with the doctor regarding rhinoplasty. The procedure was performed under medical supervision, and afterwards, swelling was observed, along with a tilt in the tip of my nose and an excess part of it. These are the photos I took when I asked a doctor to examine me. He then massaged my nose and said the problem would resolve itself over time. It's been a year since the surgery, and my nose hasn't changed at all, contrary to what I was told. | BE29: Patient | CF29: امال القحطاني | CG29: 9 | CH29: =CG29/CG32 -> 37.50% | CI29: 1 | CJ29: 2 | CK29: 1 | CL29: 5 | CM29: =CG29 -> 9 | CQ29: Patient Relatives | CR29: =CR26 -> 17 | CS29: =CR29/44 -> 38.64%
B30: 28 | C30: 895 | D30: 30212972 | E30: مراجع | F30: التنويم | G30: الطبي | H30: قسم عمليات الولادة | I30: 2023-02-15T11:35:00 | J30: تهاني عبدالله القرني | K30: More than 72 Hours | L30: 2023-02-12 | M30: 10:59:00 | N30: تهاني عبدالله القرني | O30: 2023-02-15 | P30: 11:35:00 | Q30: 2023-02-15 | R30: 11:13:00 | S30: تهاني عبدالله القرني | T30: 2023-02-15 | U30: 11:35:00 | V30: تهاني عبدالله القرني | W30: 0 | AA30: -44972.48264 | AE30: 0 | AJ30: -44972.48264 | AN30: -44972.48264 | AO30: 2023-02-18 | AP30: 15:42:00 | AQ30: 3.171527778 | AR30: 2023-02-18 | AS30: 15:42:00 | AT30: ابرار الشهري | AU30: 3.171527778 | AV30: 15023 | AW30: Dr ESRA MOHAMEDELHASSAN IBRAHIM ABDELKAREEM | AX30: Relationship complaints | AY30: 6. Humanness / Caring | AZ30: 6.2.Assault and Harassment | BA30: 6.2.1.Inappropriate/aggressive behavior | BB30: تم التعامل معي من قبل الدكتوره اسراء باسلوب سيء جدا حيث تم حضورها للكشف علي لانها الولاده الاولى لي تم رفضي ذلك لخوفي ولم يتم التحدث معاي وتهدئيتي ورفع معنوياتي من قبلها وتم حضورها مره اخره للكشف بعد تهدئتي من قبل طبيب التخدير وانا اترجاها حيث تم الرد علي ماله داعي هالحركات والترجي وابلغتني ان الرحم 8 ولايمكن اخذ ابره الظهر خرجت للباب وعادت لي قايله عشان مره ثانيه تسمعين الكلام لم يكن التعامل من قبلها تعامل طبيب مع مريضه وضع ولاده | BC30: I was treated very badly by Dr. Israa. She came to examine me because it was my first delivery, but I refused due to fear. She didn't talk to me, calm me down, or raise my spirits. She came again after the anesthesiologist had calmed me down, and I begged her to come. She responded that there was no need for such pleading and told me that my uterus was 8 mm and I couldn't get an epidural.She went to the door and came back to me saying, "So that you'll listen next time." Her behavior was not that of a doctor treating a patient in labor. | BE30: Patient | BJ30: 24 Hours | BK30: 48 Hours | BL30: 72 Hours | BM30: More than 72 hours | BU30: 24 Hours | BV30: 48 Hours | BW30: 72 Hours | BX30: More than 72 hours | CF30: ابرار الشمري | CG30: 7 | CH30: =CG30/CG32 -> 29.17% | CJ30: 1 | CL30: 6 | CM30: =CG30 -> 7
B31: 29 | C31: 913 | D31: 30235020 | E31: وزارة الصحة | F31: التنويم | G31: الطبي | H31: تنويم الأطفال | I31: 2023-02-15T16:49:00 | J31: ابرار الشمري | K31: 72 Hours | L31: 2023-02-15 | M31: 16:36:00 | N31: ابرار الشمري | O31: 2023-02-15 | P31: 16:49:00 | T31: 2023-02-15 | U31: 16:49:00 | V31: ابرار الشمري | W31: 0 | AA31: -44972.70069 | AE31: 0 | AJ31: -44972.70069 | AN31: -44972.70069 | AO31: 2023-02-18 | AP31: 13:28:00 | AQ31: 2.860416667 | AR31: 2023-02-18 | AS31: 13:28:00 | AT31: ابرار الشهري | AU31: 2.860416667 | AV31: 4918 | AW31: Dr NIBAL RADWAN OKLEH SHAWAKFAH | AX31: Clinical complaints | AY31: 5. Communication | AZ31: 1.3.Quality of Care | BA31: 1.4.5.Patient Discharged before completing treatment | BB31: تم كتابة تقرير خروج المريض ابني من قبل الطبيب المعالج، وحالته غير مستقرة و يزال يعاني من الألم حتى الآن. | BC31: My son's discharge report was written by the treating physician, and his condition is unstable and he is still suffering from pain. | BE31: Patient | BJ31: =BM25 -> 2 | BK31: =BN25 -> 0 | BL31: =BO25 -> 0 | BM31: =BP25 -> 1 | BU31: =BX26 -> 7 | BV31: =BY26 -> 1 | BW31: =BZ26 -> 0 | BX31: =CA26 -> 1 | CF31: تهاني القرني | CG31: 8 | CH31: =CG31/CG32 -> 33.33% | CJ31: 2 | CK31: 1 | CL31: 5 | CM31: =CG31 -> 8 | CQ31: 24 Hours | CR31: 48 Hours | CS31: 72 Hours | CT31: More than 72 hours
A32: 2 | B32: 30 | C32: 908 | D32: 30125312 | E32: مراجع | F32: العيادات الخارجية | G32: الإداري | H32: استقبال العيادات الخارجية | I32: 2023-02-16T10:50:00 | J32: ابرار الشمري | K32: More than 72 Hours | L32: 2023-02-15 | M32: 13:09:00 | N32: ابرار الشمري | O32: 2023-02-16 | P32: 10:50:00 | Q32: 2023-02-16 | R32: 10:36:00 | S32: ابرار الشمري | T32: 2023-02-16 | U32: 10:50:00 | V32: ابرار الشمري | W32: 0 | X32: 2023-02-18 | Y32: 13:08:00 | Z32: ابرار الشمري | AA32: 2.095833333 | AB32: 2023-02-19 | AC32: 12:07:00 | AD32: ابرار الشمري | AE32: 0.9576388889 | AJ32: -44973.45139 | AK32: 2023-02-25 | AL32: 19:57:00 | AM32: ابرار الشمري | AN32: 9.379861111 | AQ32: -44973.45139 | AU32: -44973.45139 | AW32: RAYYAN ALRASEES | AX32: Clinical complaints | AY32: 1. Quality | AZ32: 1.2.Patient journey | BA32: 1.2.1.Miscoordination | BB32: وصلتُ إلى موعدي في عيادة القلب مع الدكتور حسام في تمام الساعة ١٢:٥٠، وتوجهتُ إلى الاستقبال للاستفسار عن الموعد. أجابتني موظفة الاستقبال بأنه لا يوجد طبيب بهذا الاسم (اذهب إلى الطابق السادس أو إلى مكتب استقبال العيادة). ذهبتُ إلى الاستقبال، فأخبرني موظف آخر أن الطبيب قد غادر العيادة. | BC32: I arrived at my appointment with Dr. Hossam at the cardiology clinic at 12:50 PM and went to reception to inquire about the appointment. The receptionist told me that there was no doctor by that name (go to the sixth floor or the clinic's reception desk). I went to reception, and another employee told me that the doctor had already left the clinic. | BE32: Patient | BJ32: =BJ31/BK28 -> 66.67% | BK32: =BK31/BK28 -> 0.00% | BL32: =BL31/BK28 -> 0.00% | BM32: =BM31/BK28 -> 33.33% | BU32: =BU31/BV28 -> 70.00% | BV32: =BV31/BV28 -> 10.00% | BW32: =BW31/BV28 -> 0.00% | BX32: =BX31/BV28 -> 10.00% | CF32: Total | CG32: =SUBTOTAL(9,CG29:CG31) -> 24 | CH32: =CH29+CH30+CH31 -> 100% | CI32: =SUBTOTAL(9,CI29:CI31) -> 1 | CJ32: =SUBTOTAL(9,CJ29:CJ31) -> 5 | CK32: 2 | CL32: 16 | CM32: =SUM(CI32:CL32) -> 24 | CQ32: =CT26 -> 2 | CR32: =CU26 -> 4 | CS32: =CV26 -> 2 | CT32: =CW26 -> 9
B33: 31 | C33: 918 | D33: 30001918 | E33: ذوي المراجع | F33: الطوارئ | G33: الإداري | H33: قسم الأمن | I33: 2023-02-18T13:01:00 | J33: تهاني عبدالله القرني | K33: 48 Hours | L33: 2023-02-15 | M33: 12:32:00 | N33: تهاني عبدالله القرني | O33: 2023-02-18 | P33: 13:01:00 | T33: 2023-02-18 | U33: 13:01:00 | V33: تهاني عبدالله القرني | W33: 0 | AA33: -44975.54236 | AE33: 0 | AJ33: -44975.54236 | AN33: -44975.54236 | AO33: 2023-02-19 | AP33: 14:54:00 | AQ33: 1.078472222 | AR33: 2023-02-19 | AS33: 14:54:00 | AT33: ابرار الشهري | AU33: 1.078472222 | AW33: SAUD | AX33: Relationship complaints | AY33: 5. Communication | AZ33: 3.3.Safety & Security | BA33: 3.3.9.Lack of parking slots | BB33: تم الحضور في 15 فبراير 2023 حيث لم يتم ايجاد أي موقف سيارات في قسم الطوارئ، وأن جميع مواقف سيارات الموظفين مغلقة، بعضها بسلاسل وممنوع الوقوف فيها. وتم ايقاف سيارتي متوقفة بجوار مدخل الطوارئ. بعد ذلك تم حضور موظف الامن الى العياده وتم طرق الباب بقوه وجاء يصرخ لكي يبلغني ان اغير مكان سيارتي وتم استدعاء الشرطه من قبل الموظف وادعى موظف الامن بانني تلفظت فيه | BC33: On February 15, 2023, I arrived to find no parking available in the emergency department. All staff parking spaces were closed, some chained shut, and parking was prohibited. My car was parked right next to the emergency entrance. Later, a security guard came to the clinic, banged loudly on the door, and shouted at me to move my car. The police were called by the employee, and the security guard claimed that I had verbally abused him. | BE33: Patient | CQ33: =CQ32/CR29 -> 11.76% | CR33: =CR32/CR29 -> 23.53% | CS33: =CS32/CR29 -> 11.76% | CT33: =CT32/CR29 -> 52.94%
B34: 32 | C34: 920 | D34: 30088984 | E34: ذوي المراجع | F34: العيادات الخارجية | G34: الطبي | H34: عيادات الأنف والأذن والحنجرة (أطفال) | I34: 2023-02-18T16:48:00 | J34: ابرار الشمري | K34: 24 Hours | L34: 2023-02-18 | M34: 16:38:00 | N34: ابرار الشمري | O34: 2023-02-18 | P34: 16:48:00 | Q34: 2023-02-25 | R34: 19:27:00 | S34: ابرار الشمري | T34: 2023-02-18 | U34: 16:38:00 | V34: ابرار الشمري | W34: =(U34+T34)-(P34+O34) -> -0.006944444438 | AA34: -44975.69306 | AE34: 0 | AJ34: -44975.69306 | AK34: 2023-02-25 | AL34: 19:28:00 | AM34: ابرار الشمري | AN34: 7.118055556 | AQ34: -44975.69306 | AU34: -44975.69306 | AV34: 2892 | AW34: Dr MAHMOUD ELAMIN ELTAYEB ABUGANAYA | AX34: Clinical complaints | AY34: 1. Quality | AZ34: 1.2.Patient journey | BA34: 1.2.1.Miscoordination | BB34: يوجد لدي موعد للعياده 69, حيث لم يتم كتابه او الاهتمام بالرجعه المطلوبه للتخدير, غياب المسؤليه والاهتمام وتعطيل مواعيد المراجعين | BC34: I have an appointment at clinic 69, but the required follow-up appointment for anesthesia was neither recorded nor attended to, demonstrating a lack of responsibility and attention, and disrupting patient appointments. | BE34: Patient | BJ34: In-Patient | BK34: 1 | BL34: =BK34/BK37 -> 16.67% | BU34: In-Patient | BV34: 3 | BW34: =BV34/BV37 -> 30.00%
B35: 33 | C35: 925 | D35: 30251308 | E35: مجلس الضمان الصحي | F35: العيادات الخارجية | G35: الإداري | H35: قسم الموافقات الطبية | I35: 2023-02-19T14:09:00 | J35: ابرار الشمري | K35: 24 Hours | L35: 2023-02-19 | M35: 14:09:00 | N35: ابرار الشمري | O35: 2023-02-19 | P35: 14:09:00 | T35: 2023-02-19 | U35: 14:09:00 | V35: ابرار الشمري | W35: 0 | AA35: -44976.58958 | AE35: 0 | AJ35: -44976.58958 | AN35: -44976.58958 | AQ35: -44976.58958 | AR35: 2023-02-19 | AS35: 14:26:00 | AT35: ابرار الشهري | AU35: 0.01180555556 | AX35: Relationship complaints | AY35: 6. Humanness / Caring | AZ35: 6.4.Consent | BA35: 6.4.2.No/Invalid consent obtained | BB35: تم رفع طلب موافقه التامين ( خزعه) في تاريخ 6 فبراير وتم الرفض من قبل شركه التامين لطلب المزيد من العلومات من قبل الطبيب المعالج حيث تم افادتي من قبل قسم الموافقات بالرجوع الى الدكتور وابلاغه عن طلب التامين مما ادى الى استيائي | BC35: I submitted an insurance approval request (for a biopsy) on February 6th, but it was rejected by the insurance company, which requested further information from the treating physician. The approvals department advised me to contact the doctor and inform him of the insurance request, which caused me considerable frustration. | BE35: Patient | BJ35: Out-Patient | BK35: 5 | BL35: =BK35/BK37 -> 83.33% | BU35: Out-Patient | BV35: 7 | BW35: =BV35/BV37 -> 70.00% | CF35: Patient | CG35: =CG32 -> 24 | CH35: =CG35/48 -> 50.00%
B36: 34 | C36: 922 | D36: 30245340 | E36: مراجع | F36: التنويم | G36: التمريض | H36: تمريض قسم عمليات الولادة | I36: 2023-02-19T17:18:00 | J36: تهاني عبدالله القرني | K36: More than 72 Hours | L36: 2023-02-19 | M36: 10:53:00 شة | N36: تهاني عبدالله القرني | O36: 2023-02-19 | P36: 17:18:00 | Q36: 2023-02-22 | R36: 22:08:00 | S36: تهاني عبدالله القرني | T36: 2023-02-22 | U36: 10:09:00 | V36: تهاني عبدالله القرني | W36: 2.702083333 | X36: 2023-02-26 | Y36: 11:29:00 | Z36: تهاني عبدالله القرني | AA36: 4.055555556 | AE36: -44983.47847 | AJ36: -44979.42292 | AN36: -44979.42292 | AO36: 2023-02-26 | AP36: 15:22:00 | AQ36: 4.217361111 | AR36: 2023-02-27 | AS36: 10:29:00 | AT36: تهاني عبدالله القارني | AU36: 5.013888889 | AX36: Relationship complaints | AY36: 6. Humanness / Caring | AZ36: 6.2.Assault and Harassment | BA36: 6.2.1.Inappropriate/aggressive behavior | BB36: في ٢١ فبراير ٢٠٢٣، طلب مني الطبيب إجراء تخطيط قلب الجنين (CTG) لأن حركة الجنين لم تكن طبيعية. أثناء إجراء الفحص، كانت الممرضة قاسية جدًا معي، تصرخ في وجهي، ولم تكن متعاونة. | BC36: on 21 feb 2023, the Dr request for me the CTG because the baby was not moved . when i do the . Procedure the nurse was so tough with me she shouting to me and she was uncooperative | BE36: Patient | BJ36: ER | BK36: 0 | BL36: =BK36/BK37 -> 0.00% | BU36: ER | BV36: 0 | BW36: =BV36/BV37 -> 0.00% | CQ36: In-Patient | CR36: 4 | CS36: =CR36/CR39 -> 23.53%
B37: 35 | C37: 929 | D37: 1296428 | E37: مراجع | F37: العيادات الخارجية | G37: الطبي | H37: عيادات جراحة الأنف وأذن وحنجرة | I37: 2023-02-21T10:57:00 | J37: تهاني عبدالله القرني | K37: More than 72 Hours | L37: 2023-02-20 | M37: 14:19:00 | N37: تهاني عبدالله القرني | O37: 2023-02-21 | P37: 10:57:00 | Q37: 2023-02-21 | R37: 10:47:00 | S37: تهاني عبدالله القرني | T37: 2023-02-21 | U37: 10:57:00 | V37: تهاني عبدالله القرني | W37: 0 | X37: 2023-02-22 | Y37: 09:28:00 | Z37: تهاني عبدالله القرني | AA37: 0.9381944444 | AE37: -44979.39444 | AJ37: -44978.45625 | AN37: -44978.45625 | AO37: 2023-02-24 | AP37: 21:06:00 | AQ37: 3.422916667 | AR37: 2023-02-26 | AS37: 11:28:00 | AT37: تهاني عبدالله القارني | AU37: 5.021527778 | AV37: 2892 | AW37: Dr MAHMOUD ELAMIN ELTAYEB ABUGANAYA | AX37: Clinical complaints | AY37: 5. Communication | AZ37: 3.Skills and Conduct | BA37: 4.1.2.Poor availability and scheduling | BB37: بتاريخ 19 فبراير 2023 تم الحضور الى عياده الطبيب ابو جنايا محمود حيث تم دخولي ولم يستغرق وقت الكشف خمص دقايق ثم طلب مني الطبيب عمل اشعه وعودتي اليه بعد ذلك , تم عمل اشعه والعوده الى العياده وتم ابلاغ ممرضه العياده بذلك وطلبت مني الانتظار حتى ينتهي 4 حالات امامه وقد استغرق 20 دقيقه غير انه تركني بالانتظار لحين انتهاء من مواعيد المرضى ولكن بعد الانتهاء من المرضى تم مغادره الطبيب للعياده دون مناداتي او ابلاغي مسبقا بالحضور في اليوم التالي او الممرضه اكدت انها اخبرت الطبيب بعودتي من الاشعه مرتين بان هناك حاله بالخارج | BC37: On February 19, 2023, I went to Dr. Abu Janaya Mahmoud's clinic. I was admitted, and the examination took no more than five minutes. The doctor then asked me to have an X-ray and return to him afterward. I had the X-ray and returned to the clinic. I informed the clinic nurse, who asked me to wait until he finished with the four patients in front of him. This took 20 minutes, but he left me waiting until he finished with the other patients. However, after the patients were finished, the doctor left the clinic without calling me or informing me in advance to come the next day. The nurse confirmed that she had informed the doctor twice about my return from the radiology department, stating that there was a case outside. | BE37: Patient | BJ37: Total | BK37: =BK34+BK35+BK36 -> 6 | BL37: =SUM(BL34:BL36) -> 100% | BU37: Total | BV37: =BV34+BV35+BV36 -> 10 | BW37: =SUM(BW34:BW36) -> 100% | CF37: 24 Hours | CG37: 48 Hours | CH37: 72 Hours | CI37: More than 72 hours | CQ37: Out-Patient | CR37: 9 | CS37: =CR37/CR39 -> 52.94%
B38: 36 | C38: 911 | D38: 30069197 | E38: ذوي المراجع | F38: الطوارئ | G38: الإداري | H38: مكتب التنويم | I38: 2023-02-21T11:10:00 | J38: تهاني عبدالله القرني | K38: More than 72 Hours | L38: 2023-02-15 | M38: 16:34:00 | N38: تهاني عبدالله القرني | O38: 2023-02-21 | P38: 11:10:00 | Q38: 2023-02-19 | R38: 13:25:00 | S38: الدعم الفني | T38: 2023-02-21 | U38: 11:20:00 | V38: تهاني عبدالله القرني | W38: 0.006944444438 | X38: 2023-02-22 | Y38: 09:27:00 | Z38: تهاني عبدالله القرني | AA38: 0.9215277778 | AE38: -44979.39375 | AJ38: -44978.47222 | AN38: -44978.47222 | AO38: 2023-02-27 | AP38: 11:12:00 | AQ38: 5.994444444 | AR38: 2023-02-26 | AS38: 11:27:00 | AT38: تهاني عبدالله القارني | AU38: 5.004861111 | AX38: Clinical complaints | AY38: 6. Humanness / Caring | AZ38: 1.3.Quality of Care | BA38: 1.3.1.Substandard clinical/nursing care | BB38: بتاريخ 14 فبراير 2023م تم الحضور الى قسم الطوارى وتم التاخير في إجراءت التنويم لمدة 4 ساعات مع العلم بوجود الموافقة على طلب التنويم . | BC38: On February 14, 2023, I went to the emergency department and the admission procedures were delayed for 4 hours, despite the fact that the admission request had been approved. | BE38: Patient | BJ38: Medical | BK38: 6 | BL38: =BK38/BK40 ->  | BU38: Medical | BV38: 5 | BW38: =BV38/BV41 -> 50.00% | CF38: =CI32 -> 1 | CG38: =CJ32 -> 5 | CH38: =CK32 -> 2 | CI38: =CL32 -> 16 | CQ38: ER | CR38: 4 | CS38: =CR38/CR39 -> 23.53%
B39: 37 | C39: 911 | D39: 30069197 | E39: ذوي المراجع | F39: الطوارئ | G39: التمريض | H39: تمريض الطوارئ | I39: 2023-02-21T11:20:00 | J39: تهاني عبدالله القرني | K39: More than 72 Hours | L39: 2023-02-15 | M39: 16:34:00 | N39: تهاني عبدالله القرني | O39: 2023-02-21 | P39: 11:20:00 | Q39: 2023-02-19 | R39: 13:25:00 | S39: الدعم الفني | T39: 2023-02-21 | U39: 11:21:00 | V39: تهاني عبدالله القرني | W39: 0.0006944444467 | X39: 2023-02-22 | Y39: 09:28:00 | Z39: تهاني عبدالله القرني | AA39: 0.9215277778 | AB39: 2023-02-26 | AC39: 10:17:00 | AD39: تهاني عبدالله القرني | AE39: 4.034027778 | AF39: 2023-02-27 | AG39: 10:26:00 | AH39: تهاني عبدالله القرني | AI39: The complaint was escalated due to the department's failure to respond | AJ39: 5.961805556 | AN39: -44978.47292 | AO39: 2023-02-27 | AP39: 11:12:00 | AQ39: 5.99375 | AR39: 2023-02-27 | AS39: 16:29:00 | AT39: ابرار الشهري | AU39: 6.213888889 | AX39: Clinical complaints | AY39: 6. Humanness / Caring | AZ39: 1.3.Quality of Care | BA39: 1.3.1.Substandard clinical/nursing care | BB39: في ١٤ فبراير ٢٠٢٣، ذهبتُ إلى قسم الطوارئ، ولم تُدخل الممرضة الكانولا الوريدية لابنتي بشكل صحيح. | BC39: on 14 feb 2023 , I went to the ER department and the nurse did not put the cannula for my daughter . correctly , when my daughter admitted the nurse changed the cannula | BE39: Patient | BJ39: Admin | BK39: 0 | BL39: =BK39/BK40 ->  | BU39: Admin | BV39: 5 | BW39: =BV39/BV41 -> 50.00% | CF39: =CF38/CG35 -> 4.17% | CG39: =CG38/CG35 -> 20.83% | CH39: =CH38/CG35 -> 8.33% | CI39: =CI38/CG35 -> 66.67% | CQ39: Total | CR39: =CR36+CR37+CR38 -> 17 | CS39: =SUM(CS36:CS38) -> 100%
B40: 38 | C40: 928 | D40: 30252911 | E40: ذوي المراجع | F40: الطوارئ | G40: التمريض | H40: تمريض الطوارى | I40: 2023-02-21T12:53:00 | J40: ابرار الشمري | K40: More than 72 Hours | L40: 2023-02-20 | M40: 14:08:00 | N40: ابرار الشمري | O40: 2023-02-21 | P40: 12:53:00 | Q40: 2023-02-21 | R40: 12:10:00 | S40: ابرار الشمري | T40: 2023-02-21 | U40: 13:06:00 | V40: ابرار الشمري | W40: 0.009027777771 | X40: 2023-02-22 | Y40: 02:21:00 | Z40: ابرار الشمري | AA40: 0.5520833333 | AB40: 2023-02-27 | AC40: 10:42:00 | AD40: تهاني عبدالله القرني | AE40: 5.347916667 | AJ40: -44978.54583 | AN40: -44978.54583 | AO40: 2023-02-27 | AP40: 11:11:00 | AQ40: 5.920138889 | AR40: 2023-02-27 | AS40: 14:43:00 | AT40: ابرار الشهري | AU40: 6.067361111 | AW40: micheal | AX40: Relationship complaints | AY40: 6. Humanness / Caring | AZ40: 6.2.Assault and Harassment | BA40: 6.2.1.Inappropriate/aggressive behavior | BB40: عندما طلب مدير قسم الطوارئ من الطبيب المختص أن يصف لي شرائط، قال إن هذا المريض مجنون. | BC40: . when the ER manager ask the naruss to give me stripes he said this patient crazy | BE40: Patient | BJ40: Total | BK40: =BK38+BK39+#REF! ->  | BL40: =BL38+BL39+#REF! ->  | BU40: Nursing | BV40: 0 | BW40: =BV40/BV41 -> 0.00% | CQ40: Medical | CR40: 9 | CS40: =CR40/CR44 -> 52.94%
B41: 39 | C41: 928 | D41: 30252911 | E41: ذوي المراجع | F41: التنويم | G41: الطبي | H41: تنويم الباطنية | I41: 2023-02-21T12:53:00 | J41: ابرار الشمري | K41: 48 Hours | L41: 2023-02-20 | M41: 14:08:00 | N41: ابرار الشمري | O41: 2023-02-21 | P41: 12:35:00 | Q41: 2023-02-21 | R41: 12:10:00 | S41: ابرار الشمري | T41: 2023-02-21 | U41: 13:04:00 | V41: ابرار الشمري | W41: 0.02013888889 | AA41: -44978.54444 | AE41: 0 | AJ41: -44978.54444 | AN41: -44978.54444 | AO41: 2023-02-22 | AP41: 10:35:00 | AQ41: 0.8965277778 | AR41: 2023-02-22 | AS41: 15:01:00 | AT41: ابرار الشهري | AU41: 1.08125 | AW41: LUBNA BAKR | AX41: Clinical complaints | AY41: 6. Humanness / Caring | AZ41: 1.4.Treatment | BA41: 2.1.4 Insufficient medication prescribed | BB41: بتاريخ 14 فبراير 2023 خلاص فترت تنويمي تم صرف جهاز سكري ناقص من غري ملحقات من قبل الدكتوره وعندما طلبت منها تزويدي ولو بكميه بسيطه افادتني انه تم اغلاق الملف ولابد من الانتظار الى موعد العياده | BC41: On February 14, 2023, at the end of my hospital stay, the doctor prescribed a glucose meter that was missing some accessories. When I asked her to provide me with even a small quantity, she informed me that my file had been closed and I would have to wait until my next clinic appointment. | BE41: Patient | BU41: Total | BV41: =BV38+BV39+BV40 -> 10 | BW41: =BW38+BW39++BW40 -> 100% | CF41: In-Patient | CG41: 6 | CH41: =CG41/CG44 -> 25.00% | CQ41: Admin | CR41: 4 | CS41: =CR41/CR44 -> 23.53%
B42: 40 | C42: 935 | D42: 30112399 | E42: وزارة الصحة | F42: العيادات الخارجية | G42: الطبي | H42: بنك الدم | I42: 2023-02-21T13:42:00 | J42: تهاني عبدالله القرني | K42: 24 Hours | L42: 2023-02-21 | M42: 13:20:00 | N42: تهاني عبدالله القرني | O42: 2023-02-21 | P42: 13:42:00 | Q42: 2023-02-21 | R42: 13:42:00 | S42: تهاني عبدالله القرني | T42: 2023-02-21 | U42: 13:42:00 | V42: تهاني عبدالله القرني | W42: 0 | AA42: -44978.57083 | AE42: 0 | AJ42: -44978.57083 | AN42: -44978.57083 | AO42: 2023-02-21 | AP42: 14:51:00 | AQ42: 0.04791666667 | AR42: 2023-02-21 | AS42: 20:48:00 | AT42: ابرار الشهري | AU42: 0.2958333333 | AX42: Management complaints | AY42: 4. Accessibility | AZ42: 4.1.Access | BA42: 4.1.7.Scheduling errors | BB42: تم حجز موعد بتاريخ 19 فبراير 2023 للتبرع بالدم وعند حضوري على الموعد تم ابلاغي بان سيتم حضور الموظف الساعه 9 وعند عودتي الساعه 9 تم ابلاغي بانه سيحضر الساعه 10 وذلك ادى الى استيائي ومغادرتي المستشفى دون التبرع بالدم | BC42: An appointment was booked for February 19, 2023, to donate blood. Upon arriving at the appointment, I was informed that the staff member would arrive at 9:00 AM. When I returned at 9:00 AM, I was told that he would arrive at 10:00 AM. This led to my frustration and I left the hospital without donating blood. | BE42: Patient | CF42: Out-Patient | CG42: 16 | CH42: =CG42/CG44 -> 66.67% | CQ42: Nursing | CR42: 4 | CS42: =CR42/CR44 -> 23.53%
B43: 41 | C43: 932 | D43: 30047631 | E43: ذوي المراجع | F43: العيادات الخارجية | G43: الإداري | H43: استقبال العيادات الخارجية | I43: 2023-02-21T16:11:00 | J43: امال القحطاني | K43: More than 72 Hours | L43: 2023-02-20 | M43: 20:55:00 | N43: امال القحطاني | O43: 2023-02-21 | P43: 16:11:00 | T43: 2023-02-21 | U43: 16:12:00 | V43: ابرار الشمري | W43: 0.0006944444467 | AA43: -44978.675 | AE43: 0 | AJ43: -44978.675 | AN43: -44978.675 | AO43: 2023-02-21 | AP43: 18:14:00 | AQ43: 0.08472222222 | AR43: 2023-02-27 | AS43: 21:00:00 | AT43: امال القحطاني | AU43: 6.2 | AW43: ABDULLAH ALAZZAM | AX43: Relationship complaints | AY43: 6. Humanness / Caring | AZ43: 6.2.Assault and Harassment | BA43: 1.Inappropriate/aggressive behavior | BB43: تم التعامل معاي بطريقه انفعاليه من قبل الموظف حيث تم التوجه له للتحدث معه فيما يخص الكشف على والدتي والاستفسار وتم اخباره برغبتها بوجود ممرضه وليس ممرض وتم رفع الصوت علي والتحدث معي باسلوب فظ وغير لائق حيث لم يتم التوضيح لي وحل ماتم القدوم لاجله وتم الرجوع الى القسم والمريضه غير راضيه واكمال الاجراءات. وتم التوضيح لاحقا ان المريض له حق بالاختيار | BC43: I was treated emotionally by the employee when I approached him to talk to him about my mother’s examination and travel, and I told him that she wanted a female nurse and not a male nurse. He raised his voice at me and spoke to me in a rude and inappropriate manner, as he did not explain to me or resolve what I came for. I returned to the department, and the patient was not satisfied, and the procedures were completed. | BE43: Patient | CF43: ER | CG43: 2 | CH43: =CG43/CG44 -> 8.33% | CQ43: Support Services | CS43: =CR43/CR44 -> 0.00%
B44: 42 | C44: 903 | D44: 1809355 | E44: ذوي المراجع | F44: العيادات الخارجية | G44: الطبي | H44: قسم الصيدلية | I44: 2023-02-21T17:20:00 | J44: امال القحطاني | K44: More than 72 Hours | L44: 2023-02-13 | M44: 18:33:00 | N44: امال القحطاني | O44: 2023-02-21 | P44: 17:20:00 | Q44: 2023-02-13 | R44: 20:06:00 | S44: امال القحطاني | T44: 2023-02-21 | U44: 17:20:00 | V44: امال القحطاني | W44: 0 | X44: 2023-02-14 | Y44: 17:03:00 | Z44: امال القحطاني | AA44: -7.011805556 | AB44: 2023-02-15 | AC44: 18:49:00 | AD44: امال القحطاني | AE44: 1.073611111 | AJ44: -44978.72222 | AK44: 2023-03-09 | AL44: 10:55:00 | AM44: امال القحطاني | AN44: 15.73263889 | AQ44: -44978.72222 | AU44: -44978.72222 | AX44: Clinical complaints | AY44: 5. Communication | AZ44: 5.1.Patient-staff communication | BA44: 5.1.1.Miscommunication with Patient | BB44: اتيت الى شباك استقبال الصيدليه وكان اسلوب الموظف سيء ورفض خدمتي في بدايه الامر وبعد التحدث له من قبل زميله في الصيدليه وانني بالانتظار منذ وقت قام باخذ بياناتي وبعد ذلك قام برفض صرف المبلغ المعطى له وقام باخباري بالذهاب لاي مكان لصرف المبلغ وتم التعامل بطريقه غير مهنيه من قبله | BC44: I arrived at the pharmacy reception window, and the employee's attitude was poor. He initially refused to serve me, but after his colleague spoke to him and explained that I had been waiting for some time, he took my information. Afterward, he refused to give me the money I had given him and told me to go somewhere else to get it. His behavior was completely unprofessional. | BE44: Patient | CF44: Total | CG44: =CG41+CG42+CG43 -> 24 | CH44: =SUM(CH41:CH43) -> 100% | CQ44: Total | CR44: =CR40+CR41+CR42+CR43 -> 17 | CS44: =CS40+CS41+CS42+CS43 -> 100%
B45: 43 | C45: 879 | D45: 30201270 | E45: ذوي المراجع | F45: العيادات الخارجية | G45: الطبي | H45: عيادات المخ والأعصاب | I45: 2023-02-22T10:43:00 | J45: ابرار الشمري | K45: More than 72 Hours | L45: 2023-02-08 | M45: 13:39:00 | N45: ابرار الشمري | O45: 2023-02-22 | P45: 10:43:00 | Q45: 2023-02-22 | R45: 10:33:00 | S45: ابرار الشمري | T45: 2023-02-22 | U45: 10:44:00 | V45: ابرار الشمري | W45: 0.0006944444467 | AA45: -44979.44722 | AE45: 0 | AJ45: -44979.44722 | AN45: -44979.44722 | AO45: 2023-02-22 | AP45: 16:07:00 | AQ45: 0.2243055556 | AR45: 2023-02-27 | AS45: 10:47:00 | AT45: تهاني عبدالله القارني | AU45: 5.002083333 | AV45: 4877 | AW45: FAWAZ AL HUSSAIN | AX45: Management complaints | AY45: 4. Accessibility | AZ45: 4.1.Access | BA45: 4.1.3.Patient admission refusal | BB45: تم حضوري على موعدي في الساعه 6:25 وتم انتظاري اكثر من ساعه وعند دخولي الى العياده تم ابلاغ الدكتور بانتظاري ورجوت منه عدم التاخير لم يستلم حالتي وتعذر عن استقبالي بمجرد قولي ذلك | BC45: I arrived for my appointment at 6:25 and waited for over an hour. Upon entering the clinic, I informed the doctor that I was waiting and asked him not to delay, but he refused to accept my case and declined to see me as soon as I said that. | BE45: Patient | CF45: Medical | CG45: 15 | CH45: =CG45/CG49 -> 62.50%
B46: 44 | C46: 928 | D46: 30252911 | E46: ذوي المراجع | F46: التنويم | G46: الطبي | H46: قسم التغذية | I46: 2023-02-22T14:41:00 | J46: ابرار الشمري | K46: 48 Hours | L46: 2023-02-20 | M46: 14:08:00 | N46: تهاني عبدالله القرني | O46: 2023-02-22 | P46: 14:41:00 | Q46: 2023-02-21 | R46: 12:10:00 | S46: ابرار الشمري | T46: 2023-02-22 | U46: 14:41:00 | V46: ابرار الشمري | W46: 0 | AA46: -44979.61181 | AE46: 0 | AJ46: -44979.61181 | AN46: -44979.61181 | AO46: 2023-02-21 | AP46: 15:15:00 | AQ46: -0.9763888889 | AR46: 2023-02-22 | AS46: 14:35:00 | AT46: ابرار الشهري | AU46: =(AS46+AR46)-(U46+T46) -> -0.004166666666 | AV46: 15556 | AW46: RAWAN AHMED ALGHAMDI | AX46: Relationship complaints | AY46: 5. Communication | AZ46: 5.1.Patient-staff communication | BA46: 5.1.1.Miscommunication with Patient | BB46: بتاريخ 14 فبراير 2023 خاص فتره التنويم تم ابلاغنا باسلوب ترهيب وتخويف وتهويل اعراض مرض السكري من قبل اخضائيه تغذيه مما ادى الى تعب نفسيه المريض | BC46: On February 14, 2023, during the hospitalization period, we were informed in a threatening and alarming manner about the symptoms of diabetes by a nutritionist, which led to psychological distress for the patient. | BE46: Patient | CF46: Admin | CG46: 6 | CH46: =CG46/CG49 -> 25.00%
B47: 45 | C47: 944 | D47: 30174266 | E47: مراجع | F47: العيادات الخارجية | G47: الطبي | H47: قسم الأشعة | I47: 2023-02-23T20:59:00 | J47: ابرار الشمري | K47: More than 72 Hours | L47: 2023-02-23 | M47: 16:13:00 | N47: ابرار الشمري | O47: 2023-02-23 | P47: 20:59:00 | Q47: 2023-02-27 | R47: 12:47:00 | S47: ابرار الشمري | T47: 2023-02-27 | U47: 12:48:00 | V47: ابرار الشمري | W47: 3.659027778 | X47: 2023-02-28 | Y47: 11:44:00 | Z47: ابرار الشمري | AA47: =(Y47+X47)-(U47+T47) -> 0.9555555556 | AE47: =(AC47+AB47)-(Y47+X47) -> -44985.48889 | AJ47: =(AG47+AF47)-(U47+T47) -> -44984.53333 | AN47: -44984.53333 | AO47: 2023-03-02 | AP47: 22:42:00 | AQ47: =(AP47+AO47)-(U47+T47) -> 3.4125 | AR47: 2023-03-04 | AS47: 15:26:00 | AT47: ابرار الشهري | AU47: =(AS47+AR47)-(U47+T47) -> 5.109722222 | AX47: Management complaints | AY47: 4. Accessibility | AZ47: 4.1.Access | BA47: 4.1.4.Appointment delay | BB47: حضرت الى موعدي في قسم الاشعه بتاريخ 23 فبراير 2023 وذهبت لدوره المياه وفي حينها تمت المناداه باسمي وعند عودتي افادني الموظف انه سوف تتم معاوده النداء علي. وبعد انتظار نصف ساعه ذهبت للاستفسار عن موعدي واجبتني اخصائيه الاشعه انه بعد الانتهاء من المرضى سوف تتم مناداتك. ذهبت الى المدير واخبرته عن مشكلتي قام باعطائها ورقتي ورفضت ان تدخلني وتتحدث بغضب بلغتها الام معي وليس باللغه الانجليزي | BC47: I arrived for my radiology appointment on February 23, 2023, and went to the restroom. My name was called, and upon my return, the employee informed me that my name would be called again. After waiting for half an hour, I went to inquire about my appointment, and the radiologist told me that my name would be called after the other patients were seen. I went to the manager and explained my problem. He gave her my referral slip, but she refused to let me in.She speaks angrily to me in her native language, not in English. | BE47: Patient | CF47: Nursing | CG47: 3 | CH47: =CG47/CG49 -> 12.50%
B48: 46 | C48: 947 | D48: 20259069 | E48: مراجع | F48: الطوارئ | G48: الطبي | H48: أطباء الطوارئ | I48: 2023-02-27T11:23:00 | J48: ابرار الشمري | K48: 48 Hours | L48: 2023-02-25 | M48: 20:56:00 | N48: ابرار الشمري | O48: 2023-02-27 | P48: 11:23:00 | Q48: 2023-02-27 | R48: 23:07:00 | S48: تهاني عبدالله القرني | T48: 2023-02-27 | U48: 11:23:00 | V48: ابرار الشمري | W48: 0 | AA48: -44984.47431 | AE48: 0 | AJ48: -44984.47431 | AN48: -44984.47431 | AO48: 2023-02-28 | AP48: 12:38:00 | AQ48: 1.052083333 | AR48: 2023-02-28 | AS48: 12:38:00 | AT48: ابرار الشهري | AU48: 1.052083333 | AV48: 14768 | AW48: Dr HANAA MOHAMED MOHAMED SONBOL | AX48: Clinical complaints | AY48: 2. Safety | AZ48: 2.2.Safety Incidents | BA48: 2.2.10.Labor and delivery related issues | BB48: تم دخولي الى الطواري بحاله ولاده في تاريخ 2 نوفمبر 2023 وبعد ساعات من دخولي تم نقلي الى غرفه الوللاده واعطائي كل ساعتين ابر مضاد للجنين علما ان اعراض الولاده معي اكثر من 15ساعه مع طلق صناعي مما ادى الى توقف نبض الجنين وعن التواصل مع الدكتوره لم تحضر 24 دقيقه وافادت ان ابقى على نفس الوضع الى يوم غد علما بان حالتي طارئه وبعد التدخل من قبل زوجي تم نقلي بشكل عاجل الى غرفه العمليات وتم ولادتي عمليه قيصيريه وكانت حاله المولود صعبه بناء على تشخيص استشاري قسم العنايه المركزه للاطفال | BC48: I was admitted to the emergency room in labor on November 2, 2023. Hours after my admission, I was transferred to the delivery room and given anti-fetal injections every two hours, even though I had been experiencing labor symptoms for over 15 hours with induced labor, which led to the baby's heartbeat stopping. When I tried to contact the doctor, she didn't come for 24 minutes and told me to stay in the same situation until the next day, despite my emergency situation.After my husband intervened, I was urgently transferred to the operating room and gave birth via cesarean section. The newborn's condition was critical, according to the diagnosis of the pediatric intensive care consultant. After my husband intervened, I was urgently transferred to the operating room and gave birth via cesarean section. The newborn's condition was critical, according to the diagnosis of the pediatric intensive care consultant. | BE48: Patient | CF48: Support Services | CG48: 0 | CH48: =CG48/CG49 -> 0.00%
B49: 47 | C49: 950 | D49: 20259069 | E49: مراجع | F49: التنويم | G49: الطبي | H49: تنويم النساء والولادة | I49: 2023-02-27T11:34:00 | J49: ابرار الشمري | K49: More than 72 Hours | L49: 2023-02-27 | M49: 11:34:00 | N49: ابرار الشمري | O49: 2023-02-27 | P49: 11:34:00 | T49: 2023-02-27 | U49: 11:47:00 | V49: ابرار الشمري | W49: 0.009027777778 | X49: 2023-02-28 | Y49: 11:42:00 | Z49: ابرار الشمري | AA49: 0.9965277778 | AB49: 2023-03-01 | AC49: 16:36:00 | AD49: ابرار الشمري | AE49: 1.204166667 | AJ49: -44984.49097 | AK49: 2023-03-04 | AL49: 15:28:00 | AM49: ابرار الشمري | AN49: 5.153472222 | AQ49: -44984.49097 | AU49: -44984.49097 | AV49: 14761 | AW49: Dr DOAA AWAD MASSOUD MOHAMED | AX49: Clinical complaints | AY49: 2. Safety | AZ49: 2.2.Safety Incidents | BA49: 2.2.10.Labor and delivery related issues | BB49: تم دخولي الى الطواري بحاله ولاده في تاريخ 2 نوفمبر 2023 وبعد ساعات من دخولي تم نقلي الى غرفه الوللاده واعطائي كل ساعتين ابر مضاد للجنين علما ان اعراض الولاده معي اكثر من 15ساعه مع طلق صناعي مما ادى الى توقف نبض الجنين وعن التواصل مع الدكتوره لم تحضر 24 دقيقه وافادت ان ابقى على نفس الوضع الى يوم غد علما بان حالتي طارئه وبعد التدخل من قبل زوجي تم نقلي بشكل عاجلالى غرفه العمليات وتم ولادتي عمليه قيصيريه وكانت حاله المولود صعبه بناء على تشخيص استشاري قسم العنايه المركزه للاطفال | BC49: I was admitted to the emergency room in labor on November 2, 2023. Hours after my admission, I was transferred to the delivery room and given anti-fetal injections every two hours, even though I had been experiencing labor symptoms for over 15 hours with induced labor, which led to the baby's heartbeat stopping. When I tried to contact the doctor, she didn't come for 24 minutes and told me to stay in the same situation until the next day, despite my emergency situation.After my husband intervened, I was urgently transferred to the operating room and gave birth via cesarean section. The newborn's condition was critical, according to the diagnosis of the pediatric intensive care consultant. After my husband intervened, I was urgently transferred to the operating room and gave birth via cesarean section. The newborn's condition was critical, according to the diagnosis of the pediatric intensive care consultant. | BE49: Patient | CF49: Total | CG49: =CG45+CG46+CG47+CG48 -> 24 | CH49: =CH45+CH46+CH47+CH48 -> 100%
B50: 48 | C50: 950 | D50: 20259069 | E50: مراجع | F50: الطوارئ | G50: الطبي | H50: أطباء الطوارئ | I50: 2023-02-27T11:34:00 | J50: ابرار الشمري | K50: More than 72 Hours | L50: 2023-02-27 | M50: 11:34:00 | N50: ابرار الشمري | O50: 2023-02-27 | P50: 11:34:00 | T50: 2023-02-27 | U50: 11:47:00 | V50: ابرار الشمري | W50: 0.009027777778 | X50: 2023-02-28 | Y50: 11:43:00 | Z50: ابرار الشمري | AA50: 0.9972222222 | AE50: -44985.48819 | AJ50: -44984.49097 | AN50: -44984.49097 | AQ50: -44984.49097 | AR50: 2023-03-04 | AS50: 15:18:00 | AT50: ابرار الشهري | AU50: 5.146527778 | AV50: 14768 | AW50: Dr HANAA MOHAMED MOHAMED SONBOL | AX50: Clinical complaints | AY50: 2. Safety | AZ50: 2.2.Safety Incidents | BA50: 2.2.10.Labor and delivery related issues | BB50: تم دخولي الى الطواري بحاله ولاده في تاريخ 2 نوفمبر 2023 وبعد ساعات من دخولي تم نقلي الى غرفه الوللاده واعطائي كل ساعتين ابر مضاد للجنين علما ان اعراض الولاده معي اكثر من 15ساعه مع طلق صناعي مما ادى الى توقف نبض الجنين وعن التواصل مع الدكتوره لم تحضر 24 دقيقه وافادت ان ابقى على نفس الوضع الى يوم غد علما بان حالتي طارئه وبعد التدخل من قبل زوجي تم نقلي بشكل عاجلالى غرفه العمليات وتم ولادتي عمليه قيصيريه وكانت حاله المولود صعبه بناء على تشخيص استشاري قسم العنايه المركزه للاطفال | BC50: I was admitted to the emergency room in labor on November 2, 2023. Hours after my admission, I was transferred to the delivery room and given anti-fetal injections every two hours, even though I had been experiencing labor symptoms for over 15 hours with induced labor, which led to the baby's heartbeat stopping. When I tried to contact the doctor, she didn't come for 24 minutes and told me to stay in the same situation until the next day, despite my emergency situation.After my husband intervened, I was urgently transferred to the operating room and gave birth via cesarean section. The newborn's condition was critical, according to the diagnosis of the pediatric intensive care consultant. After my husband intervened, I was urgently transferred to the operating room and gave birth via cesarean section. The newborn's condition was critical, according to the diagnosis of the pediatric intensive care consultant. | BE50: Patient
B51: 49 | C51: 915 | D51: 1472014 | E51: مراجع | F51: العيادات الخارجية | G51: الطبي | H51: عيادات الباطنية | I51: 2023-02-27T13:17:00 | J51: تهاني عبدالله القرني | K51: More than 72 Hours | L51: 2023-02-16 | M51: 10:38:00 | N51: تهاني عبدالله القرني | O51: 2023-02-27 | P51: 13:17:00 | Q51: 2023-02-19 | R51: 12:35:00 | S51: ابرار الشمري | T51: 2023-02-27 | U51: 13:17:00 | V51: تهاني عبدالله القرني | W51: 0 | X51: 2023-02-21 | Y51: 11:02:00 | Z51: تهاني عبدالله القرني | AA51: =(Y51+X51)-(U51+T51) -> -6.09375 | AB51: 2023-02-22 | AC51: 09:27:00 | AD51: تهاني عبدالله القرني | AE51: =(AC51+AB51)-(Y51+X51) -> 0.9340277778 | AF51: 2023-02-26 | AG51: 10:15:00 | AH51: تهاني عبدالله القرني | AI51: The complaint was escalated due to the department's failure to respond | AJ51: =(AG51+AF51)-(U51+T51) -> -1.126388889 | AN51: -44984.55347 | AO51: 2023-02-27 | AP51: 18:49:00 | AQ51: =(AP51+AO51)-(U51+T51) -> 0.2305555556 | AR51: 2023-02-28 | AS51: 09:28:00 | AT51: تهاني عبدالله القارني | AU51: =(AS51+AR51)-(U51+T51) -> 0.8409722222 | AV51: 8825 | AW51: Dr YOUSEF A M ELNEMRAWI | AX51: Clinical complaints | AY51: 6. Humanness / Caring | AZ51: 1.5.Diagnosis | BA51: 1.4.4.Inadequate pain management | BB51: بتاريخ 16 نوفمبر 2022 حضرت الى موعدي في عياده لباطنيه وبعد تشخيص الطبيبي المعالج افادني ان حالتي مستقر رغفم انني كنت اشكو من اعراض حمى والم في البطن وكاتن اسلوب الطبيب غير لائق مما ادى الى استيائي | BC51: On November 16, 2022, I attended my appointment at an internal medicine clinic. After the attending physician diagnosed me, he informed me that my condition was stable, even though I was suffering from fever and abdominal pain. The doctor's manner was inappropriate, which led to my dissatisfaction. | BE51: Patient
B52: 50 | C52: 921 | D52: 30051913 | E52: مراجع | F52: العيادات الخارجية | G52: الطبي | H52: قسم الصيدلية | I52: 2023-02-27T18:56:00 | J52: امال القحطاني | K52: 72 Hours | L52: 2023-02-18 | M52: 20:52:00 | N52: امال القحطاني | O52: 2023-02-27 | P52: 18:56:00 | Q52: 2023-02-23 | R52: 20:47:00 | S52: امال القحطاني | T52: 2023-02-27 | U52: 18:56:00 | V52: امال القحطاني | W52: 0 | AA52: -44984.78889 | AE52: 0 | AJ52: -44984.78889 | AN52: -44984.78889 | AO52: 2023-03-01 | AP52: 11:47:00 | AQ52: 1.702083333 | AR52: 2023-03-01 | AS52: 20:27:00 | AT52: امال القحطاني | AU52: 2.063194444 | AX52: Relationship complaints | AY52: 6. Humanness / Caring | AZ52: 6.2.Assault and Harassment | BA52: 6.2.1.Inappropriate/aggressive behavior | BB52: الصيدلي قام بخدمتي بطريقه غير لائقه حيث كان يتحدث معي بطريقه غير مهنيه وتم رويه ذلك مع باقي المراجعين | BC52: The pharmacist served me inappropriately, speaking to me unprofessionally, and this was witnessed by other patients. | BE52: Patient
B53: 51 | C53: 917 | D53: 30150272 | E53: مراجع | F53: العيادات الخارجية | G53: الطبي | H53: عيادات جراحة الأنف وأذن وحنجرة | I53: 2023-02-27T19:15:00 | J53: امال القحطاني | K53: More than 72 Hours | L53: 2023-02-16 | M53: 21:20:00 | N53: امال القحطاني | O53: 2023-02-27 | P53: 19:15:00 | Q53: 2023-02-23 | R53: 20:47:00 | S53: امال القحطاني | T53: 2023-02-27 | U53: 19:16:00 | V53: امال القحطاني | W53: 0.0006944444394 | AA53: -44984.80278 | AE53: 0 | AJ53: -44984.80278 | AN53: -44984.80278 | AO53: 2023-02-27 | AP53: 19:37:00 | AQ53: 0.01458333334 | AR53: 2023-03-09 | AS53: 10:56:00 | AT53: امال القحطاني | AU53: 9.652777778 | AV53: 11043 | AW53: Dr MOHAMD SAMEER ABD ALRAZAK ALRAHHAL | AX53: Clinical complaints | AY53: 1. Quality | AZ53: 1.3.Quality of Care | BA53: 1.3.4.Insensitive to patient needs | BB53: عدم استقبالي بالرغم من حضوري في وقت الموعد الموكد حيث لم يتم انتهاء وقت العياده للطبيب وحاله المريض تستدعي الكشف العاجل حيث كان الدكتور متواجد ولم يستقبلني ولم اجد حسن التعامل معنا من قبل الطبيب علما ان المريض ليس بحاله تسمح لنا بالانتظار | BC53: I was refused an appointment despite arriving at the confirmed time, even though the doctor's clinic hours hadn't ended and the patient's condition required urgent attention. The doctor was present but refused to see me, and I didn't receive any courteous treatment from him, especially considering the patient's critical condition. | BE53: Hospital
B54: 52 | C54: 940 | D54: 30046059 | E54: ذوي المراجع | F54: العيادات الخارجية | G54: الطبي | H54: قسم الصيدلية | I54: 2023-02-27T20:59:00 | J54: امال القحطاني | K54: More than 72 Hours | L54: 2023-02-23 | M54: 15:18:00 | N54: امال القحطاني | O54: 2023-02-27 | P54: 20:59:00 | Q54: 2023-02-27 | R54: 20:58:00 | S54: امال القحطاني | T54: 2023-02-27 | U54: 21:00:00 | V54: امال القحطاني | W54: 0.0006944444467 | X54: 2023-03-01 | Y54: 20:28:00 | Z54: امال القحطاني | AA54: 1.977777778 | AE54: -44986.85278 | AJ54: -44984.875 | AK54: 2023-03-09 | AL54: 22:27:00 | AM54: امال القحطاني | AN54: 10.06041667 | AQ54: -44984.875 | AU54: -44984.875 | AX54: Relationship complaints | AY54: 5. Communication | AZ54: 3.Delays | BA54: 4.3.6.Treatment delay | BB54: كنت انتظر رقمي 305 في الصيدليه الدور ى وكان شباك 6 ينتظر رقم 302 وتجاوز مده ولم يحضر وطلبت من الموظف ان يتجاوز الرقم لعدم حضور المريض وتم رفض من قبله وتم حدوث نفس الشي مع الشباك رقم 5 تم الانتظار لمده للمراجع رقم 303 ولم يتم حضوره ايضا وتم انتظاري لوقت طويل لحين ظهور رقمي علما انه تم استلام ادويتي ولازال شباك رقم 6 في انتظار المراجعين | BC54: I was waiting for my number 305 at the pharmacy, and window 6 was waiting for number 302. The wait was long, and the patient didn't come. I asked the employee to skip the number because the patient hadn't arrived, but he refused. The same thing happened at window 5; I waited for a while for patient number 303, but he also didn't come. I waited a long time until my number was called, even though I had already received my medication. Window 6 was still waiting for patients. | BE54: Patient
B55: 53 | C55: 951 | D55: 30073932 | E55: مراجع | F55: العيادات الخارجية | G55: الطبي | H55: عيادات الصدرية | I55: 2023-02-28T11:11:00 | J55: تهاني عبدالله القرني | K55: 48 Hours | L55: 2023-02-27 | M55: 13:25:00 | N55: تهاني عبدالله القرني | O55: 2023-02-28 | P55: 11:11:00 | Q55: 2023-02-28 | R55: 21:26:00 | S55: تهاني عبدالله القرني | T55: 2023-02-28 | U55: 11:11:00 | V55: تهاني عبدالله القرني | W55: 0 | AA55: -44985.46597 | AE55: 0 | AJ55: -44985.46597 | AN55: -44985.46597 | AO55: 2023-02-28 | AP55: 12:19:00 | AQ55: 0.04722222222 | AR55: 2023-03-02 | AS55: 09:36:00 | AT55: تهاني عبدالله القارني | AU55: 1.934027778 | AW55: DR.ABEER HAMADAH | AX55: Clinical complaints | AY55: 1. Quality | AZ55: 1.3.Quality of Care | BA55: 1.3.4.Insensitive to patient needs | BB55: تم زيارتي للطبيبه عبير وتم الذهاب للطوارى عده مرات حيث انني اعاني من صعوبه بالتنفس ولكن استمر التعب والكحه رغم اخذي للادويه وتم مراجعتي للطبيبه عبير بتاريخ 27 فبراير 2023 وابلاغها بحالتي السيئه وتعبي المستمر حيث تم صرف ادويه ومضاد فابلغتها بانني بحاجه الى اجازه مرضيه ثلاث او اربع ايام ولكن ردت علي قائله(تبين تتركين وظيفتك) بطريقه غير مراعيه لحالتي المرضيه | BC55: I visited Dr. Abeer and went to the emergency room several times because I was having difficulty breathing, but the fatigue and coughing continued despite taking the medications. I went back to Dr. Abeer on February 27, 2023, and informed her of my bad condition and my continuous fatigue. She prescribed medications and antibiotics, and I told her that I needed sick leave for three or four days, but she replied, "Do you want to leave your job?"In a way that disregards my medical condition | BE55: Patient
B56: 54 | C56: 954 | D56: 1485008 | E56: وزارة الصحة | F56: العيادات الخارجية | G56: الطبي | H56: عيادات الأطفال | I56: 2023-02-28T12:39:00 | J56: ابرار الشمري | K56: 24 Hours | L56: 2023-02-28 | M56: 12:26:00 | N56: ابرار الشمري | O56: 2023-02-28 | P56: 12:39:00 | T56: 2023-02-28 | U56: 12:39:00 | V56: ابرار الشمري | W56: 0 | AA56: -44985.52708 | AE56: 0 | AJ56: -44985.52708 | AN56: -44985.52708 | AQ56: -44985.52708 | AR56: 2023-02-28 | AS56: 12:41:00 | AT56: ابرار الشهري | AU56: 0.001388888886 | AX56: Management complaints | AY56: 3. Institutional Issues | AZ56: 3.7.Medical records | BA56: 3.7.7.Sick leave issues | BB56: لدي اجازه مرافقه بتاريخ 7-2 و 8-2 ولم يتم صدورها | BC56: I have a leave request for accompanying family members dated 7-2 and 8-2, but it hasn't been issued. | BE56: Patient
B57: 55 | C57: 955 | D57: 30211991 | E57: مراجع | F57: العيادات الخارجية | G57: الطبي | H57: عيادات الجراحة العامة | I57: 2023-02-28T13:16:00 | J57: ابرار الشمري | K57: More than 72 Hours | L57: 2023-02-28 | M57: 12:41:00 | N57: ابرار الشمري | O57: 2023-02-28 | P57: 13:16:00 | T57: 2023-02-28 | U57: 13:16:00 | V57: ابرار الشمري | W57: 0 | AA57: -44985.55278 | AE57: 0 | AJ57: -44985.55278 | AN57: -44985.55278 | AO57: 2023-04-01 | AP57: 14:05:00 | AQ57: 32.03402778 | AR57: 2023-04-01 | AS57: 14:05:00 | AT57: ابرار الشهري | AU57: 32.03402778 | AW57: DR.EKRAM ALLUBANI | AX57: Clinical complaints | AY57: 6. Humanness / Caring | AZ57: 1.4.Treatment | BA57: 1.4.3.Ineffective treatment | BB57: تم اجرى عمليه جراحيه عمليه فتق اسفل البطن بتاريخ 18 فبراير 2023 وبعد عودرتي الى المنزل لاحظت وجود جرح كبير اسف الظهر وبسببه لم استطع النوم والحركه بشكل طبيعي وقمت بزياره الطبيب المعالج والكشف على الجرح حيث افادني انه بسبب الميكروكروم مما ادرى الى وجود الحساسيه وتم صرف مرهم موضعي وقمت باستخدامه 5 ايام دون اي فاده او تحسن بحاله الجرح | BC57: I underwent surgery for a lower abdominal hernia on February 18, 2023. After returning home, I noticed a large wound on my lower back, which prevented me from sleeping and moving normally. I visited my doctor, who examined the wound and informed me that it was due to mercurochrome, indicating an allergic reaction. He prescribed a topical ointment, which I used for five days without any benefit or improvement in the wound.
B58: 56 | C58: 814 | D58: 30248591 | E58: ذوي المراجع | F58: العيادات الخارجية | G58: الطبي | H58: عيادات الأطفال | I58: 2023-03-01T11:47:00 | J58: تهاني عبدالله القرني | K58: 72 Hours | L58: 2023-01-25 | M58: 20:33:00 | N58: تهاني عبدالله القرني | O58: 2023-03-01 | P58: 11:47:00 | Q58: 2023-02-04 | R58: 22:54:00 | S58: تهاني عبدالله القرني | T58: 2023-03-01 | U58: 11:47:00 | V58: تهاني عبدالله القرني | W58: 0 | AA58: -44986.49097 | AE58: 0 | AJ58: -44986.49097 | AN58: -44986.49097 | AO58: 2023-03-02 | AP58: 20:35:00 | AQ58: 1.366666667 | AR58: 2023-03-04 | AS58: 09:48:00 | AT58: تهاني عبدالله القارني | AU58: 2.917361111 | AV58: 4843 | AW58: Dr YAMINE KERARMA | AX58: Clinical complaints | AY58: 6. Humanness / Caring | AZ58: 1.5.Diagnosis | BA58: 1.1.3. Not having enough knowledge regarding the patient condition | BB58: 24 يناير 2023 احضرت ابنتي للدكتور يمين وبعد شرحي له انها من الممكن انها انتقلت لها عدوى من اخيها الذي كان مريض باحتقان حاد بالبلعوم قام الدكتور بفحصها وطلب مني ان ادخلها للتنويم بحجه انه لايعلم مابيها وتوقع ان يكون بها مرض السحايه او التهاب الصدر مما اثار الهلع وبعد التوكل على الله تم رفضي للتنويم حيث طلب مني اشعه الصدر وتحليل بول فذهبت للمستوصف وتم تشخيصها بالتهاب حاد بالبلعوم | BC58: On January 24, 2023, I took my daughter to Dr. Yamin. After explaining that she might have contracted an infection from her brother, who was suffering from severe throat congestion, the doctor examined her and asked me to admit her, claiming he didn't know what was wrong with her and suspected meningitis or pneumonia. This caused panic, but after putting my trust in God, I refused to admit her. He then ordered a chest x-ray and a urine test. She went to the clinic and was diagnosed with acute pharyngitis.
B59: 57 | C59: 948 | D59: 30245206 | E59: وزارة الصحة | F59: التنويم | G59: الطبي | H59: تنويم الباطنية | I59: 2023-03-01T13:50:00 | J59: تهاني عبدالله القرني | K59: 24 Hours | L59: 2023-02-26 | M59: 11:29:00 | N59: تهاني عبدالله القرني | O59: 2023-03-01 | P59: 13:50:00 | T59: 2023-03-01 | U59: 14:00:00 | V59: تهاني عبدالله القرني | W59: 0.006944444445 | AA59: -44986.58333 | AE59: 0 | AJ59: -44986.58333 | AK59: 2023-03-01 | AL59: 11:49:00 | AM59: تهاني عبدالله القرني | AN59: -0.09097222223 | AQ59: -44986.58333 | AU59: -44986.58333 | AX59: Clinical complaints | AY59: 1. Quality | AZ59: 1.3.Quality of Care | BA59: 1.3.1.Substandard clinical/nursing care | BB59: اهمال في تقديم الخدمه العلاجيه تم عمل حصوات ومراره ويجد مضاعفات والام شديده وتسببت بنزيف وتم اقرار عمليه تركيبي دعامه ولم يتم اشعار المريض بذلك من اجل الصيام وتم تاجيل التدخل الجراحي والمريض فقط على المسكنات ومجرد ماينتهي المعفول يرجع الالم | BC59: Negligence in providing medical care resulted in gallstones and gallbladder problems, leading to complications, severe pain, and bleeding. A stent placement procedure was scheduled, but the patient was not informed of this due to fasting. The surgery was postponed, and the patient is only given painkillers. As soon as the medication wears off, the pain returns.
AF65: الشكاوي المصعدة | AG65: خلال 72 | AH65: مبكرة | AI65: متأخرة | AJ65: الموظف المسؤول
A66: 1st Half | B66: 29 | E66: MOH | F66: 10 | G66: =F66/F70 -> 18% | I66: Medical | M66: Employee Name | N66: Number of complaints | O66: Total Percentage | P66: 24 Hours | Q66: 48 Hours | R66: 72 Hours | S66: More than 72 hours | T66: Total | X66: Number of delays in sending the complaint (delay in activation) | Z66: Percentage | AA66: Activated within two hours | AB66: Percentage | AC66: Total | AF66: 8 | AI66: 1 | AJ66: امال القحطاني | AQ66: Medical | AS66: Average
A67: 2nd Half | B67: 28 | E67: CCHI | F67: 6 | G67: =F67/F70 -> 11% | I67: أطباء الطوارئ | J67: 2 | M67: ابرار الشمري | N67: 19 | O67: =N67/N70 -> 33.33% | P67: 5 | Q67: 4 | R67: 1 | S67: 9 | T67: =N67 -> 19 | X67: امال القحطاني | Y67: 1 | Z67: =Y67/AC70 -> 1.79% | AA67: 19 | AB67: =AA67/AC70 -> 33.93% | AC67: =AA67+Y67 -> 20 | AG67: 1 | AI67: 4 | AJ67: تهاني عبدالله القرني | AQ67: اطباء الطوارئ | AS67: =AVERAGE(AT67:AZ67) -> 1.04 | AT67: 1.04
E68: Patients | F68: 24 | G68: =F68/F70 -> 42% | I68: بنك الدم | J68: 1 | M68: امال القحطاني | N68: 20 | O68: =N68/N70 -> 35.09% | P68: 4 | Q68: 4 | R68: 1 | S68: 11 | T68: =N68 -> 20 | X68: تهاني القرني | Y68: 1 | Z68: =Y68/AC70 -> 1.79% | AA68: 17 | AB68: =AA68/AC70 -> 30.36% | AC68: =Y68+AA68 -> 18 | AI68: 2 | AJ68: ابرار الشمري | AQ68: عيادات الباطنيه | AS68: =AVERAGE(AT68:AZ68) -> 0.22 | AT68: 0.22
A69: Total | B69: =B66+B67 -> 57 | E69: Patient’s relatives | F69: 17 | G69: =F69/F70 -> 30% | I69: تنويم الأطفال | J69: 1 | M69: تهاني عبدالله القرني | N69: 18 | O69: =N69/N70 -> 31.58% | P69: 4 | Q69: 3 | R69: 4 | S69: 7 | T69: 18 | X69: ابرار الشمري | Y69: 2 | Z69: =Y69/AC70 -> 3.57% | AA69: 16 | AB69: =AA69/AC70 -> 28.57% | AC69: =Y69+AA69 -> 18 | AQ69: الجراحه العامه | AS69: 32.02 | AT69: 32.02
E70: Total | F70: =F66+F67+F68+F69 -> 57 | G70: =G66+G67+G68+G69 -> 100% | I70: تنويم الباطنية | J70: 2 | M70: Total | N70: =N67+N68+N69 -> 57 | O70: =SUBTOTAL(9,O67:O69) -> 100% | P70: =SUBTOTAL(9,P67:P69) -> 13 | Q70: =SUBTOTAL(9,Q67:Q69) -> 11 | R70: 6 | S70: 27 | T70: 57 | X70: Total | Y70: =SUM(Y67:Y69) -> 4 | Z70: =Z67+Z68+Z69 -> 7.14% | AA70: =AA67+AA68+AA69 -> 52 | AB70: =AB67+AB68+AB69 -> 92.86% | AC70: =AC67+AC68+AC69 -> 56 | AQ70: الجراحه التجميليه | AS70: 6.84 | AT70: 6.84
E71: In-Patient | F71: 14 | G71: =F71/F74 -> 25% | I71: تنويم النساء والولادة | J71: 1 | AC71: =AB70+Z70 -> 100.00% | AF71: الشكاوي المغلقة | AG71: خلال 72 | AH71: مبكرة | AI71: متأخرة | AJ71: الموظف المسؤول | AQ71: بنك الدم | AS71: 0.07 | AT71: 0.07
E72: Out-Patient | F72: 37 | G72: =F72/F74 -> 65% | I72: عيادات الأطفال | J72: 2 | AF72: 8 | AI72: 4 | AJ72: امال القحطاني | AQ72: جراحه الختان | AS72: 2.87 | AT72: 2.87
E73: ER | F73: 6 | G73: =F73/F74 -> 11% | I73: عيادات الأنف والأذن والحنجرة (أطفال) | J73: 1 | AH73: 1 | AJ73: تهاني عبدالله القرني | AQ73: الاشعه | AS73: 3.39 | AT73: 3.39
E74: Total | F74: =F71+F72+F73 -> 57 | G74: =G71+G73+G72 -> 100% | I74: عيادات الباطنية | J74: 1 | AH74: 1 | AI74: 2 | AJ74: ابرار الشمري | AQ74: جراحه العظام | AS74: 0.00 | AT74: 0
E75: Medical | F75: 29 | G75: =F75/F79 -> 51% | I75: عيادات الجراحة التجميلية | J75: 1 | AQ75: تنويم الاطفال | AS75: 2.84 | AT75: 2.84
E76: Admin | F76: 21 | G76: =F76/F79 -> 37% | I76: عيادات الجراحة العامة | J76: 1 | AQ76: تنويم النساء والولاده | AS76: 0.00 | AT76: 0
E77: Nursing | F77: 7 | G77: =F77/F79 -> 12% | I77: عيادات الصدرية | J77: 1 | AQ77: جراحه الانف واذن وحنجره | AS77: 3.42 | AT77: 3.42
E78: Support Services | F78: 0 | G78: =F78/F79 -> 0% | I78: عيادات المخ والأعصاب | J78: 1 | AF78: Total Escalated | AG78: 8 | AQ78: جراحه الانف واذن وحنجره اطفال | AS78: 0.00 | AT78: 0
E79: Total | F79: =F75+F76+F77+F78 -> 57 | G79: =G75+G76+G77+G78 -> 100% | I79: عيادات النساء والولادة | J79: 1 | AF79: Total Closed | AG79: 8 | AQ79: المخ والاعصاب | AS79: 0.21 | AT79: 0.21
I80: عيادات جراحة الأنف وأذن وحنجرة | J80: 2 | AQ80: التخدير | AS80: 1.97 | AT80: 1.97
I81: عيادات جراحة الختان | J81: 1 | AQ81: تنويم الباطنيه | AS81: 0.88 | AT81: 0.88
I82: عيادات جراحة العظام | J82: 1 | AQ82: عيادات النساء والولادة | AS82: 0.00 | AT82: 0
I83: قسم الأشعة | J83: 1 | AQ83: عيادات الصدريه | AS83: 0.04 | AT83: 0.04
I84: قسم التخدير | J84: 1 | AQ84: الصيدليه | AS84: 1.68 | AT84: 1.68
I85: قسم التغذية | J85: 1 | AQ85: تغذيه | AS85: 0.00 | AT85: 0
I86: قسم الصيدلية | J86: 4 | AQ86: Total | AS86: =SUM(AS67:AS85) -> 57.49
I87: قسم المختبر | J87: 1
I88: قسم عمليات الولادة | J88: 1
I89: Grand Total | J89: =SUM(J67:J88) -> 29 | AQ89: Non-Medical | AS89: Average
AQ90: اداره التنويم | AS90: =AVERAGE(AT90:AY90) -> 5.98 | AT90: 5.98
AQ91: قسم الموافقات الطبية | AS91: =AVERAGE(AT91:AY91) -> 6.80 | AT91: 11.22 | AU91: 0.06 | AV91: 2 | AW91: 13.9
I92: Non-Medical | AQ92: قسم التقارير الطبية | AS92: =AVERAGE(AT92:AY92) -> 0.37 | AT92: 0.1 | AU92: 0.01 | AV92: 1.01
I93: استقبال العيادات الخارجية | J93: 6 | AQ93: قسم المالية | AS93: 0.00 | AT93: 0
I94: قسم الإدارة | J94: 1 | AQ94: قسم الامن | AS94: 1.06 | AT94: 1.06
I95: قسم الأمن | J95: 1 | AQ95: استقبال العيادات الخارجية | AS95: 2.31 | AT95: 0.1 | AU95: 8.06 | AV95: 0.98 | AW95: 0.08
I96: قسم التقارير الطبية | J96: 3 | AQ96: قسم المختبر | AS96: =AVERAGE(AT96:AV96) -> 23.68 | AT96: 23.68
I97: قسم المالية | J97: 1 | AQ97: Total | AS97: =SUM(AS90:AS96) -> 40.19
I98: قسم الموافقات الطبية | J98: 8
I99: مكتب التنويم | J99: 1
I100: Grand Total | J100: =SUM(J93:J99) -> 21
AQ101: Nursing | AS101: Average
AQ102: تمريض تنويم الاطفال | AS102: =AVERAGE(AT102:AW102) -> 2.10 | AT102: 2.1
I103: Nursing | AQ103: تمريض قسم النساء و الولاده | AS103: 0.00 | AT103: 0
I104: تمريض الطوارى | J104: 1 | AQ104: تمريض تنويم الباطنيه | AS104: 3.91 | AT104: 3.91
I105: تمريض الطوارئ | J105: 1 | AQ105: تمريض تنويم عمليات الولاده | AS105: 4.21 | AT105: 4.21
I106: تمريض تنويم الأطفال | J106: 1 | AQ106: تمريض وحده العنايه المركزه | AS106: 23.00 | AT106: 23
I107: تمريض تنويم الباطنية | J107: 1 | AQ107: تمريض الطوارئ | AS107: 5.94 | AT107: 5.91 | AU107: 5.97
I108: تمريض تنويم النساء والولادة | J108: 1 | AQ108: Total | AS108: =SUM(AS102:AS107) -> 39.16
I109: تمريض قسم عمليات الولادة | J109: 1
I110: تمريض وحدة العناية المركزة - أطفال | J110: 1
I111: Grand Total | J111: 12
BZ194: 887 | CA194: 30246056 | CB194: وزارة الصحة | CC194: التنويم | CD194: الإداري | CE194: قسم المالية | CF194: 2023-01-19T15:17:00 | CG194: ابرار الشمري | CH194: 24 Hours
BZ195: 848 | CA195: 30007356 | CB195: وزارة الصحة | CC195: العيادات الخارجية | CD195: الإداري | CE195: قسم التقارير الطبية | CF195: 2023-02-02T13:39:00 | CG195: امال القحطاني | CH195: 24 Hours
BN196: 845 | BO196: 1595072 | BP196: مجلس الضمان الصحي | BQ196: العيادات الخارجية | BR196: الإداري | BS196: قسم الموافقات الطبية | BT196: 2023-02-01T15:59:00 | BU196: امال القحطاني | BV196: More than 72 Hours | BZ196: 850 | CA196: 0 | CB196: وزارة الصحة | CC196: العيادات الخارجية | CD196: الإداري | CE196: قسم الإدارة | CF196: 2023-02-02T16:44:00 | CG196: امال القحطاني | CH196: 48 Hours
BN197: 860 | BO197: 30249807 | BP197: مجلس الضمان الصحي | BQ197: العيادات الخارجية | BR197: الإداري | BS197: قسم الموافقات الطبية | BT197: 2023-02-04T15:00:00 | BU197: امال القحطاني | BV197: 24 Hours | BZ197: 851 | CA197: 30249729 | CB197: وزارة الصحة | CC197: العيادات الخارجية | CD197: الإداري | CE197: قسم التقارير الطبية | CF197: 2023-02-06T17:25:00 | CG197: امال القحطاني | CH197: More than 72 Hours
BN198: 868 | BO198: 1774163 | BP198: مجلس الضمان الصحي | BQ198: العيادات الخارجية | BR198: الإداري | BS198: استقبال العيادات الخارجية | BT198: 2023-02-05T14:07:00 | BU198: تهاني عبدالله القرني | BV198: 24 Hours | BZ198: 882 | CA198: 30023730 | CB198: وزارة الصحة | CC198: العيادات الخارجية | CD198: الإداري | CE198: قسم التقارير الطبية | CF198: 2023-02-08T12:05:00 | CG198: ابرار الشمري | CH198: 48 Hours
BN199: 877 | BO199: 30222839 | BP199: مجلس الضمان الصحي | BQ199: التنويم | BR199: الإداري | BS199: قسم الموافقات الطبية | BT199: 2023-02-08T13:01:00 | BU199: تهاني عبدالله القرني | BV199: 24 Hours | BZ199: 883 | CA199: 1749141 | CB199: وزارة الصحة | CC199: العيادات الخارجية | CD199: الطبي | CE199: قسم الصيدلية | CF199: 2023-02-09T13:48:00 | CG199: ابرار الشمري | CH199: 24 Hours
BN200: 893 | BO200: 30190914 | BP200: مجلس الضمان الصحي | BQ200: العيادات الخارجية | BR200: الإداري | BS200: قسم الموافقات الطبية | BT200: 2023-02-09T16:38:00 | BU200: تهاني عبدالله القرني | BV200: 72 Hours | BZ200: 913 | CA200: 30235020 | CB200: وزارة الصحة | CC200: التنويم | CD200: الطبي | CE200: تنويم الأطفال | CF200: 2023-02-15T16:49:00 | CG200: ابرار الشمري | CH200: 72 Hours
BN201: 925 | BO201: 30251308 | BP201: مجلس الضمان الصحي | BQ201: العيادات الخارجية | BR201: الإداري | BS201: قسم الموافقات الطبية | BT201: 2023-02-19T14:09:00 | BU201: ابرار الشمري | BV201: 24 Hours | BZ201: 935 | CA201: 30112399 | CB201: وزارة الصحة | CC201: العيادات الخارجية | CD201: الطبي | CE201: بنك الدم | CF201: 2023-02-21T13:42:00 | CG201: تهاني عبدالله القرني | CH201: 24 Hours
BZ202: 954 | CA202: 1485008 | CB202: وزارة الصحة | CC202: العيادات الخارجية | CD202: الطبي | CE202: عيادات الأطفال | CF202: 2023-02-28T12:39:00 | CG202: ابرار الشمري | CH202: 24 Hours
BZ203: 948 | CA203: 30245206 | CB203: وزارة الصحة | CC203: التنويم | CD203: الطبي | CE203: تنويم الباطنية | CF203: 2023-03-01T13:50:00 | CG203: تهاني عبدالله القرني | CH203: 24 Hours

Sheet March 2023
A1: Week | B1: No. | C1: رقم الشكوى | D1: رقم الملف | E1: جهة الشكوى | F1: الموقع | G1: القسم الرئيس | H1: القسم الفرعي | I1: تاريخ إستلام الشكوى | J1: المدخل | K1: Time line | L1: إرسال نموذج الشكوى | N1: Employee | O1: تحرير الشكوى | Q1: تفعيل الشكوى | S1: Employee | T1: تم ارسال الشكوى | V1: Employee | W1: الوقت بين التحرير والارسال | X1: First Reminder Sent | Z1: Employee | AA1: الوقت بين اول ايميل والارسال | AB1: Second Reminder Sent | AD1: Employee | AE1: الوقت بين ثاني ايميل والاول | AF1: Escalated | AH1: Employee | AI1: Reason of Escalation | AJ1: الوقت بين التصعيد والارسال | AK1: Closed | AM1: Employee | AN1: الوقت بين الاغلاق والارسال | AO1: تاريخ الرد | AQ1: الوقت بين الرد والارسال | AR1: Resolved | AT1: Employee | AU1: الوقت بين المعالجة و الارسال | AV1: ID | AW1: اسم الشخص المشتكى عليه - ان وجد | AX1: Domain | AY1: Category | AZ1: Sub-Category | BA1: Classification | BB1: محتوى الشكوى (عربي) | BC1: محتوى الشكوى (English) | BD1: Satisfied/Dissatisfied | BE1: The Rightful Side | BF1: Recommendation/Action plan | BJ1: رقم الشكوى | BK1: رقم الملف | BL1: جهة الشكوى | BM1: الموقع | BN1: القسم الرئيس | BO1: القسم الفرعي | BP1: تاريخ إستلام الشكوى | BQ1: المدخل | BR1: Time line | BU1: رقم الشكوى | BV1: رقم الملف | BW1: جهة الشكوى | BX1: الموقع | BY1: القسم الرئيس | BZ1: القسم الفرعي | CA1: تاريخ إستلام الشكوى | CB1: المدخل | CC1: Time line | CF1: رقم الشكوى | CG1: رقم الملف | CH1: جهة الشكوى | CI1: الموقع | CJ1: القسم الرئيس | CK1: القسم الفرعي | CL1: تاريخ إستلام الشكوى | CM1: المدخل | CN1: Time line | CQ1: رقم الشكوى | CR1: رقم الملف | CS1: جهة الشكوى | CT1: الموقع | CU1: القسم الرئيس | CV1: القسم الفرعي | CW1: تاريخ إستلام الشكوى | CX1: المدخل | CY1: Time line
K2: Time line | L2: Date | M2: Time | O2: Date | P2: Time | Q2: Date | R2: Time | T2: Date | U2: Time | X2: Date | Y2: Time | AB2: Date | AC2: Time | AF2: Date | AG2: Time | AK2: Date | AL2: Time | AO2: Date | AP2: Time | AR2: Date | AS2: Time
A3: 1 | B3: 1 | C3: 960 | D3: 30237906 | E3: مراجع | F3: العيادات الخارجية | G3: الطبي | H3: عيادات جراحة الأنف وأذن وحنجرة | I3: 2023-03-02T13:43:00 | J3: تهاني عبدالله القرني | K3: More than 72 Hours | L3: 2023-03-01 | M3: 22:08:00 | N3: تهاني القرني | O3: 2023-03-02 | P3: 13:43:00 | Q3: 2023-03-02 | R3: 10:45:00 | S3: تهاني القرني | T3: 2023-03-02 | U3: 13:43:00 | V3: تهاني عبدالله القرني | W3: =(U3+T3)-(P3+O3) -> 0 | AA3: =(Y3+X3)-(U3+T3) -> -44987.57153 | AE3: =(AC3+AB3)-(Y3+X3) -> 0 | AJ3: =(AG3+AF3)-(U3+T3) -> -44987.57153 | AN3: =(AL3+AK3)-(U3+T3) -> -44987.57153 | AO3: 2023-03-02 | AP3: 13:55:00 | AQ3: =(AP3+AO3)-(U3+T3) -> 0.008333333331 | AR3: 2023-04-02 | AS3: 15:15:00 | AT3: تهاني عبدالله القرني | AU3: =(AS3+AR3)-(U3+T3) -> 31.06388889 | AW3: DR.AHMAD NABEEL | AX3: Clinical complaints | AY3: 1. Quality | AZ3: 1.5.Diagnosis | BA3: 1.5.1.Errors in diagnosis | BB3: تم حضوري بتاريخ 26 فبراير 2023م للدكتور احمد نبيل اشتكي من اذني اليمين ‏بعدها قام الدكتور بوضع جهاز الفحص في إذني اليمين خلال ثواني معدودة أخبرني بالتشخيص فورا انه لدي التهاب في الأذن الوسطى حيث تم طلب مني تخطيط الأذن فعندما ذهبت للتخطيط وانتهيت منه أعطيته للدكتور فقال لي أنت تفقد سمعك ويجب اعطائك كرتزون وتم صرف دواء الكرتزون لي وطلب مني أن اعمل اشعه رنين مغناطيسي مع اخذ الصبغة ولكن تم استيائي من كلام الطبيب واثر ذلك على نفسيتي حين اخباره لي بانني سافقد السمع تم مغادرتي ولم اصرف الدواء وتم ذهابي الى مستشفى اخر تم الفحص علي وعمل لي تنظيف للأذن وتم صرف قطرات للاذن وتم حل مشكلتي ولا اعاني من اي الام الان. | BC3: I attended a meeting with Dr. Ahmed Nabil on February 26, 2023, to complain about Iman Yangstan. Afterwards, Dr. E'tisam held a meeting regarding my Portuguese passport.And I was told the diagnosis immediately: I had otitis media. I was asked to have an otogram, and when I went for the test and finished, I gave it to the doctor. He told me I was losing my hearing and needed to be given cortisone, and he prescribed medication.The doctor prescribed cortisone and asked me to have an MRI with contrast dye, but I was upset by what he said, and it affected my mental state when he told me I would lose my hearing.I left without getting the medication and went to another hospital where I was examined and my ear was cleaned. Ear drops were prescribed and my problem was solved, and I am not suffering from any pain now. | BE3: Patient | BJ3: 1043 | BK3: 30207086 | BL3: مجلس الضمان الصحي | BM3: الطوارئ | BN3: الإداري | BO3: استقبال الطوارئ | BP3: 2023-03-20T16:33:00 | BQ3: امال القحطاني | BR3: 24 Hours | BU3: 967 | BV3: 30194116 | BW3: وزارة الصحة | BX3: العيادات الخارجية | BY3: الطبي | BZ3: قسم الصيدلية | CA3: 2023-03-02T11:48:00 | CB3: تهاني عبدالله القرني | CC3: 24 Hours | CF3: 960 | CG3: 30237906 | CH3: مراجع | CI3: العيادات الخارجية | CJ3: الطبي | CK3: عيادات جراحة الأنف وأذن وحنجرة | CL3: 2023-03-02T13:43:00 | CM3: تهاني عبدالله القرني | CN3: More than 72 Hours | CQ3: 972 | CR3: 1752546 | CS3: ذوي المراجع | CT3: التنويم | CU3: التمريض | CV3: تمريض تنويم الباطنية | CW3: 2023-03-07T17:57:00 | CX3: تهاني عبدالله القرني | CY3: 48 Hours
B4: 2 | C4: 961 | D4: 30255750 | E4: مراجع | F4: العيادات الخارجية | G4: الطبي | H4: قسم الأشعة | I4: 2023-03-02T13:55:00 | J4: تهاني عبدالله القرني | K4: More than 72 Hours | L4: 2023-03-01 | M4: 13:23:00 | N4: تهاني القرني | O4: 2023-03-02 | P4: 13:55:00 | Q4: 2023-03-02 | R4: 10:46:00 | S4: تهاني القرني | T4: 2023-03-02 | U4: 13:56:00 | V4: تهاني عبدالله القرني | W4: 0.0006944444467 | AA4: -44987.58056 | AE4: 0 | AJ4: -44987.58056 | AN4: -44987.58056 | AO4: 2023-03-04 | AP4: 17:27:00 | AQ4: 2.146527778 | AR4: 2023-03-06 | AS4: 16:32:00 | AT4: تهاني عبدالله القرني | AU4: 4.108333333 | AW4: REEM ALANAZI | AX4: Clinical complaints | AY4: 5. Communication | AZ4: 3.Delays | BA4: 5.1.1.Miscommunication with Patient | BB4: تم حضوري بتاريخ 1 مارس 2023 لعيادة الاسنان حيث طلب مني الطبيب عمل اشعه وتم انتظاري لدى عيادة الاشعة ولم يتم مناداتي حيث خرجت موظفة القسم وبعد تأكدي من عدم وجود اي موظف داخل العيادة لخدمتي ، تم مساعدتي من قبل فني أسنان وتم الاتصال عليهم للحضور لتقديم الخدمة لي ولكن تم انتظاري لوقت طويل دون الاستجابة من قبلهم مما ادى الى استيائي الشديد ومغادرتي دون اكمال اي اجراء مع عيادات الاسنان في المستشفى . | BC4: On March 1, 2023, I went to the dental clinic where the doctor asked me to have an x-ray. I waited at the radiology clinic, but I wasn't called. A staff member went out, and after confirming that there were no other patients present, I...An employee inside the clinic was there to serve me. I was assisted by a dental technician, and they were contacted to come and provide me with service, but I waited for a long time without any response from them, which led to my extreme dissatisfaction and my leaving without completing any procedure with the dental clinics in the hospital. | BE4: Patient | BJ4: 1102 | BK4: 30240536 | BL4: مجلس الضمان الصحي | BM4: العيادات الخارجية | BN4: الإداري | BO4: استقبال العيادات الخارجية | BP4: 2023-03-26T21:36:00 | BQ4: تهاني عبدالله القرني | BR4: 24 Hours | BU4: 968 | BV4: 20061581 | BW4: وزارة الصحة | BX4: العيادات الخارجية | BY4: الطبي | BZ4: قسم الأشعة | CA4: 2023-03-02T15:47:00 | CB4: امال القحطاني | CC4: 24 Hours | CF4: 961 | CG4: 30255750 | CH4: مراجع | CI4: العيادات الخارجية | CJ4: الطبي | CK4: قسم الأشعة | CL4: 2023-03-02T13:55:00 | CM4: تهاني عبدالله القرني | CN4: More than 72 Hours | CQ4: 973 | CR4: 30140741 | CS4: ذوي المراجع | CT4: العيادات الخارجية | CU4: الطبي | CV4: عيادات النساء والولادة | CW4: 2023-03-05T12:39:00 | CX4: تهاني عبدالله القرني | CY4: More than 72 Hours
B5: 3 | C5: 962 | D5: 30232111 | E5: مراجع | F5: العيادات الخارجية | G5: الطبي | H5: عيادات النساء والولادة | I5: 2023-03-07T01:55:00 | J5: تهاني عبدالله القرني | K5: 24 Hours | L5: 2023-03-01 | M5: 13:24:00 | N5: تهاني القرني | O5: 2023-03-07 | P5: 01:55:00 | Q5: 2023-03-08 | R5: 21:07:00 | S5: تهاني القرني | T5: 2023-03-08 | U5: 21:07:00 | V5: تهاني عبدالله القرني | W5: 1.8 | AA5: -44993.87986 | AE5: 0 | AJ5: -44993.87986 | AK5: 2023-03-08 | AL5: 21:09:00 | AM5: تهاني عبدالله القرني | AN5: 0.001388888886 | AQ5: -44993.87986 | AU5: -44993.87986 | AV5: 6722 | AW5: Dr DAAD ZOUKAN KARKOUT | AX5: Relationship complaints | AY5: 6. Humanness / Caring | AZ5: 6.2.Assault and Harassment | BA5: 6.2.1.Inappropriate/aggressive behavior | BB5: تعامل الدكتورة غير مهني واسلوبها غير محترم عند نسيانها لاضافة الوصفة وثم الصراخ علي لتطلب مني اذهب للاستقبال لادفع استشاره جديدة وتحميلي خطأها . لو كان على الاقل اسلوبها محترم لتجاوزت الموضوع | BC5: The doctor's behavior was unprofessional and disrespectful. She forgot to add the prescription and then yelled at me, demanding I go to reception to pay for a new consultation and blame me for her mistake. If she had at least been respectful, I could have let it go. | BE5: Patient | BU5: 977 | BV5: 0 | BW5: وزارة الصحة | BX5: التنويم | BY5: الإداري | BZ5: إدارة التنويم | CA5: 2023-03-05T17:08:00 | CB5: تهاني عبدالله القرني | CC5: 24 Hours | CF5: 962 | CG5: 30232111 | CH5: مراجع | CI5: العيادات الخارجية | CJ5: الطبي | CK5: عيادات النساء والولادة | CL5: 2023-03-07T01:55:00 | CM5: تهاني عبدالله القرني | CN5: 24 Hours | CQ5: 979 | CR5: 30253380 | CS5: ذوي المراجع | CT5: العيادات الخارجية | CU5: الطبي | CV5: عيادات النساء والولادة | CW5: 2023-03-06T12:35:00 | CX5: ابرار الشمري | CY5: More than 72 Hours
B6: 4 | C6: 966 | D6: 1424655 | E6: مراجع | F6: العيادات الخارجية | G6: الإداري | H6: استقبال العيادات الخارجية | I6: 2023-03-04T17:56:00 | J6: امال القحطاني | K6: 72 Hours | L6: 2023-03-01 | M6: 19:04:00 | N6: امال القحطاني | O6: 2023-03-04 | P6: 17:56:00 | Q6: 2023-03-02 | R6: 18:38:00 | S6: ابرار الشمري | T6: 2023-03-02 | U6: 18:38:00 | V6: ابرار بندر الشمري | W6: -1.970833333 | X6: 2023-03-04 | Y6: 09:49:00 | Z6: تهاني القرني | AA6: 1.632638889 | AE6: -44989.40903 | AJ6: -44987.77639 | AN6: -44987.77639 | AQ6: -44987.77639 | AR6: 2023-03-04 | AS6: 20:31:00 | AT6: ابرار بندر الشمري | AU6: 2.078472222 | AX6: Relationship complaints | AY6: 5. Communication | AZ6: 1.Patient-staff communication | BA6: 5.1.1.Miscommunication with Patient | BB6: عدم التواصل مع التأمين لمتابعه الموافقه والانتظار أكثر من 20 دقيقه من قبل موظفة الموافقات لدى استقبال النساء والولاده حيث ان المريضه حامل وحالتها لا تتحمل الانتظار بحجة انها لا تستطيع التواصل مع القسم ولا يوجد لديها صلاحيات مع العلم ان هناك موظفه كانت بجانبها قامت بالتواصل وانجاز المهمه وتواصلت مع التأمين خلال اقل من 10 دقائق . | BC6: Failure to contact the insurance to follow up on the approval and waiting for more than 20 minutes by the approvals employee at the women’s and maternity reception, as the patient is pregnant and her condition cannot tolerate waiting, under the pretext that she cannot contact the department and does not have the authority, knowing that there was an employee next to her who contacted and completed the task and contacted the insurance in less than 10 minutes. | BE6: Patient | BU6: 978 | BV6: 30245460 | BW6: وزارة الصحة | BX6: التنويم | BY6: الإداري | BZ6: إدارة التنويم | CA6: 2023-03-05T17:09:00 | CB6: امال القحطاني | CC6: 24 Hours | CF6: 966 | CG6: 1424655 | CH6: مراجع | CI6: العيادات الخارجية | CJ6: الإداري | CK6: استقبال العيادات الخارجية | CL6: 2023-03-04T17:56:00 | CM6: امال القحطاني | CN6: 72 Hours | CQ6: 999 | CR6: 30254362 | CS6: ذوي المراجع | CT6: الطوارئ | CU6: الطبي | CV6: أطباء الطوارئ | CW6: 2023-03-11T15:26:00 | CX6: تهاني عبدالله القرني | CY6: More than 72 Hours
B7: 5 | C7: 967 | D7: 30194116 | E7: وزارة الصحة | F7: العيادات الخارجية | G7: الطبي | H7: قسم الصيدلية | I7: 2023-03-02T11:48:00 | J7: تهاني عبدالله القرني | K7: 24 Hours | L7: 2023-03-02 | M7: 11:13:00 | N7: تهاني القرني | O7: 2023-03-02 | P7: 11:48:00 | T7: 2023-03-02 | U7: 11:49:00 | V7: تهاني عبدالله القرني | W7: 0.0006944444394 | AA7: -44987.49236 | AE7: 0 | AJ7: -44987.49236 | AN7: -44987.49236 | AO7: 2023-03-02 | AP7: 15:02:00 | AQ7: 0.1340277778 | AR7: 2023-03-02 | AS7: 15:19:00 | AT7: تهاني عبدالله القرني | AU7: 0.1458333333 | AX7: Clinical complaints | AY7: 2. Safety | AZ7: 2.1.Medication & Vaccination | BA7: 2.1.1.Prescribing errors | BB7: تم التوجهه الى الصيدلية ولم يتم صرف الدواء له كامل لمدة شهرين تم صرف دواء لشهر واحد فقط وذلك لعدم توفر كمية كافية . CONCERTA 18 MG, 36 MG | BC7: He went to the pharmacy but was not given the full two-month supply of medication; he was only given a one-month supply due to insufficient stock. CONCERTA 18 MG, 36 MG | BE7: Patient | BU7: 986 | BV7: 30247738 | BW7: وزارة الصحة | BX7: التنويم | BY7: الطبي | BZ7: تنويم الباطنية | CA7: 2023-03-07T19:13:00 | CB7: تهاني عبدالله القرني | CC7: 24 Hours | CF7: 970 | CG7: 30049777 | CH7: مراجع | CI7: العيادات الخارجية | CJ7: الطبي | CK7: قسم الأشعة | CL7: 2023-03-02T19:49:00 | CM7: امال القحطاني | CN7: 72 Hours | CQ7: 999 | CR7: 30254362 | CS7: ذوي المراجع | CT7: العيادات الخارجية | CU7: الطبي | CV7: قسم الأشعة | CW7: 2023-03-11T15:26:00 | CX7: تهاني عبدالله القرني | CY7: More than 72 Hours
B8: 6 | C8: 968 | D8: 20061581 | E8: وزارة الصحة | F8: العيادات الخارجية | G8: الطبي | H8: قسم الأشعة | I8: 2023-03-02T15:47:00 | J8: امال القحطاني | K8: 24 Hours | L8: 2023-03-02 | M8: 15:47:00 | N8: امال القحطاني | O8: 2023-03-02 | P8: 15:47:00 | T8: 2023-03-02 | U8: 15:47:00 | V8: امال القحطاني | W8: 0 | AA8: -44987.65764 | AE8: 0 | AJ8: -44987.65764 | AN8: -44987.65764 | AQ8: -44987.65764 | AR8: 2023-03-02 | AS8: 16:00:00 | AT8: امال القحطاني | AU8: 0.009027777778 | AX8: Relationship complaints | AY8: 5. Communication | AZ8: 1.2.Patient journey | BA8: 4.1.2.Poor availability and scheduling | BB8: لم يتم تحديد موعد اخذ خزعه حتى الان . | BC8: The date for taking the biopsy has not yet been determined. | BE8: Patient | BU8: 1024 | BV8: 20106274 | BW8: وزارة الصحة | BX8: التنويم | BY8: الطبي | BZ8: وحدة العناية المركزة | CA8: 2023-03-18T16:08:00 | CB8: امال القحطاني | CC8: 24 Hours | CF8: 976 | CG8: 30256517 | CH8: مراجع | CI8: العيادات الخارجية | CJ8: الطبي | CK8: عيادات النساء والولادة | CL8: 2023-03-07T16:11:00 | CM8: تهاني عبدالله القرني | CN8: 72 Hours | CQ8: 1000 | CR8: 30191304 | CS8: ذوي المراجع | CT8: العيادات الخارجية | CU8: الطبي | CV8: قسم المختبر | CW8: 2023-03-11T17:43:00 | CX8: امال القحطاني | CY8: 24 Hours
B9: 7 | C9: 970 | D9: 30049777 | E9: مراجع | F9: العيادات الخارجية | G9: الطبي | H9: قسم الأشعة | I9: 2023-03-02T19:49:00 | J9: امال القحطاني | K9: 72 Hours | L9: 2023-03-02 | M9: 18:49:00 | N9: امال القحطاني | O9: 2023-03-02 | P9: 19:49:00 | Q9: 2023-03-02 | R9: 19:33:00 | S9: امال القحطاني | T9: 2023-03-02 | U9: 19:49:00 | V9: امال القحطاني | W9: 0 | X9: 2023-03-04 | Y9: 17:21:00 | Z9: ابرار الشمري | AA9: 1.897222222 | AE9: -44989.72292 | AJ9: -44987.82569 | AN9: -44987.82569 | AO9: 2023-03-05 | AP9: 09:26:00 | AQ9: 2.567361111 | AR9: 2023-03-05 | AS9: 17:35:00 | AT9: امال القحطاني | AU9: 2.906944444 | AW9: MOHAMMED HAMED | AX9: Relationship complaints | AY9: 5. Communication | AZ9: 5.1.Patient-staff communication | BA9: 6.2.1.Inappropriate/aggressive behavior | BB9: تم التعامل معنا باسلوب سيئ جدا حيث تم طردنا من غرفة الاشعة وعند العوده للاطمئنان على المريضه تم طردنا للمره الثانيه ولم يكن هناك تعامل احترافي لتوضيح اسباب ماتم فعله معنا وتم اخبارنا من قبل المختص في عمل الاشعه اذا لم يتم خروجنا سوف يتم اغلاق الاشعه وتم قطع الاشعه واغلاقها بالفعل على المريضه ليتم التحدث معي و طردي فقط . علما انه تم عمل نفس الاشعه سابقا للوالده وتم وقوف اكثر من شخص خارخ الغرفه ولم يوجد هناك اي اشكاليه . | BC9: We were treated very badly. We were expelled from the radiology room, and when we returned to check on the patient, we were expelled a second time. There was no professional explanation given for what happened to us, and we were informed by the specialist. During the X-ray procedure, if we didn't leave, the machine would be shut down. The X-ray was indeed cut off and shut down on the patient just to speak to me and then ask me to leave. It's worth noting that the same X-ray was performed previously on my mother, and several people were standing outside the room without any problems. | BE9: Patient | BU9: 1027 | BV9: 30152472 | BW9: وزارة الصحة | BX9: العيادات الخارجية | BY9: الطبي | BZ9: عيادات الجهاز الهضمي والمناظير | CA9: 2023-03-18T20:01:00 | CB9: تهاني عبدالله القرني | CC9: 24 Hours | CF9: 981 | CG9: 30221699 | CH9: مراجع | CI9: التنويم | CJ9: الإداري | CK9: قسم المالية | CL9: 2023-03-06T18:19:00 | CM9: ابرار الشمري | CN9: More than 72 Hours | CQ9: 1003 | CR9: 30220567 | CS9: ذوي المراجع | CT9: التنويم | CU9: التمريض | CV9: تمريض وحدة العناية المركزة | CW9: 2023-03-13T11:55:00 | CX9: امال القحطاني | CY9: More than 72 Hours
B10: 8 | C10: 972 | D10: 1752546 | E10: ذوي المراجع | F10: التنويم | G10: التمريض | H10: تمريض تنويم الباطنية | I10: 2023-03-07T17:57:00 | J10: تهاني عبدالله القرني | K10: 48 Hours | L10: 2023-03-04 | M10: 10:44:00 | N10: تهاني القرني | O10: 2023-03-07 | P10: 17:57:00 | Q10: 2023-03-05 | R10: 12:45:00 | S10: تهاني القرني | T10: 2023-03-07 | U10: 17:58:00 | V10: تهاني عبدالله القرني | W10: 0.0006944444467 | X10: 2023-03-09 | Y10: 15:45:00 | Z10: تهاني القرني | AA10: 1.907638889 | AE10: -44994.65625 | AJ10: -44992.74861 | AN10: -44992.74861 | AQ10: -44992.74861 | AR10: 2023-03-09 | AS10: 17:47:00 | AT10: تهاني عبدالله القرني | AU10: 1.992361111 | AX10: Relationship complaints | AY10: 5. Communication | AZ10: 1.Patient-staff communication | BA10: 5.1.1.Miscommunication with Patient | BB10: في 2 مارس 2023، في الغرفة 3134، كانت الممرضة غير متعاونة، ولم تستجب الممرضات عندما اتصلت بهن. وعندما خرجت والدتي لطلب المساعدة، كانت الممرضة فظة وطلبت منها العودة إلى الغرفة. | BC10: On March 2, 2023, in room 3134, the nurse was unhelpful, and the other nurses did not respond when I called them. When my mother went out to ask for help, the nurse was rude and told her to go back into the room. | BE10: Patient | BU10: 1030 | BV10: 30148801 | BW10: وزارة الصحة | BX10: العيادات الخارجية | BY10: الإداري | BZ10: قسم التقارير الطبية | CA10: 2023-03-19T09:31:00 | CB10: امال القحطاني | CC10: 24 Hours | CF10: 981 | CG10: 30221699 | CH10: مراجع | CI10: الطوارئ | CJ10: الإداري | CK10: المدير المناوب | CL10: 2023-03-06T18:19:00 | CM10: ابرار الشمري | CN10: More than 72 Hours | CQ10: 1005 | CR10: 30199975 | CS10: ذوي المراجع | CT10: التنويم | CU10: الطبي | CV10: وحدة العناية المركزة للأطفال | CW10: 2023-03-12T16:53:00 | CX10: ابرار الشمري | CY10: 24 Hours
B11: 9 | C11: 973 | D11: 30140741 | E11: ذوي المراجع | F11: العيادات الخارجية | G11: الطبي | H11: عيادات النساء والولادة | I11: 2023-03-05T12:39:00 | J11: تهاني عبدالله القرني | K11: More than 72 Hours | L11: 2023-03-04 | M11: 11:41:00 | N11: تهاني القرني | O11: 2023-03-05 | P11: 12:39:00 | Q11: 2023-03-05 | R11: 22:28:00 | S11: تهاني القرني | T11: 2023-03-05 | U11: 12:40:00 | V11: تهاني عبدالله القرني | W11: 0.0006944444467 | AA11: -44990.52778 | AE11: 0 | AJ11: -44990.52778 | AN11: -44990.52778 | AO11: 2023-03-05 | AP11: 20:42:00 | AQ11: 0.3347222222 | AR11: 2023-03-08 | AS11: 19:17:00 | AT11: ابرار بندر الشمري | AU11: 3.275694444 | AW11: DR.MOHAMMED SAATI | AX11: Management complaints | AY11: 3. Institutional Issues | AZ11: 4.Finance and Billing | BA11: 3.4.3.Calculate Additional amount | BB11: قبل العملية أخذت تسعيرة من الأخت إيمان في مكتب التنويم 8307 ريال سعودي ووقت خروج الزوجة من المستشفى زاد المبلغ ب4495 ريال سعودي دون علمي المسبق. ففيه تحليل بمبلغ تقريبا ٧٠٠ ريال وكذلك فيه أدوات لم تضاف مسبقا قبل العملية ومن الشرط معرفة المريض عن التكلفة الكاملة قبل التنويم وليس بعد. | BC11: Before the procedure, I received a quote from Sister Iman at the admissions office for 8307 Saudi Riyals. Upon my wife's discharge from the hospital, the amount increased by 4495 Saudi Riyals without my prior knowledge. This increase included tests costing approximately 700 Riyals, as well as other supplies not included before the procedure. It is mandatory for the patient to be informed of the total cost before admission, not afterward. | BE11: Patient | BU11: 1042 | BV11: 30225446 | BW11: وزارة الصحة | BX11: العيادات الخارجية | BY11: الإداري | BZ11: قسم الموافقات الطبية | CA11: 2023-03-19T16:30:00 | CB11: امال القحطاني | CC11: 48 Hours | CF11: 984 | CG11: 1575864 | CH11: مراجع | CI11: العيادات الخارجية | CJ11: الإداري | CK11: قسم الموافقات الطبية | CL11: 2023-03-09T17:16:00 | CM11: تهاني عبدالله القرني | CN11: More than 72 Hours | CQ11: 1007 | CR11: لا اعلم | CS11: ذوي المراجع | CT11: التنويم | CU11: الطبي | CV11: قسم العمليات | CW11: 2023-03-14T13:27:00 | CX11: تهاني عبدالله القرني | CY11: 24 Hours
B12: 10 | C12: 976 | D12: 30256517 | E12: مراجع | F12: العيادات الخارجية | G12: الطبي | H12: عيادات النساء والولادة | I12: 2023-03-07T16:11:00 | J12: تهاني عبدالله القرني | K12: 72 Hours | L12: 2023-03-05 | M12: 13:32:00 | N12: تهاني القرني | O12: 2023-03-07 | P12: 16:11:00 | Q12: 2023-03-06 | R12: 18:21:00 | S12: تهاني القرني | T12: 2023-03-07 | U12: 16:11:00 | V12: تهاني عبدالله القرني | W12: 0 | X12: 2023-03-08 | Y12: 16:56:00 | Z12: تهاني القرني | AA12: 1.03125 | AB12: 2023-03-09 | AC12: 17:48:00 | AD12: تهاني القرني | AE12: 1.036111111 | AJ12: -44992.67431 | AN12: -44992.67431 | AQ12: -44992.67431 | AR12: 2023-03-09 | AS12: 20:46:00 | AT12: تهاني عبدالله القرني | AU12: 2.190972222 | AV12: 6722 | AW12: DAAD ZOUKAN KARKOUT | AX12: Relationship complaints | AY12: 6. Humanness / Caring | AZ12: 6.2.Assault and Harassment | BA12: 6.2.1.Inappropriate/aggressive behavior | BB12: بتاريخ 5 مارس 2023م تم حضوري الى عيادة الطبيبه دعد اشرحلها حالتي الصحيه وبنفس اليوم توجهت سابقا لدى الطوارئ بسبب الدوره الشهريه تم اعطائي مسكن وتم تحويلي للعيادة للكشف وبنفس الوقت اخذ اجازه مرضيه لتعبي ولكن تم التعامل معي من قبل الطبيبة باسلوب غير لائق وتم الصراخ علي قائلة لي ماراح اعطيك اطلعي برا ولا عاد تجيني بصرفلك العذر بس لا عاد تجيني مره ثانيه مما ادى الى استيائي الشديد من تعاملها معي . | BC12: On March 5, 2023, I went to Dr. Daad's clinic to explain my health condition. Earlier that same day, I had gone to the emergency room due to my menstrual period. At the same time, I took sick leave because of my illness, but the doctor treated me inappropriately and shouted at me, saying, “I won’t give you leave, get out and don’t come back. I’ll give you the excuse, but don’t come back again.” This led to my extreme dissatisfaction with how she treated me. | BE12: Patient | BU12: 1101 | BV12: 30120154 | BW12: وزارة الصحة | BX12: التنويم | BY12: الطبي | BZ12: وحدة مرضى طويلي الإقامة | CA12: 2023-03-25T23:57:00 | CB12: ابرار الشمري | CC12: 48 Hours | CF12: 990 | CG12: 30245694 | CH12: مراجع | CI12: العيادات الخارجية | CJ12: الطبي | CK12: عيادات الجراحة العامة | CL12: 2023-03-12T13:12:00 | CM12: امال القحطاني | CN12: More than 72 Hours | CQ12: 1018 | CR12: 0 | CS12: ذوي المراجع | CT12: التنويم | CU12: الطبي | CV12: تنويم النساء والولادة | CW12: 2023-03-16T13:42:00 | CX12: امال القحطاني | CY12: 72 Hours
B13: 11 | C13: 978 | D13: 30245460 | E13: وزارة الصحة | F13: التنويم | G13: الإداري | H13: إدارة التنويم | I13: 2023-03-05T17:09:00 | J13: امال القحطاني | K13: 24 Hours | L13: 2023-03-05 | M13: 17:09:00 | N13: امال القحطاني | O13: 2023-03-05 | P13: 17:09:00 | T13: 2023-03-05 | U13: 17:09:00 | V13: امال القحطاني | W13: 0 | AA13: -44990.71458 | AE13: 0 | AJ13: -44990.71458 | AN13: -44990.71458 | AQ13: -44990.71458 | AR13: 2023-03-05 | AS13: 20:25:00 | AT13: امال القحطاني | AU13: 0.1361111111 | AX13: Management complaints | AY13: 1. Quality | AZ13: 1.2.Patient journey | BA13: 1.2.1.Miscoordination | BB13: تم اخراج جميع اغراض زوجتي لخارج غرفة التنويم ولم يتم انتظار حضوري | BC13: All of my wife's belongings were taken out of the bedroom, and my arrival was not awaited. | BE13: Patient | BU13: 1107 | BV13: 30052349 | BW13: وزارة الصحة | BX13: العيادات الخارجية | BY13: الإداري | BZ13: قسم التقارير الطبية | CA13: 2023-03-27T23:31:00 | CB13: تهاني عبدالله القرني | CC13: 24 Hours | CF13: 995 | CG13: 1575864 | CH13: مراجع | CI13: العيادات الخارجية | CJ13: الطبي | CK13: عيادات جراحة العظام | CL13: 2023-03-09T17:31:00 | CM13: تهاني عبدالله القرني | CN13: More than 72 Hours | CQ13: 1021 | CR13: 30122465 | CS13: ذوي المراجع | CT13: التنويم | CU13: الطبي | CV13: تنويم النساء والولادة | CW13: 2023-03-18T19:08:00 | CX13: تهاني عبدالله القرني | CY13: More than 72 Hours
B14: 12 | C14: 979 | D14: 30253380 | E14: ذوي المراجع | F14: العيادات الخارجية | G14: الطبي | H14: عيادات النساء والولادة | I14: 2023-03-06T12:35:00 | J14: ابرار الشمري | K14: More than 72 Hours | L14: 2023-03-06 | M14: 11:28:00 | N14: ابرار الشمري | O14: 2023-03-06 | P14: 12:35:00 ؛ة | Q14: 2023-03-07 | R14: 14:27:00 | S14: ابرار الشمري | T14: 2023-03-07 | U14: 14:28:00 | V14: ابرار بندر الشمري | X14: 2023-03-11 | Y14: 17:07:00 | Z14: ابرار الشمري | AA14: 4.110416667 | AB14: 2023-03-12 | AC14: 13:13:00 | AD14: امال القحطاني | AE14: 0.8375 | AJ14: -44992.60278 | AK14: 2024-06-12 | AL14: 20:24:00 | AM14: امال القحطاني | AN14: 463.2472222 | AQ14: -44992.60278 | AU14: -44992.60278 | AW14: 15405-AHMAD ABDULKAREEM | AX14: Relationship complaints | AY14: 5. Communication | AZ14: 1.Patient-staff communication | BA14: 5.1.2.Poor provider-patient communication | BB14: تم اجراء عملية (تنظيف لرحم) بتاريخ 25/3/2023 وبعد الخروج من العملية تمت الافادة من قبل الطبيب المعالج بوجود بقايا وسوف تزول مع مرور الوقت وتم افادتنا بالرجوع بعد اسبوعين للتاكد علما انه تم مراجعه المريضه خارج المستشفى للتاكد ووتم افادتنا بوجود بقايا والمشكله حتى الان لم تحل ولم يتم التوضيح من قبل الطبيب . | BC14: A uterine cleaning procedure was performed on 3/25/2023. After leaving the operation, the treating physician stated that there were remnants that would disappear over time. We were advised to return after two weeks for confirmation. Note that the patient was examined outside the hospital for confirmation, and we were informed that there were remnants. The problem has not yet been resolved, and the doctor has not provided any explanation. | BE14: Patient | BU14: 1109 | BV14: 30259950 | BW14: وزارة الصحة | BX14: التنويم | BY14: الخدمات المساندة | BZ14: قسم الصيانة | CA14: 2023-03-28T13:44:00 | CB14: امال القحطاني | CC14: 24 Hours | CF14: 996 | CG14: 1180185 | CH14: مراجع | CI14: العيادات الخارجية | CJ14: الطبي | CK14: عيادات الباطنية | CL14: 2023-03-14T18:16:00 | CM14: تهاني عبدالله القرني | CN14: More than 72 Hours | CQ14: 1021 | CR14: 30122465 | CS14: ذوي المراجع | CT14: التنويم | CU14: الطبي | CV14: قسم عمليات الولادة | CW14: 2023-03-18T19:29:00 | CX14: تهاني عبدالله القرني | CY14: More than 72 Hours
B15: 13 | C15: 981 | D15: 30221699 | E15: مراجع | F15: التنويم | G15: الإداري | H15: قسم المالية | I15: 2023-03-06T18:19:00 | J15: ابرار الشمري | K15: More than 72 Hours | L15: 2023-03-06 | M15: 15:07:00 | N15: ابرار الشمري | O15: 2023-03-06 | P15: 18:19:00 | Q15: 2023-03-13 | R15: 12:45:00 | S15: امال القحطاني | T15: 2023-03-13 | U15: 12:47:00 | V15: امال القحطاني | W15: 6.769444444 | X15: 2023-03-15 | Y15: 12:15:00 | Z15: ابرار الشمري | AA15: 1.977777778 | AB15: 2023-03-18 | AC15: 17:56:00 | AD15: ابرار الشمري | AE15: 3.236805556 | AJ15: -44998.53264 | AN15: -44998.53264 | AO15: 2023-03-27 | AP15: 22:17:00 | AQ15: 14.39583333 | AR15: 2023-03-27 | AS15: 22:20:00 | AT15: تهاني عبدالله القرني | AU15: 14.39791667 | AX15: Management complaints | AY15: 3. Institutional Issues | AZ15: 4.Finance and Billing | BA15: 3.4.3.Calculate Additional amount | BB15: تم تنويمي بتاريخ 21/2/2023 (حالة ولادة) وتم افادتي من قبل قسم الطوارى انه ليس هناك اي مستحقات لدفعها سوا 5000 ريال ، وعند الخروج من التنويم اتفاجاء بوجود مبالغ مالية مستحقه اضافة الى المبلغ الذي تم دفعه مما ادى الى استيائي ورفع شكوى . | BC15: I was admitted on 2/21/2023 (birth case) and I was informed by the emergency department that there were no outstanding payments except for 5000 riyals. Upon leaving the hospital, I was surprised to find outstanding amounts of money in addition to the amount that had been paid, which led to my dissatisfaction and filing a complaint. | BE15: Patient | BU15: 1111 | BV15: 30229970 | BW15: وزارة الصحة | BX15: العيادات الخارجية | BY15: الطبي | BZ15: قسم الصيدلية | CA15: 2023-03-29T00:22:00 | CB15: تهاني عبدالله القرني | CC15: 24 Hours | CF15: 998 | CG15: 1537252 | CH15: مراجع | CI15: العيادات الخارجية | CJ15: الطبي | CK15: عيادات جراحة الأنف وأذن وحنجرة | CL15: 2023-03-12T19:00:00 | CM15: تهاني عبدالله القرني | CN15: More than 72 Hours | CQ15: 1028 | CR15: 30259102 | CS15: ذوي المراجع | CT15: العيادات الخارجية | CU15: الطبي | CV15: عيادات العيون | CW15: 2023-03-19T02:14:00 | CX15: تهاني عبدالله القرني | CY15: 72 Hours
B16: 14 | C16: 981 | D16: 30221699 | E16: مراجع | F16: الطوارئ | G16: الإداري | H16: المدير المناوب | I16: 2023-03-06T18:19:00 | J16: ابرار الشمري | K16: More than 72 Hours | L16: 2023-03-06 | M16: 15:07:00 | N16: ابرار الشمري | O16: 2023-03-06 | P16: 18:19:00 | Q16: 2023-03-13 | R16: 12:45:00 | S16: امال القحطاني | T16: 2023-03-13 | U16: 12:47:00 | V16: امال القحطاني | W16: 6.769444444 | X16: 2023-03-18 | Y16: 17:11:00 | Z16: ابرار الشمري | AA16: 5.183333333 | AE16: -45003.71597 | AJ16: -44998.53264 | AN16: -44998.53264 | AO16: 2023-03-18 | AP16: 18:18:00 | AQ16: 5.229861111 | AR16: 2023-03-18 | AS16: 18:27:00 | AT16: تهاني عبدالله القرني | AU16: 5.236111111 | AX16: Management complaints | AY16: 3. Institutional Issues | AZ16: 4.Finance and Billing | BA16: 3.4.3.Calculate Additional amount | BB16: تم تنويمي بتاريخ 21/2/2023 (حالة ولادة) وتم افادتي من قبل قسم الطوارى انه ليس هناك اي مستحقات لدفعها سوا 5000 ريال ، وعند الخروج من التنويم اتفاجاء بوجود مبالغ مالية مستحقه اضافة الى المبلغ الذي تم دفعه مما ادى الى استيائي ورفع شكوى . | BC16: I was admitted on 2/21/2023 (birth case) and I was informed by the emergency department that there were no outstanding payments except for 5000 riyals. Upon leaving the hospital, I was surprised to find outstanding amounts of money in addition to the amount that had been paid, which led to my dissatisfaction and filing a complaint. | BE16: Patient | BU16: 1115 | BV16: 30215892 | BW16: وزارة الصحة | BX16: العيادات الخارجية | BY16: الإداري | BZ16: استقبال العيادات الخارجية | CA16: 2023-03-13T20:57:00 | CB16: تهاني عبدالله القرني | CC16: 48 Hours | CF16: 1015 | CG16: 671821 | CH16: مراجع | CI16: العيادات الخارجية | CJ16: الإداري | CK16: قسم الأمن | CL16: 2023-03-16T14:58:00 | CM16: ابرار الشمري | CN16: More than 72 Hours | CQ16: 1031 | CR16: 30256873 | CS16: ذوي المراجع | CT16: العيادات الخارجية | CU16: الطبي | CV16: عيادات النساء والولادة | CW16: 2023-03-19T10:38:00 | CX16: امال القحطاني | CY16: More than 72 Hours
B17: 15 | C17: 984 | D17: 1575864 | E17: مراجع | F17: العيادات الخارجية | G17: الإداري | H17: قسم الموافقات الطبية | I17: 2023-03-09T17:16:00 | J17: تهاني عبدالله القرني | K17: More than 72 Hours | L17: 2023-03-17 | M17: 15:59:00 | N17: تهاني القرني | O17: 2023-03-09 | P17: 17:16:00 | Q17: 2023-03-09 | R17: 16:57:00 | S17: تهاني القرني | T17: 2023-03-08 | U17: 20:44:00 | V17: ابرار بندر الشمري | W17: -0.8555555556 | AA17: -44993.86389 | AE17: 0 | AJ17: -44993.86389 | AN17: -44993.86389 | AO17: 2023-03-09 | AP17: 16:27:00 | AQ17: 0.8215277778 | AR17: 2023-03-14 | AS17: 18:56:00 | AT17: تهاني عبدالله القرني | AU17: 5.925 | AX17: Relationship complaints | AY17: 5. Communication | AZ17: 5.2.Incorrect Information | BA17: 5.2.2.Communication of wrong information | BB17: تم التواصل مع المستشفى وتم طلب ارفاق اشعة الجراحة التجميلية لشركة التامين وهي اشعه لكيس دهني بالوجهه وابلغتني موظفة الموافقات بانه تم ارفاق الاشعه ولكن تم ابلاغي من قبل شركة التامين ان الاشعة المرفقه اشعة لكسر باليد . | BC17: The hospital was contacted and a request was made to attach the cosmetic surgery x-ray for the insurance company. It was an x-ray of a fatty cyst on the face. The approvals employee informed me that the x-ray had been attached, but I was informed by the insurance company that the attached x-ray was an x-ray of a hand fracture. | BE17: Patient | CF17: 1017 | CG17: 30258590 | CH17: مراجع | CI17: العيادات الخارجية | CJ17: الطبي | CK17: عيادات النساء والولادة | CL17: 2023-03-15T17:55:00 | CM17: امال القحطاني | CN17: More than 72 Hours | CQ17: 1035 | CR17: 30038375 | CS17: ذوي المراجع | CT17: الطوارئ | CU17: الطبي | CV17: أطباء الطوارئ | CW17: 2023-03-19T18:03:00 | CX17: تهاني عبدالله القرني | CY17: More than 72 Hours
B18: 16 | C18: 986 | D18: 30247738 | E18: وزارة الصحة | F18: التنويم | G18: الطبي | H18: تنويم الباطنية | I18: 2023-03-07T19:13:00 | J18: تهاني عبدالله القرني | K18: 24 Hours | L18: 2023-03-07 | M18: 18:51:00 | N18: تهاني القرني | O18: 2023-03-07 | P18: 19:14:00 | T18: 2023-03-07 | U18: 19:06:00 | V18: تهاني القرني | W18: -0.005555555559 | AA18: -44992.79583 | AE18: 0 | AJ18: -44992.79583 | AN18: -44992.79583 | AQ18: -44992.79583 | AR18: 2023-03-07 | AS18: 19:13:00 | AT18: تهاني عبدالله القرني | AU18: 0.004861111112 | AX18: Management complaints | AY18: 3. Institutional Issues | AZ18: 3.7.Medical records | BA18: 3.7.7.Sick leave issues | BB18: تم تنويم المريضة من قبل الطبيب عمادالدين بتاريخ 1 فبراير 2023م وتم اصدار اجازة مرافق لابنة المريضة اثناء تنويم والدتها وترغب الان باجازة مرافق لمدة شهر لملازمة والدتها من تاريخ 20 شعبان حيث ان الطبيب اوصى بملازمة الوالده . | BC18: The patient was admitted by Dr. Emad El-Din on February 1, 2023. A leave of absence was issued for the patient’s daughter to accompany her mother during her mother’s admission. She now wishes to take a leave of absence for a month to stay with her mother starting from the 20th of Sha’ban, as the doctor recommended staying with the mother. | BE18: Patient | CF18: 1026 | CG18: 30256661 | CH18: مراجع | CI18: العيادات الخارجية | CJ18: الطبي | CK18: عيادات النساء والولادة | CL18: 2023-03-19T21:48:00 | CM18: ابرار الشمري | CN18: More than 72 Hours | CQ18: 1036 | CR18: 30077609 | CS18: ذوي المراجع | CT18: العيادات الخارجية | CU18: الطبي | CV18: عيادات الصدرية (أطفال) | CW18: 2023-03-19T16:54:00 | CX18: تهاني عبدالله القرني | CY18: 72 Hours
B19: 17 | C19: 990 | D19: 30245694 | E19: مراجع | F19: العيادات الخارجية | G19: الطبي | H19: عيادات الجراحة العامة | I19: 2023-03-12T13:12:00 | J19: امال القحطاني | K19: More than 72 Hours | L19: 2023-03-08 | M19: 14:12:00 | N19: امال القحطاني | O19: 2023-03-12 | P19: 13:12:00 | Q19: 2023-03-11 | R19: 17:35:00 | S19: امال القحطاني | T19: 2023-03-12 | U19: 13:13:00 | V19: امال القحطاني | W19: 0.0006944444394 | AA19: -44997.55069 | AE19: 0 | AJ19: -44997.55069 | AN19: -44997.55069 | AO19: 2023-03-12 | AP19: 18:25:00 | AQ19: 0.2166666667 | AR19: 2023-03-26 | AS19: 16:07:00 | AT19: امال القحطاني | AU19: 14.12083333 | AW19: DR.EKRAM ALLUBANI | AX19: Relationship complaints | AY19: 5. Communication | AZ19: 1.Patient-staff communication | BA19: 1.Miscommunication with Patient | BB19: تم الحضور لفك الغرز وكان تعامل الطبيب جدا قاسي وعندما طلبت منه وضع بنج لعدم تحملي للالم قام بالانفعال والصراخ علي وقال لن استخدم المخدر واذهبي لرؤية طبيب اخر علما انه لم تكن الزيارة الاولى له وكان بنفس الاسلوب وقت عمل الاجراء السابق لم يكن هناك اي مهنيه بالتعامل من قبل الطبيب حيث تم الخروج من العياده والذهاب الى طبيب اخر . | BC19: I went to have the stitches removed, and the doctor's treatment was very harsh. When I asked him to give me anesthesia because I couldn't bear the pain, he became agitated and shouted at me, saying he wouldn't use anesthesia and that I should go see another doctor. Note that it wasn't my first visit to him, and he was the same way when performing the previous procedure. There was no professionalism in the doctor's treatment, so I left the clinic and went to another doctor. | BE19: Patient | CF19: 1034 | CG19: 30247204 | CH19: مراجع | CI19: الطوارئ | CJ19: الطبي | CK19: أطباء الطوارئ | CL19: 2023-03-19T15:16:00 | CM19: تهاني عبدالله القرني | CN19: More than 72 Hours | CQ19: 1048 | CR19: 30254419 | CS19: ذوي المراجع | CT19: العيادات الخارجية | CU19: الطبي | CV19: عيادات الجراحة التجميلية | CW19: 2023-03-21T12:13:00 | CX19: امال القحطاني | CY19: 24 Hours
B20: 18 | C20: 995 | D20: 1575864 | E20: مراجع | F20: العيادات الخارجية | G20: الطبي | H20: عيادات جراحة العظام | I20: 2023-03-09T17:31:00 | J20: تهاني عبدالله القرني | K20: More than 72 Hours | L20: 2023-03-09 | M20: 17:16:00 | N20: تهاني القرني | O20: 2023-03-09 | P20: 17:31:00 | Q20: 2023-03-09 | R20: 17:34:00 | S20: تهاني القرني | T20: 2023-03-09 | U20: 17:34:00 | V20: تهاني عبدالله القرني | W20: 0.002083333333 | X20: 2023-03-11 | Y20: 12:16:00 | Z20: تهاني القرني | AA20: 1.779166667 | AB20: 2023-03-12 | AC20: 17:11:00 | AD20: تهاني القرني | AE20: 1.204861111 | AJ20: -44994.73194 | AN20: -44994.73194 | AO20: 2023-03-13 | AP20: 12:34:00 | AQ20: 3.791666667 | AR20: 2023-03-13 | AS20: 18:48:00 | AT20: تهاني عبدالله القرني | AU20: 4.051388889 | AW20: 13592-MOHAMED ALI ELAMEEN MOHAMED | AX20: Relationship complaints | AY20: 5. Communication | AZ20: 5.2.Incorrect Information | BA20: 5.2.2.Communication of wrong information | BB20: تم عمل اشعة لدى الطبيب محمد بتاريخ 4 مارس 2023م ولكن تم كتابة بالتقرير بيانات مختلفة عن بياناتي ولم اعمل اشعة لكسر باليد . | BC20: I had an X-ray done by Dr. Muhammad on March 4, 2023, but the report contained different data than mine, and I did not have an X-ray done for a hand fracture. | BE20: Patient | CF20: 1034 | CG20: 30247204 | CH20: مراجع | CI20: الطوارئ | CJ20: الطبي | CK20: أطباء الطوارئ | CL20: 2023-03-19T21:28:00 | CM20: تهاني عبدالله القرني | CN20: More than 72 Hours | CQ20: 1084 | CR20: 998705 | CS20: ذوي المراجع | CT20: العيادات الخارجية | CU20: الطبي | CV20: عيادات جراحة العظام | CW20: 2023-03-24T00:01:00 | CX20: امال القحطاني | CY20: 48 Hours
B21: 19 | C21: 996 | D21: 1180185 | E21: مراجع | F21: العيادات الخارجية | G21: الطبي | H21: عيادات الباطنية | I21: 2023-03-14T18:16:00 | J21: تهاني عبدالله القرني | K21: More than 72 Hours | L21: 2023-03-09 | M21: 20:17:00 | N21: تهاني القرني | O21: 2023-03-14 | P21: 18:16:00 | Q21: 2023-03-14 | R21: 18:15:00 | S21: تهاني القرني | T21: 2023-03-14 | U21: 18:15:00 | V21: تهاني عبدالله القرني | W21: -0.0006944444467 | X21: 2023-03-14 | Y21: 18:16:00 | Z21: تهاني القرني | AA21: 0.0006944444467 | AE21: -44999.76111 | AJ21: -44999.76042 | AN21: -44999.76042 | AO21: 2023-03-14 | AP21: 19:56:00 | AQ21: 0.07013888889 | AR21: 2023-03-23 | AS21: 22:31:00 | AT21: تهاني عبدالله القرني | AU21: 9.177777778 | AW21: 8825-YOUSEF ALI EL NEMRAWI | AX21: Clinical complaints | AY21: 1. Quality | AZ21: 1.1. Examination | BA21: 1.1.3. Not having enough knowledge regarding the patient condition | BB21: تم الحضور الى عيادة الطبيب يوسف بتاريخ 9 مارس 2023م وذلك لرغبي بالفحص على الهيموقلوبين للتبرع العلاجي ، تم التعامل معي من قبل الطبيب بطريقة غير جبدة بالاضافة الى لم يتم توضيح التحاليل والاجراءات المطلوبة مسبقا قبل التوجهه الى الاستقبال. | BC21: I went to Dr. Youssef’s clinic on March 9, 2023, because I wanted to have my hemoglobin levels checked for therapeutic donation. The doctor treated me poorly, and the required tests and procedures were not explained beforehand before I went to the reception. | BE21: Patient | BJ21: Employee Name | BK21: Number of complaints | BL21: Total Percentage | BM21: 24 Hours | BN21: 48 Hours | BO21: 72 Hours | BP21: More than 72 hours | BQ21: Total | CF21: 1037 | CG21: 30243179 | CH21: مراجع | CI21: التنويم | CJ21: التمريض | CK21: تمريض قسم عمليات الولادة | CL21: 2023-03-19T17:05:00 | CM21: تهاني عبدالله القرني | CN21: More than 72 Hours | CQ21: 1085 | CR21: 30259945 | CS21: ذوي المراجع | CT21: الطوارئ | CU21: الإداري | CV21: استقبال الطوارئ | CW21: 2023-03-24T16:18:00 | CX21: تهاني عبدالله القرني | CY21: 48 Hours
B22: 20 | C22: 998 | D22: 1537252 | E22: مراجع | F22: العيادات الخارجية | G22: الطبي | H22: عيادات جراحة الأنف وأذن وحنجرة | I22: 2023-03-12T19:00:00 | J22: تهاني عبدالله القرني | K22: More than 72 Hours | L22: 2023-03-11 | M22: 12:56:00 | N22: تهاني القرني | O22: 2023-03-12 | P22: 19:00:00 | Q22: 2023-03-12 | R22: 18:45:00 | S22: تهاني القرني | T22: 2023-03-12 | U22: 19:00:00 | V22: تهاني عبدالله القرني | W22: 0 | AA22: -44997.79167 | AE22: 0 | AJ22: -44997.79167 | AN22: -44997.79167 | AO22: 2023-03-12 | AP22: 19:07:00 | AQ22: 0.004861111112 | AR22: 2023-03-16 | AS22: 09:44:00 | AT22: تهاني عبدالله القرني | AU22: 3.613888889 | AW22: DR.AHMAD NABEEL | AX22: Relationship complaints | AY22: 5. Communication | AZ22: 5.1.Patient-staff communication | BA22: 5.1.2.Poor provider-patient communication | BB22: تم الحضور بتاريخ 11 مارس 2023م لدى عيادة الطبيب احمد حيث لم يشخص الحاله، ولم يكتب لي دواء وحولني لمستشفى السعودي الألماني لعمل فحص اتزان وحدث رفض للتحويل من شركة التأمين ثم قبول جزئي حاولت فهم ماذا ان لم يتم عمل تخطيط الاتزان وانتظرت الطبيب لثلاث كشوفات متتالية وهو يرفض مقابلتي فانتهزت فرصة خروج المريض الثالث ودخلت علىه لأسأله الحل والعلاج فنهرني وأحرجني أمام المراجعين ولم أدخل عنوه لكن الباب كان مفتوح بعد خروج المريض الثالث مع العلم بانني حضرت للمستشفي الساعة 8:40 دقيقة وحتى الساعة 12 ظهرا والمي يزداد بسبب الانتظار ومراجعة الموافقات والتأمين والطبيب وفي النهاية لم أعرف مرضي ولا علاجي واضافة الى ذلك كانت معاملة الطبيب ليست مناسبة ولائقة . | BC22: On March 11, 2023, I went to Dr. Ahmed's clinic, where he did not diagnose my condition, prescribed no medication, and referred me to the Saudi German Hospital for a balance test. The referral was initially rejected by my insurance company, then partially accepted. I tried to understand what would happen if the balance test wasn't performed, and I waited for the doctor for three consecutive appointments, but he refused to see me. So I took advantage of the situation...I took the opportunity of the third patient's discharge and went in to ask him for a solution and treatment, but he rebuked me and embarrassed me in front of the other patients. I didn't force my way in, but the door was open after the third patient had left.Knowing that I arrived at the hospital at 8:40 and remained there until 12 noon, and my pain increased due to the waiting, reviewing approvals, insurance, and the doctor, and in the end I did not know my illness or treatment, and in addition to that, the doctor's treatment was not appropriate or decent. | BE22: Patient | BJ22: تهاني القرني | BK22: 1 | BL22: =BK22/BK24 -> 50.00% | BM22: 1 | BQ22: =BK22 -> 1 | BU22: Employee Name | BV22: Number of complaints | BW22: Total Percentage | BX22: 24 Hours | BY22: 48 Hours | BZ22: 72 Hours | CA22: More than 72 hours | CB22: Total | CF22: 1037 | CG22: 30243179 | CH22: مراجع | CI22: التنويم | CJ22: الطبي | CK22: قسم عمليات الولادة | CL22: 2023-03-19T17:05:00 | CM22: تهاني عبدالله القرني | CN22: More than 72 Hours
B23: 21 | C23: 999 | D23: 30254362 | E23: ذوي المراجع | F23: الطوارئ | G23: الطبي | H23: أطباء الطوارئ | I23: 2023-03-11T15:26:00 | J23: تهاني عبدالله القرني | K23: More than 72 Hours | L23: 2023-03-11 | M23: 13:08:00 | N23: تهاني القرني | O23: 2023-03-11 | P23: 15:26:00 | Q23: 2023-03-11 | R23: 14:49:00 | S23: تهاني القرني | T23: 2023-03-11 | U23: 15:26:00 | V23: تهاني عبدالله القرني | W23: 0 | AA23: -44996.64306 | AE23: 0 | AJ23: -44996.64306 | AN23: -44996.64306 | AO23: 2023-03-12 | AP23: 12:35:00 | AQ23: 0.88125 | AR23: 2023-05-10 | AS23: 15:17:00 | AT23: تهاني عبدالله القرني | AU23: 59.99375 | AX23: Relationship complaints | AY23: 6. Humanness / Caring | AZ23: 6.1.Emotional Support | BA23: 6.1.2.Neglect | BB23: تم الحضور بتاريخ 11 مارس 2023م ( الاجراء هو تركيب قسطرة بولية مع حقن صبغة ملونة) تم حجز موعد للإجراء الطبي المذكور أعلاه ، تم التوجهه الى قسم الطوارئ لتركيب القسطرة وتم تركيب قسطرة اكبر من مقاس الطفل وبعد التوجهه لقسم الاشعة وبعد حقن نصف المادة الملونه ولكن خرجت القسطرة من مكانها وتم خروج الطبيب عبدالمنعم والذهاب الى استراحة الاطباء دون الاهتمام بالامر واكمال الاجراء الطبي والمتابعه بعد ذلك تم التواصل مع طبيب الطوارئ وتم محاول تركيب قسطرة اخرى عدة مرات ولكن دون جدوى ابلغنا الطبيب سأستدعي متخصص في جراحة الاطفال تم توجهي الى مدير قسم الاشعة سعيد وابلاغه بالاشكالية وذكر أنه طالما الطبيبين موجودين اذهب لهم وسيتم التواصل معك لاحقا ولكن دون اي اهتمام وبسبب خروج ودخول القسطرة اكثر من مرتين ادت لآلام شديدة جدا للطفل مما ادى الى استيائنا ومغادرتنا دون عمل الاشعة . | BC23: On March 11, 2023, an appointment was scheduled for the procedure (insertion of a urinary catheter with injection of a contrast dye). The patient went to the emergency department for catheter insertion, and a catheter larger than the child's size was inserted. After going to the radiology department and injecting half of the contrast dye, the catheter came out of place, and Dr. Abdulmonem left.We went to the doctors' lounge without paying attention to the matter and completing the medical procedure and follow-up. After that, we contacted the emergency room doctor and tried to insert another catheter several times, but to no avail. The doctor informed us that he would call a pediatric surgeon. I then went to the head of the radiology department, Saeed, and informed him of the problem. He mentioned that as long as the two doctors were present, go to them and they would contact you later, but without any attention. Because the catheter went out and in more than twice, it caused very severe pain for the child, which led to our dissatisfaction and our leaving without doing the X-ray. | BE23: Patient | BJ23: امال القحطاني | BK23: 1 | BL23: =BK23/BK24 -> 50.00% | BM23: 1 | BQ23: =BK23 -> 1 | BU23: تهاني القرني | BV23: 7 | BW23: =BV23/BV26 -> 50.00% | CB23: =BV23 -> 7 | CF23: 1037 | CG23: 30243179 | CH23: مراجع | CI23: التنويم | CJ23: الطبي | CK23: تنويم النساء والولادة | CL23: 2023-03-19T17:20:00 | CM23: تهاني عبدالله القرني | CN23: More than 72 Hours | CQ23: Employee Name | CR23: Number of complaints | CS23: Total Percentage | CT23: 24 Hours | CU23: 48 Hours | CV23: 72 Hours | CW23: More than 72 hours | CX23: Total
B24: 22 | C24: 999 | D24: 30254362 | E24: ذوي المراجع | F24: العيادات الخارجية | G24: الطبي | H24: قسم الأشعة | I24: 2023-03-11T15:26:00 | J24: تهاني عبدالله القرني | K24: More than 72 Hours | L24: 2023-03-11 | M24: 13:08:00 | N24: تهاني القرني | O24: 2023-03-11 | P24: 15:26:00 | Q24: 2023-03-11 | R24: 14:49:00 | S24: تهاني القرني | T24: 2023-03-11 | U24: 15:26:00 | V24: تهاني عبدالله القرني | W24: 0 | X24: 2023-03-12 | Y24: 17:06:00 | Z24: تهاني القرني | AA24: 1.069444444 | AE24: -44997.7125 | AJ24: -44996.64306 | AN24: -44996.64306 | AO24: 2023-03-13 | AP24: 22:26:00 | AQ24: 2.291666667 | AR24: 2023-05-10 | AS24: 15:17:00 | AT24: تهاني عبدالله القرني | AU24: 59.99375 | AV24: 11245 | AW24: Dr ABDELMONEM IBRAHIM AHMED ELSHAZLY | AX24: Relationship complaints | AY24: 6. Humanness / Caring | AZ24: 6.1.Emotional Support | BA24: 6.1.2.Neglect | BB24: تم الحضور بتاريخ 11 مارس 2023م ( الاجراء هو تركيب قسطرة بولية مع حقن صبغة ملونة) تم حجز موعد للإجراء الطبي المذكور أعلاه ، تم التوجهه الى قسم الطوارئ لتركيب القسطرة وتم تركيب قسطرة اكبر من مقاس الطفل وبعد التوجهه لقسم الاشعة وبعد حقن نصف المادة الملونه ولكن خرجت القسطرة من مكانها وتم خروج الطبيب عبدالمنعم والذهاب الى استراحة الاطباء دون الاهتمام بالامر واكمال الاجراء الطبي والمتابعه بعد ذلك تم التواصل مع طبيب الطوارئ وتم محاول تركيب قسطرة اخرى عدة مرات ولكن دون جدوى ابلغنا الطبيب سأستدعي متخصص في جراحة الاطفال تم توجهي الى مدير قسم الاشعة سعيد وابلاغه بالاشكالية وذكر أنه طالما الطبيبين موجودين اذهب لهم وسيتم التواصل معك لاحقا ولكن دون اي اهتمام وبسبب خروج ودخول القسطرة اكثر من مرتين ادت لآلام شديدة جدا للطفل مما ادى الى استيائنا ومغادرتنا دون عمل الاشعة . | BC24: On March 11, 2023, an appointment was scheduled for the procedure (insertion of a urinary catheter with injection of a contrast dye). The patient went to the emergency department for catheter insertion, and a catheter larger than the child's size was inserted. After going to the radiology department and injecting half of the contrast dye, the catheter came out of place, and Dr. Abdulmonem left.We went to the doctors' lounge without paying attention to the matter and completing the medical procedure and follow-up. After that, we contacted the emergency room doctor and tried to insert another catheter several times, but to no avail. The doctor informed us that he would call a pediatric surgeon. I then went to the head of the radiology department, Saeed, and informed him of the problem. He mentioned that as long as the two doctors were present, go to them and they would contact you later, but without any attention. Because the catheter went out and in more than twice, it caused very severe pain for the child, which led to our dissatisfaction and our leaving without doing the X-ray. | BE24: Patient | BJ24: Total | BK24: =SUBTOTAL(9,BK22:BK23) -> 2 | BL24: 100% | BM24: 2 | BN24: 0 | BO24: 0 | BP24: 0 | BQ24: 2 | BU24: ابرار الشمري | BV24: 1 | BW24: =BV24/BV26 -> 7.14% | CB24: =BV24 -> 1 | CF24: 1040 | CG24: 950443 | CH24: مراجع | CI24: العيادات الخارجية | CJ24: الإداري | CK24: قسم علاقات المرضى | CL24: 2023-03-19T22:35:00 | CM24: تهاني عبدالله القرني | CN24: 24 Hours | CQ24: امال القحطاني | CR24: 6 | CS24: =CR24/CR27 -> 31.58% | CT24: 2 | CU24: 1 | CV24: 1 | CW24: 2 | CX24: =CR24 -> 6
B25: 23 | C25: 1000 | D25: 30191304 | E25: ذوي المراجع | F25: العيادات الخارجية | G25: الطبي | H25: قسم المختبر | I25: 2023-03-11T17:43:00 | J25: امال القحطاني | K25: 24 Hours | L25: 2023-03-11 | M25: 16:49:00 | N25: امال القحطاني | O25: 2023-03-11 | P25: 17:43:00 | Q25: 2023-03-11 | R25: 17:43:00 | S25: امال القحطاني | T25: 2023-03-11 | U25: 17:43:00 | V25: امال القحطاني | W25: 0 | AA25: -44996.73819 | AE25: 0 | AJ25: -44996.73819 | AK25: 2023-03-11 | AL25: 19:18:00 | AM25: امال القحطاني | AN25: 0.06597222223 | AQ25: -44996.73819 | AU25: -44996.73819 | AX25: Clinical complaints | AY25: 1. Quality | AZ25: 1.1. Examination | BA25: 1.1.4. Lab tests not performed | BB25: تم رفع تقرير مختبر رقم Lb2200084265 بتاريخ ٥ سبتمبر ٢٠٢٢ باسم شخص اخر وتم اعادة طلب التقرير بتاريخ ٢٥ فبراير ٢٠٢٣ طلب رقم LB2300016525 عدد ٣ تحاليل تم اظهار تحليلين صحيح وتم استبدال التحليل الثالث بتحليل اخر وهو نفس التحليل الذي تم طلبه بتاريخ ٥ سبتمبر ٢٠٢٢ ,ونريد الان اظهار تحليل حساسية الالبان المطلوب مرتين سابقا f2 caws m | BC25: Laboratory report number Lb2200084265, dated September 5, 2022, was submitted under another person's name. The report was re-requested on February 25, 2023, under request number LB2300016525, for three tests. Two of the tests were correct, and the third was replaced with another test, which is the same test that was requested on September 5, 2022. We now need the results for the milk allergy test that was requested twice previously (f2 caws m). | BE25: Patient | BU25: امال القحطاني | BV25: 6 | BW25: =BV25/BV26 -> 42.86% | CB25: =BV25 -> 6 | CF25: 1082 | CG25: 20001461 | CH25: مراجع | CI25: العيادات الخارجية | CJ25: الطبي | CK25: عيادات الباطنية | CL25: 2023-03-23T14:08:00 | CM25: امال القحطاني | CN25: 48 Hours | CQ25: ابرار الشمري | CR25: 2 | CS25: =CR25/CR27 -> 10.53% | CT25: 1 | CW25: 1 | CX25: =CR25 -> 2
B26: 24 | C26: 1003 | D26: 30220567 | E26: ذوي المراجع | F26: التنويم | G26: التمريض | H26: تمريض وحدة العناية المركزة | I26: 2023-03-13T11:55:00 | J26: امال القحطاني | K26: More than 72 Hours | L26: 2023-03-11 | M26: 21:13:00 | N26: امال القحطاني | O26: 2023-03-13 | P26: 11:55:00 | Q26: 2023-03-11 | R26: 21:30:00 | S26: امال القحطاني | T26: 2023-03-13 | U26: 11:56:00 | V26: امال القحطاني | W26: 0.0006944444394 | X26: 2023-03-14 | Y26: 09:36:00 | Z26: امال القحطاني | AA26: 0.9027777778 | AB26: 2023-03-16 | AC26: 18:01:00 | AD26: امال القحطاني | AE26: 2.350694444 | AJ26: -44998.49722 | AN26: -44998.49722 | AO26: 2023-03-17 | AP26: 19:01:00 | AQ26: 4.295138889 | AR26: 2023-03-27 | AS26: 15:47:00 | AT26: امال القحطاني | AU26: 14.16041667 | AW26: CARL | AX26: Relationship complaints | AY26: 5. Communication | AZ26: 1.Patient-staff communication | BA26: 5.1.1.Miscommunication with Patient | BB26: تتعامل الممرضة مع المريض بطريقة غير مهنية. في كل مرة أزوره، يخبرني أن الممرضة كارل تصرخ في وجهه عندما يطلب شيئًا، ولا تجيبه عندما يناديها. | BC26: The nurse deals with the patient in an unprofessional manner. Every time I visit the patient he told me the nurse Carl screams at him when he asks for something and there is no response when he call her. | BE26: Patient | BU26: Total | BV26: =SUBTOTAL(9,BV23:BV25) -> 14 | BW26: =SUBTOTAL(9,BW23:BW25) -> 100% | BX26: =SUM(BX23:BX25) -> 0 | BY26: =SUM(BY23:BY25) -> 0 | BZ26: 0 | CA26: 0 | CB26: =SUBTOTAL(9,CB23:CB25) -> 14 | CF26: 1093 | CG26: 1539287 | CH26: مراجع | CI26: العيادات الخارجية | CJ26: الطبي | CK26: قسم الأشعة | CL26: 2023-03-25T14:43:00 | CM26: امال القحطاني | CN26: More than 72 Hours | CQ26: تهاني القرني | CR26: 11 | CS26: =CR26/CR27 -> 57.89% | CT26: 1 | CU26: 2 | CV26: 1 | CW26: 6 | CX26: =CR26 -> 11
B27: 25 | C27: 1005 | D27: 30199975 | E27: ذوي المراجع | F27: التنويم | G27: الطبي | H27: وحدة العناية المركزة للأطفال | I27: 2023-03-12T16:53:00 | J27: ابرار الشمري | K27: 24 Hours | L27: 2023-03-12 | M27: 16:41:00 | N27: ابرار الشمري | O27: 2023-03-12 | P27: 16:53:00 | Q27: 2023-03-15 | R27: 21:35:00 | S27: ابرار الشمري | T27: 2023-03-15 | U27: 09:35:00 | V27: ابرار الشمري | W27: 2.695833333 | AA27: -45000.39931 | AE27: 0 | AJ27: -45000.39931 | AN27: -45000.39931 | AQ27: -45000.39931 | AR27: 2023-03-15 | AS27: 09:37:00 | AT27: ابرار بندر الشمري | AU27: 0.001388888886 | AX27: Management complaints | AY27: 3. Institutional Issues | AZ27: 3.7.Medical records | BA27: 3.7.7.Sick leave issues | BB27: اجازه | BC27: sick leave | BE27: Patient | CF27: 1105 | CG27: 30066740 | CH27: مراجع | CI27: الطوارئ | CJ27: التمريض | CK27: تمريض الطوارئ | CL27: 2023-03-27T11:10:00 | CM27: تهاني عبدالله القرني | CN27: More than 72 Hours | CQ27: Total | CR27: =SUBTOTAL(9,CR24:CR26) -> 19 | CS27: =CS24+CS25+CS26 -> 100% | CT27: =SUBTOTAL(9,CT24:CT26) -> 4 | CU27: =SUBTOTAL(9,CU24:CU26) -> 3 | CV27: 3 | CW27: 9 | CX27: =SUM(CT27:CW27) -> 19
B28: 26 | C28: 1007 | D28: لا اعلم | E28: ذوي المراجع | F28: التنويم | G28: الطبي | H28: قسم العمليات | I28: 2023-03-14T13:27:00 | J28: تهاني عبدالله القرني | K28: 24 Hours | L28: 2023-03-13 | M28: 18:29:00 | N28: تهاني القرني | O28: 2023-03-14 | P28: 13:27:00 | Q28: 2023-05-07 | R28: 22:08:00 | S28: تهاني القرني | T28: 2023-05-07 | U28: 10:08:00 | V28: تهاني عبدالله القرني | W28: 53.86180556 | AA28: -45053.42222 | AE28: 0 | AJ28: -45053.42222 | AK28: 2023-05-07 | AL28: 10:12:00 | AM28: تهاني عبدالله القرني | AN28: 0.00277777778 | AQ28: -45053.42222 | AU28: -45053.42222 | AX28: Clinical complaints | AY28: 5. Communication | AZ28: 1.3.Quality of Care | BA28: 4.1.2.Poor availability and scheduling | BB28: الشكوى كالتالي: 1 -كان موعد الدخول للعملية الساعه 00:2 م ولم ندخل العملية الا الساعه 15:4 م مما ادى التأخير وتألم الوالد من مرضه والاستغراب في الموضوع ان الدكتور سعد لم يعلم عن تأخير العملية وافاد ان العملية كانت الساعه 15:3م واعتذر عن استقبالكم كونها تم تأخيرها 2 -عدم التزام موظفين الاستقبال في يوم الخروج في عملهم ولم نجد من ينجزنا في آلية الخروج وجلب العلاج من الصيدلية 3 -موظف المدير التنفيذي محمد الحمادي السكرتير عند سؤالي عن آلية المقابلة للمدير افادني انه في اجتماع وعن سؤالي له متى استطيع مقابلته افادني لا تستطيع فسألته متى يخلص اجتماعه لاتمكن من مقابلته افادني وبطريقة مستفزه وغير مؤدبه(الاجتماع مايخلص على طول في اجتماع) 4-افادنا الدكتور سعد ان سعر العملية 8500 ريال فتم دفع المبلغ + مبلغ 3000 ريال اضافي كتأمين فنتفاجئ عند ااخروج ان المبلغ الاجمالي يفوق ال 14 الف. | BC28: The complaint is as follows: 1- The scheduled surgery time was 2:00 PM, but we didn't enter the operating room until 4:15 PM. This caused a delay and my father's pain. Surprisingly, Dr. Saad was unaware of the delay and stated that the surgery was scheduled for 3:15 PM, apologizing for not being able to see us due to the delay. 2- The reception staff were not committed to their duties on the day of discharge, and we couldn't find anyone to assist us with the discharge process or to retrieve our medication from the pharmacy. 3- When I inquired about the interview procedure, the Executive Director's employee, Mohammed Al-Hammadi, the secretary, was unresponsive. The manager informed me that he was in a meeting. When I asked him when I could meet with him, he said I couldn't. I then asked when his meeting would end so I could meet with him, and he replied in a provocative and rude manner, "The meeting never ends, there's always another meeting." Dr. Saad informed us that the price of the operation was 8500 riyals, so we paid that amount plus an additional 3000 riyals as a deposit. We were surprised upon leaving to find that the total amount exceeded 14,000 riyals. | BE28: Patient | BJ28: CCHI | BK28: 2 | BL28: =BK28/62 -> 3.23% | BU28: MOH | BV28: =BV26 -> 14 | BW28: =BV28/62 -> 22.58% | CF28: 1108 | CG28: 050 429 6239 | CH28: مراجع | CI28: التنويم | CJ28: الإداري | CK28: قسم الأمن | CL28: 2023-03-27T23:59:00 | CM28: امال القحطاني | CN28: More than 72 Hours
B29: 27 | C29: 1015 | D29: 671821 | E29: مراجع | F29: العيادات الخارجية | G29: الإداري | H29: قسم الأمن | I29: 2023-03-16T14:58:00 | J29: ابرار الشمري | K29: More than 72 Hours | L29: 2023-03-15 | M29: 16:42:00 | N29: ابرار الشمري | O29: 2023-03-16 | P29: 14:58:00 | Q29: 2023-03-16 | R29: 14:58:00 | S29: امال القحطاني | T29: 2023-03-16 | U29: 14:58:00 | V29: امال القحطاني | W29: 0 | AA29: -45001.62361 | AE29: 0 | AJ29: -45001.62361 | AN29: -45001.62361 | AO29: 2023-03-16 | AP29: 19:09:00 | AQ29: 0.1743055556 | AR29: 2023-03-21 | AS29: 10:00:00 | AT29: امال القحطاني | AU29: 4.793055556 | AW29: IBRAHEM ASEERI | AX29: Relationship complaints | AY29: 5. Communication | AZ29: 1.Patient-staff communication | BA29: 5.1.1.Miscommunication with Patient | BB29: تم حضور رجل الامن وقت انتظاري وتم سؤالي عن جنسيتي من قبله (هل انت سوداني؟ ) لا اعلم ماسبب السؤال وبماذا تفيد االموظف اجابتي ولم يتم الرد وعاد السؤال علي ولم افهم المطلوب منه . | BC29: He doesn't know the reason for the question, what benefit my answer would bring to the employee, and the question is usually not answered, nor does he understand what is required of him. | BE29: Patient | CF29: 1110 | CG29: 1433336 | CH29: مراجع | CI29: العيادات الخارجية | CJ29: الإداري | CK29: استقبال المختبر | CL29: 2023-03-28T23:23:00 | CM29: امال القحطاني | CN29: More than 72 Hours
B30: 28 | C30: 1017 | D30: 30258590 | E30: مراجع | F30: العيادات الخارجية | G30: الطبي | H30: عيادات النساء والولادة | I30: 2023-03-15T17:55:00 | J30: امال القحطاني | K30: More than 72 Hours | L30: 2023-03-15 | M30: 17:48:00 | N30: امال القحطاني | O30: 2023-03-15 | P30: 17:55:00 | Q30: 2023-03-16 | R30: 15:23:00 | S30: امال القحطاني | T30: 2023-03-21 | U30: 14:27:00 | V30: امال القحطاني | W30: 5.855555556 | AA30: -45006.60208 | AE30: 0 | AJ30: -45006.60208 | AN30: -45006.60208 | AO30: 2023-03-21 | AP30: 17:14:00 | AQ30: 0.1159722222 | AR30: 2023-03-26 | AS30: 16:06:00 | AT30: امال القحطاني | AU30: 5.06875 | AV30: 6884 | AW30: Dr MAJIDAH MALAK KESILIA | AX30: Relationship complaints | AY30: 6. Humanness / Caring | AZ30: 6.2.Assault and Harassment | BA30: 6.2.1.Inappropriate/aggressive behavior | BB30: تم دخولي للعياده وكان واضح الانفعال على الدكتوره قبل التحدث معها ولم اكن اعرف السبب ومن اول سوال قالت ماذا تريدين وتم اخبارها انه تم وصف حبوب الروكتان ولكن تم نصحي من قبل الطبيب بمراجعة طبيبه نسائية لان من الممكن ان تكون الحبوب بسبب هرمونات وعند اخبارها بذلك الامر تم رفع الصوت وكنت انا من يقوم بطرح الاسئله والاجابات على نفسي لاتمكن من توضيح الاسباب لها ولكن لا يوجد تجاوب فقط يتم سوالي اعطيني سبب اكتبه لتامين ليتم انهاء الموضوع لانك غير متزوجه وكنت احاول الشرح وتم بالاخير خروجي من العياده بسبب الاسلوب الغير مهني وعدم التجاوب معي . | BC30: I entered the clinic and the doctor was clearly agitated before I even spoke to her, and I didn't know why. Her first question was, "What do you want?" and I told her that I had been prescribed Roaccutane pills. However, the doctor advised me to consult a gynecologist because the pimples might be due to hormones, and when I told her this, she raised her voice. However, the doctor advised me to consult a gynecologist because the pimples might be due to hormones, and when I told her this, she raised her voice. I was asked to give a reason to write down so that the matter could be ended because I am not married, and I was trying to explain, but in the end I left the clinic because of the unprofessional approach and lack of response to me. | BE30: Patient | BJ30: 24 Hours | BK30: 48 Hours | BL30: 72 Hours | BM30: More than 72 hours | BU30: 24 Hours | BV30: 48 Hours | BW30: 72 Hours | BX30: More than 72 hours | CF30: 1114 | CG30: 30260618 | CH30: مراجع | CI30: العيادات الخارجية | CJ30: الإداري | CK30: قسم الموافقات الطبية | CL30: 2023-03-29T16:15:00 | CM30: تهاني عبدالله القرني | CN30: More than 72 Hours | CQ30: Patient Relatives | CR30: =CR27 -> 19 | CS30: =CR30/62 -> 30.65%
B31: 29 | C31: 1018 | D31: 0 | E31: ذوي المراجع | F31: التنويم | G31: الطبي | H31: تنويم النساء والولادة | I31: 2023-03-16T13:42:00 | J31: امال القحطاني | K31: 72 Hours | L31: 2023-03-15 | M31: 19:23:00 | N31: امال القحطاني | O31: 2023-03-16 | P31: 13:24:00 | Q31: 2023-03-16 | R31: 15:25:00 | S31: امال القحطاني | T31: 2023-03-16 | U31: 15:25:00 | V31: امال القحطاني | W31: 0.08402777778 | AA31: -45001.64236 | AE31: 0 | AJ31: -45001.64236 | AK31: 2023-03-19 | AL31: 10:44:00 | AM31: امال القحطاني | AN31: 2.804861111 | AQ31: -45001.64236 | AU31: -45001.64236 | AV31: 13454 | AW31: Dr HAGIR ASIM ABDELMONEINIM HUSSEIN | BB31: 0 | BE31: Patient | BJ31: 2 | BK31: =BN25 -> 0 | BL31: =BO25 -> 0 | BM31: =BP25 -> 0 | BU31: 11 | BV31: 3 | BW31: =BZ26 -> 0 | BX31: =CA26 -> 0 | CF31: 1116 | CG31: 18118 | CH31: مراجع | CI31: العيادات الخارجية | CJ31: الطبي | CK31: قسم المختبر | CL31: 2023-03-30T00:44:00 | CM31: امال القحطاني | CN31: More than 72 Hours
A32: 2 | B32: 30 | C32: 1021 | D32: 30122465 | E32: ذوي المراجع | F32: التنويم | G32: الطبي | H32: تنويم النساء والولادة | I32: 2023-03-18T19:08:00 | J32: تهاني عبدالله القرني | K32: More than 72 Hours | L32: 2023-03-16 | M32: 13:09:00 | N32: تهاني القرني | O32: 2023-03-18 | P32: 19:08:00 | Q32: 2023-03-18 | R32: 19:09:00 | S32: تهاني القرني | T32: 2023-03-18 | U32: 19:09:00 | V32: تهاني عبدالله القرني | W32: 0.0006944444467 | AA32: -45003.79792 | AE32: 0 | AJ32: -45003.79792 | AN32: -45003.79792 | AO32: 2023-03-22 | AP32: 11:07:00 | AQ32: 3.665277778 | AR32: 2023-04-02 | AS32: 12:10:00 | AT32: تهاني عبدالله القرني | AU32: 14.70902778 | AV32: 6722 | AW32: Dr DAAD ZOUKAN KARKOUT | AX32: Clinical complaints | AY32: 1. Quality | AZ32: 3.Quality of Care | BA32: 1.3.5.Rushed, not time to see patients | BB32: تم حضور زوجتي للولادة مع دكتورة دعد ، الساعة 12:00 م من يوم الثلاثاء 14/3/2023 بعد الانتهاء من قسم الطوارئ توجهنا لقسم التنويم تحت رعاية الدكتورة دعد وكان الرحم حوالي 5 سم حسب كلام دكتورة اسراء المناوبة في قسم تنويم الولادة ، انتظرنا حتى الساعة 2:00 م ولم تأتي الدكتورة دعد وبدأ الالم يزداد وصل الرحم الى اكثر من 8 سم حسب كلام دكتورة اسراء ولم يتم حضور الطبيبة دعد ثم ذهبت إلى الدكتورة اسراء للمساعدة او استدعاء طبيبة الولادة حيث ابلغني التمريض ان الدكتورة دعد اعتذرت ولن تأتي مما ادى ذلك الى ولادة زوجتي بدون تواجد اي طبيبة ، بالاضافة الى لم يتم حضور الطبيبة دعد للاطمئنان على حالة زوجتي في اليوم التالي ولم يتم حضورها الى قبل خروج المريضه بساعات قليله . | BC32: My wife was admitted for childbirth with Dr. Daad at 12:00 PM on Tuesday, March 14, 2023. After finishing with the emergency department, we went to the inpatient department under the care of Dr. Daad. The uterus was about 5 cm according to Dr. Israa, who was on duty in the maternity inpatient department. We waited until 2:00 PM and Dr. Daad did not come. The pain began to increase, and the uterus reached more than 8 cm according to Dr. Israa. Dr. Daad still did not come. I then went to Dr. Israa to help or call for the obstetrician, as the nurses informed me that Dr. Daad had apologized and would not come. This led to my wife giving birth without any doctor present. In addition, Dr. Daad did not come to check on my wife's condition the following day and did not come until a few hours before the patient was discharged. | BE32: Patient | BJ32: =BJ31/BK28 -> 100.00% | BK32: =BK31/BK28 -> 0.00% | BL32: =BL31/BK28 -> 0.00% | BM32: =BM31/BK28 -> 0.00% | BU32: =BU31/BV28 -> 78.57% | BV32: =BV31/BV28 -> 21.43% | BW32: =BW31/BV28 -> 0.00% | BX32: =BX31/BV28 -> 0.00% | CF32: 1117 | CG32: 560722264 | CH32: مراجع | CI32: العيادات الخارجية | CJ32: الطبي | CK32: قسم الأشعة | CL32: 2023-03-30T13:03:00 | CM32: تهاني عبدالله القرني | CN32: 72 Hours | CQ32: 24 Hours | CR32: 48 Hours | CS32: 72 Hours | CT32: More than 72 hours
B33: 31 | C33: 1021 | D33: 30122465 | E33: ذوي المراجع | F33: التنويم | G33: الطبي | H33: قسم عمليات الولادة | I33: 2023-03-18T19:29:00 | J33: تهاني عبدالله القرني | K33: More than 72 Hours | L33: 2023-03-16 | M33: 13:09:00 | N33: تهاني القرني | O33: 2023-03-18 | P33: 19:29:00 | Q33: 2023-03-18 | R33: 19:29:00 | S33: تهاني القرني | T33: 2023-03-18 | U33: 19:29:00 | V33: تهاني عبدالله القرني | W33: 0 | X33: 2023-03-23 | Y33: 22:29:00 | Z33: تهاني القرني | AA33: 5.125 | AB33: 2023-03-23 | AC33: 22:29:00 | AD33: تهاني القرني | AE33: 0 | AF33: 2023-03-25 | AG33: 20:41:00 | AH33: تهاني عبدالله القرني | AI33: The complaint was escalated due to the department's failure to respond | AJ33: 7.05 | AN33: -45003.81181 | AQ33: -45003.81181 | AR33: 2023-04-02 | AS33: 12:14:00 | AT33: تهاني عبدالله القرني | AU33: 14.69791667 | AV33: 15023 | AW33: Dr ESRA MOHAMEDELHASSAN IBRAHIM ABDELKAREEM | AX33: Relationship complaints | AY33: 5. Communication | AZ33: 1.Patient-staff communication | BA33: 5.1.2.Poor provider-patient communication | BB33: تم حضور زوجتي للولادة مع دكتورة دعد ، الساعة 12:00 م من يوم الثلاثاء 14/3/2023 بعد الانتهاء من قسم الطوارئ توجهنا لقسم التنويم تحت رعاية الدكتورة دعد وكان الرحم حوالي 5 سم حسب كلام دكتورة اسراء المناوبة في قسم تنويم الولادة ، انتظرنا حتى الساعة 2:00 م ولم تأتي الدكتورة دعد وبدأ الالم يزداد وصل الرحم الى اكثر من 8 سم حسب كلام دكتورة اسراء ولم يتم حضور الطبيبة دعد ثم ذهبت إلى الدكتورة اسراء للمساعدة او استدعاء طبيبة الولادة حيث ابلغني التمريض ان الدكتورة دعد اعتذرت ولن تأتي مما ادى ذلك الى ولادة زوجتي بدون تواجد اي طبيبة ، بالاضافة الى لم يتم حضور الطبيبة دعد للاطمئنان على حالة زوجتي في اليوم التالي ولم يتم حضورها الى قبل خروج المريضه بساعات قليله . | BC33: My wife was admitted for childbirth with Dr. Daad at 12:00 PM on Tuesday, March 14, 2023. After finishing with the emergency department, we went to the inpatient department under the care of Dr. Daad. The uterus was about 5 cm according to Dr. Israa, who was on duty in the maternity inpatient department. We waited until 2:00 PM and Dr. Daad did not come. The pain began to increase, and the uterus reached more than 8 cm according to Dr. Israa. Dr. Daad still did not come. I then went to Dr. Israa to help or call for the obstetrician, as the nurses informed me that Dr. Daad had apologized and would not come. This led to my wife giving birth without any doctor present. In addition, Dr. Daad did not come to check on my wife's condition the following day and did not come until a few hours before the patient was discharged. | BE33: Patient | CQ33: 4 | CR33: 3 | CS33: 3 | CT33: 9
B34: 32 | C34: 1024 | D34: 20106274 | E34: وزارة الصحة | F34: التنويم | G34: الطبي | H34: وحدة العناية المركزة | I34: 2023-03-18T16:08:00 | J34: امال القحطاني | K34: 24 Hours | L34: 2023-03-13 | M34: 16:08:00 | N34: امال القحطاني | O34: 2023-03-13 | P34: 16:08:00 | T34: 2023-03-18 | U34: 16:08:00 | V34: امال القحطاني | W34: 5 | AA34: -45003.67222 | AE34: 0 | AJ34: -45003.67222 | AN34: -45003.67222 | AQ34: -45003.67222 | AR34: 2023-03-18 | AS34: 16:46:00 | AT34: امال القحطاني | AU34: 0.02638888889 | AW34: DR.TALAL | AX34: Relationship complaints | AY34: 6. Humanness / Caring | AZ34: 6.Resources | BA34: 3.5.2.Specialty not available | BB34: لا يتم توفير كرسي او سرير للمرافق علما انه تم الاتفاق مع قسم العنايه بوجود المرافق مع المريض | BC34: No chair or bed is provided for the companion, even though it was agreed with the care department that a companion would be allowed with the patient. | BE34: Patient | BJ34: In-Patient | BL34: =BK34/BK37 -> 0.00% | BU34: In-Patient | BV34: 6 | BW34: =BV34/BV37 -> 42.86% | CF34: Employee Name | CG34: Number of complaints | CH34: Total Percentage | CI34: 24 Hours | CJ34: 48 Hours | CK34: 72 Hours | CL34: More than 72 hours | CM34: Total | CQ34: =CQ33/CR30 -> 21.05% | CR34: =CR33/CR30 -> 15.79% | CS34: =CS33/CR30 -> 15.79% | CT34: =CT33/CR30 -> 47.37%
